Workbook

Sheet Summary
A1: 분 전
A2: minutes
A3: 일전
A4: days
A5: 시간 전
A6: hours
A7: 방금
A8: 1 minutes
A10: 브론즈
A11: Bronze
A12: 실버
A13: Silver
A14: 골드
A15: Gold
A16: 플래티넘
A17: Platinum
A18: 다이아몬드
A19: Diamond
A20: 마스터
A21: Master
A22: 그랜드마스터
A23: Grandmaster
A25: =A2&"-"&C2&"|"&F2&"-"&H2&"|"&K2&"-"&M2&"|"&P2&"-"&R2

Sheet Analysis - 1v1
A1: Week Start | B1: Bonus Pool Per Week (Sub-Masters) | C1: Bonus Pool Per Week (Masters+GM) | D1: Cum. Bonus Pool (Sub-Masters) | E1: Cum. Bonus Pool (Masters+GM) | F1: Week # | H1: Program Run Notes
A2: 2014-07-07 | B2: 104.4 | C2: 180 | D2: =B2 -> 104.4 | E2: =C2 -> 180 | F2: 1 | H2: 7/29/2014 runtime:
A3: 2014-07-14 | B3: 104.4 | C3: 180 | D3: =D2+B3 -> 208.8 | E3: =E2+C3 -> 360 | F3: =F2+1 -> 2 | H3: start | I3: 2014-07-21T16:36:39
A4: 2014-07-21 | B4: 104.4 | C4: 180 | D4: =D3+B4 -> 313.2 | E4: =E3+C4 -> 540 | F4: =F3+1 -> 3 | H4: end | I4: 2014-07-22T00:17:21
A5: 2014-07-28 | B5: 104.4 | C5: 180 | D5: 417.6 | E5: 720 | F5: 4
A6: 2014-08-04 | B6: 104.4 | C6: 180 | D6: =D5+B6 -> 522 | E6: =E5+C6 -> 900 | F6: 5 | H6: 2014-08-25
A7: 2014-08-11 | B7: 104.4 | C7: 180 | D7: =D6+B7 -> 626.4 | E7: =E6+C7 -> 1080 | F7: 6 | H7: start | I7: 2014-08-23T09:46:00
A8: 2014-08-18 | B8: 104.4 | C8: 180 | D8: 730.8 | E8: 1260 | F8: 7 | H8: end | I8: 2014-08-24T19:01:00
A9: 2014-08-25 | B9: 104.4 | C9: 180 | D9: 835.2 | E9: 1440 | F9: 8 | G9: <-
A10: 2014-09-01 | B10: 104.4 | C10: 180 | F10: 9
A11: 2014-09-08 | B11: 104.4 | C11: 180 | F11: 10
A12: 2014-09-15 | B12: 104.4 | C12: 180 | F12: 11
A13: 2014-09-22 | B13: 104.4 | C13: 180 | F13: 12
A14: 2014-09-29 | B14: 104.4 | C14: 180 | F14: 13
A15: 2014-10-06 | B15: 104.4 | C15: 180 | F15: 14
A16: 2014-10-13 | B16: 104.4 | C16: 180 | F16: 15
A17: 2014-10-20 | B17: 104.4 | C17: 180 | F17: 16
A18: 2014-10-27 | B18: 104.4 | C18: 180 | F18: 17
A19: 11/3/2014 (season lock) | B19: 104.4 | C19: 180 | F19: 18
A20: 2014-11-10 | B20: 104.4 | C20: 180 | F20: 19
A23: Raw Counts | K23: % Distributions | R23: Weeks Behind Averager: | S23: 4
A24: Weeks Remaining | B24: Bronze | C24: Silver | D24: Gold | E24: Platinum | F24: Diamond | G24: Master | H24: Grandmaster | I24: Totals | J24: Percentages of Total | K24: Bronze | L24: Silver | M24: Gold | N24: Platinum | O24: Diamond | P24: Master | R24: Bronze | S24: Silver | T24: Gold | U24: Platinum | V24: Diamond | W24: Master
A25: 1 | B25: 536 | C25: 779 | D25: 3879 | E25: 2751 | F25: 2717 | G25: 319 | H25: 199 | I25: =SUM(B25:H25) -> 11180 | J25: =I25/$I$44 -> 0.121433304 | K25: =B25/$I25 -> 0.04794275492 | L25: =C25/$I25 -> 0.06967799642 | M25: =D25/$I25 -> 0.3469588551 | N25: =E25/$I25 -> 0.2460644007 | O25: =F25/$I25 -> 0.2430232558 | P25: =G25/$I25 -> 0.02853309481 | R25: =AVERAGEIFS(K25:K43,$A$25:$A$43,"<=4") -> 0.04157455267 | S25: =AVERAGEIFS(L25:L43,$A$25:$A$43,"<=4") -> 0.09166257246 | T25: 0.394095972 | U25: 0.23888597 | V25: 0.201249926 | W25: 0.02808109625
A26: 2 | B26: 180 | C26: 390 | D26: 1794 | E26: 1197 | F26: 1037 | G26: 129 | I26: =SUM(B26:H26) -> 4727 | J26: =I26/$I$44 -> 0.05134304365 | K26: =B26/$I26 -> 0.03807911995 | L26: =C26/$I26 -> 0.08250475989 | M26: =D26/$I26 -> 0.3795218955 | N26: =E26/$I26 -> 0.2532261477 | O26: =F26/$I26 -> 0.219378041 | P26: =G26/$I26 -> 0.02729003596
A27: 3 | B27: 203 | C27: 501 | D27: 2032 | E27: 1166 | F27: 917 | G27: 142 | I27: 4961 | J27: 0.05388467095 | K27: 0.04091916952 | L27: 0.1009877041 | M27: 0.4095948398 | N27: 0.2350332594 | O27: 0.1848417658 | P27: 0.02862326144
A28: 4 | B28: 240 | C28: 692 | D28: 2685 | E28: 1349 | F28: 962 | G28: 170 | I28: 6098 | J28: 0.06623437279 | K28: 0.03935716628 | L28: 0.1134798295 | M28: 0.4403082978 | N28: 0.2212200722 | O28: 0.1577566415 | P28: 0.02787799278
A29: 5 | B29: 371 | C29: 1145 | D29: 3905 | E29: 1618 | F29: 935 | G29: 204 | I29: 8178 | J29: 0.0888266154 | K29: 0.04536561506 | L29: 0.1400097823 | M29: 0.4775006114 | N29: 0.1978478846 | O29: 0.1143311323 | P29: 0.02494497432
A30: 6 | B30: 650 | C30: 2687 | D30: 6696 | E30: 1910 | F30: 1111 | G30: 192 | I30: 13246 | J30: 0.1438734834 | K30: 0.04907141779 | L30: 0.2028536917 | M30: 0.5055110977 | N30: 0.1441944738 | O30: 0.08387437717 | P30: 0.01449494187
A31: 7 | B31: 4555 | C31: 18503 | D31: 13901 | E31: 4313 | F31: 2034 | G31: 371 | I31: 43677 | J31: 0.4744045098 | K31: 0.1042882982 | L31: 0.4236325755 | M31: 0.3182681961 | N31: 0.09874762461 | O31: 0.0465691325 | P31: 0.008494173135
A32: 8
A33: 9
A34: 10
A35: 11
A36: =A35+1 -> 12
A37: =A36+1 -> 13
A38: 14
A39: 15
A40: 16
A41: 17
A42: 18
A43: 19
A44: Totals | B44: =SUM(B25:B43) -> 6735 | C44: =SUM(C25:C43) -> 24697 | D44: 34892 | E44: 14304 | F44: 9713 | G44: 1527 | H44: 199 | I44: =SUM(I25:I43) -> 92067 | K44: =B44/$I44 -> 0.07315324709 | L44: =C44/$I44 -> 0.268250296 | M44: =D44/$I44 -> 0.3789848697 | N44: =E44/$I44 -> 0.1553651145 | O44: =F44/$I44 -> 0.105499256 | P44: =G44/$I44 -> 0.01658574734
J45: Targets: | K45: 0.08 | L45: 0.2 | M45: 0.32 | N45: 0.2 | O45: 0.18 | P45: 0.02
A47: For Reddit tables
A48: =A25&"* | "&B25&" | "&C25&" | "&D25&" | "&E25&" | "&F25&" | "&G25 -> 1* | 536 | 779 | 3879 | 2751 | 2717 | 319 | K48: =A25&"* | "&ROUNDDOWN(K25,4)*100&"% | "&ROUNDDOWN(L25,4)*100&"% | "&ROUNDDOWN(M25,4)*100&"% | "&ROUNDDOWN(N25,4)*100&"% | "&ROUNDDOWN(O25,4)*100&"% | "&ROUNDDOWN(P25,4)*100&"%" -> 1* | 4.79% | 6.96% | 34.69% | 24.6% | 24.3% | 2.85%
A49: =A26&" | "&B26&" | "&C26&" | "&D26&" | "&E26&" | "&F26&" | "&G26 -> 2 | 180 | 390 | 1794 | 1197 | 1037 | 129 | K49: =A26&" | "&ROUNDDOWN(K26,4)*100&"% | "&ROUNDDOWN(L26,4)*100&"% | "&ROUNDDOWN(M26,4)*100&"% | "&ROUNDDOWN(N26,4)*100&"% | "&ROUNDDOWN(O26,4)*100&"% | "&ROUNDDOWN(P26,4)*100&"%" -> 2 | 3.8% | 8.25% | 37.95% | 25.32% | 21.93% | 2.72%
A50: 3 | 203 | 501 | 2032 | 1166 | 917 | 142 | K50: 3 | 4.09% | 10.09% | 40.95% | 23.5% | 18.48% | 2.86%
A51: 4 | 240 | 692 | 2685 | 1349 | 962 | 170 | K51: 4 | 3.93% | 11.34% | 44.03% | 22.12% | 15.77% | 2.78%
A52: 5 | 371 | 1145 | 3905 | 1618 | 935 | 204 | K52: 5 | 4.53% | 14% | 47.75% | 19.78% | 11.43% | 2.49%
A53: 6 | 650 | 2687 | 6696 | 1910 | 1111 | 192 | K53: 6 | 4.9% | 20.28% | 50.55% | 14.41% | 8.38% | 1.44%
A54: 7 | 4555 | 18503 | 13901 | 4313 | 2034 | 371 | K54: 7 | 10.42% | 42.36% | 31.82% | 9.87% | 4.65% | 0.84%
A55: 8 | | | | | | | K55: 8 | 0% | 0% | 0% | 0% | 0% | 0%
A56: 9 | | | | | | | K56: 9 | 0% | 0% | 0% | 0% | 0% | 0%
A57: 10 | | | | | | | K57: 10 | 0% | 0% | 0% | 0% | 0% | 0%
A58: =A35&" | "&B35&" | "&C35&" | "&D35&" | "&E35&" | "&F35&" | "&G35 -> 11 | | | | | | | K58: =A35&" | "&ROUNDDOWN(K35,4)*100&"% | "&ROUNDDOWN(L35,4)*100&"% | "&ROUNDDOWN(M35,4)*100&"% | "&ROUNDDOWN(N35,4)*100&"% | "&ROUNDDOWN(O35,4)*100&"% | "&ROUNDDOWN(P35,4)*100&"%" -> 11 | 0% | 0% | 0% | 0% | 0% | 0%
A59: =A36&" | "&B36&" | "&C36&" | "&D36&" | "&E36&" | "&F36&" | "&G36 -> 12 | | | | | | | K59: =A36&" | "&ROUNDDOWN(K36,4)*100&"% | "&ROUNDDOWN(L36,4)*100&"% | "&ROUNDDOWN(M36,4)*100&"% | "&ROUNDDOWN(N36,4)*100&"% | "&ROUNDDOWN(O36,4)*100&"% | "&ROUNDDOWN(P36,4)*100&"%" -> 12 | 0% | 0% | 0% | 0% | 0% | 0%
A60: 13 | | | | | | | K60: 13 | 0% | 0% | 0% | 0% | 0% | 0%
A61: 14 | | | | | | | K61: 14 | 0% | 0% | 0% | 0% | 0% | 0%
A62: 15 | | | | | | | K62: 15 | 0% | 0% | 0% | 0% | 0% | 0%
A63: 16 | | | | | | | K63: 16 | 0% | 0% | 0% | 0% | 0% | 0%
A64: 17 | | | | | | | K64: 17 | 0% | 0% | 0% | 0% | 0% | 0%
A65: 18 | | | | | | | K65: 18 | 0% | 0% | 0% | 0% | 0% | 0%
A66: 19 | | | | | | | K66: 19 | 0% | 0% | 0% | 0% | 0% | 0%
A70: Race Stats
B71: Bronze | F71: Silver | J71: Gold | N71: Platinum | R71: Diamond | V71: Master | Z71: Grandmaster | AD71: Totals | AH71: Totals Overall
A72: Weeks Remaining | B72: Z | C72: T | D72: P | E72: R | F72: Z | G72: T | H72: P | I72: R | J72: Z | K72: T | L72: P | M72: R | N72: Z | O72: T | P72: P | Q72: R | R72: Z | S72: T | T72: P | U72: R | V72: Z | W72: T | X72: P | Y72: R | Z72: Z | AA72: T | AB72: P | AC72: R | AD72: Z | AE72: T | AF72: P | AG72: R
A73: 1 | B73: =COUNTIFS('1v1'!$E$2:$E$92068,LOWER('Analysis - 1v1'!B$72),'1v1'!$F$2:$F$92068,'Analysis - 1v1'!$B$71,'1v1'!$Q$2:$Q$92068,'Analysis - 1v1'!$A73) -> 72 | C73: =COUNTIFS('1v1'!$E$2:$E$92068,LOWER('Analysis - 1v1'!C$72),'1v1'!$F$2:$F$92068,'Analysis - 1v1'!$B$71,'1v1'!$Q$2:$Q$92068,'Analysis - 1v1'!$A73) -> 261 | D73: =COUNTIFS('1v1'!$E$2:$E$92068,LOWER('Analysis - 1v1'!D$72),'1v1'!$F$2:$F$92068,'Analysis - 1v1'!$B$71,'1v1'!$Q$2:$Q$92068,'Analysis - 1v1'!$A73) -> 140 | E73: =COUNTIFS('1v1'!$E$2:$E$92068,LOWER('Analysis - 1v1'!E$72),'1v1'!$F$2:$F$92068,'Analysis - 1v1'!$B$71,'1v1'!$Q$2:$Q$92068,'Analysis - 1v1'!$A73) -> 63 | F73: =COUNTIFS('1v1'!$E$2:$E$92068,LOWER('Analysis - 1v1'!F$72),'1v1'!$F$2:$F$92068,'Analysis - 1v1'!$F$71,'1v1'!$Q$2:$Q$92068,'Analysis - 1v1'!$A73) -> 164 | G73: =COUNTIFS('1v1'!$E$2:$E$92068,LOWER('Analysis - 1v1'!G$72),'1v1'!$F$2:$F$92068,'Analysis - 1v1'!$F$71,'1v1'!$Q$2:$Q$92068,'Analysis - 1v1'!$A73) -> 312 | H73: =COUNTIFS('1v1'!$E$2:$E$92068,LOWER('Analysis - 1v1'!H$72),'1v1'!$F$2:$F$92068,'Analysis - 1v1'!$F$71,'1v1'!$Q$2:$Q$92068,'Analysis - 1v1'!$A73) -> 214 | I73: =COUNTIFS('1v1'!$E$2:$E$92068,LOWER('Analysis - 1v1'!I$72),'1v1'!$F$2:$F$92068,'Analysis - 1v1'!$F$71,'1v1'!$Q$2:$Q$92068,'Analysis - 1v1'!$A73) -> 89 | J73: =COUNTIFS('1v1'!$E$2:$E$92068,LOWER('Analysis - 1v1'!J$72),'1v1'!$F$2:$F$92068,'Analysis - 1v1'!$J$71,'1v1'!$Q$2:$Q$92068,'Analysis - 1v1'!$A73) -> 1139 | K73: =COUNTIFS('1v1'!$E$2:$E$92068,LOWER('Analysis - 1v1'!K$72),'1v1'!$F$2:$F$92068,'Analysis - 1v1'!$J$71,'1v1'!$Q$2:$Q$92068,'Analysis - 1v1'!$A73) -> 1278 | L73: =COUNTIFS('1v1'!$E$2:$E$92068,LOWER('Analysis - 1v1'!L$72),'1v1'!$F$2:$F$92068,'Analysis - 1v1'!$J$71,'1v1'!$Q$2:$Q$92068,'Analysis - 1v1'!$A73) -> 1029 | M73: =COUNTIFS('1v1'!$E$2:$E$92068,LOWER('Analysis - 1v1'!M$72),'1v1'!$F$2:$F$92068,'Analysis - 1v1'!$J$71,'1v1'!$Q$2:$Q$92068,'Analysis - 1v1'!$A73) -> 433 | N73: =COUNTIFS('1v1'!$E$2:$E$92068,LOWER('Analysis - 1v1'!N$72),'1v1'!$F$2:$F$92068,'Analysis - 1v1'!$N$71,'1v1'!$Q$2:$Q$92068,'Analysis - 1v1'!$A73) -> 991 | O73: =COUNTIFS('1v1'!$E$2:$E$92068,LOWER('Analysis - 1v1'!O$72),'1v1'!$F$2:$F$92068,'Analysis - 1v1'!$N$71,'1v1'!$Q$2:$Q$92068,'Analysis - 1v1'!$A73) -> 875 | P73: =COUNTIFS('1v1'!$E$2:$E$92068,LOWER('Analysis - 1v1'!P$72),'1v1'!$F$2:$F$92068,'Analysis - 1v1'!$N$71,'1v1'!$Q$2:$Q$92068,'Analysis - 1v1'!$A73) -> 675 | Q73: =COUNTIFS('1v1'!$E$2:$E$92068,LOWER('Analysis - 1v1'!Q$72),'1v1'!$F$2:$F$92068,'Analysis - 1v1'!$N$71,'1v1'!$Q$2:$Q$92068,'Analysis - 1v1'!$A73) -> 210 | R73: =COUNTIFS('1v1'!$E$2:$E$92068,LOWER('Analysis - 1v1'!R$72),'1v1'!$F$2:$F$92068,'Analysis - 1v1'!$R$71,'1v1'!$Q$2:$Q$92068,'Analysis - 1v1'!$A73) -> 978 | S73: =COUNTIFS('1v1'!$E$2:$E$92068,LOWER('Analysis - 1v1'!S$72),'1v1'!$F$2:$F$92068,'Analysis - 1v1'!$R$71,'1v1'!$Q$2:$Q$92068,'Analysis - 1v1'!$A73) -> 887 | T73: =COUNTIFS('1v1'!$E$2:$E$92068,LOWER('Analysis - 1v1'!T$72),'1v1'!$F$2:$F$92068,'Analysis - 1v1'!$R$71,'1v1'!$Q$2:$Q$92068,'Analysis - 1v1'!$A73) -> 731 | U73: =COUNTIFS('1v1'!$E$2:$E$92068,LOWER('Analysis - 1v1'!U$72),'1v1'!$F$2:$F$92068,'Analysis - 1v1'!$R$71,'1v1'!$Q$2:$Q$92068,'Analysis - 1v1'!$A73) -> 121 | V73: =COUNTIFS('1v1'!$E$2:$E$92068,LOWER('Analysis - 1v1'!V$72),'1v1'!$F$2:$F$92068,'Analysis - 1v1'!$V$71,'1v1'!$Q$2:$Q$92068,'Analysis - 1v1'!$A73) -> 131 | W73: =COUNTIFS('1v1'!$E$2:$E$92068,LOWER('Analysis - 1v1'!W$72),'1v1'!$F$2:$F$92068,'Analysis - 1v1'!$V$71,'1v1'!$Q$2:$Q$92068,'Analysis - 1v1'!$A73) -> 89 | X73: =COUNTIFS('1v1'!$E$2:$E$92068,LOWER('Analysis - 1v1'!X$72),'1v1'!$F$2:$F$92068,'Analysis - 1v1'!$V$71,'1v1'!$Q$2:$Q$92068,'Analysis - 1v1'!$A73) -> 90 | Y73: =COUNTIFS('1v1'!$E$2:$E$92068,LOWER('Analysis - 1v1'!Y$72),'1v1'!$F$2:$F$92068,'Analysis - 1v1'!$V$71,'1v1'!$Q$2:$Q$92068,'Analysis - 1v1'!$A73) -> 9 | Z73: =COUNTIFS('1v1'!$E$2:$E$92068,LOWER('Analysis - 1v1'!Z$72),'1v1'!$F$2:$F$92068,'Analysis - 1v1'!$Z$71,'1v1'!$Q$2:$Q$92068,'Analysis - 1v1'!$A73) -> 68 | AA73: =COUNTIFS('1v1'!$E$2:$E$92068,LOWER('Analysis - 1v1'!AA$72),'1v1'!$F$2:$F$92068,'Analysis - 1v1'!$Z$71,'1v1'!$Q$2:$Q$92068,'Analysis - 1v1'!$A73) -> 58 | AB73: =COUNTIFS('1v1'!$E$2:$E$92068,LOWER('Analysis - 1v1'!AB$72),'1v1'!$F$2:$F$92068,'Analysis - 1v1'!$Z$71,'1v1'!$Q$2:$Q$92068,'Analysis - 1v1'!$A73) -> 72 | AC73: =COUNTIFS('1v1'!$E$2:$E$92068,LOWER('Analysis - 1v1'!AC$72),'1v1'!$F$2:$F$92068,'Analysis - 1v1'!$Z$71,'1v1'!$Q$2:$Q$92068,'Analysis - 1v1'!$A73) -> 1 | AD73: =B73+F73+J73+N73+R73+V73+Z73 -> 3543 | AE73: =C73+G73+K73+O73+S73+W73+AA73 -> 3760 | AF73: =D73+H73+L73+P73+T73+X73+AB73 -> 2951 | AG73: =E73+I73+M73+Q73+U73+Y73+AC73 -> 926 | AH73: =SUM(AD73:AG73) -> 11180
A74: 2 | B74: =COUNTIFS('1v1'!$E$2:$E$92068,LOWER('Analysis - 1v1'!B$72),'1v1'!$F$2:$F$92068,'Analysis - 1v1'!$B$71,'1v1'!$Q$2:$Q$92068,'Analysis - 1v1'!$A74) -> 40 | C74: =COUNTIFS('1v1'!$E$2:$E$92068,LOWER('Analysis - 1v1'!C$72),'1v1'!$F$2:$F$92068,'Analysis - 1v1'!$B$71,'1v1'!$Q$2:$Q$92068,'Analysis - 1v1'!$A74) -> 76 | D74: =COUNTIFS('1v1'!$E$2:$E$92068,LOWER('Analysis - 1v1'!D$72),'1v1'!$F$2:$F$92068,'Analysis - 1v1'!$B$71,'1v1'!$Q$2:$Q$92068,'Analysis - 1v1'!$A74) -> 43 | E74: =COUNTIFS('1v1'!$E$2:$E$92068,LOWER('Analysis - 1v1'!E$72),'1v1'!$F$2:$F$92068,'Analysis - 1v1'!$B$71,'1v1'!$Q$2:$Q$92068,'Analysis - 1v1'!$A74) -> 21 | F74: =COUNTIFS('1v1'!$E$2:$E$92068,LOWER('Analysis - 1v1'!F$72),'1v1'!$F$2:$F$92068,'Analysis - 1v1'!$F$71,'1v1'!$Q$2:$Q$92068,'Analysis - 1v1'!$A74) -> 87 | G74: =COUNTIFS('1v1'!$E$2:$E$92068,LOWER('Analysis - 1v1'!G$72),'1v1'!$F$2:$F$92068,'Analysis - 1v1'!$F$71,'1v1'!$Q$2:$Q$92068,'Analysis - 1v1'!$A74) -> 153 | H74: =COUNTIFS('1v1'!$E$2:$E$92068,LOWER('Analysis - 1v1'!H$72),'1v1'!$F$2:$F$92068,'Analysis - 1v1'!$F$71,'1v1'!$Q$2:$Q$92068,'Analysis - 1v1'!$A74) -> 101 | I74: =COUNTIFS('1v1'!$E$2:$E$92068,LOWER('Analysis - 1v1'!I$72),'1v1'!$F$2:$F$92068,'Analysis - 1v1'!$F$71,'1v1'!$Q$2:$Q$92068,'Analysis - 1v1'!$A74) -> 49 | J74: =COUNTIFS('1v1'!$E$2:$E$92068,LOWER('Analysis - 1v1'!J$72),'1v1'!$F$2:$F$92068,'Analysis - 1v1'!$J$71,'1v1'!$Q$2:$Q$92068,'Analysis - 1v1'!$A74) -> 551 | K74: =COUNTIFS('1v1'!$E$2:$E$92068,LOWER('Analysis - 1v1'!K$72),'1v1'!$F$2:$F$92068,'Analysis - 1v1'!$J$71,'1v1'!$Q$2:$Q$92068,'Analysis - 1v1'!$A74) -> 547 | L74: =COUNTIFS('1v1'!$E$2:$E$92068,LOWER('Analysis - 1v1'!L$72),'1v1'!$F$2:$F$92068,'Analysis - 1v1'!$J$71,'1v1'!$Q$2:$Q$92068,'Analysis - 1v1'!$A74) -> 497 | M74: =COUNTIFS('1v1'!$E$2:$E$92068,LOWER('Analysis - 1v1'!M$72),'1v1'!$F$2:$F$92068,'Analysis - 1v1'!$J$71,'1v1'!$Q$2:$Q$92068,'Analysis - 1v1'!$A74) -> 199 | N74: =COUNTIFS('1v1'!$E$2:$E$92068,LOWER('Analysis - 1v1'!N$72),'1v1'!$F$2:$F$92068,'Analysis - 1v1'!$N$71,'1v1'!$Q$2:$Q$92068,'Analysis - 1v1'!$A74) -> 414 | O74: =COUNTIFS('1v1'!$E$2:$E$92068,LOWER('Analysis - 1v1'!O$72),'1v1'!$F$2:$F$92068,'Analysis - 1v1'!$N$71,'1v1'!$Q$2:$Q$92068,'Analysis - 1v1'!$A74) -> 358 | P74: =COUNTIFS('1v1'!$E$2:$E$92068,LOWER('Analysis - 1v1'!P$72),'1v1'!$F$2:$F$92068,'Analysis - 1v1'!$N$71,'1v1'!$Q$2:$Q$92068,'Analysis - 1v1'!$A74) -> 303 | Q74: =COUNTIFS('1v1'!$E$2:$E$92068,LOWER('Analysis - 1v1'!Q$72),'1v1'!$F$2:$F$92068,'Analysis - 1v1'!$N$71,'1v1'!$Q$2:$Q$92068,'Analysis - 1v1'!$A74) -> 122 | R74: =COUNTIFS('1v1'!$E$2:$E$92068,LOWER('Analysis - 1v1'!R$72),'1v1'!$F$2:$F$92068,'Analysis - 1v1'!$R$71,'1v1'!$Q$2:$Q$92068,'Analysis - 1v1'!$A74) -> 377 | S74: =COUNTIFS('1v1'!$E$2:$E$92068,LOWER('Analysis - 1v1'!S$72),'1v1'!$F$2:$F$92068,'Analysis - 1v1'!$R$71,'1v1'!$Q$2:$Q$92068,'Analysis - 1v1'!$A74) -> 338 | T74: =COUNTIFS('1v1'!$E$2:$E$92068,LOWER('Analysis - 1v1'!T$72),'1v1'!$F$2:$F$92068,'Analysis - 1v1'!$R$71,'1v1'!$Q$2:$Q$92068,'Analysis - 1v1'!$A74) -> 260 | U74: =COUNTIFS('1v1'!$E$2:$E$92068,LOWER('Analysis - 1v1'!U$72),'1v1'!$F$2:$F$92068,'Analysis - 1v1'!$R$71,'1v1'!$Q$2:$Q$92068,'Analysis - 1v1'!$A74) -> 62 | V74: =COUNTIFS('1v1'!$E$2:$E$92068,LOWER('Analysis - 1v1'!V$72),'1v1'!$F$2:$F$92068,'Analysis - 1v1'!$V$71,'1v1'!$Q$2:$Q$92068,'Analysis - 1v1'!$A74) -> 47 | W74: =COUNTIFS('1v1'!$E$2:$E$92068,LOWER('Analysis - 1v1'!W$72),'1v1'!$F$2:$F$92068,'Analysis - 1v1'!$V$71,'1v1'!$Q$2:$Q$92068,'Analysis - 1v1'!$A74) -> 40 | X74: =COUNTIFS('1v1'!$E$2:$E$92068,LOWER('Analysis - 1v1'!X$72),'1v1'!$F$2:$F$92068,'Analysis - 1v1'!$V$71,'1v1'!$Q$2:$Q$92068,'Analysis - 1v1'!$A74) -> 41 | Y74: =COUNTIFS('1v1'!$E$2:$E$92068,LOWER('Analysis - 1v1'!Y$72),'1v1'!$F$2:$F$92068,'Analysis - 1v1'!$V$71,'1v1'!$Q$2:$Q$92068,'Analysis - 1v1'!$A74) -> 1 | Z74: =COUNTIFS('1v1'!$E$2:$E$92068,LOWER('Analysis - 1v1'!Z$72),'1v1'!$F$2:$F$92068,'Analysis - 1v1'!$Z$71,'1v1'!$Q$2:$Q$92068,'Analysis - 1v1'!$A74) -> 0 | AA74: =COUNTIFS('1v1'!$E$2:$E$92068,LOWER('Analysis - 1v1'!AA$72),'1v1'!$F$2:$F$92068,'Analysis - 1v1'!$Z$71,'1v1'!$Q$2:$Q$92068,'Analysis - 1v1'!$A74) -> 0 | AB74: =COUNTIFS('1v1'!$E$2:$E$92068,LOWER('Analysis - 1v1'!AB$72),'1v1'!$F$2:$F$92068,'Analysis - 1v1'!$Z$71,'1v1'!$Q$2:$Q$92068,'Analysis - 1v1'!$A74) -> 0 | AC74: =COUNTIFS('1v1'!$E$2:$E$92068,LOWER('Analysis - 1v1'!AC$72),'1v1'!$F$2:$F$92068,'Analysis - 1v1'!$Z$71,'1v1'!$Q$2:$Q$92068,'Analysis - 1v1'!$A74) -> 0 | AD74: =B74+F74+J74+N74+R74+V74+Z74 -> 1516 | AE74: 1512 | AF74: 1245 | AG74: 454 | AH74: =SUM(AD74:AG74) -> 4727
A75: 3 | B75: =COUNTIFS('1v1'!$E$2:$E$92068,LOWER('Analysis - 1v1'!B$72),'1v1'!$F$2:$F$92068,'Analysis - 1v1'!$B$71,'1v1'!$Q$2:$Q$92068,'Analysis - 1v1'!$A75) -> 40 | C75: =COUNTIFS('1v1'!$E$2:$E$92068,LOWER('Analysis - 1v1'!C$72),'1v1'!$F$2:$F$92068,'Analysis - 1v1'!$B$71,'1v1'!$Q$2:$Q$92068,'Analysis - 1v1'!$A75) -> 91 | D75: =COUNTIFS('1v1'!$E$2:$E$92068,LOWER('Analysis - 1v1'!D$72),'1v1'!$F$2:$F$92068,'Analysis - 1v1'!$B$71,'1v1'!$Q$2:$Q$92068,'Analysis - 1v1'!$A75) -> 54 | E75: =COUNTIFS('1v1'!$E$2:$E$92068,LOWER('Analysis - 1v1'!E$72),'1v1'!$F$2:$F$92068,'Analysis - 1v1'!$B$71,'1v1'!$Q$2:$Q$92068,'Analysis - 1v1'!$A75) -> 18 | F75: =COUNTIFS('1v1'!$E$2:$E$92068,LOWER('Analysis - 1v1'!F$72),'1v1'!$F$2:$F$92068,'Analysis - 1v1'!$F$71,'1v1'!$Q$2:$Q$92068,'Analysis - 1v1'!$A75) -> 118 | G75: =COUNTIFS('1v1'!$E$2:$E$92068,LOWER('Analysis - 1v1'!G$72),'1v1'!$F$2:$F$92068,'Analysis - 1v1'!$F$71,'1v1'!$Q$2:$Q$92068,'Analysis - 1v1'!$A75) -> 183 | H75: =COUNTIFS('1v1'!$E$2:$E$92068,LOWER('Analysis - 1v1'!H$72),'1v1'!$F$2:$F$92068,'Analysis - 1v1'!$F$71,'1v1'!$Q$2:$Q$92068,'Analysis - 1v1'!$A75) -> 133 | I75: =COUNTIFS('1v1'!$E$2:$E$92068,LOWER('Analysis - 1v1'!I$72),'1v1'!$F$2:$F$92068,'Analysis - 1v1'!$F$71,'1v1'!$Q$2:$Q$92068,'Analysis - 1v1'!$A75) -> 67 | J75: =COUNTIFS('1v1'!$E$2:$E$92068,LOWER('Analysis - 1v1'!J$72),'1v1'!$F$2:$F$92068,'Analysis - 1v1'!$J$71,'1v1'!$Q$2:$Q$92068,'Analysis - 1v1'!$A75) -> 657 | K75: =COUNTIFS('1v1'!$E$2:$E$92068,LOWER('Analysis - 1v1'!K$72),'1v1'!$F$2:$F$92068,'Analysis - 1v1'!$J$71,'1v1'!$Q$2:$Q$92068,'Analysis - 1v1'!$A75) -> 620 | L75: =COUNTIFS('1v1'!$E$2:$E$92068,LOWER('Analysis - 1v1'!L$72),'1v1'!$F$2:$F$92068,'Analysis - 1v1'!$J$71,'1v1'!$Q$2:$Q$92068,'Analysis - 1v1'!$A75) -> 500 | M75: =COUNTIFS('1v1'!$E$2:$E$92068,LOWER('Analysis - 1v1'!M$72),'1v1'!$F$2:$F$92068,'Analysis - 1v1'!$J$71,'1v1'!$Q$2:$Q$92068,'Analysis - 1v1'!$A75) -> 255 | N75: =COUNTIFS('1v1'!$E$2:$E$92068,LOWER('Analysis - 1v1'!N$72),'1v1'!$F$2:$F$92068,'Analysis - 1v1'!$N$71,'1v1'!$Q$2:$Q$92068,'Analysis - 1v1'!$A75) -> 461 | O75: =COUNTIFS('1v1'!$E$2:$E$92068,LOWER('Analysis - 1v1'!O$72),'1v1'!$F$2:$F$92068,'Analysis - 1v1'!$N$71,'1v1'!$Q$2:$Q$92068,'Analysis - 1v1'!$A75) -> 334 | P75: =COUNTIFS('1v1'!$E$2:$E$92068,LOWER('Analysis - 1v1'!P$72),'1v1'!$F$2:$F$92068,'Analysis - 1v1'!$N$71,'1v1'!$Q$2:$Q$92068,'Analysis - 1v1'!$A75) -> 284 | Q75: =COUNTIFS('1v1'!$E$2:$E$92068,LOWER('Analysis - 1v1'!Q$72),'1v1'!$F$2:$F$92068,'Analysis - 1v1'!$N$71,'1v1'!$Q$2:$Q$92068,'Analysis - 1v1'!$A75) -> 87 | R75: =COUNTIFS('1v1'!$E$2:$E$92068,LOWER('Analysis - 1v1'!R$72),'1v1'!$F$2:$F$92068,'Analysis - 1v1'!$R$71,'1v1'!$Q$2:$Q$92068,'Analysis - 1v1'!$A75) -> 362 | S75: =COUNTIFS('1v1'!$E$2:$E$92068,LOWER('Analysis - 1v1'!S$72),'1v1'!$F$2:$F$92068,'Analysis - 1v1'!$R$71,'1v1'!$Q$2:$Q$92068,'Analysis - 1v1'!$A75) -> 269 | T75: =COUNTIFS('1v1'!$E$2:$E$92068,LOWER('Analysis - 1v1'!T$72),'1v1'!$F$2:$F$92068,'Analysis - 1v1'!$R$71,'1v1'!$Q$2:$Q$92068,'Analysis - 1v1'!$A75) -> 234 | U75: =COUNTIFS('1v1'!$E$2:$E$92068,LOWER('Analysis - 1v1'!U$72),'1v1'!$F$2:$F$92068,'Analysis - 1v1'!$R$71,'1v1'!$Q$2:$Q$92068,'Analysis - 1v1'!$A75) -> 52 | V75: =COUNTIFS('1v1'!$E$2:$E$92068,LOWER('Analysis - 1v1'!V$72),'1v1'!$F$2:$F$92068,'Analysis - 1v1'!$V$71,'1v1'!$Q$2:$Q$92068,'Analysis - 1v1'!$A75) -> 50 | W75: =COUNTIFS('1v1'!$E$2:$E$92068,LOWER('Analysis - 1v1'!W$72),'1v1'!$F$2:$F$92068,'Analysis - 1v1'!$V$71,'1v1'!$Q$2:$Q$92068,'Analysis - 1v1'!$A75) -> 41 | X75: =COUNTIFS('1v1'!$E$2:$E$92068,LOWER('Analysis - 1v1'!X$72),'1v1'!$F$2:$F$92068,'Analysis - 1v1'!$V$71,'1v1'!$Q$2:$Q$92068,'Analysis - 1v1'!$A75) -> 48 | Y75: =COUNTIFS('1v1'!$E$2:$E$92068,LOWER('Analysis - 1v1'!Y$72),'1v1'!$F$2:$F$92068,'Analysis - 1v1'!$V$71,'1v1'!$Q$2:$Q$92068,'Analysis - 1v1'!$A75) -> 3 | Z75: =COUNTIFS('1v1'!$E$2:$E$92068,LOWER('Analysis - 1v1'!Z$72),'1v1'!$F$2:$F$92068,'Analysis - 1v1'!$Z$71,'1v1'!$Q$2:$Q$92068,'Analysis - 1v1'!$A75) -> 0 | AA75: =COUNTIFS('1v1'!$E$2:$E$92068,LOWER('Analysis - 1v1'!AA$72),'1v1'!$F$2:$F$92068,'Analysis - 1v1'!$Z$71,'1v1'!$Q$2:$Q$92068,'Analysis - 1v1'!$A75) -> 0 | AB75: =COUNTIFS('1v1'!$E$2:$E$92068,LOWER('Analysis - 1v1'!AB$72),'1v1'!$F$2:$F$92068,'Analysis - 1v1'!$Z$71,'1v1'!$Q$2:$Q$92068,'Analysis - 1v1'!$A75) -> 0 | AC75: =COUNTIFS('1v1'!$E$2:$E$92068,LOWER('Analysis - 1v1'!AC$72),'1v1'!$F$2:$F$92068,'Analysis - 1v1'!$Z$71,'1v1'!$Q$2:$Q$92068,'Analysis - 1v1'!$A75) -> 0 | AD75: 1688 | AE75: 1538 | AF75: 1253 | AG75: 482 | AH75: 4961
A76: 4 | B76: =COUNTIFS('1v1'!$E$2:$E$92068,LOWER('Analysis - 1v1'!B$72),'1v1'!$F$2:$F$92068,'Analysis - 1v1'!$B$71,'1v1'!$Q$2:$Q$92068,'Analysis - 1v1'!$A76) -> 47 | C76: =COUNTIFS('1v1'!$E$2:$E$92068,LOWER('Analysis - 1v1'!C$72),'1v1'!$F$2:$F$92068,'Analysis - 1v1'!$B$71,'1v1'!$Q$2:$Q$92068,'Analysis - 1v1'!$A76) -> 103 | D76: =COUNTIFS('1v1'!$E$2:$E$92068,LOWER('Analysis - 1v1'!D$72),'1v1'!$F$2:$F$92068,'Analysis - 1v1'!$B$71,'1v1'!$Q$2:$Q$92068,'Analysis - 1v1'!$A76) -> 70 | E76: =COUNTIFS('1v1'!$E$2:$E$92068,LOWER('Analysis - 1v1'!E$72),'1v1'!$F$2:$F$92068,'Analysis - 1v1'!$B$71,'1v1'!$Q$2:$Q$92068,'Analysis - 1v1'!$A76) -> 20 | F76: =COUNTIFS('1v1'!$E$2:$E$92068,LOWER('Analysis - 1v1'!F$72),'1v1'!$F$2:$F$92068,'Analysis - 1v1'!$F$71,'1v1'!$Q$2:$Q$92068,'Analysis - 1v1'!$A76) -> 142 | G76: =COUNTIFS('1v1'!$E$2:$E$92068,LOWER('Analysis - 1v1'!G$72),'1v1'!$F$2:$F$92068,'Analysis - 1v1'!$F$71,'1v1'!$Q$2:$Q$92068,'Analysis - 1v1'!$A76) -> 258 | H76: =COUNTIFS('1v1'!$E$2:$E$92068,LOWER('Analysis - 1v1'!H$72),'1v1'!$F$2:$F$92068,'Analysis - 1v1'!$F$71,'1v1'!$Q$2:$Q$92068,'Analysis - 1v1'!$A76) -> 213 | I76: =COUNTIFS('1v1'!$E$2:$E$92068,LOWER('Analysis - 1v1'!I$72),'1v1'!$F$2:$F$92068,'Analysis - 1v1'!$F$71,'1v1'!$Q$2:$Q$92068,'Analysis - 1v1'!$A76) -> 79 | J76: =COUNTIFS('1v1'!$E$2:$E$92068,LOWER('Analysis - 1v1'!J$72),'1v1'!$F$2:$F$92068,'Analysis - 1v1'!$J$71,'1v1'!$Q$2:$Q$92068,'Analysis - 1v1'!$A76) -> 873 | K76: =COUNTIFS('1v1'!$E$2:$E$92068,LOWER('Analysis - 1v1'!K$72),'1v1'!$F$2:$F$92068,'Analysis - 1v1'!$J$71,'1v1'!$Q$2:$Q$92068,'Analysis - 1v1'!$A76) -> 795 | L76: =COUNTIFS('1v1'!$E$2:$E$92068,LOWER('Analysis - 1v1'!L$72),'1v1'!$F$2:$F$92068,'Analysis - 1v1'!$J$71,'1v1'!$Q$2:$Q$92068,'Analysis - 1v1'!$A76) -> 700 | M76: =COUNTIFS('1v1'!$E$2:$E$92068,LOWER('Analysis - 1v1'!M$72),'1v1'!$F$2:$F$92068,'Analysis - 1v1'!$J$71,'1v1'!$Q$2:$Q$92068,'Analysis - 1v1'!$A76) -> 317 | N76: =COUNTIFS('1v1'!$E$2:$E$92068,LOWER('Analysis - 1v1'!N$72),'1v1'!$F$2:$F$92068,'Analysis - 1v1'!$N$71,'1v1'!$Q$2:$Q$92068,'Analysis - 1v1'!$A76) -> 505 | O76: =COUNTIFS('1v1'!$E$2:$E$92068,LOWER('Analysis - 1v1'!O$72),'1v1'!$F$2:$F$92068,'Analysis - 1v1'!$N$71,'1v1'!$Q$2:$Q$92068,'Analysis - 1v1'!$A76) -> 391 | P76: =COUNTIFS('1v1'!$E$2:$E$92068,LOWER('Analysis - 1v1'!P$72),'1v1'!$F$2:$F$92068,'Analysis - 1v1'!$N$71,'1v1'!$Q$2:$Q$92068,'Analysis - 1v1'!$A76) -> 318 | Q76: =COUNTIFS('1v1'!$E$2:$E$92068,LOWER('Analysis - 1v1'!Q$72),'1v1'!$F$2:$F$92068,'Analysis - 1v1'!$N$71,'1v1'!$Q$2:$Q$92068,'Analysis - 1v1'!$A76) -> 135 | R76: =COUNTIFS('1v1'!$E$2:$E$92068,LOWER('Analysis - 1v1'!R$72),'1v1'!$F$2:$F$92068,'Analysis - 1v1'!$R$71,'1v1'!$Q$2:$Q$92068,'Analysis - 1v1'!$A76) -> 354 | S76: =COUNTIFS('1v1'!$E$2:$E$92068,LOWER('Analysis - 1v1'!S$72),'1v1'!$F$2:$F$92068,'Analysis - 1v1'!$R$71,'1v1'!$Q$2:$Q$92068,'Analysis - 1v1'!$A76) -> 271 | T76: =COUNTIFS('1v1'!$E$2:$E$92068,LOWER('Analysis - 1v1'!T$72),'1v1'!$F$2:$F$92068,'Analysis - 1v1'!$R$71,'1v1'!$Q$2:$Q$92068,'Analysis - 1v1'!$A76) -> 286 | U76: =COUNTIFS('1v1'!$E$2:$E$92068,LOWER('Analysis - 1v1'!U$72),'1v1'!$F$2:$F$92068,'Analysis - 1v1'!$R$71,'1v1'!$Q$2:$Q$92068,'Analysis - 1v1'!$A76) -> 51 | V76: =COUNTIFS('1v1'!$E$2:$E$92068,LOWER('Analysis - 1v1'!V$72),'1v1'!$F$2:$F$92068,'Analysis - 1v1'!$V$71,'1v1'!$Q$2:$Q$92068,'Analysis - 1v1'!$A76) -> 62 | W76: =COUNTIFS('1v1'!$E$2:$E$92068,LOWER('Analysis - 1v1'!W$72),'1v1'!$F$2:$F$92068,'Analysis - 1v1'!$V$71,'1v1'!$Q$2:$Q$92068,'Analysis - 1v1'!$A76) -> 48 | X76: =COUNTIFS('1v1'!$E$2:$E$92068,LOWER('Analysis - 1v1'!X$72),'1v1'!$F$2:$F$92068,'Analysis - 1v1'!$V$71,'1v1'!$Q$2:$Q$92068,'Analysis - 1v1'!$A76) -> 55 | Y76: =COUNTIFS('1v1'!$E$2:$E$92068,LOWER('Analysis - 1v1'!Y$72),'1v1'!$F$2:$F$92068,'Analysis - 1v1'!$V$71,'1v1'!$Q$2:$Q$92068,'Analysis - 1v1'!$A76) -> 5 | Z76: =COUNTIFS('1v1'!$E$2:$E$92068,LOWER('Analysis - 1v1'!Z$72),'1v1'!$F$2:$F$92068,'Analysis - 1v1'!$Z$71,'1v1'!$Q$2:$Q$92068,'Analysis - 1v1'!$A76) -> 0 | AA76: =COUNTIFS('1v1'!$E$2:$E$92068,LOWER('Analysis - 1v1'!AA$72),'1v1'!$F$2:$F$92068,'Analysis - 1v1'!$Z$71,'1v1'!$Q$2:$Q$92068,'Analysis - 1v1'!$A76) -> 0 | AB76: =COUNTIFS('1v1'!$E$2:$E$92068,LOWER('Analysis - 1v1'!AB$72),'1v1'!$F$2:$F$92068,'Analysis - 1v1'!$Z$71,'1v1'!$Q$2:$Q$92068,'Analysis - 1v1'!$A76) -> 0 | AC76: =COUNTIFS('1v1'!$E$2:$E$92068,LOWER('Analysis - 1v1'!AC$72),'1v1'!$F$2:$F$92068,'Analysis - 1v1'!$Z$71,'1v1'!$Q$2:$Q$92068,'Analysis - 1v1'!$A76) -> 0 | AD76: 1983 | AE76: 1866 | AF76: 1642 | AG76: 607 | AH76: 6098
A77: 5 | B77: =COUNTIFS('1v1'!$E$2:$E$92068,LOWER('Analysis - 1v1'!B$72),'1v1'!$F$2:$F$92068,'Analysis - 1v1'!$B$71,'1v1'!$Q$2:$Q$92068,'Analysis - 1v1'!$A77) -> 68 | C77: =COUNTIFS('1v1'!$E$2:$E$92068,LOWER('Analysis - 1v1'!C$72),'1v1'!$F$2:$F$92068,'Analysis - 1v1'!$B$71,'1v1'!$Q$2:$Q$92068,'Analysis - 1v1'!$A77) -> 150 | D77: =COUNTIFS('1v1'!$E$2:$E$92068,LOWER('Analysis - 1v1'!D$72),'1v1'!$F$2:$F$92068,'Analysis - 1v1'!$B$71,'1v1'!$Q$2:$Q$92068,'Analysis - 1v1'!$A77) -> 109 | E77: =COUNTIFS('1v1'!$E$2:$E$92068,LOWER('Analysis - 1v1'!E$72),'1v1'!$F$2:$F$92068,'Analysis - 1v1'!$B$71,'1v1'!$Q$2:$Q$92068,'Analysis - 1v1'!$A77) -> 44 | F77: =COUNTIFS('1v1'!$E$2:$E$92068,LOWER('Analysis - 1v1'!F$72),'1v1'!$F$2:$F$92068,'Analysis - 1v1'!$F$71,'1v1'!$Q$2:$Q$92068,'Analysis - 1v1'!$A77) -> 266 | G77: =COUNTIFS('1v1'!$E$2:$E$92068,LOWER('Analysis - 1v1'!G$72),'1v1'!$F$2:$F$92068,'Analysis - 1v1'!$F$71,'1v1'!$Q$2:$Q$92068,'Analysis - 1v1'!$A77) -> 383 | H77: =COUNTIFS('1v1'!$E$2:$E$92068,LOWER('Analysis - 1v1'!H$72),'1v1'!$F$2:$F$92068,'Analysis - 1v1'!$F$71,'1v1'!$Q$2:$Q$92068,'Analysis - 1v1'!$A77) -> 382 | I77: =COUNTIFS('1v1'!$E$2:$E$92068,LOWER('Analysis - 1v1'!I$72),'1v1'!$F$2:$F$92068,'Analysis - 1v1'!$F$71,'1v1'!$Q$2:$Q$92068,'Analysis - 1v1'!$A77) -> 114 | J77: =COUNTIFS('1v1'!$E$2:$E$92068,LOWER('Analysis - 1v1'!J$72),'1v1'!$F$2:$F$92068,'Analysis - 1v1'!$J$71,'1v1'!$Q$2:$Q$92068,'Analysis - 1v1'!$A77) -> 1344 | K77: =COUNTIFS('1v1'!$E$2:$E$92068,LOWER('Analysis - 1v1'!K$72),'1v1'!$F$2:$F$92068,'Analysis - 1v1'!$J$71,'1v1'!$Q$2:$Q$92068,'Analysis - 1v1'!$A77) -> 1052 | L77: =COUNTIFS('1v1'!$E$2:$E$92068,LOWER('Analysis - 1v1'!L$72),'1v1'!$F$2:$F$92068,'Analysis - 1v1'!$J$71,'1v1'!$Q$2:$Q$92068,'Analysis - 1v1'!$A77) -> 1051 | M77: =COUNTIFS('1v1'!$E$2:$E$92068,LOWER('Analysis - 1v1'!M$72),'1v1'!$F$2:$F$92068,'Analysis - 1v1'!$J$71,'1v1'!$Q$2:$Q$92068,'Analysis - 1v1'!$A77) -> 458 | N77: =COUNTIFS('1v1'!$E$2:$E$92068,LOWER('Analysis - 1v1'!N$72),'1v1'!$F$2:$F$92068,'Analysis - 1v1'!$N$71,'1v1'!$Q$2:$Q$92068,'Analysis - 1v1'!$A77) -> 633 | O77: =COUNTIFS('1v1'!$E$2:$E$92068,LOWER('Analysis - 1v1'!O$72),'1v1'!$F$2:$F$92068,'Analysis - 1v1'!$N$71,'1v1'!$Q$2:$Q$92068,'Analysis - 1v1'!$A77) -> 428 | P77: =COUNTIFS('1v1'!$E$2:$E$92068,LOWER('Analysis - 1v1'!P$72),'1v1'!$F$2:$F$92068,'Analysis - 1v1'!$N$71,'1v1'!$Q$2:$Q$92068,'Analysis - 1v1'!$A77) -> 428 | Q77: =COUNTIFS('1v1'!$E$2:$E$92068,LOWER('Analysis - 1v1'!Q$72),'1v1'!$F$2:$F$92068,'Analysis - 1v1'!$N$71,'1v1'!$Q$2:$Q$92068,'Analysis - 1v1'!$A77) -> 129 | R77: =COUNTIFS('1v1'!$E$2:$E$92068,LOWER('Analysis - 1v1'!R$72),'1v1'!$F$2:$F$92068,'Analysis - 1v1'!$R$71,'1v1'!$Q$2:$Q$92068,'Analysis - 1v1'!$A77) -> 309 | S77: =COUNTIFS('1v1'!$E$2:$E$92068,LOWER('Analysis - 1v1'!S$72),'1v1'!$F$2:$F$92068,'Analysis - 1v1'!$R$71,'1v1'!$Q$2:$Q$92068,'Analysis - 1v1'!$A77) -> 290 | T77: =COUNTIFS('1v1'!$E$2:$E$92068,LOWER('Analysis - 1v1'!T$72),'1v1'!$F$2:$F$92068,'Analysis - 1v1'!$R$71,'1v1'!$Q$2:$Q$92068,'Analysis - 1v1'!$A77) -> 281 | U77: =COUNTIFS('1v1'!$E$2:$E$92068,LOWER('Analysis - 1v1'!U$72),'1v1'!$F$2:$F$92068,'Analysis - 1v1'!$R$71,'1v1'!$Q$2:$Q$92068,'Analysis - 1v1'!$A77) -> 55 | V77: =COUNTIFS('1v1'!$E$2:$E$92068,LOWER('Analysis - 1v1'!V$72),'1v1'!$F$2:$F$92068,'Analysis - 1v1'!$V$71,'1v1'!$Q$2:$Q$92068,'Analysis - 1v1'!$A77) -> 63 | W77: =COUNTIFS('1v1'!$E$2:$E$92068,LOWER('Analysis - 1v1'!W$72),'1v1'!$F$2:$F$92068,'Analysis - 1v1'!$V$71,'1v1'!$Q$2:$Q$92068,'Analysis - 1v1'!$A77) -> 71 | X77: =COUNTIFS('1v1'!$E$2:$E$92068,LOWER('Analysis - 1v1'!X$72),'1v1'!$F$2:$F$92068,'Analysis - 1v1'!$V$71,'1v1'!$Q$2:$Q$92068,'Analysis - 1v1'!$A77) -> 67 | Y77: =COUNTIFS('1v1'!$E$2:$E$92068,LOWER('Analysis - 1v1'!Y$72),'1v1'!$F$2:$F$92068,'Analysis - 1v1'!$V$71,'1v1'!$Q$2:$Q$92068,'Analysis - 1v1'!$A77) -> 3 | Z77: =COUNTIFS('1v1'!$E$2:$E$92068,LOWER('Analysis - 1v1'!Z$72),'1v1'!$F$2:$F$92068,'Analysis - 1v1'!$Z$71,'1v1'!$Q$2:$Q$92068,'Analysis - 1v1'!$A77) -> 0 | AA77: =COUNTIFS('1v1'!$E$2:$E$92068,LOWER('Analysis - 1v1'!AA$72),'1v1'!$F$2:$F$92068,'Analysis - 1v1'!$Z$71,'1v1'!$Q$2:$Q$92068,'Analysis - 1v1'!$A77) -> 0 | AB77: =COUNTIFS('1v1'!$E$2:$E$92068,LOWER('Analysis - 1v1'!AB$72),'1v1'!$F$2:$F$92068,'Analysis - 1v1'!$Z$71,'1v1'!$Q$2:$Q$92068,'Analysis - 1v1'!$A77) -> 0 | AC77: =COUNTIFS('1v1'!$E$2:$E$92068,LOWER('Analysis - 1v1'!AC$72),'1v1'!$F$2:$F$92068,'Analysis - 1v1'!$Z$71,'1v1'!$Q$2:$Q$92068,'Analysis - 1v1'!$A77) -> 0 | AD77: 2683 | AE77: 2374 | AF77: 2318 | AG77: 803 | AH77: 8178
A78: 6 | B78: =COUNTIFS('1v1'!$E$2:$E$92068,LOWER('Analysis - 1v1'!B$72),'1v1'!$F$2:$F$92068,'Analysis - 1v1'!$B$71,'1v1'!$Q$2:$Q$92068,'Analysis - 1v1'!$A78) -> 149 | C78: =COUNTIFS('1v1'!$E$2:$E$92068,LOWER('Analysis - 1v1'!C$72),'1v1'!$F$2:$F$92068,'Analysis - 1v1'!$B$71,'1v1'!$Q$2:$Q$92068,'Analysis - 1v1'!$A78) -> 245 | D78: =COUNTIFS('1v1'!$E$2:$E$92068,LOWER('Analysis - 1v1'!D$72),'1v1'!$F$2:$F$92068,'Analysis - 1v1'!$B$71,'1v1'!$Q$2:$Q$92068,'Analysis - 1v1'!$A78) -> 195 | E78: =COUNTIFS('1v1'!$E$2:$E$92068,LOWER('Analysis - 1v1'!E$72),'1v1'!$F$2:$F$92068,'Analysis - 1v1'!$B$71,'1v1'!$Q$2:$Q$92068,'Analysis - 1v1'!$A78) -> 61 | F78: =COUNTIFS('1v1'!$E$2:$E$92068,LOWER('Analysis - 1v1'!F$72),'1v1'!$F$2:$F$92068,'Analysis - 1v1'!$F$71,'1v1'!$Q$2:$Q$92068,'Analysis - 1v1'!$A78) -> 692 | G78: =COUNTIFS('1v1'!$E$2:$E$92068,LOWER('Analysis - 1v1'!G$72),'1v1'!$F$2:$F$92068,'Analysis - 1v1'!$F$71,'1v1'!$Q$2:$Q$92068,'Analysis - 1v1'!$A78) -> 903 | H78: =COUNTIFS('1v1'!$E$2:$E$92068,LOWER('Analysis - 1v1'!H$72),'1v1'!$F$2:$F$92068,'Analysis - 1v1'!$F$71,'1v1'!$Q$2:$Q$92068,'Analysis - 1v1'!$A78) -> 784 | I78: =COUNTIFS('1v1'!$E$2:$E$92068,LOWER('Analysis - 1v1'!I$72),'1v1'!$F$2:$F$92068,'Analysis - 1v1'!$F$71,'1v1'!$Q$2:$Q$92068,'Analysis - 1v1'!$A78) -> 308 | J78: =COUNTIFS('1v1'!$E$2:$E$92068,LOWER('Analysis - 1v1'!J$72),'1v1'!$F$2:$F$92068,'Analysis - 1v1'!$J$71,'1v1'!$Q$2:$Q$92068,'Analysis - 1v1'!$A78) -> 2175 | K78: =COUNTIFS('1v1'!$E$2:$E$92068,LOWER('Analysis - 1v1'!K$72),'1v1'!$F$2:$F$92068,'Analysis - 1v1'!$J$71,'1v1'!$Q$2:$Q$92068,'Analysis - 1v1'!$A78) -> 1843 | L78: =COUNTIFS('1v1'!$E$2:$E$92068,LOWER('Analysis - 1v1'!L$72),'1v1'!$F$2:$F$92068,'Analysis - 1v1'!$J$71,'1v1'!$Q$2:$Q$92068,'Analysis - 1v1'!$A78) -> 1885 | M78: =COUNTIFS('1v1'!$E$2:$E$92068,LOWER('Analysis - 1v1'!M$72),'1v1'!$F$2:$F$92068,'Analysis - 1v1'!$J$71,'1v1'!$Q$2:$Q$92068,'Analysis - 1v1'!$A78) -> 793 | N78: =COUNTIFS('1v1'!$E$2:$E$92068,LOWER('Analysis - 1v1'!N$72),'1v1'!$F$2:$F$92068,'Analysis - 1v1'!$N$71,'1v1'!$Q$2:$Q$92068,'Analysis - 1v1'!$A78) -> 704 | O78: =COUNTIFS('1v1'!$E$2:$E$92068,LOWER('Analysis - 1v1'!O$72),'1v1'!$F$2:$F$92068,'Analysis - 1v1'!$N$71,'1v1'!$Q$2:$Q$92068,'Analysis - 1v1'!$A78) -> 519 | P78: =COUNTIFS('1v1'!$E$2:$E$92068,LOWER('Analysis - 1v1'!P$72),'1v1'!$F$2:$F$92068,'Analysis - 1v1'!$N$71,'1v1'!$Q$2:$Q$92068,'Analysis - 1v1'!$A78) -> 519 | Q78: =COUNTIFS('1v1'!$E$2:$E$92068,LOWER('Analysis - 1v1'!Q$72),'1v1'!$F$2:$F$92068,'Analysis - 1v1'!$N$71,'1v1'!$Q$2:$Q$92068,'Analysis - 1v1'!$A78) -> 168 | R78: =COUNTIFS('1v1'!$E$2:$E$92068,LOWER('Analysis - 1v1'!R$72),'1v1'!$F$2:$F$92068,'Analysis - 1v1'!$R$71,'1v1'!$Q$2:$Q$92068,'Analysis - 1v1'!$A78) -> 408 | S78: =COUNTIFS('1v1'!$E$2:$E$92068,LOWER('Analysis - 1v1'!S$72),'1v1'!$F$2:$F$92068,'Analysis - 1v1'!$R$71,'1v1'!$Q$2:$Q$92068,'Analysis - 1v1'!$A78) -> 328 | T78: =COUNTIFS('1v1'!$E$2:$E$92068,LOWER('Analysis - 1v1'!T$72),'1v1'!$F$2:$F$92068,'Analysis - 1v1'!$R$71,'1v1'!$Q$2:$Q$92068,'Analysis - 1v1'!$A78) -> 309 | U78: =COUNTIFS('1v1'!$E$2:$E$92068,LOWER('Analysis - 1v1'!U$72),'1v1'!$F$2:$F$92068,'Analysis - 1v1'!$R$71,'1v1'!$Q$2:$Q$92068,'Analysis - 1v1'!$A78) -> 66 | V78: =COUNTIFS('1v1'!$E$2:$E$92068,LOWER('Analysis - 1v1'!V$72),'1v1'!$F$2:$F$92068,'Analysis - 1v1'!$V$71,'1v1'!$Q$2:$Q$92068,'Analysis - 1v1'!$A78) -> 72 | W78: =COUNTIFS('1v1'!$E$2:$E$92068,LOWER('Analysis - 1v1'!W$72),'1v1'!$F$2:$F$92068,'Analysis - 1v1'!$V$71,'1v1'!$Q$2:$Q$92068,'Analysis - 1v1'!$A78) -> 62 | X78: =COUNTIFS('1v1'!$E$2:$E$92068,LOWER('Analysis - 1v1'!X$72),'1v1'!$F$2:$F$92068,'Analysis - 1v1'!$V$71,'1v1'!$Q$2:$Q$92068,'Analysis - 1v1'!$A78) -> 53 | Y78: =COUNTIFS('1v1'!$E$2:$E$92068,LOWER('Analysis - 1v1'!Y$72),'1v1'!$F$2:$F$92068,'Analysis - 1v1'!$V$71,'1v1'!$Q$2:$Q$92068,'Analysis - 1v1'!$A78) -> 5 | Z78: =COUNTIFS('1v1'!$E$2:$E$92068,LOWER('Analysis - 1v1'!Z$72),'1v1'!$F$2:$F$92068,'Analysis - 1v1'!$Z$71,'1v1'!$Q$2:$Q$92068,'Analysis - 1v1'!$A78) -> 0 | AA78: =COUNTIFS('1v1'!$E$2:$E$92068,LOWER('Analysis - 1v1'!AA$72),'1v1'!$F$2:$F$92068,'Analysis - 1v1'!$Z$71,'1v1'!$Q$2:$Q$92068,'Analysis - 1v1'!$A78) -> 0 | AB78: =COUNTIFS('1v1'!$E$2:$E$92068,LOWER('Analysis - 1v1'!AB$72),'1v1'!$F$2:$F$92068,'Analysis - 1v1'!$Z$71,'1v1'!$Q$2:$Q$92068,'Analysis - 1v1'!$A78) -> 0 | AC78: =COUNTIFS('1v1'!$E$2:$E$92068,LOWER('Analysis - 1v1'!AC$72),'1v1'!$F$2:$F$92068,'Analysis - 1v1'!$Z$71,'1v1'!$Q$2:$Q$92068,'Analysis - 1v1'!$A78) -> 0 | AD78: 4200 | AE78: 3900 | AF78: 3745 | AG78: 1401 | AH78: 13246
A79: 7 | B79: =COUNTIFS('1v1'!$E$2:$E$92068,LOWER('Analysis - 1v1'!B$72),'1v1'!$F$2:$F$92068,'Analysis - 1v1'!$B$71,'1v1'!$Q$2:$Q$92068,'Analysis - 1v1'!$A79) -> 1099 | C79: =COUNTIFS('1v1'!$E$2:$E$92068,LOWER('Analysis - 1v1'!C$72),'1v1'!$F$2:$F$92068,'Analysis - 1v1'!$B$71,'1v1'!$Q$2:$Q$92068,'Analysis - 1v1'!$A79) -> 1576 | D79: =COUNTIFS('1v1'!$E$2:$E$92068,LOWER('Analysis - 1v1'!D$72),'1v1'!$F$2:$F$92068,'Analysis - 1v1'!$B$71,'1v1'!$Q$2:$Q$92068,'Analysis - 1v1'!$A79) -> 1374 | E79: =COUNTIFS('1v1'!$E$2:$E$92068,LOWER('Analysis - 1v1'!E$72),'1v1'!$F$2:$F$92068,'Analysis - 1v1'!$B$71,'1v1'!$Q$2:$Q$92068,'Analysis - 1v1'!$A79) -> 506 | F79: =COUNTIFS('1v1'!$E$2:$E$92068,LOWER('Analysis - 1v1'!F$72),'1v1'!$F$2:$F$92068,'Analysis - 1v1'!$F$71,'1v1'!$Q$2:$Q$92068,'Analysis - 1v1'!$A79) -> 4944 | G79: =COUNTIFS('1v1'!$E$2:$E$92068,LOWER('Analysis - 1v1'!G$72),'1v1'!$F$2:$F$92068,'Analysis - 1v1'!$F$71,'1v1'!$Q$2:$Q$92068,'Analysis - 1v1'!$A79) -> 5739 | H79: =COUNTIFS('1v1'!$E$2:$E$92068,LOWER('Analysis - 1v1'!H$72),'1v1'!$F$2:$F$92068,'Analysis - 1v1'!$F$71,'1v1'!$Q$2:$Q$92068,'Analysis - 1v1'!$A79) -> 5486 | I79: =COUNTIFS('1v1'!$E$2:$E$92068,LOWER('Analysis - 1v1'!I$72),'1v1'!$F$2:$F$92068,'Analysis - 1v1'!$F$71,'1v1'!$Q$2:$Q$92068,'Analysis - 1v1'!$A79) -> 2334 | J79: =COUNTIFS('1v1'!$E$2:$E$92068,LOWER('Analysis - 1v1'!J$72),'1v1'!$F$2:$F$92068,'Analysis - 1v1'!$J$71,'1v1'!$Q$2:$Q$92068,'Analysis - 1v1'!$A79) -> 4514 | K79: =COUNTIFS('1v1'!$E$2:$E$92068,LOWER('Analysis - 1v1'!K$72),'1v1'!$F$2:$F$92068,'Analysis - 1v1'!$J$71,'1v1'!$Q$2:$Q$92068,'Analysis - 1v1'!$A79) -> 3852 | L79: =COUNTIFS('1v1'!$E$2:$E$92068,LOWER('Analysis - 1v1'!L$72),'1v1'!$F$2:$F$92068,'Analysis - 1v1'!$J$71,'1v1'!$Q$2:$Q$92068,'Analysis - 1v1'!$A79) -> 3900 | M79: =COUNTIFS('1v1'!$E$2:$E$92068,LOWER('Analysis - 1v1'!M$72),'1v1'!$F$2:$F$92068,'Analysis - 1v1'!$J$71,'1v1'!$Q$2:$Q$92068,'Analysis - 1v1'!$A79) -> 1635 | N79: =COUNTIFS('1v1'!$E$2:$E$92068,LOWER('Analysis - 1v1'!N$72),'1v1'!$F$2:$F$92068,'Analysis - 1v1'!$N$71,'1v1'!$Q$2:$Q$92068,'Analysis - 1v1'!$A79) -> 1501 | O79: =COUNTIFS('1v1'!$E$2:$E$92068,LOWER('Analysis - 1v1'!O$72),'1v1'!$F$2:$F$92068,'Analysis - 1v1'!$N$71,'1v1'!$Q$2:$Q$92068,'Analysis - 1v1'!$A79) -> 1178 | P79: =COUNTIFS('1v1'!$E$2:$E$92068,LOWER('Analysis - 1v1'!P$72),'1v1'!$F$2:$F$92068,'Analysis - 1v1'!$N$71,'1v1'!$Q$2:$Q$92068,'Analysis - 1v1'!$A79) -> 1200 | Q79: =COUNTIFS('1v1'!$E$2:$E$92068,LOWER('Analysis - 1v1'!Q$72),'1v1'!$F$2:$F$92068,'Analysis - 1v1'!$N$71,'1v1'!$Q$2:$Q$92068,'Analysis - 1v1'!$A79) -> 434 | R79: =COUNTIFS('1v1'!$E$2:$E$92068,LOWER('Analysis - 1v1'!R$72),'1v1'!$F$2:$F$92068,'Analysis - 1v1'!$R$71,'1v1'!$Q$2:$Q$92068,'Analysis - 1v1'!$A79) -> 716 | S79: =COUNTIFS('1v1'!$E$2:$E$92068,LOWER('Analysis - 1v1'!S$72),'1v1'!$F$2:$F$92068,'Analysis - 1v1'!$R$71,'1v1'!$Q$2:$Q$92068,'Analysis - 1v1'!$A79) -> 584 | T79: =COUNTIFS('1v1'!$E$2:$E$92068,LOWER('Analysis - 1v1'!T$72),'1v1'!$F$2:$F$92068,'Analysis - 1v1'!$R$71,'1v1'!$Q$2:$Q$92068,'Analysis - 1v1'!$A79) -> 555 | U79: =COUNTIFS('1v1'!$E$2:$E$92068,LOWER('Analysis - 1v1'!U$72),'1v1'!$F$2:$F$92068,'Analysis - 1v1'!$R$71,'1v1'!$Q$2:$Q$92068,'Analysis - 1v1'!$A79) -> 179 | V79: =COUNTIFS('1v1'!$E$2:$E$92068,LOWER('Analysis - 1v1'!V$72),'1v1'!$F$2:$F$92068,'Analysis - 1v1'!$V$71,'1v1'!$Q$2:$Q$92068,'Analysis - 1v1'!$A79) -> 133 | W79: =COUNTIFS('1v1'!$E$2:$E$92068,LOWER('Analysis - 1v1'!W$72),'1v1'!$F$2:$F$92068,'Analysis - 1v1'!$V$71,'1v1'!$Q$2:$Q$92068,'Analysis - 1v1'!$A79) -> 114 | X79: =COUNTIFS('1v1'!$E$2:$E$92068,LOWER('Analysis - 1v1'!X$72),'1v1'!$F$2:$F$92068,'Analysis - 1v1'!$V$71,'1v1'!$Q$2:$Q$92068,'Analysis - 1v1'!$A79) -> 100 | Y79: =COUNTIFS('1v1'!$E$2:$E$92068,LOWER('Analysis - 1v1'!Y$72),'1v1'!$F$2:$F$92068,'Analysis - 1v1'!$V$71,'1v1'!$Q$2:$Q$92068,'Analysis - 1v1'!$A79) -> 24 | Z79: =COUNTIFS('1v1'!$E$2:$E$92068,LOWER('Analysis - 1v1'!Z$72),'1v1'!$F$2:$F$92068,'Analysis - 1v1'!$Z$71,'1v1'!$Q$2:$Q$92068,'Analysis - 1v1'!$A79) -> 0 | AA79: =COUNTIFS('1v1'!$E$2:$E$92068,LOWER('Analysis - 1v1'!AA$72),'1v1'!$F$2:$F$92068,'Analysis - 1v1'!$Z$71,'1v1'!$Q$2:$Q$92068,'Analysis - 1v1'!$A79) -> 0 | AB79: =COUNTIFS('1v1'!$E$2:$E$92068,LOWER('Analysis - 1v1'!AB$72),'1v1'!$F$2:$F$92068,'Analysis - 1v1'!$Z$71,'1v1'!$Q$2:$Q$92068,'Analysis - 1v1'!$A79) -> 0 | AC79: =COUNTIFS('1v1'!$E$2:$E$92068,LOWER('Analysis - 1v1'!AC$72),'1v1'!$F$2:$F$92068,'Analysis - 1v1'!$Z$71,'1v1'!$Q$2:$Q$92068,'Analysis - 1v1'!$A79) -> 0 | AD79: 12907 | AE79: 13043 | AF79: 12615 | AG79: 5112 | AH79: 43677
A80: 8 | B80: =COUNTIFS('1v1'!$E$2:$E$92068,LOWER('Analysis - 1v1'!B$72),'1v1'!$F$2:$F$92068,'Analysis - 1v1'!$B$71,'1v1'!$Q$2:$Q$92068,'Analysis - 1v1'!$A80) -> 0 | C80: =COUNTIFS('1v1'!$E$2:$E$92068,LOWER('Analysis - 1v1'!C$72),'1v1'!$F$2:$F$92068,'Analysis - 1v1'!$B$71,'1v1'!$Q$2:$Q$92068,'Analysis - 1v1'!$A80) -> 0 | D80: =COUNTIFS('1v1'!$E$2:$E$92068,LOWER('Analysis - 1v1'!D$72),'1v1'!$F$2:$F$92068,'Analysis - 1v1'!$B$71,'1v1'!$Q$2:$Q$92068,'Analysis - 1v1'!$A80) -> 0 | E80: =COUNTIFS('1v1'!$E$2:$E$92068,LOWER('Analysis - 1v1'!E$72),'1v1'!$F$2:$F$92068,'Analysis - 1v1'!$B$71,'1v1'!$Q$2:$Q$92068,'Analysis - 1v1'!$A80) -> 0 | F80: =COUNTIFS('1v1'!$E$2:$E$92068,LOWER('Analysis - 1v1'!F$72),'1v1'!$F$2:$F$92068,'Analysis - 1v1'!$F$71,'1v1'!$Q$2:$Q$92068,'Analysis - 1v1'!$A80) -> 0 | G80: =COUNTIFS('1v1'!$E$2:$E$92068,LOWER('Analysis - 1v1'!G$72),'1v1'!$F$2:$F$92068,'Analysis - 1v1'!$F$71,'1v1'!$Q$2:$Q$92068,'Analysis - 1v1'!$A80) -> 0 | H80: =COUNTIFS('1v1'!$E$2:$E$92068,LOWER('Analysis - 1v1'!H$72),'1v1'!$F$2:$F$92068,'Analysis - 1v1'!$F$71,'1v1'!$Q$2:$Q$92068,'Analysis - 1v1'!$A80) -> 0 | I80: =COUNTIFS('1v1'!$E$2:$E$92068,LOWER('Analysis - 1v1'!I$72),'1v1'!$F$2:$F$92068,'Analysis - 1v1'!$F$71,'1v1'!$Q$2:$Q$92068,'Analysis - 1v1'!$A80) -> 0 | J80: =COUNTIFS('1v1'!$E$2:$E$92068,LOWER('Analysis - 1v1'!J$72),'1v1'!$F$2:$F$92068,'Analysis - 1v1'!$J$71,'1v1'!$Q$2:$Q$92068,'Analysis - 1v1'!$A80) -> 0 | K80: =COUNTIFS('1v1'!$E$2:$E$92068,LOWER('Analysis - 1v1'!K$72),'1v1'!$F$2:$F$92068,'Analysis - 1v1'!$J$71,'1v1'!$Q$2:$Q$92068,'Analysis - 1v1'!$A80) -> 0 | L80: =COUNTIFS('1v1'!$E$2:$E$92068,LOWER('Analysis - 1v1'!L$72),'1v1'!$F$2:$F$92068,'Analysis - 1v1'!$J$71,'1v1'!$Q$2:$Q$92068,'Analysis - 1v1'!$A80) -> 0 | M80: =COUNTIFS('1v1'!$E$2:$E$92068,LOWER('Analysis - 1v1'!M$72),'1v1'!$F$2:$F$92068,'Analysis - 1v1'!$J$71,'1v1'!$Q$2:$Q$92068,'Analysis - 1v1'!$A80) -> 0 | N80: =COUNTIFS('1v1'!$E$2:$E$92068,LOWER('Analysis - 1v1'!N$72),'1v1'!$F$2:$F$92068,'Analysis - 1v1'!$N$71,'1v1'!$Q$2:$Q$92068,'Analysis - 1v1'!$A80) -> 0 | O80: =COUNTIFS('1v1'!$E$2:$E$92068,LOWER('Analysis - 1v1'!O$72),'1v1'!$F$2:$F$92068,'Analysis - 1v1'!$N$71,'1v1'!$Q$2:$Q$92068,'Analysis - 1v1'!$A80) -> 0 | P80: =COUNTIFS('1v1'!$E$2:$E$92068,LOWER('Analysis - 1v1'!P$72),'1v1'!$F$2:$F$92068,'Analysis - 1v1'!$N$71,'1v1'!$Q$2:$Q$92068,'Analysis - 1v1'!$A80) -> 0 | Q80: =COUNTIFS('1v1'!$E$2:$E$92068,LOWER('Analysis - 1v1'!Q$72),'1v1'!$F$2:$F$92068,'Analysis - 1v1'!$N$71,'1v1'!$Q$2:$Q$92068,'Analysis - 1v1'!$A80) -> 0 | R80: =COUNTIFS('1v1'!$E$2:$E$92068,LOWER('Analysis - 1v1'!R$72),'1v1'!$F$2:$F$92068,'Analysis - 1v1'!$R$71,'1v1'!$Q$2:$Q$92068,'Analysis - 1v1'!$A80) -> 0 | S80: =COUNTIFS('1v1'!$E$2:$E$92068,LOWER('Analysis - 1v1'!S$72),'1v1'!$F$2:$F$92068,'Analysis - 1v1'!$R$71,'1v1'!$Q$2:$Q$92068,'Analysis - 1v1'!$A80) -> 0 | T80: =COUNTIFS('1v1'!$E$2:$E$92068,LOWER('Analysis - 1v1'!T$72),'1v1'!$F$2:$F$92068,'Analysis - 1v1'!$R$71,'1v1'!$Q$2:$Q$92068,'Analysis - 1v1'!$A80) -> 0 | U80: =COUNTIFS('1v1'!$E$2:$E$92068,LOWER('Analysis - 1v1'!U$72),'1v1'!$F$2:$F$92068,'Analysis - 1v1'!$R$71,'1v1'!$Q$2:$Q$92068,'Analysis - 1v1'!$A80) -> 0 | V80: =COUNTIFS('1v1'!$E$2:$E$92068,LOWER('Analysis - 1v1'!V$72),'1v1'!$F$2:$F$92068,'Analysis - 1v1'!$V$71,'1v1'!$Q$2:$Q$92068,'Analysis - 1v1'!$A80) -> 0 | W80: =COUNTIFS('1v1'!$E$2:$E$92068,LOWER('Analysis - 1v1'!W$72),'1v1'!$F$2:$F$92068,'Analysis - 1v1'!$V$71,'1v1'!$Q$2:$Q$92068,'Analysis - 1v1'!$A80) -> 0 | X80: =COUNTIFS('1v1'!$E$2:$E$92068,LOWER('Analysis - 1v1'!X$72),'1v1'!$F$2:$F$92068,'Analysis - 1v1'!$V$71,'1v1'!$Q$2:$Q$92068,'Analysis - 1v1'!$A80) -> 0 | Y80: =COUNTIFS('1v1'!$E$2:$E$92068,LOWER('Analysis - 1v1'!Y$72),'1v1'!$F$2:$F$92068,'Analysis - 1v1'!$V$71,'1v1'!$Q$2:$Q$92068,'Analysis - 1v1'!$A80) -> 0 | Z80: =COUNTIFS('1v1'!$E$2:$E$92068,LOWER('Analysis - 1v1'!Z$72),'1v1'!$F$2:$F$92068,'Analysis - 1v1'!$Z$71,'1v1'!$Q$2:$Q$92068,'Analysis - 1v1'!$A80) -> 0 | AA80: =COUNTIFS('1v1'!$E$2:$E$92068,LOWER('Analysis - 1v1'!AA$72),'1v1'!$F$2:$F$92068,'Analysis - 1v1'!$Z$71,'1v1'!$Q$2:$Q$92068,'Analysis - 1v1'!$A80) -> 0 | AB80: =COUNTIFS('1v1'!$E$2:$E$92068,LOWER('Analysis - 1v1'!AB$72),'1v1'!$F$2:$F$92068,'Analysis - 1v1'!$Z$71,'1v1'!$Q$2:$Q$92068,'Analysis - 1v1'!$A80) -> 0 | AC80: =COUNTIFS('1v1'!$E$2:$E$92068,LOWER('Analysis - 1v1'!AC$72),'1v1'!$F$2:$F$92068,'Analysis - 1v1'!$Z$71,'1v1'!$Q$2:$Q$92068,'Analysis - 1v1'!$A80) -> 0 | AD80: 0 | AE80: 0 | AF80: 0 | AG80: 0
A81: 9 | B81: =COUNTIFS('1v1'!$E$2:$E$92068,LOWER('Analysis - 1v1'!B$72),'1v1'!$F$2:$F$92068,'Analysis - 1v1'!$B$71,'1v1'!$Q$2:$Q$92068,'Analysis - 1v1'!$A81) -> 0 | C81: =COUNTIFS('1v1'!$E$2:$E$92068,LOWER('Analysis - 1v1'!C$72),'1v1'!$F$2:$F$92068,'Analysis - 1v1'!$B$71,'1v1'!$Q$2:$Q$92068,'Analysis - 1v1'!$A81) -> 0 | D81: =COUNTIFS('1v1'!$E$2:$E$92068,LOWER('Analysis - 1v1'!D$72),'1v1'!$F$2:$F$92068,'Analysis - 1v1'!$B$71,'1v1'!$Q$2:$Q$92068,'Analysis - 1v1'!$A81) -> 0 | E81: =COUNTIFS('1v1'!$E$2:$E$92068,LOWER('Analysis - 1v1'!E$72),'1v1'!$F$2:$F$92068,'Analysis - 1v1'!$B$71,'1v1'!$Q$2:$Q$92068,'Analysis - 1v1'!$A81) -> 0 | F81: =COUNTIFS('1v1'!$E$2:$E$92068,LOWER('Analysis - 1v1'!F$72),'1v1'!$F$2:$F$92068,'Analysis - 1v1'!$F$71,'1v1'!$Q$2:$Q$92068,'Analysis - 1v1'!$A81) -> 0 | G81: =COUNTIFS('1v1'!$E$2:$E$92068,LOWER('Analysis - 1v1'!G$72),'1v1'!$F$2:$F$92068,'Analysis - 1v1'!$F$71,'1v1'!$Q$2:$Q$92068,'Analysis - 1v1'!$A81) -> 0 | H81: =COUNTIFS('1v1'!$E$2:$E$92068,LOWER('Analysis - 1v1'!H$72),'1v1'!$F$2:$F$92068,'Analysis - 1v1'!$F$71,'1v1'!$Q$2:$Q$92068,'Analysis - 1v1'!$A81) -> 0 | I81: =COUNTIFS('1v1'!$E$2:$E$92068,LOWER('Analysis - 1v1'!I$72),'1v1'!$F$2:$F$92068,'Analysis - 1v1'!$F$71,'1v1'!$Q$2:$Q$92068,'Analysis - 1v1'!$A81) -> 0 | J81: =COUNTIFS('1v1'!$E$2:$E$92068,LOWER('Analysis - 1v1'!J$72),'1v1'!$F$2:$F$92068,'Analysis - 1v1'!$J$71,'1v1'!$Q$2:$Q$92068,'Analysis - 1v1'!$A81) -> 0 | K81: =COUNTIFS('1v1'!$E$2:$E$92068,LOWER('Analysis - 1v1'!K$72),'1v1'!$F$2:$F$92068,'Analysis - 1v1'!$J$71,'1v1'!$Q$2:$Q$92068,'Analysis - 1v1'!$A81) -> 0 | L81: =COUNTIFS('1v1'!$E$2:$E$92068,LOWER('Analysis - 1v1'!L$72),'1v1'!$F$2:$F$92068,'Analysis - 1v1'!$J$71,'1v1'!$Q$2:$Q$92068,'Analysis - 1v1'!$A81) -> 0 | M81: =COUNTIFS('1v1'!$E$2:$E$92068,LOWER('Analysis - 1v1'!M$72),'1v1'!$F$2:$F$92068,'Analysis - 1v1'!$J$71,'1v1'!$Q$2:$Q$92068,'Analysis - 1v1'!$A81) -> 0 | N81: =COUNTIFS('1v1'!$E$2:$E$92068,LOWER('Analysis - 1v1'!N$72),'1v1'!$F$2:$F$92068,'Analysis - 1v1'!$N$71,'1v1'!$Q$2:$Q$92068,'Analysis - 1v1'!$A81) -> 0 | O81: =COUNTIFS('1v1'!$E$2:$E$92068,LOWER('Analysis - 1v1'!O$72),'1v1'!$F$2:$F$92068,'Analysis - 1v1'!$N$71,'1v1'!$Q$2:$Q$92068,'Analysis - 1v1'!$A81) -> 0 | P81: =COUNTIFS('1v1'!$E$2:$E$92068,LOWER('Analysis - 1v1'!P$72),'1v1'!$F$2:$F$92068,'Analysis - 1v1'!$N$71,'1v1'!$Q$2:$Q$92068,'Analysis - 1v1'!$A81) -> 0 | Q81: =COUNTIFS('1v1'!$E$2:$E$92068,LOWER('Analysis - 1v1'!Q$72),'1v1'!$F$2:$F$92068,'Analysis - 1v1'!$N$71,'1v1'!$Q$2:$Q$92068,'Analysis - 1v1'!$A81) -> 0 | R81: =COUNTIFS('1v1'!$E$2:$E$92068,LOWER('Analysis - 1v1'!R$72),'1v1'!$F$2:$F$92068,'Analysis - 1v1'!$R$71,'1v1'!$Q$2:$Q$92068,'Analysis - 1v1'!$A81) -> 0 | S81: =COUNTIFS('1v1'!$E$2:$E$92068,LOWER('Analysis - 1v1'!S$72),'1v1'!$F$2:$F$92068,'Analysis - 1v1'!$R$71,'1v1'!$Q$2:$Q$92068,'Analysis - 1v1'!$A81) -> 0 | T81: =COUNTIFS('1v1'!$E$2:$E$92068,LOWER('Analysis - 1v1'!T$72),'1v1'!$F$2:$F$92068,'Analysis - 1v1'!$R$71,'1v1'!$Q$2:$Q$92068,'Analysis - 1v1'!$A81) -> 0 | U81: =COUNTIFS('1v1'!$E$2:$E$92068,LOWER('Analysis - 1v1'!U$72),'1v1'!$F$2:$F$92068,'Analysis - 1v1'!$R$71,'1v1'!$Q$2:$Q$92068,'Analysis - 1v1'!$A81) -> 0 | V81: =COUNTIFS('1v1'!$E$2:$E$92068,LOWER('Analysis - 1v1'!V$72),'1v1'!$F$2:$F$92068,'Analysis - 1v1'!$V$71,'1v1'!$Q$2:$Q$92068,'Analysis - 1v1'!$A81) -> 0 | W81: =COUNTIFS('1v1'!$E$2:$E$92068,LOWER('Analysis - 1v1'!W$72),'1v1'!$F$2:$F$92068,'Analysis - 1v1'!$V$71,'1v1'!$Q$2:$Q$92068,'Analysis - 1v1'!$A81) -> 0 | X81: =COUNTIFS('1v1'!$E$2:$E$92068,LOWER('Analysis - 1v1'!X$72),'1v1'!$F$2:$F$92068,'Analysis - 1v1'!$V$71,'1v1'!$Q$2:$Q$92068,'Analysis - 1v1'!$A81) -> 0 | Y81: =COUNTIFS('1v1'!$E$2:$E$92068,LOWER('Analysis - 1v1'!Y$72),'1v1'!$F$2:$F$92068,'Analysis - 1v1'!$V$71,'1v1'!$Q$2:$Q$92068,'Analysis - 1v1'!$A81) -> 0 | Z81: =COUNTIFS('1v1'!$E$2:$E$92068,LOWER('Analysis - 1v1'!Z$72),'1v1'!$F$2:$F$92068,'Analysis - 1v1'!$Z$71,'1v1'!$Q$2:$Q$92068,'Analysis - 1v1'!$A81) -> 0 | AA81: =COUNTIFS('1v1'!$E$2:$E$92068,LOWER('Analysis - 1v1'!AA$72),'1v1'!$F$2:$F$92068,'Analysis - 1v1'!$Z$71,'1v1'!$Q$2:$Q$92068,'Analysis - 1v1'!$A81) -> 0 | AB81: =COUNTIFS('1v1'!$E$2:$E$92068,LOWER('Analysis - 1v1'!AB$72),'1v1'!$F$2:$F$92068,'Analysis - 1v1'!$Z$71,'1v1'!$Q$2:$Q$92068,'Analysis - 1v1'!$A81) -> 0 | AC81: =COUNTIFS('1v1'!$E$2:$E$92068,LOWER('Analysis - 1v1'!AC$72),'1v1'!$F$2:$F$92068,'Analysis - 1v1'!$Z$71,'1v1'!$Q$2:$Q$92068,'Analysis - 1v1'!$A81) -> 0 | AD81: 0 | AE81: 0 | AF81: 0 | AG81: 0
A82: 10 | B82: =COUNTIFS('1v1'!$E$2:$E$92068,LOWER('Analysis - 1v1'!B$72),'1v1'!$F$2:$F$92068,'Analysis - 1v1'!$B$71,'1v1'!$Q$2:$Q$92068,'Analysis - 1v1'!$A82) -> 0 | C82: =COUNTIFS('1v1'!$E$2:$E$92068,LOWER('Analysis - 1v1'!C$72),'1v1'!$F$2:$F$92068,'Analysis - 1v1'!$B$71,'1v1'!$Q$2:$Q$92068,'Analysis - 1v1'!$A82) -> 0 | D82: =COUNTIFS('1v1'!$E$2:$E$92068,LOWER('Analysis - 1v1'!D$72),'1v1'!$F$2:$F$92068,'Analysis - 1v1'!$B$71,'1v1'!$Q$2:$Q$92068,'Analysis - 1v1'!$A82) -> 0 | E82: =COUNTIFS('1v1'!$E$2:$E$92068,LOWER('Analysis - 1v1'!E$72),'1v1'!$F$2:$F$92068,'Analysis - 1v1'!$B$71,'1v1'!$Q$2:$Q$92068,'Analysis - 1v1'!$A82) -> 0 | F82: =COUNTIFS('1v1'!$E$2:$E$92068,LOWER('Analysis - 1v1'!F$72),'1v1'!$F$2:$F$92068,'Analysis - 1v1'!$F$71,'1v1'!$Q$2:$Q$92068,'Analysis - 1v1'!$A82) -> 0 | G82: =COUNTIFS('1v1'!$E$2:$E$92068,LOWER('Analysis - 1v1'!G$72),'1v1'!$F$2:$F$92068,'Analysis - 1v1'!$F$71,'1v1'!$Q$2:$Q$92068,'Analysis - 1v1'!$A82) -> 0 | H82: =COUNTIFS('1v1'!$E$2:$E$92068,LOWER('Analysis - 1v1'!H$72),'1v1'!$F$2:$F$92068,'Analysis - 1v1'!$F$71,'1v1'!$Q$2:$Q$92068,'Analysis - 1v1'!$A82) -> 0 | I82: =COUNTIFS('1v1'!$E$2:$E$92068,LOWER('Analysis - 1v1'!I$72),'1v1'!$F$2:$F$92068,'Analysis - 1v1'!$F$71,'1v1'!$Q$2:$Q$92068,'Analysis - 1v1'!$A82) -> 0 | J82: =COUNTIFS('1v1'!$E$2:$E$92068,LOWER('Analysis - 1v1'!J$72),'1v1'!$F$2:$F$92068,'Analysis - 1v1'!$J$71,'1v1'!$Q$2:$Q$92068,'Analysis - 1v1'!$A82) -> 0 | K82: =COUNTIFS('1v1'!$E$2:$E$92068,LOWER('Analysis - 1v1'!K$72),'1v1'!$F$2:$F$92068,'Analysis - 1v1'!$J$71,'1v1'!$Q$2:$Q$92068,'Analysis - 1v1'!$A82) -> 0 | L82: =COUNTIFS('1v1'!$E$2:$E$92068,LOWER('Analysis - 1v1'!L$72),'1v1'!$F$2:$F$92068,'Analysis - 1v1'!$J$71,'1v1'!$Q$2:$Q$92068,'Analysis - 1v1'!$A82) -> 0 | M82: =COUNTIFS('1v1'!$E$2:$E$92068,LOWER('Analysis - 1v1'!M$72),'1v1'!$F$2:$F$92068,'Analysis - 1v1'!$J$71,'1v1'!$Q$2:$Q$92068,'Analysis - 1v1'!$A82) -> 0 | N82: =COUNTIFS('1v1'!$E$2:$E$92068,LOWER('Analysis - 1v1'!N$72),'1v1'!$F$2:$F$92068,'Analysis - 1v1'!$N$71,'1v1'!$Q$2:$Q$92068,'Analysis - 1v1'!$A82) -> 0 | O82: =COUNTIFS('1v1'!$E$2:$E$92068,LOWER('Analysis - 1v1'!O$72),'1v1'!$F$2:$F$92068,'Analysis - 1v1'!$N$71,'1v1'!$Q$2:$Q$92068,'Analysis - 1v1'!$A82) -> 0 | P82: =COUNTIFS('1v1'!$E$2:$E$92068,LOWER('Analysis - 1v1'!P$72),'1v1'!$F$2:$F$92068,'Analysis - 1v1'!$N$71,'1v1'!$Q$2:$Q$92068,'Analysis - 1v1'!$A82) -> 0 | Q82: =COUNTIFS('1v1'!$E$2:$E$92068,LOWER('Analysis - 1v1'!Q$72),'1v1'!$F$2:$F$92068,'Analysis - 1v1'!$N$71,'1v1'!$Q$2:$Q$92068,'Analysis - 1v1'!$A82) -> 0 | R82: =COUNTIFS('1v1'!$E$2:$E$92068,LOWER('Analysis - 1v1'!R$72),'1v1'!$F$2:$F$92068,'Analysis - 1v1'!$R$71,'1v1'!$Q$2:$Q$92068,'Analysis - 1v1'!$A82) -> 0 | S82: =COUNTIFS('1v1'!$E$2:$E$92068,LOWER('Analysis - 1v1'!S$72),'1v1'!$F$2:$F$92068,'Analysis - 1v1'!$R$71,'1v1'!$Q$2:$Q$92068,'Analysis - 1v1'!$A82) -> 0 | T82: =COUNTIFS('1v1'!$E$2:$E$92068,LOWER('Analysis - 1v1'!T$72),'1v1'!$F$2:$F$92068,'Analysis - 1v1'!$R$71,'1v1'!$Q$2:$Q$92068,'Analysis - 1v1'!$A82) -> 0 | U82: =COUNTIFS('1v1'!$E$2:$E$92068,LOWER('Analysis - 1v1'!U$72),'1v1'!$F$2:$F$92068,'Analysis - 1v1'!$R$71,'1v1'!$Q$2:$Q$92068,'Analysis - 1v1'!$A82) -> 0 | V82: =COUNTIFS('1v1'!$E$2:$E$92068,LOWER('Analysis - 1v1'!V$72),'1v1'!$F$2:$F$92068,'Analysis - 1v1'!$V$71,'1v1'!$Q$2:$Q$92068,'Analysis - 1v1'!$A82) -> 0 | W82: =COUNTIFS('1v1'!$E$2:$E$92068,LOWER('Analysis - 1v1'!W$72),'1v1'!$F$2:$F$92068,'Analysis - 1v1'!$V$71,'1v1'!$Q$2:$Q$92068,'Analysis - 1v1'!$A82) -> 0 | X82: =COUNTIFS('1v1'!$E$2:$E$92068,LOWER('Analysis - 1v1'!X$72),'1v1'!$F$2:$F$92068,'Analysis - 1v1'!$V$71,'1v1'!$Q$2:$Q$92068,'Analysis - 1v1'!$A82) -> 0 | Y82: =COUNTIFS('1v1'!$E$2:$E$92068,LOWER('Analysis - 1v1'!Y$72),'1v1'!$F$2:$F$92068,'Analysis - 1v1'!$V$71,'1v1'!$Q$2:$Q$92068,'Analysis - 1v1'!$A82) -> 0 | Z82: =COUNTIFS('1v1'!$E$2:$E$92068,LOWER('Analysis - 1v1'!Z$72),'1v1'!$F$2:$F$92068,'Analysis - 1v1'!$Z$71,'1v1'!$Q$2:$Q$92068,'Analysis - 1v1'!$A82) -> 0 | AA82: =COUNTIFS('1v1'!$E$2:$E$92068,LOWER('Analysis - 1v1'!AA$72),'1v1'!$F$2:$F$92068,'Analysis - 1v1'!$Z$71,'1v1'!$Q$2:$Q$92068,'Analysis - 1v1'!$A82) -> 0 | AB82: =COUNTIFS('1v1'!$E$2:$E$92068,LOWER('Analysis - 1v1'!AB$72),'1v1'!$F$2:$F$92068,'Analysis - 1v1'!$Z$71,'1v1'!$Q$2:$Q$92068,'Analysis - 1v1'!$A82) -> 0 | AC82: =COUNTIFS('1v1'!$E$2:$E$92068,LOWER('Analysis - 1v1'!AC$72),'1v1'!$F$2:$F$92068,'Analysis - 1v1'!$Z$71,'1v1'!$Q$2:$Q$92068,'Analysis - 1v1'!$A82) -> 0 | AD82: 0 | AE82: 0 | AF82: 0 | AG82: 0
A83: 11 | B83: =COUNTIFS('1v1'!$E$2:$E$92068,LOWER('Analysis - 1v1'!B$72),'1v1'!$F$2:$F$92068,'Analysis - 1v1'!$B$71,'1v1'!$Q$2:$Q$92068,'Analysis - 1v1'!$A83) -> 0 | C83: =COUNTIFS('1v1'!$E$2:$E$92068,LOWER('Analysis - 1v1'!C$72),'1v1'!$F$2:$F$92068,'Analysis - 1v1'!$B$71,'1v1'!$Q$2:$Q$92068,'Analysis - 1v1'!$A83) -> 0 | D83: =COUNTIFS('1v1'!$E$2:$E$92068,LOWER('Analysis - 1v1'!D$72),'1v1'!$F$2:$F$92068,'Analysis - 1v1'!$B$71,'1v1'!$Q$2:$Q$92068,'Analysis - 1v1'!$A83) -> 0 | E83: =COUNTIFS('1v1'!$E$2:$E$92068,LOWER('Analysis - 1v1'!E$72),'1v1'!$F$2:$F$92068,'Analysis - 1v1'!$B$71,'1v1'!$Q$2:$Q$92068,'Analysis - 1v1'!$A83) -> 0 | F83: =COUNTIFS('1v1'!$E$2:$E$92068,LOWER('Analysis - 1v1'!F$72),'1v1'!$F$2:$F$92068,'Analysis - 1v1'!$F$71,'1v1'!$Q$2:$Q$92068,'Analysis - 1v1'!$A83) -> 0 | G83: =COUNTIFS('1v1'!$E$2:$E$92068,LOWER('Analysis - 1v1'!G$72),'1v1'!$F$2:$F$92068,'Analysis - 1v1'!$F$71,'1v1'!$Q$2:$Q$92068,'Analysis - 1v1'!$A83) -> 0 | H83: =COUNTIFS('1v1'!$E$2:$E$92068,LOWER('Analysis - 1v1'!H$72),'1v1'!$F$2:$F$92068,'Analysis - 1v1'!$F$71,'1v1'!$Q$2:$Q$92068,'Analysis - 1v1'!$A83) -> 0 | I83: =COUNTIFS('1v1'!$E$2:$E$92068,LOWER('Analysis - 1v1'!I$72),'1v1'!$F$2:$F$92068,'Analysis - 1v1'!$F$71,'1v1'!$Q$2:$Q$92068,'Analysis - 1v1'!$A83) -> 0 | J83: =COUNTIFS('1v1'!$E$2:$E$92068,LOWER('Analysis - 1v1'!J$72),'1v1'!$F$2:$F$92068,'Analysis - 1v1'!$J$71,'1v1'!$Q$2:$Q$92068,'Analysis - 1v1'!$A83) -> 0 | K83: =COUNTIFS('1v1'!$E$2:$E$92068,LOWER('Analysis - 1v1'!K$72),'1v1'!$F$2:$F$92068,'Analysis - 1v1'!$J$71,'1v1'!$Q$2:$Q$92068,'Analysis - 1v1'!$A83) -> 0 | L83: =COUNTIFS('1v1'!$E$2:$E$92068,LOWER('Analysis - 1v1'!L$72),'1v1'!$F$2:$F$92068,'Analysis - 1v1'!$J$71,'1v1'!$Q$2:$Q$92068,'Analysis - 1v1'!$A83) -> 0 | M83: =COUNTIFS('1v1'!$E$2:$E$92068,LOWER('Analysis - 1v1'!M$72),'1v1'!$F$2:$F$92068,'Analysis - 1v1'!$J$71,'1v1'!$Q$2:$Q$92068,'Analysis - 1v1'!$A83) -> 0 | N83: =COUNTIFS('1v1'!$E$2:$E$92068,LOWER('Analysis - 1v1'!N$72),'1v1'!$F$2:$F$92068,'Analysis - 1v1'!$N$71,'1v1'!$Q$2:$Q$92068,'Analysis - 1v1'!$A83) -> 0 | O83: =COUNTIFS('1v1'!$E$2:$E$92068,LOWER('Analysis - 1v1'!O$72),'1v1'!$F$2:$F$92068,'Analysis - 1v1'!$N$71,'1v1'!$Q$2:$Q$92068,'Analysis - 1v1'!$A83) -> 0 | P83: =COUNTIFS('1v1'!$E$2:$E$92068,LOWER('Analysis - 1v1'!P$72),'1v1'!$F$2:$F$92068,'Analysis - 1v1'!$N$71,'1v1'!$Q$2:$Q$92068,'Analysis - 1v1'!$A83) -> 0 | Q83: =COUNTIFS('1v1'!$E$2:$E$92068,LOWER('Analysis - 1v1'!Q$72),'1v1'!$F$2:$F$92068,'Analysis - 1v1'!$N$71,'1v1'!$Q$2:$Q$92068,'Analysis - 1v1'!$A83) -> 0 | R83: =COUNTIFS('1v1'!$E$2:$E$92068,LOWER('Analysis - 1v1'!R$72),'1v1'!$F$2:$F$92068,'Analysis - 1v1'!$R$71,'1v1'!$Q$2:$Q$92068,'Analysis - 1v1'!$A83) -> 0 | S83: =COUNTIFS('1v1'!$E$2:$E$92068,LOWER('Analysis - 1v1'!S$72),'1v1'!$F$2:$F$92068,'Analysis - 1v1'!$R$71,'1v1'!$Q$2:$Q$92068,'Analysis - 1v1'!$A83) -> 0 | T83: =COUNTIFS('1v1'!$E$2:$E$92068,LOWER('Analysis - 1v1'!T$72),'1v1'!$F$2:$F$92068,'Analysis - 1v1'!$R$71,'1v1'!$Q$2:$Q$92068,'Analysis - 1v1'!$A83) -> 0 | U83: =COUNTIFS('1v1'!$E$2:$E$92068,LOWER('Analysis - 1v1'!U$72),'1v1'!$F$2:$F$92068,'Analysis - 1v1'!$R$71,'1v1'!$Q$2:$Q$92068,'Analysis - 1v1'!$A83) -> 0 | V83: =COUNTIFS('1v1'!$E$2:$E$92068,LOWER('Analysis - 1v1'!V$72),'1v1'!$F$2:$F$92068,'Analysis - 1v1'!$V$71,'1v1'!$Q$2:$Q$92068,'Analysis - 1v1'!$A83) -> 0 | W83: =COUNTIFS('1v1'!$E$2:$E$92068,LOWER('Analysis - 1v1'!W$72),'1v1'!$F$2:$F$92068,'Analysis - 1v1'!$V$71,'1v1'!$Q$2:$Q$92068,'Analysis - 1v1'!$A83) -> 0 | X83: =COUNTIFS('1v1'!$E$2:$E$92068,LOWER('Analysis - 1v1'!X$72),'1v1'!$F$2:$F$92068,'Analysis - 1v1'!$V$71,'1v1'!$Q$2:$Q$92068,'Analysis - 1v1'!$A83) -> 0 | Y83: =COUNTIFS('1v1'!$E$2:$E$92068,LOWER('Analysis - 1v1'!Y$72),'1v1'!$F$2:$F$92068,'Analysis - 1v1'!$V$71,'1v1'!$Q$2:$Q$92068,'Analysis - 1v1'!$A83) -> 0 | Z83: =COUNTIFS('1v1'!$E$2:$E$92068,LOWER('Analysis - 1v1'!Z$72),'1v1'!$F$2:$F$92068,'Analysis - 1v1'!$Z$71,'1v1'!$Q$2:$Q$92068,'Analysis - 1v1'!$A83) -> 0 | AA83: =COUNTIFS('1v1'!$E$2:$E$92068,LOWER('Analysis - 1v1'!AA$72),'1v1'!$F$2:$F$92068,'Analysis - 1v1'!$Z$71,'1v1'!$Q$2:$Q$92068,'Analysis - 1v1'!$A83) -> 0 | AB83: =COUNTIFS('1v1'!$E$2:$E$92068,LOWER('Analysis - 1v1'!AB$72),'1v1'!$F$2:$F$92068,'Analysis - 1v1'!$Z$71,'1v1'!$Q$2:$Q$92068,'Analysis - 1v1'!$A83) -> 0 | AC83: =COUNTIFS('1v1'!$E$2:$E$92068,LOWER('Analysis - 1v1'!AC$72),'1v1'!$F$2:$F$92068,'Analysis - 1v1'!$Z$71,'1v1'!$Q$2:$Q$92068,'Analysis - 1v1'!$A83) -> 0 | AD83: 0 | AE83: 0 | AF83: 0 | AG83: 0
A84: =A83+1 -> 12 | B84: =COUNTIFS('1v1'!$E$2:$E$92068,LOWER('Analysis - 1v1'!B$72),'1v1'!$F$2:$F$92068,'Analysis - 1v1'!$B$71,'1v1'!$Q$2:$Q$92068,'Analysis - 1v1'!$A84) -> 0 | C84: =COUNTIFS('1v1'!$E$2:$E$92068,LOWER('Analysis - 1v1'!C$72),'1v1'!$F$2:$F$92068,'Analysis - 1v1'!$B$71,'1v1'!$Q$2:$Q$92068,'Analysis - 1v1'!$A84) -> 0 | D84: =COUNTIFS('1v1'!$E$2:$E$92068,LOWER('Analysis - 1v1'!D$72),'1v1'!$F$2:$F$92068,'Analysis - 1v1'!$B$71,'1v1'!$Q$2:$Q$92068,'Analysis - 1v1'!$A84) -> 0 | E84: =COUNTIFS('1v1'!$E$2:$E$92068,LOWER('Analysis - 1v1'!E$72),'1v1'!$F$2:$F$92068,'Analysis - 1v1'!$B$71,'1v1'!$Q$2:$Q$92068,'Analysis - 1v1'!$A84) -> 0 | F84: =COUNTIFS('1v1'!$E$2:$E$92068,LOWER('Analysis - 1v1'!F$72),'1v1'!$F$2:$F$92068,'Analysis - 1v1'!$F$71,'1v1'!$Q$2:$Q$92068,'Analysis - 1v1'!$A84) -> 0 | G84: =COUNTIFS('1v1'!$E$2:$E$92068,LOWER('Analysis - 1v1'!G$72),'1v1'!$F$2:$F$92068,'Analysis - 1v1'!$F$71,'1v1'!$Q$2:$Q$92068,'Analysis - 1v1'!$A84) -> 0 | H84: =COUNTIFS('1v1'!$E$2:$E$92068,LOWER('Analysis - 1v1'!H$72),'1v1'!$F$2:$F$92068,'Analysis - 1v1'!$F$71,'1v1'!$Q$2:$Q$92068,'Analysis - 1v1'!$A84) -> 0 | I84: =COUNTIFS('1v1'!$E$2:$E$92068,LOWER('Analysis - 1v1'!I$72),'1v1'!$F$2:$F$92068,'Analysis - 1v1'!$F$71,'1v1'!$Q$2:$Q$92068,'Analysis - 1v1'!$A84) -> 0 | J84: =COUNTIFS('1v1'!$E$2:$E$92068,LOWER('Analysis - 1v1'!J$72),'1v1'!$F$2:$F$92068,'Analysis - 1v1'!$J$71,'1v1'!$Q$2:$Q$92068,'Analysis - 1v1'!$A84) -> 0 | K84: =COUNTIFS('1v1'!$E$2:$E$92068,LOWER('Analysis - 1v1'!K$72),'1v1'!$F$2:$F$92068,'Analysis - 1v1'!$J$71,'1v1'!$Q$2:$Q$92068,'Analysis - 1v1'!$A84) -> 0 | L84: =COUNTIFS('1v1'!$E$2:$E$92068,LOWER('Analysis - 1v1'!L$72),'1v1'!$F$2:$F$92068,'Analysis - 1v1'!$J$71,'1v1'!$Q$2:$Q$92068,'Analysis - 1v1'!$A84) -> 0 | M84: =COUNTIFS('1v1'!$E$2:$E$92068,LOWER('Analysis - 1v1'!M$72),'1v1'!$F$2:$F$92068,'Analysis - 1v1'!$J$71,'1v1'!$Q$2:$Q$92068,'Analysis - 1v1'!$A84) -> 0 | N84: =COUNTIFS('1v1'!$E$2:$E$92068,LOWER('Analysis - 1v1'!N$72),'1v1'!$F$2:$F$92068,'Analysis - 1v1'!$N$71,'1v1'!$Q$2:$Q$92068,'Analysis - 1v1'!$A84) -> 0 | O84: =COUNTIFS('1v1'!$E$2:$E$92068,LOWER('Analysis - 1v1'!O$72),'1v1'!$F$2:$F$92068,'Analysis - 1v1'!$N$71,'1v1'!$Q$2:$Q$92068,'Analysis - 1v1'!$A84) -> 0 | P84: =COUNTIFS('1v1'!$E$2:$E$92068,LOWER('Analysis - 1v1'!P$72),'1v1'!$F$2:$F$92068,'Analysis - 1v1'!$N$71,'1v1'!$Q$2:$Q$92068,'Analysis - 1v1'!$A84) -> 0 | Q84: =COUNTIFS('1v1'!$E$2:$E$92068,LOWER('Analysis - 1v1'!Q$72),'1v1'!$F$2:$F$92068,'Analysis - 1v1'!$N$71,'1v1'!$Q$2:$Q$92068,'Analysis - 1v1'!$A84) -> 0 | R84: =COUNTIFS('1v1'!$E$2:$E$92068,LOWER('Analysis - 1v1'!R$72),'1v1'!$F$2:$F$92068,'Analysis - 1v1'!$R$71,'1v1'!$Q$2:$Q$92068,'Analysis - 1v1'!$A84) -> 0 | S84: =COUNTIFS('1v1'!$E$2:$E$92068,LOWER('Analysis - 1v1'!S$72),'1v1'!$F$2:$F$92068,'Analysis - 1v1'!$R$71,'1v1'!$Q$2:$Q$92068,'Analysis - 1v1'!$A84) -> 0 | T84: =COUNTIFS('1v1'!$E$2:$E$92068,LOWER('Analysis - 1v1'!T$72),'1v1'!$F$2:$F$92068,'Analysis - 1v1'!$R$71,'1v1'!$Q$2:$Q$92068,'Analysis - 1v1'!$A84) -> 0 | U84: =COUNTIFS('1v1'!$E$2:$E$92068,LOWER('Analysis - 1v1'!U$72),'1v1'!$F$2:$F$92068,'Analysis - 1v1'!$R$71,'1v1'!$Q$2:$Q$92068,'Analysis - 1v1'!$A84) -> 0 | V84: =COUNTIFS('1v1'!$E$2:$E$92068,LOWER('Analysis - 1v1'!V$72),'1v1'!$F$2:$F$92068,'Analysis - 1v1'!$V$71,'1v1'!$Q$2:$Q$92068,'Analysis - 1v1'!$A84) -> 0 | W84: =COUNTIFS('1v1'!$E$2:$E$92068,LOWER('Analysis - 1v1'!W$72),'1v1'!$F$2:$F$92068,'Analysis - 1v1'!$V$71,'1v1'!$Q$2:$Q$92068,'Analysis - 1v1'!$A84) -> 0 | X84: =COUNTIFS('1v1'!$E$2:$E$92068,LOWER('Analysis - 1v1'!X$72),'1v1'!$F$2:$F$92068,'Analysis - 1v1'!$V$71,'1v1'!$Q$2:$Q$92068,'Analysis - 1v1'!$A84) -> 0 | Y84: =COUNTIFS('1v1'!$E$2:$E$92068,LOWER('Analysis - 1v1'!Y$72),'1v1'!$F$2:$F$92068,'Analysis - 1v1'!$V$71,'1v1'!$Q$2:$Q$92068,'Analysis - 1v1'!$A84) -> 0 | Z84: =COUNTIFS('1v1'!$E$2:$E$92068,LOWER('Analysis - 1v1'!Z$72),'1v1'!$F$2:$F$92068,'Analysis - 1v1'!$Z$71,'1v1'!$Q$2:$Q$92068,'Analysis - 1v1'!$A84) -> 0 | AA84: =COUNTIFS('1v1'!$E$2:$E$92068,LOWER('Analysis - 1v1'!AA$72),'1v1'!$F$2:$F$92068,'Analysis - 1v1'!$Z$71,'1v1'!$Q$2:$Q$92068,'Analysis - 1v1'!$A84) -> 0 | AB84: =COUNTIFS('1v1'!$E$2:$E$92068,LOWER('Analysis - 1v1'!AB$72),'1v1'!$F$2:$F$92068,'Analysis - 1v1'!$Z$71,'1v1'!$Q$2:$Q$92068,'Analysis - 1v1'!$A84) -> 0 | AC84: =COUNTIFS('1v1'!$E$2:$E$92068,LOWER('Analysis - 1v1'!AC$72),'1v1'!$F$2:$F$92068,'Analysis - 1v1'!$Z$71,'1v1'!$Q$2:$Q$92068,'Analysis - 1v1'!$A84) -> 0
A85: =A84+1 -> 13 | B85: =COUNTIFS('1v1'!$E$2:$E$92068,LOWER('Analysis - 1v1'!B$72),'1v1'!$F$2:$F$92068,'Analysis - 1v1'!$B$71,'1v1'!$Q$2:$Q$92068,'Analysis - 1v1'!$A85) -> 0 | C85: =COUNTIFS('1v1'!$E$2:$E$92068,LOWER('Analysis - 1v1'!C$72),'1v1'!$F$2:$F$92068,'Analysis - 1v1'!$B$71,'1v1'!$Q$2:$Q$92068,'Analysis - 1v1'!$A85) -> 0 | D85: =COUNTIFS('1v1'!$E$2:$E$92068,LOWER('Analysis - 1v1'!D$72),'1v1'!$F$2:$F$92068,'Analysis - 1v1'!$B$71,'1v1'!$Q$2:$Q$92068,'Analysis - 1v1'!$A85) -> 0 | E85: =COUNTIFS('1v1'!$E$2:$E$92068,LOWER('Analysis - 1v1'!E$72),'1v1'!$F$2:$F$92068,'Analysis - 1v1'!$B$71,'1v1'!$Q$2:$Q$92068,'Analysis - 1v1'!$A85) -> 0 | F85: =COUNTIFS('1v1'!$E$2:$E$92068,LOWER('Analysis - 1v1'!F$72),'1v1'!$F$2:$F$92068,'Analysis - 1v1'!$F$71,'1v1'!$Q$2:$Q$92068,'Analysis - 1v1'!$A85) -> 0 | G85: =COUNTIFS('1v1'!$E$2:$E$92068,LOWER('Analysis - 1v1'!G$72),'1v1'!$F$2:$F$92068,'Analysis - 1v1'!$F$71,'1v1'!$Q$2:$Q$92068,'Analysis - 1v1'!$A85) -> 0 | H85: =COUNTIFS('1v1'!$E$2:$E$92068,LOWER('Analysis - 1v1'!H$72),'1v1'!$F$2:$F$92068,'Analysis - 1v1'!$F$71,'1v1'!$Q$2:$Q$92068,'Analysis - 1v1'!$A85) -> 0 | I85: =COUNTIFS('1v1'!$E$2:$E$92068,LOWER('Analysis - 1v1'!I$72),'1v1'!$F$2:$F$92068,'Analysis - 1v1'!$F$71,'1v1'!$Q$2:$Q$92068,'Analysis - 1v1'!$A85) -> 0 | J85: =COUNTIFS('1v1'!$E$2:$E$92068,LOWER('Analysis - 1v1'!J$72),'1v1'!$F$2:$F$92068,'Analysis - 1v1'!$J$71,'1v1'!$Q$2:$Q$92068,'Analysis - 1v1'!$A85) -> 0 | K85: =COUNTIFS('1v1'!$E$2:$E$92068,LOWER('Analysis - 1v1'!K$72),'1v1'!$F$2:$F$92068,'Analysis - 1v1'!$J$71,'1v1'!$Q$2:$Q$92068,'Analysis - 1v1'!$A85) -> 0 | L85: =COUNTIFS('1v1'!$E$2:$E$92068,LOWER('Analysis - 1v1'!L$72),'1v1'!$F$2:$F$92068,'Analysis - 1v1'!$J$71,'1v1'!$Q$2:$Q$92068,'Analysis - 1v1'!$A85) -> 0 | M85: =COUNTIFS('1v1'!$E$2:$E$92068,LOWER('Analysis - 1v1'!M$72),'1v1'!$F$2:$F$92068,'Analysis - 1v1'!$J$71,'1v1'!$Q$2:$Q$92068,'Analysis - 1v1'!$A85) -> 0 | N85: =COUNTIFS('1v1'!$E$2:$E$92068,LOWER('Analysis - 1v1'!N$72),'1v1'!$F$2:$F$92068,'Analysis - 1v1'!$N$71,'1v1'!$Q$2:$Q$92068,'Analysis - 1v1'!$A85) -> 0 | O85: =COUNTIFS('1v1'!$E$2:$E$92068,LOWER('Analysis - 1v1'!O$72),'1v1'!$F$2:$F$92068,'Analysis - 1v1'!$N$71,'1v1'!$Q$2:$Q$92068,'Analysis - 1v1'!$A85) -> 0 | P85: =COUNTIFS('1v1'!$E$2:$E$92068,LOWER('Analysis - 1v1'!P$72),'1v1'!$F$2:$F$92068,'Analysis - 1v1'!$N$71,'1v1'!$Q$2:$Q$92068,'Analysis - 1v1'!$A85) -> 0 | Q85: =COUNTIFS('1v1'!$E$2:$E$92068,LOWER('Analysis - 1v1'!Q$72),'1v1'!$F$2:$F$92068,'Analysis - 1v1'!$N$71,'1v1'!$Q$2:$Q$92068,'Analysis - 1v1'!$A85) -> 0 | R85: =COUNTIFS('1v1'!$E$2:$E$92068,LOWER('Analysis - 1v1'!R$72),'1v1'!$F$2:$F$92068,'Analysis - 1v1'!$R$71,'1v1'!$Q$2:$Q$92068,'Analysis - 1v1'!$A85) -> 0 | S85: =COUNTIFS('1v1'!$E$2:$E$92068,LOWER('Analysis - 1v1'!S$72),'1v1'!$F$2:$F$92068,'Analysis - 1v1'!$R$71,'1v1'!$Q$2:$Q$92068,'Analysis - 1v1'!$A85) -> 0 | T85: =COUNTIFS('1v1'!$E$2:$E$92068,LOWER('Analysis - 1v1'!T$72),'1v1'!$F$2:$F$92068,'Analysis - 1v1'!$R$71,'1v1'!$Q$2:$Q$92068,'Analysis - 1v1'!$A85) -> 0 | U85: =COUNTIFS('1v1'!$E$2:$E$92068,LOWER('Analysis - 1v1'!U$72),'1v1'!$F$2:$F$92068,'Analysis - 1v1'!$R$71,'1v1'!$Q$2:$Q$92068,'Analysis - 1v1'!$A85) -> 0 | V85: =COUNTIFS('1v1'!$E$2:$E$92068,LOWER('Analysis - 1v1'!V$72),'1v1'!$F$2:$F$92068,'Analysis - 1v1'!$V$71,'1v1'!$Q$2:$Q$92068,'Analysis - 1v1'!$A85) -> 0 | W85: =COUNTIFS('1v1'!$E$2:$E$92068,LOWER('Analysis - 1v1'!W$72),'1v1'!$F$2:$F$92068,'Analysis - 1v1'!$V$71,'1v1'!$Q$2:$Q$92068,'Analysis - 1v1'!$A85) -> 0 | X85: =COUNTIFS('1v1'!$E$2:$E$92068,LOWER('Analysis - 1v1'!X$72),'1v1'!$F$2:$F$92068,'Analysis - 1v1'!$V$71,'1v1'!$Q$2:$Q$92068,'Analysis - 1v1'!$A85) -> 0 | Y85: =COUNTIFS('1v1'!$E$2:$E$92068,LOWER('Analysis - 1v1'!Y$72),'1v1'!$F$2:$F$92068,'Analysis - 1v1'!$V$71,'1v1'!$Q$2:$Q$92068,'Analysis - 1v1'!$A85) -> 0 | Z85: =COUNTIFS('1v1'!$E$2:$E$92068,LOWER('Analysis - 1v1'!Z$72),'1v1'!$F$2:$F$92068,'Analysis - 1v1'!$Z$71,'1v1'!$Q$2:$Q$92068,'Analysis - 1v1'!$A85) -> 0 | AA85: =COUNTIFS('1v1'!$E$2:$E$92068,LOWER('Analysis - 1v1'!AA$72),'1v1'!$F$2:$F$92068,'Analysis - 1v1'!$Z$71,'1v1'!$Q$2:$Q$92068,'Analysis - 1v1'!$A85) -> 0 | AB85: =COUNTIFS('1v1'!$E$2:$E$92068,LOWER('Analysis - 1v1'!AB$72),'1v1'!$F$2:$F$92068,'Analysis - 1v1'!$Z$71,'1v1'!$Q$2:$Q$92068,'Analysis - 1v1'!$A85) -> 0 | AC85: =COUNTIFS('1v1'!$E$2:$E$92068,LOWER('Analysis - 1v1'!AC$72),'1v1'!$F$2:$F$92068,'Analysis - 1v1'!$Z$71,'1v1'!$Q$2:$Q$92068,'Analysis - 1v1'!$A85) -> 0
A86: 14 | B86: =COUNTIFS('1v1'!$E$2:$E$92068,LOWER('Analysis - 1v1'!B$72),'1v1'!$F$2:$F$92068,'Analysis - 1v1'!$B$71,'1v1'!$Q$2:$Q$92068,'Analysis - 1v1'!$A86) -> 0 | C86: =COUNTIFS('1v1'!$E$2:$E$92068,LOWER('Analysis - 1v1'!C$72),'1v1'!$F$2:$F$92068,'Analysis - 1v1'!$B$71,'1v1'!$Q$2:$Q$92068,'Analysis - 1v1'!$A86) -> 0 | D86: =COUNTIFS('1v1'!$E$2:$E$92068,LOWER('Analysis - 1v1'!D$72),'1v1'!$F$2:$F$92068,'Analysis - 1v1'!$B$71,'1v1'!$Q$2:$Q$92068,'Analysis - 1v1'!$A86) -> 0 | E86: =COUNTIFS('1v1'!$E$2:$E$92068,LOWER('Analysis - 1v1'!E$72),'1v1'!$F$2:$F$92068,'Analysis - 1v1'!$B$71,'1v1'!$Q$2:$Q$92068,'Analysis - 1v1'!$A86) -> 0 | F86: =COUNTIFS('1v1'!$E$2:$E$92068,LOWER('Analysis - 1v1'!F$72),'1v1'!$F$2:$F$92068,'Analysis - 1v1'!$F$71,'1v1'!$Q$2:$Q$92068,'Analysis - 1v1'!$A86) -> 0 | G86: =COUNTIFS('1v1'!$E$2:$E$92068,LOWER('Analysis - 1v1'!G$72),'1v1'!$F$2:$F$92068,'Analysis - 1v1'!$F$71,'1v1'!$Q$2:$Q$92068,'Analysis - 1v1'!$A86) -> 0 | H86: =COUNTIFS('1v1'!$E$2:$E$92068,LOWER('Analysis - 1v1'!H$72),'1v1'!$F$2:$F$92068,'Analysis - 1v1'!$F$71,'1v1'!$Q$2:$Q$92068,'Analysis - 1v1'!$A86) -> 0 | I86: =COUNTIFS('1v1'!$E$2:$E$92068,LOWER('Analysis - 1v1'!I$72),'1v1'!$F$2:$F$92068,'Analysis - 1v1'!$F$71,'1v1'!$Q$2:$Q$92068,'Analysis - 1v1'!$A86) -> 0 | J86: =COUNTIFS('1v1'!$E$2:$E$92068,LOWER('Analysis - 1v1'!J$72),'1v1'!$F$2:$F$92068,'Analysis - 1v1'!$J$71,'1v1'!$Q$2:$Q$92068,'Analysis - 1v1'!$A86) -> 0 | K86: =COUNTIFS('1v1'!$E$2:$E$92068,LOWER('Analysis - 1v1'!K$72),'1v1'!$F$2:$F$92068,'Analysis - 1v1'!$J$71,'1v1'!$Q$2:$Q$92068,'Analysis - 1v1'!$A86) -> 0 | L86: =COUNTIFS('1v1'!$E$2:$E$92068,LOWER('Analysis - 1v1'!L$72),'1v1'!$F$2:$F$92068,'Analysis - 1v1'!$J$71,'1v1'!$Q$2:$Q$92068,'Analysis - 1v1'!$A86) -> 0 | M86: =COUNTIFS('1v1'!$E$2:$E$92068,LOWER('Analysis - 1v1'!M$72),'1v1'!$F$2:$F$92068,'Analysis - 1v1'!$J$71,'1v1'!$Q$2:$Q$92068,'Analysis - 1v1'!$A86) -> 0 | N86: =COUNTIFS('1v1'!$E$2:$E$92068,LOWER('Analysis - 1v1'!N$72),'1v1'!$F$2:$F$92068,'Analysis - 1v1'!$N$71,'1v1'!$Q$2:$Q$92068,'Analysis - 1v1'!$A86) -> 0 | O86: =COUNTIFS('1v1'!$E$2:$E$92068,LOWER('Analysis - 1v1'!O$72),'1v1'!$F$2:$F$92068,'Analysis - 1v1'!$N$71,'1v1'!$Q$2:$Q$92068,'Analysis - 1v1'!$A86) -> 0 | P86: =COUNTIFS('1v1'!$E$2:$E$92068,LOWER('Analysis - 1v1'!P$72),'1v1'!$F$2:$F$92068,'Analysis - 1v1'!$N$71,'1v1'!$Q$2:$Q$92068,'Analysis - 1v1'!$A86) -> 0 | Q86: =COUNTIFS('1v1'!$E$2:$E$92068,LOWER('Analysis - 1v1'!Q$72),'1v1'!$F$2:$F$92068,'Analysis - 1v1'!$N$71,'1v1'!$Q$2:$Q$92068,'Analysis - 1v1'!$A86) -> 0 | R86: =COUNTIFS('1v1'!$E$2:$E$92068,LOWER('Analysis - 1v1'!R$72),'1v1'!$F$2:$F$92068,'Analysis - 1v1'!$R$71,'1v1'!$Q$2:$Q$92068,'Analysis - 1v1'!$A86) -> 0 | S86: =COUNTIFS('1v1'!$E$2:$E$92068,LOWER('Analysis - 1v1'!S$72),'1v1'!$F$2:$F$92068,'Analysis - 1v1'!$R$71,'1v1'!$Q$2:$Q$92068,'Analysis - 1v1'!$A86) -> 0 | T86: =COUNTIFS('1v1'!$E$2:$E$92068,LOWER('Analysis - 1v1'!T$72),'1v1'!$F$2:$F$92068,'Analysis - 1v1'!$R$71,'1v1'!$Q$2:$Q$92068,'Analysis - 1v1'!$A86) -> 0 | U86: =COUNTIFS('1v1'!$E$2:$E$92068,LOWER('Analysis - 1v1'!U$72),'1v1'!$F$2:$F$92068,'Analysis - 1v1'!$R$71,'1v1'!$Q$2:$Q$92068,'Analysis - 1v1'!$A86) -> 0 | V86: =COUNTIFS('1v1'!$E$2:$E$92068,LOWER('Analysis - 1v1'!V$72),'1v1'!$F$2:$F$92068,'Analysis - 1v1'!$V$71,'1v1'!$Q$2:$Q$92068,'Analysis - 1v1'!$A86) -> 0 | W86: =COUNTIFS('1v1'!$E$2:$E$92068,LOWER('Analysis - 1v1'!W$72),'1v1'!$F$2:$F$92068,'Analysis - 1v1'!$V$71,'1v1'!$Q$2:$Q$92068,'Analysis - 1v1'!$A86) -> 0 | X86: =COUNTIFS('1v1'!$E$2:$E$92068,LOWER('Analysis - 1v1'!X$72),'1v1'!$F$2:$F$92068,'Analysis - 1v1'!$V$71,'1v1'!$Q$2:$Q$92068,'Analysis - 1v1'!$A86) -> 0 | Y86: =COUNTIFS('1v1'!$E$2:$E$92068,LOWER('Analysis - 1v1'!Y$72),'1v1'!$F$2:$F$92068,'Analysis - 1v1'!$V$71,'1v1'!$Q$2:$Q$92068,'Analysis - 1v1'!$A86) -> 0 | Z86: =COUNTIFS('1v1'!$E$2:$E$92068,LOWER('Analysis - 1v1'!Z$72),'1v1'!$F$2:$F$92068,'Analysis - 1v1'!$Z$71,'1v1'!$Q$2:$Q$92068,'Analysis - 1v1'!$A86) -> 0 | AA86: =COUNTIFS('1v1'!$E$2:$E$92068,LOWER('Analysis - 1v1'!AA$72),'1v1'!$F$2:$F$92068,'Analysis - 1v1'!$Z$71,'1v1'!$Q$2:$Q$92068,'Analysis - 1v1'!$A86) -> 0 | AB86: =COUNTIFS('1v1'!$E$2:$E$92068,LOWER('Analysis - 1v1'!AB$72),'1v1'!$F$2:$F$92068,'Analysis - 1v1'!$Z$71,'1v1'!$Q$2:$Q$92068,'Analysis - 1v1'!$A86) -> 0 | AC86: =COUNTIFS('1v1'!$E$2:$E$92068,LOWER('Analysis - 1v1'!AC$72),'1v1'!$F$2:$F$92068,'Analysis - 1v1'!$Z$71,'1v1'!$Q$2:$Q$92068,'Analysis - 1v1'!$A86) -> 0
A87: 15 | B87: =COUNTIFS('1v1'!$E$2:$E$92068,LOWER('Analysis - 1v1'!B$72),'1v1'!$F$2:$F$92068,'Analysis - 1v1'!$B$71,'1v1'!$Q$2:$Q$92068,'Analysis - 1v1'!$A87) -> 0 | C87: =COUNTIFS('1v1'!$E$2:$E$92068,LOWER('Analysis - 1v1'!C$72),'1v1'!$F$2:$F$92068,'Analysis - 1v1'!$B$71,'1v1'!$Q$2:$Q$92068,'Analysis - 1v1'!$A87) -> 0 | D87: =COUNTIFS('1v1'!$E$2:$E$92068,LOWER('Analysis - 1v1'!D$72),'1v1'!$F$2:$F$92068,'Analysis - 1v1'!$B$71,'1v1'!$Q$2:$Q$92068,'Analysis - 1v1'!$A87) -> 0 | E87: =COUNTIFS('1v1'!$E$2:$E$92068,LOWER('Analysis - 1v1'!E$72),'1v1'!$F$2:$F$92068,'Analysis - 1v1'!$B$71,'1v1'!$Q$2:$Q$92068,'Analysis - 1v1'!$A87) -> 0 | F87: =COUNTIFS('1v1'!$E$2:$E$92068,LOWER('Analysis - 1v1'!F$72),'1v1'!$F$2:$F$92068,'Analysis - 1v1'!$F$71,'1v1'!$Q$2:$Q$92068,'Analysis - 1v1'!$A87) -> 0 | G87: =COUNTIFS('1v1'!$E$2:$E$92068,LOWER('Analysis - 1v1'!G$72),'1v1'!$F$2:$F$92068,'Analysis - 1v1'!$F$71,'1v1'!$Q$2:$Q$92068,'Analysis - 1v1'!$A87) -> 0 | H87: =COUNTIFS('1v1'!$E$2:$E$92068,LOWER('Analysis - 1v1'!H$72),'1v1'!$F$2:$F$92068,'Analysis - 1v1'!$F$71,'1v1'!$Q$2:$Q$92068,'Analysis - 1v1'!$A87) -> 0 | I87: =COUNTIFS('1v1'!$E$2:$E$92068,LOWER('Analysis - 1v1'!I$72),'1v1'!$F$2:$F$92068,'Analysis - 1v1'!$F$71,'1v1'!$Q$2:$Q$92068,'Analysis - 1v1'!$A87) -> 0 | J87: =COUNTIFS('1v1'!$E$2:$E$92068,LOWER('Analysis - 1v1'!J$72),'1v1'!$F$2:$F$92068,'Analysis - 1v1'!$J$71,'1v1'!$Q$2:$Q$92068,'Analysis - 1v1'!$A87) -> 0 | K87: =COUNTIFS('1v1'!$E$2:$E$92068,LOWER('Analysis - 1v1'!K$72),'1v1'!$F$2:$F$92068,'Analysis - 1v1'!$J$71,'1v1'!$Q$2:$Q$92068,'Analysis - 1v1'!$A87) -> 0 | L87: =COUNTIFS('1v1'!$E$2:$E$92068,LOWER('Analysis - 1v1'!L$72),'1v1'!$F$2:$F$92068,'Analysis - 1v1'!$J$71,'1v1'!$Q$2:$Q$92068,'Analysis - 1v1'!$A87) -> 0 | M87: =COUNTIFS('1v1'!$E$2:$E$92068,LOWER('Analysis - 1v1'!M$72),'1v1'!$F$2:$F$92068,'Analysis - 1v1'!$J$71,'1v1'!$Q$2:$Q$92068,'Analysis - 1v1'!$A87) -> 0 | N87: =COUNTIFS('1v1'!$E$2:$E$92068,LOWER('Analysis - 1v1'!N$72),'1v1'!$F$2:$F$92068,'Analysis - 1v1'!$N$71,'1v1'!$Q$2:$Q$92068,'Analysis - 1v1'!$A87) -> 0 | O87: =COUNTIFS('1v1'!$E$2:$E$92068,LOWER('Analysis - 1v1'!O$72),'1v1'!$F$2:$F$92068,'Analysis - 1v1'!$N$71,'1v1'!$Q$2:$Q$92068,'Analysis - 1v1'!$A87) -> 0 | P87: =COUNTIFS('1v1'!$E$2:$E$92068,LOWER('Analysis - 1v1'!P$72),'1v1'!$F$2:$F$92068,'Analysis - 1v1'!$N$71,'1v1'!$Q$2:$Q$92068,'Analysis - 1v1'!$A87) -> 0 | Q87: =COUNTIFS('1v1'!$E$2:$E$92068,LOWER('Analysis - 1v1'!Q$72),'1v1'!$F$2:$F$92068,'Analysis - 1v1'!$N$71,'1v1'!$Q$2:$Q$92068,'Analysis - 1v1'!$A87) -> 0 | R87: =COUNTIFS('1v1'!$E$2:$E$92068,LOWER('Analysis - 1v1'!R$72),'1v1'!$F$2:$F$92068,'Analysis - 1v1'!$R$71,'1v1'!$Q$2:$Q$92068,'Analysis - 1v1'!$A87) -> 0 | S87: =COUNTIFS('1v1'!$E$2:$E$92068,LOWER('Analysis - 1v1'!S$72),'1v1'!$F$2:$F$92068,'Analysis - 1v1'!$R$71,'1v1'!$Q$2:$Q$92068,'Analysis - 1v1'!$A87) -> 0 | T87: =COUNTIFS('1v1'!$E$2:$E$92068,LOWER('Analysis - 1v1'!T$72),'1v1'!$F$2:$F$92068,'Analysis - 1v1'!$R$71,'1v1'!$Q$2:$Q$92068,'Analysis - 1v1'!$A87) -> 0 | U87: =COUNTIFS('1v1'!$E$2:$E$92068,LOWER('Analysis - 1v1'!U$72),'1v1'!$F$2:$F$92068,'Analysis - 1v1'!$R$71,'1v1'!$Q$2:$Q$92068,'Analysis - 1v1'!$A87) -> 0 | V87: =COUNTIFS('1v1'!$E$2:$E$92068,LOWER('Analysis - 1v1'!V$72),'1v1'!$F$2:$F$92068,'Analysis - 1v1'!$V$71,'1v1'!$Q$2:$Q$92068,'Analysis - 1v1'!$A87) -> 0 | W87: =COUNTIFS('1v1'!$E$2:$E$92068,LOWER('Analysis - 1v1'!W$72),'1v1'!$F$2:$F$92068,'Analysis - 1v1'!$V$71,'1v1'!$Q$2:$Q$92068,'Analysis - 1v1'!$A87) -> 0 | X87: =COUNTIFS('1v1'!$E$2:$E$92068,LOWER('Analysis - 1v1'!X$72),'1v1'!$F$2:$F$92068,'Analysis - 1v1'!$V$71,'1v1'!$Q$2:$Q$92068,'Analysis - 1v1'!$A87) -> 0 | Y87: =COUNTIFS('1v1'!$E$2:$E$92068,LOWER('Analysis - 1v1'!Y$72),'1v1'!$F$2:$F$92068,'Analysis - 1v1'!$V$71,'1v1'!$Q$2:$Q$92068,'Analysis - 1v1'!$A87) -> 0 | Z87: =COUNTIFS('1v1'!$E$2:$E$92068,LOWER('Analysis - 1v1'!Z$72),'1v1'!$F$2:$F$92068,'Analysis - 1v1'!$Z$71,'1v1'!$Q$2:$Q$92068,'Analysis - 1v1'!$A87) -> 0 | AA87: =COUNTIFS('1v1'!$E$2:$E$92068,LOWER('Analysis - 1v1'!AA$72),'1v1'!$F$2:$F$92068,'Analysis - 1v1'!$Z$71,'1v1'!$Q$2:$Q$92068,'Analysis - 1v1'!$A87) -> 0 | AB87: =COUNTIFS('1v1'!$E$2:$E$92068,LOWER('Analysis - 1v1'!AB$72),'1v1'!$F$2:$F$92068,'Analysis - 1v1'!$Z$71,'1v1'!$Q$2:$Q$92068,'Analysis - 1v1'!$A87) -> 0 | AC87: =COUNTIFS('1v1'!$E$2:$E$92068,LOWER('Analysis - 1v1'!AC$72),'1v1'!$F$2:$F$92068,'Analysis - 1v1'!$Z$71,'1v1'!$Q$2:$Q$92068,'Analysis - 1v1'!$A87) -> 0
A88: 16 | B88: =COUNTIFS('1v1'!$E$2:$E$92068,LOWER('Analysis - 1v1'!B$72),'1v1'!$F$2:$F$92068,'Analysis - 1v1'!$B$71,'1v1'!$Q$2:$Q$92068,'Analysis - 1v1'!$A88) -> 0 | C88: =COUNTIFS('1v1'!$E$2:$E$92068,LOWER('Analysis - 1v1'!C$72),'1v1'!$F$2:$F$92068,'Analysis - 1v1'!$B$71,'1v1'!$Q$2:$Q$92068,'Analysis - 1v1'!$A88) -> 0 | D88: =COUNTIFS('1v1'!$E$2:$E$92068,LOWER('Analysis - 1v1'!D$72),'1v1'!$F$2:$F$92068,'Analysis - 1v1'!$B$71,'1v1'!$Q$2:$Q$92068,'Analysis - 1v1'!$A88) -> 0 | E88: =COUNTIFS('1v1'!$E$2:$E$92068,LOWER('Analysis - 1v1'!E$72),'1v1'!$F$2:$F$92068,'Analysis - 1v1'!$B$71,'1v1'!$Q$2:$Q$92068,'Analysis - 1v1'!$A88) -> 0 | F88: =COUNTIFS('1v1'!$E$2:$E$92068,LOWER('Analysis - 1v1'!F$72),'1v1'!$F$2:$F$92068,'Analysis - 1v1'!$F$71,'1v1'!$Q$2:$Q$92068,'Analysis - 1v1'!$A88) -> 0 | G88: =COUNTIFS('1v1'!$E$2:$E$92068,LOWER('Analysis - 1v1'!G$72),'1v1'!$F$2:$F$92068,'Analysis - 1v1'!$F$71,'1v1'!$Q$2:$Q$92068,'Analysis - 1v1'!$A88) -> 0 | H88: =COUNTIFS('1v1'!$E$2:$E$92068,LOWER('Analysis - 1v1'!H$72),'1v1'!$F$2:$F$92068,'Analysis - 1v1'!$F$71,'1v1'!$Q$2:$Q$92068,'Analysis - 1v1'!$A88) -> 0 | I88: =COUNTIFS('1v1'!$E$2:$E$92068,LOWER('Analysis - 1v1'!I$72),'1v1'!$F$2:$F$92068,'Analysis - 1v1'!$F$71,'1v1'!$Q$2:$Q$92068,'Analysis - 1v1'!$A88) -> 0 | J88: =COUNTIFS('1v1'!$E$2:$E$92068,LOWER('Analysis - 1v1'!J$72),'1v1'!$F$2:$F$92068,'Analysis - 1v1'!$J$71,'1v1'!$Q$2:$Q$92068,'Analysis - 1v1'!$A88) -> 0 | K88: =COUNTIFS('1v1'!$E$2:$E$92068,LOWER('Analysis - 1v1'!K$72),'1v1'!$F$2:$F$92068,'Analysis - 1v1'!$J$71,'1v1'!$Q$2:$Q$92068,'Analysis - 1v1'!$A88) -> 0 | L88: =COUNTIFS('1v1'!$E$2:$E$92068,LOWER('Analysis - 1v1'!L$72),'1v1'!$F$2:$F$92068,'Analysis - 1v1'!$J$71,'1v1'!$Q$2:$Q$92068,'Analysis - 1v1'!$A88) -> 0 | M88: =COUNTIFS('1v1'!$E$2:$E$92068,LOWER('Analysis - 1v1'!M$72),'1v1'!$F$2:$F$92068,'Analysis - 1v1'!$J$71,'1v1'!$Q$2:$Q$92068,'Analysis - 1v1'!$A88) -> 0 | N88: =COUNTIFS('1v1'!$E$2:$E$92068,LOWER('Analysis - 1v1'!N$72),'1v1'!$F$2:$F$92068,'Analysis - 1v1'!$N$71,'1v1'!$Q$2:$Q$92068,'Analysis - 1v1'!$A88) -> 0 | O88: =COUNTIFS('1v1'!$E$2:$E$92068,LOWER('Analysis - 1v1'!O$72),'1v1'!$F$2:$F$92068,'Analysis - 1v1'!$N$71,'1v1'!$Q$2:$Q$92068,'Analysis - 1v1'!$A88) -> 0 | P88: =COUNTIFS('1v1'!$E$2:$E$92068,LOWER('Analysis - 1v1'!P$72),'1v1'!$F$2:$F$92068,'Analysis - 1v1'!$N$71,'1v1'!$Q$2:$Q$92068,'Analysis - 1v1'!$A88) -> 0 | Q88: =COUNTIFS('1v1'!$E$2:$E$92068,LOWER('Analysis - 1v1'!Q$72),'1v1'!$F$2:$F$92068,'Analysis - 1v1'!$N$71,'1v1'!$Q$2:$Q$92068,'Analysis - 1v1'!$A88) -> 0 | R88: =COUNTIFS('1v1'!$E$2:$E$92068,LOWER('Analysis - 1v1'!R$72),'1v1'!$F$2:$F$92068,'Analysis - 1v1'!$R$71,'1v1'!$Q$2:$Q$92068,'Analysis - 1v1'!$A88) -> 0 | S88: =COUNTIFS('1v1'!$E$2:$E$92068,LOWER('Analysis - 1v1'!S$72),'1v1'!$F$2:$F$92068,'Analysis - 1v1'!$R$71,'1v1'!$Q$2:$Q$92068,'Analysis - 1v1'!$A88) -> 0 | T88: =COUNTIFS('1v1'!$E$2:$E$92068,LOWER('Analysis - 1v1'!T$72),'1v1'!$F$2:$F$92068,'Analysis - 1v1'!$R$71,'1v1'!$Q$2:$Q$92068,'Analysis - 1v1'!$A88) -> 0 | U88: =COUNTIFS('1v1'!$E$2:$E$92068,LOWER('Analysis - 1v1'!U$72),'1v1'!$F$2:$F$92068,'Analysis - 1v1'!$R$71,'1v1'!$Q$2:$Q$92068,'Analysis - 1v1'!$A88) -> 0 | V88: =COUNTIFS('1v1'!$E$2:$E$92068,LOWER('Analysis - 1v1'!V$72),'1v1'!$F$2:$F$92068,'Analysis - 1v1'!$V$71,'1v1'!$Q$2:$Q$92068,'Analysis - 1v1'!$A88) -> 0 | W88: =COUNTIFS('1v1'!$E$2:$E$92068,LOWER('Analysis - 1v1'!W$72),'1v1'!$F$2:$F$92068,'Analysis - 1v1'!$V$71,'1v1'!$Q$2:$Q$92068,'Analysis - 1v1'!$A88) -> 0 | X88: =COUNTIFS('1v1'!$E$2:$E$92068,LOWER('Analysis - 1v1'!X$72),'1v1'!$F$2:$F$92068,'Analysis - 1v1'!$V$71,'1v1'!$Q$2:$Q$92068,'Analysis - 1v1'!$A88) -> 0 | Y88: =COUNTIFS('1v1'!$E$2:$E$92068,LOWER('Analysis - 1v1'!Y$72),'1v1'!$F$2:$F$92068,'Analysis - 1v1'!$V$71,'1v1'!$Q$2:$Q$92068,'Analysis - 1v1'!$A88) -> 0 | Z88: =COUNTIFS('1v1'!$E$2:$E$92068,LOWER('Analysis - 1v1'!Z$72),'1v1'!$F$2:$F$92068,'Analysis - 1v1'!$Z$71,'1v1'!$Q$2:$Q$92068,'Analysis - 1v1'!$A88) -> 0 | AA88: =COUNTIFS('1v1'!$E$2:$E$92068,LOWER('Analysis - 1v1'!AA$72),'1v1'!$F$2:$F$92068,'Analysis - 1v1'!$Z$71,'1v1'!$Q$2:$Q$92068,'Analysis - 1v1'!$A88) -> 0 | AB88: =COUNTIFS('1v1'!$E$2:$E$92068,LOWER('Analysis - 1v1'!AB$72),'1v1'!$F$2:$F$92068,'Analysis - 1v1'!$Z$71,'1v1'!$Q$2:$Q$92068,'Analysis - 1v1'!$A88) -> 0 | AC88: =COUNTIFS('1v1'!$E$2:$E$92068,LOWER('Analysis - 1v1'!AC$72),'1v1'!$F$2:$F$92068,'Analysis - 1v1'!$Z$71,'1v1'!$Q$2:$Q$92068,'Analysis - 1v1'!$A88) -> 0
A89: 17 | B89: =COUNTIFS('1v1'!$E$2:$E$92068,LOWER('Analysis - 1v1'!B$72),'1v1'!$F$2:$F$92068,'Analysis - 1v1'!$B$71,'1v1'!$Q$2:$Q$92068,'Analysis - 1v1'!$A89) -> 0 | C89: =COUNTIFS('1v1'!$E$2:$E$92068,LOWER('Analysis - 1v1'!C$72),'1v1'!$F$2:$F$92068,'Analysis - 1v1'!$B$71,'1v1'!$Q$2:$Q$92068,'Analysis - 1v1'!$A89) -> 0 | D89: =COUNTIFS('1v1'!$E$2:$E$92068,LOWER('Analysis - 1v1'!D$72),'1v1'!$F$2:$F$92068,'Analysis - 1v1'!$B$71,'1v1'!$Q$2:$Q$92068,'Analysis - 1v1'!$A89) -> 0 | E89: =COUNTIFS('1v1'!$E$2:$E$92068,LOWER('Analysis - 1v1'!E$72),'1v1'!$F$2:$F$92068,'Analysis - 1v1'!$B$71,'1v1'!$Q$2:$Q$92068,'Analysis - 1v1'!$A89) -> 0 | F89: =COUNTIFS('1v1'!$E$2:$E$92068,LOWER('Analysis - 1v1'!F$72),'1v1'!$F$2:$F$92068,'Analysis - 1v1'!$F$71,'1v1'!$Q$2:$Q$92068,'Analysis - 1v1'!$A89) -> 0 | G89: =COUNTIFS('1v1'!$E$2:$E$92068,LOWER('Analysis - 1v1'!G$72),'1v1'!$F$2:$F$92068,'Analysis - 1v1'!$F$71,'1v1'!$Q$2:$Q$92068,'Analysis - 1v1'!$A89) -> 0 | H89: =COUNTIFS('1v1'!$E$2:$E$92068,LOWER('Analysis - 1v1'!H$72),'1v1'!$F$2:$F$92068,'Analysis - 1v1'!$F$71,'1v1'!$Q$2:$Q$92068,'Analysis - 1v1'!$A89) -> 0 | I89: =COUNTIFS('1v1'!$E$2:$E$92068,LOWER('Analysis - 1v1'!I$72),'1v1'!$F$2:$F$92068,'Analysis - 1v1'!$F$71,'1v1'!$Q$2:$Q$92068,'Analysis - 1v1'!$A89) -> 0 | J89: =COUNTIFS('1v1'!$E$2:$E$92068,LOWER('Analysis - 1v1'!J$72),'1v1'!$F$2:$F$92068,'Analysis - 1v1'!$J$71,'1v1'!$Q$2:$Q$92068,'Analysis - 1v1'!$A89) -> 0 | K89: =COUNTIFS('1v1'!$E$2:$E$92068,LOWER('Analysis - 1v1'!K$72),'1v1'!$F$2:$F$92068,'Analysis - 1v1'!$J$71,'1v1'!$Q$2:$Q$92068,'Analysis - 1v1'!$A89) -> 0 | L89: =COUNTIFS('1v1'!$E$2:$E$92068,LOWER('Analysis - 1v1'!L$72),'1v1'!$F$2:$F$92068,'Analysis - 1v1'!$J$71,'1v1'!$Q$2:$Q$92068,'Analysis - 1v1'!$A89) -> 0 | M89: =COUNTIFS('1v1'!$E$2:$E$92068,LOWER('Analysis - 1v1'!M$72),'1v1'!$F$2:$F$92068,'Analysis - 1v1'!$J$71,'1v1'!$Q$2:$Q$92068,'Analysis - 1v1'!$A89) -> 0 | N89: =COUNTIFS('1v1'!$E$2:$E$92068,LOWER('Analysis - 1v1'!N$72),'1v1'!$F$2:$F$92068,'Analysis - 1v1'!$N$71,'1v1'!$Q$2:$Q$92068,'Analysis - 1v1'!$A89) -> 0 | O89: =COUNTIFS('1v1'!$E$2:$E$92068,LOWER('Analysis - 1v1'!O$72),'1v1'!$F$2:$F$92068,'Analysis - 1v1'!$N$71,'1v1'!$Q$2:$Q$92068,'Analysis - 1v1'!$A89) -> 0 | P89: =COUNTIFS('1v1'!$E$2:$E$92068,LOWER('Analysis - 1v1'!P$72),'1v1'!$F$2:$F$92068,'Analysis - 1v1'!$N$71,'1v1'!$Q$2:$Q$92068,'Analysis - 1v1'!$A89) -> 0 | Q89: =COUNTIFS('1v1'!$E$2:$E$92068,LOWER('Analysis - 1v1'!Q$72),'1v1'!$F$2:$F$92068,'Analysis - 1v1'!$N$71,'1v1'!$Q$2:$Q$92068,'Analysis - 1v1'!$A89) -> 0 | R89: =COUNTIFS('1v1'!$E$2:$E$92068,LOWER('Analysis - 1v1'!R$72),'1v1'!$F$2:$F$92068,'Analysis - 1v1'!$R$71,'1v1'!$Q$2:$Q$92068,'Analysis - 1v1'!$A89) -> 0 | S89: =COUNTIFS('1v1'!$E$2:$E$92068,LOWER('Analysis - 1v1'!S$72),'1v1'!$F$2:$F$92068,'Analysis - 1v1'!$R$71,'1v1'!$Q$2:$Q$92068,'Analysis - 1v1'!$A89) -> 0 | T89: =COUNTIFS('1v1'!$E$2:$E$92068,LOWER('Analysis - 1v1'!T$72),'1v1'!$F$2:$F$92068,'Analysis - 1v1'!$R$71,'1v1'!$Q$2:$Q$92068,'Analysis - 1v1'!$A89) -> 0 | U89: =COUNTIFS('1v1'!$E$2:$E$92068,LOWER('Analysis - 1v1'!U$72),'1v1'!$F$2:$F$92068,'Analysis - 1v1'!$R$71,'1v1'!$Q$2:$Q$92068,'Analysis - 1v1'!$A89) -> 0 | V89: =COUNTIFS('1v1'!$E$2:$E$92068,LOWER('Analysis - 1v1'!V$72),'1v1'!$F$2:$F$92068,'Analysis - 1v1'!$V$71,'1v1'!$Q$2:$Q$92068,'Analysis - 1v1'!$A89) -> 0 | W89: =COUNTIFS('1v1'!$E$2:$E$92068,LOWER('Analysis - 1v1'!W$72),'1v1'!$F$2:$F$92068,'Analysis - 1v1'!$V$71,'1v1'!$Q$2:$Q$92068,'Analysis - 1v1'!$A89) -> 0 | X89: =COUNTIFS('1v1'!$E$2:$E$92068,LOWER('Analysis - 1v1'!X$72),'1v1'!$F$2:$F$92068,'Analysis - 1v1'!$V$71,'1v1'!$Q$2:$Q$92068,'Analysis - 1v1'!$A89) -> 0 | Y89: =COUNTIFS('1v1'!$E$2:$E$92068,LOWER('Analysis - 1v1'!Y$72),'1v1'!$F$2:$F$92068,'Analysis - 1v1'!$V$71,'1v1'!$Q$2:$Q$92068,'Analysis - 1v1'!$A89) -> 0 | Z89: =COUNTIFS('1v1'!$E$2:$E$92068,LOWER('Analysis - 1v1'!Z$72),'1v1'!$F$2:$F$92068,'Analysis - 1v1'!$Z$71,'1v1'!$Q$2:$Q$92068,'Analysis - 1v1'!$A89) -> 0 | AA89: =COUNTIFS('1v1'!$E$2:$E$92068,LOWER('Analysis - 1v1'!AA$72),'1v1'!$F$2:$F$92068,'Analysis - 1v1'!$Z$71,'1v1'!$Q$2:$Q$92068,'Analysis - 1v1'!$A89) -> 0 | AB89: =COUNTIFS('1v1'!$E$2:$E$92068,LOWER('Analysis - 1v1'!AB$72),'1v1'!$F$2:$F$92068,'Analysis - 1v1'!$Z$71,'1v1'!$Q$2:$Q$92068,'Analysis - 1v1'!$A89) -> 0 | AC89: =COUNTIFS('1v1'!$E$2:$E$92068,LOWER('Analysis - 1v1'!AC$72),'1v1'!$F$2:$F$92068,'Analysis - 1v1'!$Z$71,'1v1'!$Q$2:$Q$92068,'Analysis - 1v1'!$A89) -> 0
A90: 18 | B90: =COUNTIFS('1v1'!$E$2:$E$92068,LOWER('Analysis - 1v1'!B$72),'1v1'!$F$2:$F$92068,'Analysis - 1v1'!$B$71,'1v1'!$Q$2:$Q$92068,'Analysis - 1v1'!$A90) -> 0 | C90: =COUNTIFS('1v1'!$E$2:$E$92068,LOWER('Analysis - 1v1'!C$72),'1v1'!$F$2:$F$92068,'Analysis - 1v1'!$B$71,'1v1'!$Q$2:$Q$92068,'Analysis - 1v1'!$A90) -> 0 | D90: =COUNTIFS('1v1'!$E$2:$E$92068,LOWER('Analysis - 1v1'!D$72),'1v1'!$F$2:$F$92068,'Analysis - 1v1'!$B$71,'1v1'!$Q$2:$Q$92068,'Analysis - 1v1'!$A90) -> 0 | E90: =COUNTIFS('1v1'!$E$2:$E$92068,LOWER('Analysis - 1v1'!E$72),'1v1'!$F$2:$F$92068,'Analysis - 1v1'!$B$71,'1v1'!$Q$2:$Q$92068,'Analysis - 1v1'!$A90) -> 0 | F90: =COUNTIFS('1v1'!$E$2:$E$92068,LOWER('Analysis - 1v1'!F$72),'1v1'!$F$2:$F$92068,'Analysis - 1v1'!$F$71,'1v1'!$Q$2:$Q$92068,'Analysis - 1v1'!$A90) -> 0 | G90: =COUNTIFS('1v1'!$E$2:$E$92068,LOWER('Analysis - 1v1'!G$72),'1v1'!$F$2:$F$92068,'Analysis - 1v1'!$F$71,'1v1'!$Q$2:$Q$92068,'Analysis - 1v1'!$A90) -> 0 | H90: =COUNTIFS('1v1'!$E$2:$E$92068,LOWER('Analysis - 1v1'!H$72),'1v1'!$F$2:$F$92068,'Analysis - 1v1'!$F$71,'1v1'!$Q$2:$Q$92068,'Analysis - 1v1'!$A90) -> 0 | I90: =COUNTIFS('1v1'!$E$2:$E$92068,LOWER('Analysis - 1v1'!I$72),'1v1'!$F$2:$F$92068,'Analysis - 1v1'!$F$71,'1v1'!$Q$2:$Q$92068,'Analysis - 1v1'!$A90) -> 0 | J90: =COUNTIFS('1v1'!$E$2:$E$92068,LOWER('Analysis - 1v1'!J$72),'1v1'!$F$2:$F$92068,'Analysis - 1v1'!$J$71,'1v1'!$Q$2:$Q$92068,'Analysis - 1v1'!$A90) -> 0 | K90: =COUNTIFS('1v1'!$E$2:$E$92068,LOWER('Analysis - 1v1'!K$72),'1v1'!$F$2:$F$92068,'Analysis - 1v1'!$J$71,'1v1'!$Q$2:$Q$92068,'Analysis - 1v1'!$A90) -> 0 | L90: =COUNTIFS('1v1'!$E$2:$E$92068,LOWER('Analysis - 1v1'!L$72),'1v1'!$F$2:$F$92068,'Analysis - 1v1'!$J$71,'1v1'!$Q$2:$Q$92068,'Analysis - 1v1'!$A90) -> 0 | M90: =COUNTIFS('1v1'!$E$2:$E$92068,LOWER('Analysis - 1v1'!M$72),'1v1'!$F$2:$F$92068,'Analysis - 1v1'!$J$71,'1v1'!$Q$2:$Q$92068,'Analysis - 1v1'!$A90) -> 0 | N90: =COUNTIFS('1v1'!$E$2:$E$92068,LOWER('Analysis - 1v1'!N$72),'1v1'!$F$2:$F$92068,'Analysis - 1v1'!$N$71,'1v1'!$Q$2:$Q$92068,'Analysis - 1v1'!$A90) -> 0 | O90: =COUNTIFS('1v1'!$E$2:$E$92068,LOWER('Analysis - 1v1'!O$72),'1v1'!$F$2:$F$92068,'Analysis - 1v1'!$N$71,'1v1'!$Q$2:$Q$92068,'Analysis - 1v1'!$A90) -> 0 | P90: =COUNTIFS('1v1'!$E$2:$E$92068,LOWER('Analysis - 1v1'!P$72),'1v1'!$F$2:$F$92068,'Analysis - 1v1'!$N$71,'1v1'!$Q$2:$Q$92068,'Analysis - 1v1'!$A90) -> 0 | Q90: =COUNTIFS('1v1'!$E$2:$E$92068,LOWER('Analysis - 1v1'!Q$72),'1v1'!$F$2:$F$92068,'Analysis - 1v1'!$N$71,'1v1'!$Q$2:$Q$92068,'Analysis - 1v1'!$A90) -> 0 | R90: =COUNTIFS('1v1'!$E$2:$E$92068,LOWER('Analysis - 1v1'!R$72),'1v1'!$F$2:$F$92068,'Analysis - 1v1'!$R$71,'1v1'!$Q$2:$Q$92068,'Analysis - 1v1'!$A90) -> 0 | S90: =COUNTIFS('1v1'!$E$2:$E$92068,LOWER('Analysis - 1v1'!S$72),'1v1'!$F$2:$F$92068,'Analysis - 1v1'!$R$71,'1v1'!$Q$2:$Q$92068,'Analysis - 1v1'!$A90) -> 0 | T90: =COUNTIFS('1v1'!$E$2:$E$92068,LOWER('Analysis - 1v1'!T$72),'1v1'!$F$2:$F$92068,'Analysis - 1v1'!$R$71,'1v1'!$Q$2:$Q$92068,'Analysis - 1v1'!$A90) -> 0 | U90: =COUNTIFS('1v1'!$E$2:$E$92068,LOWER('Analysis - 1v1'!U$72),'1v1'!$F$2:$F$92068,'Analysis - 1v1'!$R$71,'1v1'!$Q$2:$Q$92068,'Analysis - 1v1'!$A90) -> 0 | V90: =COUNTIFS('1v1'!$E$2:$E$92068,LOWER('Analysis - 1v1'!V$72),'1v1'!$F$2:$F$92068,'Analysis - 1v1'!$V$71,'1v1'!$Q$2:$Q$92068,'Analysis - 1v1'!$A90) -> 0 | W90: =COUNTIFS('1v1'!$E$2:$E$92068,LOWER('Analysis - 1v1'!W$72),'1v1'!$F$2:$F$92068,'Analysis - 1v1'!$V$71,'1v1'!$Q$2:$Q$92068,'Analysis - 1v1'!$A90) -> 0 | X90: =COUNTIFS('1v1'!$E$2:$E$92068,LOWER('Analysis - 1v1'!X$72),'1v1'!$F$2:$F$92068,'Analysis - 1v1'!$V$71,'1v1'!$Q$2:$Q$92068,'Analysis - 1v1'!$A90) -> 0 | Y90: =COUNTIFS('1v1'!$E$2:$E$92068,LOWER('Analysis - 1v1'!Y$72),'1v1'!$F$2:$F$92068,'Analysis - 1v1'!$V$71,'1v1'!$Q$2:$Q$92068,'Analysis - 1v1'!$A90) -> 0 | Z90: =COUNTIFS('1v1'!$E$2:$E$92068,LOWER('Analysis - 1v1'!Z$72),'1v1'!$F$2:$F$92068,'Analysis - 1v1'!$Z$71,'1v1'!$Q$2:$Q$92068,'Analysis - 1v1'!$A90) -> 0 | AA90: =COUNTIFS('1v1'!$E$2:$E$92068,LOWER('Analysis - 1v1'!AA$72),'1v1'!$F$2:$F$92068,'Analysis - 1v1'!$Z$71,'1v1'!$Q$2:$Q$92068,'Analysis - 1v1'!$A90) -> 0 | AB90: =COUNTIFS('1v1'!$E$2:$E$92068,LOWER('Analysis - 1v1'!AB$72),'1v1'!$F$2:$F$92068,'Analysis - 1v1'!$Z$71,'1v1'!$Q$2:$Q$92068,'Analysis - 1v1'!$A90) -> 0 | AC90: =COUNTIFS('1v1'!$E$2:$E$92068,LOWER('Analysis - 1v1'!AC$72),'1v1'!$F$2:$F$92068,'Analysis - 1v1'!$Z$71,'1v1'!$Q$2:$Q$92068,'Analysis - 1v1'!$A90) -> 0
A91: 19 | B91: =COUNTIFS('1v1'!$E$2:$E$92068,LOWER('Analysis - 1v1'!B$72),'1v1'!$F$2:$F$92068,'Analysis - 1v1'!$B$71,'1v1'!$Q$2:$Q$92068,'Analysis - 1v1'!$A91) -> 0 | C91: =COUNTIFS('1v1'!$E$2:$E$92068,LOWER('Analysis - 1v1'!C$72),'1v1'!$F$2:$F$92068,'Analysis - 1v1'!$B$71,'1v1'!$Q$2:$Q$92068,'Analysis - 1v1'!$A91) -> 0 | D91: =COUNTIFS('1v1'!$E$2:$E$92068,LOWER('Analysis - 1v1'!D$72),'1v1'!$F$2:$F$92068,'Analysis - 1v1'!$B$71,'1v1'!$Q$2:$Q$92068,'Analysis - 1v1'!$A91) -> 0 | E91: =COUNTIFS('1v1'!$E$2:$E$92068,LOWER('Analysis - 1v1'!E$72),'1v1'!$F$2:$F$92068,'Analysis - 1v1'!$B$71,'1v1'!$Q$2:$Q$92068,'Analysis - 1v1'!$A91) -> 0 | F91: =COUNTIFS('1v1'!$E$2:$E$92068,LOWER('Analysis - 1v1'!F$72),'1v1'!$F$2:$F$92068,'Analysis - 1v1'!$F$71,'1v1'!$Q$2:$Q$92068,'Analysis - 1v1'!$A91) -> 0 | G91: =COUNTIFS('1v1'!$E$2:$E$92068,LOWER('Analysis - 1v1'!G$72),'1v1'!$F$2:$F$92068,'Analysis - 1v1'!$F$71,'1v1'!$Q$2:$Q$92068,'Analysis - 1v1'!$A91) -> 0 | H91: =COUNTIFS('1v1'!$E$2:$E$92068,LOWER('Analysis - 1v1'!H$72),'1v1'!$F$2:$F$92068,'Analysis - 1v1'!$F$71,'1v1'!$Q$2:$Q$92068,'Analysis - 1v1'!$A91) -> 0 | I91: =COUNTIFS('1v1'!$E$2:$E$92068,LOWER('Analysis - 1v1'!I$72),'1v1'!$F$2:$F$92068,'Analysis - 1v1'!$F$71,'1v1'!$Q$2:$Q$92068,'Analysis - 1v1'!$A91) -> 0 | J91: =COUNTIFS('1v1'!$E$2:$E$92068,LOWER('Analysis - 1v1'!J$72),'1v1'!$F$2:$F$92068,'Analysis - 1v1'!$J$71,'1v1'!$Q$2:$Q$92068,'Analysis - 1v1'!$A91) -> 0 | K91: =COUNTIFS('1v1'!$E$2:$E$92068,LOWER('Analysis - 1v1'!K$72),'1v1'!$F$2:$F$92068,'Analysis - 1v1'!$J$71,'1v1'!$Q$2:$Q$92068,'Analysis - 1v1'!$A91) -> 0 | L91: =COUNTIFS('1v1'!$E$2:$E$92068,LOWER('Analysis - 1v1'!L$72),'1v1'!$F$2:$F$92068,'Analysis - 1v1'!$J$71,'1v1'!$Q$2:$Q$92068,'Analysis - 1v1'!$A91) -> 0 | M91: =COUNTIFS('1v1'!$E$2:$E$92068,LOWER('Analysis - 1v1'!M$72),'1v1'!$F$2:$F$92068,'Analysis - 1v1'!$J$71,'1v1'!$Q$2:$Q$92068,'Analysis - 1v1'!$A91) -> 0 | N91: =COUNTIFS('1v1'!$E$2:$E$92068,LOWER('Analysis - 1v1'!N$72),'1v1'!$F$2:$F$92068,'Analysis - 1v1'!$N$71,'1v1'!$Q$2:$Q$92068,'Analysis - 1v1'!$A91) -> 0 | O91: =COUNTIFS('1v1'!$E$2:$E$92068,LOWER('Analysis - 1v1'!O$72),'1v1'!$F$2:$F$92068,'Analysis - 1v1'!$N$71,'1v1'!$Q$2:$Q$92068,'Analysis - 1v1'!$A91) -> 0 | P91: =COUNTIFS('1v1'!$E$2:$E$92068,LOWER('Analysis - 1v1'!P$72),'1v1'!$F$2:$F$92068,'Analysis - 1v1'!$N$71,'1v1'!$Q$2:$Q$92068,'Analysis - 1v1'!$A91) -> 0 | Q91: =COUNTIFS('1v1'!$E$2:$E$92068,LOWER('Analysis - 1v1'!Q$72),'1v1'!$F$2:$F$92068,'Analysis - 1v1'!$N$71,'1v1'!$Q$2:$Q$92068,'Analysis - 1v1'!$A91) -> 0 | R91: =COUNTIFS('1v1'!$E$2:$E$92068,LOWER('Analysis - 1v1'!R$72),'1v1'!$F$2:$F$92068,'Analysis - 1v1'!$R$71,'1v1'!$Q$2:$Q$92068,'Analysis - 1v1'!$A91) -> 0 | S91: =COUNTIFS('1v1'!$E$2:$E$92068,LOWER('Analysis - 1v1'!S$72),'1v1'!$F$2:$F$92068,'Analysis - 1v1'!$R$71,'1v1'!$Q$2:$Q$92068,'Analysis - 1v1'!$A91) -> 0 | T91: =COUNTIFS('1v1'!$E$2:$E$92068,LOWER('Analysis - 1v1'!T$72),'1v1'!$F$2:$F$92068,'Analysis - 1v1'!$R$71,'1v1'!$Q$2:$Q$92068,'Analysis - 1v1'!$A91) -> 0 | U91: =COUNTIFS('1v1'!$E$2:$E$92068,LOWER('Analysis - 1v1'!U$72),'1v1'!$F$2:$F$92068,'Analysis - 1v1'!$R$71,'1v1'!$Q$2:$Q$92068,'Analysis - 1v1'!$A91) -> 0 | V91: =COUNTIFS('1v1'!$E$2:$E$92068,LOWER('Analysis - 1v1'!V$72),'1v1'!$F$2:$F$92068,'Analysis - 1v1'!$V$71,'1v1'!$Q$2:$Q$92068,'Analysis - 1v1'!$A91) -> 0 | W91: =COUNTIFS('1v1'!$E$2:$E$92068,LOWER('Analysis - 1v1'!W$72),'1v1'!$F$2:$F$92068,'Analysis - 1v1'!$V$71,'1v1'!$Q$2:$Q$92068,'Analysis - 1v1'!$A91) -> 0 | X91: =COUNTIFS('1v1'!$E$2:$E$92068,LOWER('Analysis - 1v1'!X$72),'1v1'!$F$2:$F$92068,'Analysis - 1v1'!$V$71,'1v1'!$Q$2:$Q$92068,'Analysis - 1v1'!$A91) -> 0 | Y91: =COUNTIFS('1v1'!$E$2:$E$92068,LOWER('Analysis - 1v1'!Y$72),'1v1'!$F$2:$F$92068,'Analysis - 1v1'!$V$71,'1v1'!$Q$2:$Q$92068,'Analysis - 1v1'!$A91) -> 0 | Z91: =COUNTIFS('1v1'!$E$2:$E$92068,LOWER('Analysis - 1v1'!Z$72),'1v1'!$F$2:$F$92068,'Analysis - 1v1'!$Z$71,'1v1'!$Q$2:$Q$92068,'Analysis - 1v1'!$A91) -> 0 | AA91: =COUNTIFS('1v1'!$E$2:$E$92068,LOWER('Analysis - 1v1'!AA$72),'1v1'!$F$2:$F$92068,'Analysis - 1v1'!$Z$71,'1v1'!$Q$2:$Q$92068,'Analysis - 1v1'!$A91) -> 0 | AB91: =COUNTIFS('1v1'!$E$2:$E$92068,LOWER('Analysis - 1v1'!AB$72),'1v1'!$F$2:$F$92068,'Analysis - 1v1'!$Z$71,'1v1'!$Q$2:$Q$92068,'Analysis - 1v1'!$A91) -> 0 | AC91: =COUNTIFS('1v1'!$E$2:$E$92068,LOWER('Analysis - 1v1'!AC$72),'1v1'!$F$2:$F$92068,'Analysis - 1v1'!$Z$71,'1v1'!$Q$2:$Q$92068,'Analysis - 1v1'!$A91) -> 0
A92: Totals | B92: =SUM(B73:B83) -> 1515 | C92: =SUM(C73:C83) -> 2502 | D92: 1985 | E92: 733 | F92: 6413 | G92: 7931 | H92: 7313 | I92: 3040 | J92: 11253 | K92: 9987 | L92: 9562 | M92: 4090 | N92: 5209 | O92: 4083 | P92: 3727 | Q92: 1285 | R92: 3504 | S92: 2967 | T92: 2656 | U92: 586 | V92: 558 | W92: 465 | X92: 454 | Y92: 50 | Z92: 68 | AA92: 58 | AB92: 72 | AC92: 1 | AD92: =SUM(AD73:AD83) -> 28520 | AE92: 27993 | AF92: 25769 | AG92: 9785
A96: Percentages Race Stats
B97: Bronze | F97: Silver | J97: Gold | N97: Platinum | R97: Diamond | V97: Master | Z97: Grandmaster | AD97: Totals
A98: Weeks Remaining | B98: Z | C98: T | D98: P | E98: R | F98: Z | G98: T | H98: P | I98: R | J98: Z | K98: T | L98: P | M98: R | N98: Z | O98: T | P98: P | Q98: R | R98: Z | S98: T | T98: P | U98: R | V98: Z | W98: T | X98: P | Y98: R | Z98: Z | AA98: T | AB98: P | AC98: R | AD98: Z | AE98: T | AF98: P | AG98: R
A99: 1 | B99: =B73/$B25 -> 0.1343283582 | C99: 0.4869402985 | D99: 0.2611940299 | E99: 0.1175373134 | F99: =F73/$C25 -> 0.2105263158 | G99: 0.4005134788 | H99: 0.2747111682 | I99: 0.1142490372 | J99: =J73/$D25 -> 0.2936323795 | K99: 0.3294663573 | L99: 0.2652745553 | M99: 0.1116267079 | N99: =N73/$E25 -> 0.3602326427 | O99: 0.3180661578 | P99: 0.2453653217 | Q99: 0.07633587786 | R99: =R73/$F25 -> 0.3599558336 | S99: 0.3264630107 | T99: 0.2690467427 | U99: 0.04453441296 | V99: =V73/$G25 -> 0.4106583072 | W99: 0.2789968652 | X99: 0.2821316614 | Y99: 0.02821316614 | Z99: =Z73/$H25 -> 0.3417085427 | AA99: 0.2914572864 | AB99: =AB73/$H25 -> 0.3618090452 | AC99: =AC73/$H25 -> 0.005025125628 | AD99: =AD73/$I25 -> 0.3169051878 | AE99: 0.3363148479 | AF99: 0.2639534884 | AG99: 0.08282647585
A100: 2 | B100: 0.2222222222 | C100: 0.4222222222 | D100: 0.2388888889 | E100: 0.1166666667 | F100: 0.2230769231 | G100: 0.3923076923 | H100: 0.258974359 | I100: 0.1256410256 | J100: 0.3071348941 | K100: 0.3049052397 | L100: 0.2770345596 | M100: 0.1109253066 | N100: 0.3458646617 | O100: 0.2990810359 | P100: 0.2531328321 | Q100: 0.1019214703 | R100: 0.3635486982 | S100: 0.3259402122 | T100: 0.2507232401 | U100: 0.05978784957 | V100: 0.3643410853 | W100: 0.3100775194 | X100: 0.3178294574 | Y100: 0.007751937984 | AB100: =AH74/$H26 ->  | AD100: 0.3207108102 | AE100: 0.3198646076 | AF100: 0.2633805796 | AG100: 0.09604400254
A101: 3 | B101: 0.197044335 | C101: 0.4482758621 | D101: 0.2660098522 | E101: 0.08866995074 | F101: 0.2355289421 | G101: 0.3652694611 | H101: 0.2654690619 | I101: 0.1337325349 | J101: 0.3233267717 | K101: 0.3051181102 | L101: 0.2460629921 | M101: 0.125492126 | N101: 0.3953687822 | O101: 0.2864493997 | P101: 0.243567753 | Q101: 0.07461406518 | R101: 0.3947655398 | S101: 0.2933478735 | T101: 0.2551799346 | U101: 0.05670665213 | V101: 0.3521126761 | W101: 0.2887323944 | X101: 0.338028169 | Y101: 0.02112676056 | AD101: 0.3402539811 | AE101: 0.3100181415 | AF101: 0.2525700464 | AG101: 0.09715783108
A102: 4 | B102: 0.1958333333 | C102: 0.4291666667 | D102: 0.2916666667 | E102: 0.08333333333 | F102: 0.2052023121 | G102: 0.3728323699 | H102: 0.3078034682 | I102: 0.1141618497 | J102: 0.3251396648 | K102: 0.2960893855 | L102: 0.260707635 | M102: 0.1180633147 | N102: 0.3743513714 | O102: 0.2898443291 | P102: 0.2357301705 | Q102: 0.100074129 | R102: 0.367983368 | S102: 0.2817047817 | T102: 0.2972972973 | U102: 0.05301455301 | V102: 0.3647058824 | W102: 0.2823529412 | X102: 0.3235294118 | Y102: 0.02941176471 | AD102: 0.3251885864 | AE102: 0.3060019679 | AF102: 0.2692686127 | AG102: 0.09954083306
A103: 5 | B103: 0.1832884097 | C103: 0.4043126685 | D103: 0.2938005391 | E103: 0.1185983827 | F103: 0.2323144105 | G103: 0.3344978166 | H103: 0.3336244541 | I103: 0.09956331878 | J103: 0.3441741357 | K103: 0.2693982074 | L103: 0.2691421255 | M103: 0.1172855314 | N103: 0.391223733 | O103: 0.2645241038 | P103: 0.2645241038 | Q103: 0.07972805933 | R103: 0.3304812834 | S103: 0.3101604278 | T103: 0.3005347594 | U103: 0.05882352941 | V103: 0.3088235294 | W103: 0.3480392157 | X103: 0.3284313725 | Y103: 0.01470588235 | AD103: 0.328075324 | AE103: 0.2902910247 | AF103: 0.2834433847 | AG103: 0.09819026657
A104: 6 | B104: 0.2292307692 | C104: 0.3769230769 | D104: 0.3 | E104: 0.09384615385 | F104: 0.2575362858 | G104: 0.3360625233 | H104: 0.291775214 | I104: 0.1146259769 | J104: 0.3248207885 | K104: 0.2752389486 | L104: 0.2815113501 | M104: 0.1184289128 | N104: 0.3685863874 | O104: 0.2717277487 | P104: 0.2717277487 | Q104: 0.08795811518 | R104: 0.3672367237 | S104: 0.295229523 | T104: 0.2781278128 | U104: 0.05940594059 | V104: 0.375 | W104: 0.3229166667 | X104: 0.2760416667 | Y104: 0.02604166667 | AD104: 0.3170768534 | AE104: 0.2944285067 | AF104: 0.2827268609 | AG104: 0.105767779
A105: 7 | B105: 0.241273326 | C105: 0.3459934138 | D105: 0.3016465423 | E105: 0.1110867179 | F105: 0.2671999135 | G105: 0.310165919 | H105: 0.2964924607 | I105: 0.1261417068 | J105: 0.3247248399 | K105: 0.2771023667 | L105: 0.2805553557 | M105: 0.1176174376 | N105: 0.3480176211 | O105: 0.2731277533 | P105: 0.2782286112 | Q105: 0.1006260144 | R105: 0.3520157325 | S105: 0.2871189774 | T105: 0.2728613569 | U105: 0.08800393314 | V105: 0.358490566 | W105: 0.307277628 | X105: 0.269541779 | Y105: 0.06469002695 | AD105: 0.2955102228 | AE105: 0.2986239897 | AF105: 0.2888247819 | AG105: 0.1170410056
A106: 8
A107: 9
A108: 10
A109: 11
A110: =A109+1 -> 12
A111: =A110+1 -> 13
A112: 14
A113: 15
A114: 16
A115: 17
A116: 18
A117: 19
A122: Most Recent Games
B123: Bronze | D123: Silver | F123: Gold | H123: Platinum | J123: Diamond | L123: Master | N123: Grandmaster | P123: Totals
A124: Weeks Remaining | B124: Last Week | C124: Last Month | D124: Last Week | E124: Last Month | F124: Last Week | G124: Last Month | H124: Last Week | I124: Last Month | J124: Last Week | K124: Last Month | L124: Last Week | M124: Last Month | N124: Last Week | O124: Last Month | P124: Last Week | Q124: Last Month
A125: 1 | B125: 536 | D125: 777 | E125: 2 | F125: 3872 | G125: 7 | H125: 2750 | I125: 1 | J125: 2717 | L125: 319 | N125: 199 | P125: =B125+D125+F125+H125+J125+L125+N125 -> 11170 | Q125: =C125+E125+G125+I125+K125+M125+O125 -> 10
A126: 2 | B126: 149 | C126: 31 | D126: 294 | E126: 96 | F126: 1367 | G126: 427 | H126: 812 | I126: 385 | J126: 687 | K126: 350 | L126: 99 | M126: 30 | P126: =B126+D126+F126+H126+J126+L126+N126 -> 3408 | Q126: 1319
A127: 3 | B127: 122 | C127: 81 | D127: 327 | E127: 174 | F127: 1269 | G127: 763 | H127: 639 | I127: 527 | J127: 474 | K127: 443 | L127: 83 | M127: 59 | P127: 2914 | Q127: 2047
A128: 4 | B128: 120 | C128: 120 | D128: 432 | E128: 260 | F128: 1470 | G128: 1215 | H128: 642 | I128: 706 | J128: 438 | K128: 524 | L128: 95 | M128: 75 | P128: 3197 | Q128: 2900
A129: 5 | B129: 167 | C129: 185 | D129: 548 | E129: 563 | F129: 1828 | G129: 1898 | H129: 633 | I129: 865 | J129: 359 | K129: 492 | L129: 98 | M129: 102 | P129: 3633 | Q129: 4105
A130: 6 | B130: 270 | C130: 255 | D130: 1126 | E130: 1192 | F130: 2604 | G130: 3075 | H130: 585 | I130: 894 | J130: 324 | K130: 516 | L130: 73 | M130: 76 | P130: 4982 | Q130: 6008
A131: 7 | B131: 1031 | C131: 2015 | D131: 4395 | E131: 8959 | F131: 3398 | G131: 6439 | H131: 993 | I131: 1843 | J131: 406 | K131: 762 | L131: 73 | M131: 159 | P131: 10296 | Q131: 20177
A132: 8 | P132: 0 | Q132: 0
A133: 9 | P133: 0 | Q133: 0
A134: 10 | P134: 0 | Q134: 0
A135: 11 | P135: 0 | Q135: 0
A136: 12
A137: 13
A138: 14
A139: 15
A140: 16
A141: 17
A142: 18
A143: 19
A144: Totals | B144: =SUM(B125:B135) -> 2395 | C144: =SUM(C125:C135) -> 2687 | D144: 7899 | E144: 11246 | F144: 15808 | G144: 13824 | H144: 7054 | I144: 5221 | J144: 5405 | K144: 3087 | L144: 840 | M144: 501 | N144: 199 | O144: 0 | P144: 39600 | Q144: 36566
A145: At least 1 game in the last month | B145: =SUM(B144:C144) -> 5082 | D145: =SUM(D144:E144) -> 19145 | F145: =SUM(F144:G144) -> 29632 | H145: =SUM(H144:I144) -> 12275 | J145: =SUM(J144:K144) -> 8492 | L145: =SUM(L144:M144) -> 1341 | N145: =SUM(N144:O144) -> 199 | P145: =SUM(P144:Q144) -> 76166
A149: Percentages - Most Recent Games
B150: Bronze | D150: Silver | F150: Gold | H150: Platinum | J150: Diamond | L150: Master | N150: Grandmaster | P150: Totals
A151: Weeks Remaining | B151: Last Week | C151: Last Month | D151: Last Week | E151: Last Month | F151: Last Week | G151: Last Month | H151: Last Week | I151: Last Month | J151: Last Week | K151: Last Month | L151: Last Week | M151: Last Month | N151: Last Week | O151: Last Month | P151: Last Week | Q151: Last Month
A152: 1 | B152: =B125/$I25 -> 0.04794275492 | C152: 0 | D152: 0.06949910555 | E152: 0.0001788908766 | F152: 0.346332737 | G152: 0.000626118068 | H152: 0.2459749553 | I152: 8.944543828e-05 | J152: 0.2430232558 | K152: 0 | L152: 0.02853309481 | M152: 0 | N152: 0.01779964222 | O152: 0 | P152: 0.9991055456 | Q152: 0.0008944543828
A153: 2 | B153: =B126/$I26 -> 0.03152104929 | C153: 0.006558070658 | D153: 0.06219589592 | E153: 0.02030886397 | F153: 0.2891897609 | G153: 0.09033213455 | H153: 0.1717791411 | I153: 0.08144700656 | J153: 0.1453353078 | K153: 0.07404273323 | L153: 0.02094351597 | M153: 0.006346519992 | N153: 0 | O153: 0 | P153: 0.720964671 | Q153: 0.279035329
A154: 3 | B154: =B127/$I27 -> 0.02459181617 | C154: 0.01632735336 | D154: 0.06591413022 | E154: 0.03507357388 | F154: 0.2557952026 | G154: 0.1537996372 | H154: 0.1288046765 | I154: 0.1062285829 | J154: 0.09554525297 | K154: 0.0892965128 | L154: 0.01673049788 | M154: 0.01189276356 | N154: 0 | O154: 0 | P154: 0.5873815763 | Q154: 0.4126184237
A155: 4 | B155: =B128/$I28 -> 0.01967858314 | C155: 0.01967858314 | D155: 0.07084289931 | E155: 0.04263693014 | F155: 0.2410626435 | G155: 0.1992456543 | H155: 0.1052804198 | I155: 0.1157756642 | J155: 0.07182682847 | K155: 0.08592981305 | L155: 0.01557887832 | M155: 0.01229911446 | N155: 0 | O155: 0 | P155: 0.5242702525 | Q155: 0.4755657593
A156: 5 | B156: =B129/$I29 -> 0.02042064074 | C156: 0.02262166789 | D156: 0.06700904867 | E156: 0.06884323796 | F156: 0.2235265346 | G156: 0.2320860846 | H156: 0.07740278797 | I156: 0.1057715823 | J156: 0.04389826363 | K156: 0.06016140866 | L156: 0.01198337002 | M156: 0.01247248716 | N156: 0 | O156: 0 | P156: 0.4442406456 | Q156: 0.5019564686
A157: 6 | B157: =B130/$I30 -> 0.020383512 | C157: 0.01925109467 | D157: 0.0850067945 | E157: 0.08998943077 | F157: 0.1965876491 | G157: 0.2321455534 | H157: 0.04416427601 | I157: 0.06749207308 | J157: 0.0244602144 | K157: 0.03895515627 | L157: 0.00551109769 | M157: 0.005737581157 | N157: 0 | O157: 0 | P157: 0.3761135437 | Q157: 0.4535708893
A158: 7 | B158: =B131/$I31 -> 0.02360510108 | C158: 0.04613412093 | D158: 0.1006250429 | E158: 0.2051193992 | F158: 0.07779838359 | G158: 0.1474231289 | H158: 0.02273507796 | I158: 0.04219612153 | J158: 0.009295510223 | K158: 0.01744625318 | L158: 0.001671360212 | M158: 0.003640359915 | N158: 0 | O158: 0 | P158: 0.235730476 | Q158: 0.4619593837
A159: 8 | B159: =B132/$I32 -> 
A160: 9 | B160: =B133/$I33 -> 
A161: 10 | B161: =B134/$I34 -> 
A162: 11 | B162: =B135/$I35 -> 
A163: 12
A164: 13
A165: 14
A166: 15
A167: 16
A168: 17
A169: 18
A170: 19
A171: Totals | B171: =B144/$I44 -> 0.02601366396 | C171: 0.02918526725 | D171: 0.08579621363 | E171: 0.1221501732 | F171: 0.1717010438 | G171: 0.1501515201 | H171: 0.07661811507 | I171: 0.05670870127 | J171: 0.05870724581 | K171: 0.03352992929 | L171: 0.009123790283 | M171: 0.005441689205 | N171: 0.002161469365 | O171: 0 | P171: 0.4301215419 | Q171: 0.3971672804
A172: Percentage in the Last Month | B172: =SUM(B171:C171) -> 0.05519893121 | D172: =SUM(D171:E171) -> 0.2079463869 | F172: =SUM(F171:G171) -> 0.3218525639 | H172: =SUM(H171:I171) -> 0.1333268163 | J172: =SUM(J171:K171) -> 0.0922371751 | L172: =SUM(L171:M171) -> 0.01456547949 | N172: =SUM(N171:O171) -> 0.002161469365 | P172: =SUM(P171:Q171) -> 0.8272888223
A173: Percentage out of the specific league, in the last week | B173: =B144/B44 -> 0.3556050483 | D173: =D144/C44 -> 0.3198364174 | F173: =F144/D44 -> 0.4530551416 | H173: =H144/E44 -> 0.4931487696 | J173: =I144/F44 -> 0.5375270256 | L173: =L144/G44 -> 0.5500982318 | N173: =N144/H44 -> 1
A174: Percentage out of the specific league, in the last month | B174: =B145/B44 -> 0.7545657016 | D174: =D145/C44 -> 0.7751953679 | F174: =F145/D44 -> 0.8492491115 | H174: =H145/E44 -> 0.858151566 | J174: =J145/F44 -> 0.8742921857 | L174: =L145/G44 -> 0.8781925344 | N174: =N145/H44 -> 1
A176: Inactive Player Analysis (Max bonus pool weeks remaining that have not played a game in the last month) | B176: Bronze | C176: Silver | D176: Gold | E176: Platinum | F176: Diamond | G176: Master | H176: Totals
A177: Total Players | B177: =AVERAGEIFS('1v1'!$S$2:$S$92068,'1v1'!$F$2:$F$92068,'Analysis - 1v1'!B176,'1v1'!$Q$2:$Q$92068,MAX('1v1'!$Q$2:$Q$92068)) -> 4.230515917 | C177: =AVERAGEIFS('1v1'!$S$2:$S$92068,'1v1'!$F$2:$F$92068,'Analysis - 1v1'!C176,'1v1'!$Q$2:$Q$92068,MAX('1v1'!$Q$2:$Q$92068)) -> 4.07447441 | D177: =AVERAGEIFS('1v1'!$S$2:$S$92068,'1v1'!$F$2:$F$92068,'Analysis - 1v1'!D176,'1v1'!$Q$2:$Q$92068,MAX('1v1'!$Q$2:$Q$92068)) -> 5.094022013 | E177: =AVERAGEIFS('1v1'!$S$2:$S$92068,'1v1'!$F$2:$F$92068,'Analysis - 1v1'!E176,'1v1'!$Q$2:$Q$92068,MAX('1v1'!$Q$2:$Q$92068)) -> 5.390911199 | F177: =AVERAGEIFS('1v1'!$S$2:$S$92068,'1v1'!$F$2:$F$92068,'Analysis - 1v1'!F176,'1v1'!$Q$2:$Q$92068,MAX('1v1'!$Q$2:$Q$92068)) -> 5.005408063 | G177: =AVERAGEIFS('1v1'!$S$2:$S$92068,'1v1'!$F$2:$F$92068,'Analysis - 1v1'!G176,'1v1'!$Q$2:$Q$92068,MAX('1v1'!$Q$2:$Q$92068)) -> 6.417789757 | H177: =AVERAGEIFS('1v1'!S2:S92068,'1v1'!Q2:Q92068,MAX('1v1'!Q2:Q92068)) -> 4.608489594

Sheet 1v1
A1: PlayerID, ServerID, SubServerID, PlayerName, Race, League, DivisionName, Wins, Losses, Score, BonusPool, JoinDate, LastGame, LastUpdate, TrueID (A+C), Duplicate Check (sort by TrueID - if O curr row = O prev row then mark as 1 and then sort by Duplicate Check and delete all 1's), Bonus Pool Weeks Remaining, Ordered ID (used to preserve ordering from nios.kr) | B1: ServerID | C1: SubServerID | D1: PlayerName | E1: Race | F1: League | G1: DivisionName | H1: Wins | I1: Losses | J1: Score | K1: BonusPool | L1: JoinDate | M1: LastGame | N1: LastUpdate | O1: TrueID (A+C) | P1: Duplicate Check (sort by TrueID - if O curr row = O prev row then mark as 1 and then sort by Duplicate Check and delete all 1's) | Q1: Bonus Pool Weeks Remaining | R1: Ordered ID (used to preserve ordering from nios.kr) | S1: Total Games Played
A2: 40872 | B2: us | C2: 2 | D2: HellBuster | E2: z | F2: Bronze | G2: Division Shuttle Zed | H2: 21 | I2: 24 | J2: 436 | K2: 714 | L2: 2014-07-07 | M2: 4 minutes | N2: 2014-08-22T23:11:28 | O2: 40872-2 | P2: 0 | Q2: 7 | R2: 1 | S2: =H2+I2 -> 45
A3: 3718311 | B3: us | C3: 1 | D3: RapelsFunny | E3: r | F3: Bronze | G3: Division Lenassa Mars | H3: 211 | I3: 214 | J3: 832 | K3: 397 | L3: 2014-07-15 | M3: 6 hours | N3: 2014-08-23T00:29:33 | O3: 3718311-1 | P3: 0 | Q3: 4 | R3: 2 | S3: =H3+I3 -> 425
A4: 4326313 | B4: us | C4: 1 | D4: Orkynn | E4: p | F4: Bronze | G4: Division Araq Pi | H4: 15 | I4: 20 | J4: 482 | K4: 677 | L4: 2014-08-17 | M4: 8 hours | N4: 2014-08-23T01:44:30 | O4: 4326313-1 | P4: 0 | Q4: 7 | R4: 3 | S4: 35
A5: 1477841 | B5: us | C5: 1 | D5: Knox | E5: r | F5: Bronze | G5: Division New Folsom X-Ray | H5: 2 | I5: 0 | J5: 89 | K5: 478 | L5: 2014-08-21 | M5: 2 days | N5: 2014-08-23T04:20:14 | O5: 1477841-1 | P5: 0 | Q5: 5 | R5: 4 | S5: 2
A6: 4830109 | B6: us | C6: 1 | D6: Daninchiwa | E6: t | F6: Bronze | G6: Division Gateway Kilo | H6: 2 | I6: 5 | J6: 30 | K6: 644 | L6: 2014-08-22 | M6: 47 minutes | N6: 2014-08-23T04:51:53 | O6: 4830109-1 | P6: 0 | Q6: 7 | R6: 5 | S6: 7
A7: 4151627 | B7: us | C7: 1 | D7: Chaox | E7: z | F7: Bronze | G7: Division Hanson Tango | H7: 9 | I7: 25 | J7: 260 | K7: 641 | L7: 2014-08-03 | M7: 8 days | N7: 2014-08-23T06:07:28 | O7: 4151627-1 | P7: 0 | Q7: 7 | R7: 6 | S7: 34
A8: 5896290 | B8: us | C8: 1 | D8: llllllllllll | E8: t | F8: Bronze | G8: Division Arbiter Gravity | H8: 7 | I8: 33 | J8: 222 | K8: 531 | L8: 2014-08-22 | M8: 1 minutes | N8: 2014-08-23T06:11:48 | O8: 5896290-1 | P8: 0 | Q8: 6 | R8: 7 | S8: 40
A9: 3758609 | B9: us | C9: 1 | D9: Xela | E9: p | F9: Bronze | G9: Division Jorgensen Indigo | H9: 6 | I9: 14 | J9: 182 | K9: 701 | L9: 2014-08-13 | M9: 23 hours | N9: 2014-08-23T06:17:16 | O9: 3758609-1 | P9: 0 | Q9: 7 | R9: 8 | S9: 20
A10: 4680723 | B10: us | C10: 1 | D10: HydraRoach | E10: z | F10: Bronze | G10: Division Victory Pepper | H10: 1 | I10: 0 | J10: 0 | K10: 720 | L10: 2014-08-23 | M10: 24 minutes | N10: 2014-08-23T08:42:21 | O10: 4680723-1 | P10: 0 | Q10: 7 | R10: 9 | S10: 1
A11: 5733069 | B11: us | C11: 1 | D11: ghostrider | E11: z | F11: Bronze | G11: Division Urun Quest | H11: 39 | I11: 24 | J11: 911 | K11: 12 | L11: 2014-07-27 | M11: 6 hours | N11: 2014-08-23T08:58:00 | O11: 5733069-1 | P11: 0 | Q11: 1 | R11: 10 | S11: 63
A12: 4237404 | B12: us | C12: 1 | D12: GNoby | E12: p | F12: Bronze | G12: Division Hanson Tango | H12: 217 | I12: 229 | J12: 906 | K12: 8 | L12: 2014-07-07 | M12: 10 minutes | N12: 2014-08-23T08:58:00 | O12: 4237404-1 | P12: 0 | Q12: 1 | R12: 11 | S12: 446
A13: 5004360 | B13: us | C13: 1 | D13: KARONTE | E13: t | F13: Bronze | G13: Division Hanson Tango | H13: 103 | I13: 107 | J13: 890 | K13: 9 | L13: 2014-07-07 | M13: 54 minutes | N13: 2014-08-23T08:58:01 | O13: 5004360-1 | P13: 0 | Q13: 1 | R13: 12 | S13: 210
A14: 2522486 | B14: us | C14: 1 | D14: BeeRed | E14: z | F14: Bronze | G14: Division Araq Pi | H14: 89 | I14: 78 | J14: 888 | K14: 5 | L14: 2014-07-13 | M14: 1 minutes | N14: 2014-08-23T08:58:01 | O14: 2522486-1 | P14: 0 | Q14: 1 | R14: 13 | S14: 167
A15: 2857888 | B15: us | C15: 1 | D15: JorgeEnrique | E15: t | F15: Bronze | G15: Division Lurker Lima | H15: 65 | I15: 65 | J15: 887 | K15: 21 | L15: 2014-07-08 | M15: 20 hours | N15: 2014-08-23T08:58:02 | O15: 2857888-1 | P15: 0 | Q15: 1 | R15: 14 | S15: 130
A16: 4091839 | B16: us | C16: 1 | D16: zachgang | E16: r | F16: Bronze | G16: Division Bhekar Ro Mu | H16: 51 | I16: 54 | J16: 886 | K16: 17 | L16: 2014-07-19 | M16: 10 hours | N16: 2014-08-23T08:58:02 | O16: 4091839-1 | P16: 0 | Q16: 1 | R16: 15 | S16: 105
A17: 5852083 | B17: us | C17: 1 | D17: orange | E17: z | F17: Bronze | G17: Division Lassatar Sierra | H17: 116 | I17: 120 | J17: 880 | K17: 0 | L17: 2014-07-21 | M17: 10 hours | N17: 2014-08-23T08:58:02 | O17: 5852083-1 | P17: 0 | Q17: 1 | R17: 16 | S17: 236
A18: 2515791 | B18: us | C18: 1 | D18: Gorgonoth | E18: p | F18: Bronze | G18: Division Hierarch Beta | H18: 43 | I18: 38 | J18: 877 | K18: 12 | L18: 2014-07-09 | M18: 6 hours | N18: 2014-08-23T08:58:03 | O18: 2515791-1 | P18: 0 | Q18: 1 | R18: 17 | S18: 81
A19: 4830260 | B19: us | C19: 1 | D19: SubtleSmoke | E19: p | F19: Bronze | G19: Division Umoja Psi | H19: 41 | I19: 34 | J19: 877 | K19: 5 | L19: 2014-07-13 | M19: 17 hours | N19: 2014-08-23T08:58:04 | O19: 4830260-1 | P19: 0 | Q19: 1 | R19: 18 | S19: 75
A20: 5845911 | B20: us | C20: 1 | D20: Athreos | E20: z | F20: Bronze | G20: Division Urun Quest | H20: 73 | I20: 60 | J20: 876 | K20: 684 | L20: 2014-07-19 | M20: 6 minutes | N20: 2014-08-23T08:58:04 | O20: 5845911-1 | P20: 0 | Q20: 7 | R20: 19 | S20: 133
A21: 5824670 | B21: us | C21: 1 | D21: ExplicitGerb | E21: t | F21: Bronze | G21: Division Victory Pepper | H21: 69 | I21: 49 | J21: 875 | K21: 5 | L21: 2014-07-28 | M21: 19 hours | N21: 2014-08-23T08:58:05 | O21: 5824670-1 | P21: 0 | Q21: 1 | R21: 20 | S21: 118
A22: 1177874 | B22: us | C22: 1 | D22: GHOST | E22: r | F22: Bronze | G22: Division Ulrezaj Tango | H22: 47 | I22: 46 | J22: 874 | K22: 17 | L22: 2014-08-02 | M22: 4 hours | N22: 2014-08-23T08:58:05 | O22: 1177874-1 | P22: 0 | Q22: 1 | R22: 21 | S22: 93
A23: 1842151 | B23: us | C23: 1 | D23: pXpollo | E23: t | F23: Bronze | G23: Division Reaper Iota | H23: 45 | I23: 50 | J23: 869 | K23: 12 | L23: 2014-07-08 | M23: 6 hours | N23: 2014-08-23T08:58:05 | O23: 1842151-1 | P23: 0 | Q23: 1 | R23: 22 | S23: 95
A24: 2239671 | B24: us | C24: 1 | D24: Jute | E24: r | F24: Bronze | G24: Division Tosh Omega | H24: 37 | I24: 32 | J24: 866 | K24: 45 | L24: 2014-08-06 | M24: 2 days | N24: 2014-08-23T08:58:06 | O24: 2239671-1 | P24: 0 | Q24: 1 | R24: 23 | S24: 69
A25: 1547402 | B25: us | C25: 1 | D25: ZeroHero | E25: t | F25: Bronze | G25: Division Vermillion Delta | H25: 54 | I25: 53 | J25: 865 | K25: 23 | L25: 2014-07-14 | M25: 23 hours | N25: 2014-08-23T08:58:06 | O25: 1547402-1 | P25: 0 | Q25: 1 | R25: 24 | S25: 107
A26: 2760136 | B26: us | C26: 1 | D26: OBWANCANABIZ | E26: t | F26: Bronze | G26: Division Pridewater Yankee | H26: 55 | I26: 53 | J26: 864 | K26: 7 | L26: 2014-07-07 | M26: 4 hours | N26: 2014-08-23T08:58:07 | O26: 2760136-1 | P26: 0 | Q26: 1 | R26: 25 | S26: 108
A27: 5851435 | B27: us | C27: 1 | D27: danstradamus | E27: p | F27: Bronze | G27: Division Banshee Kappa | H27: 36 | I27: 29 | J27: 862 | K27: 6 | L27: 2014-08-17 | M27: 20 hours | N27: 2014-08-23T08:58:07 | O27: 5851435-1 | P27: 0 | Q27: 1 | R27: 26 | S27: 65
A28: 4197428 | B28: us | C28: 1 | D28: redshift | E28: t | F28: Bronze | G28: Division New Folsom Rho | H28: 93 | I28: 95 | J28: 861 | K28: 12 | L28: 2014-07-07 | M28: 6 hours | N28: 2014-08-23T08:58:07 | O28: 4197428-1 | P28: 0 | Q28: 1 | R28: 27 | S28: 188
A29: 4880637 | B29: us | C29: 1 | D29: cera | E29: t | F29: Bronze | G29: Division Ramsey Xi | H29: 56 | I29: 54 | J29: 861 | K29: 2 | L29: 2014-07-19 | M29: 12 hours | N29: 2014-08-23T08:58:08 | O29: 4880637-1 | P29: 0 | Q29: 1 | R29: 28 | S29: 110
A30: 5608029 | B30: us | C30: 1 | D30: MasterPotato | E30: z | F30: Bronze | G30: Division Mutalisk Gravity | H30: 36 | I30: 32 | J30: 861 | K30: 5 | L30: 2014-07-07 | M30: 2 hours | N30: 2014-08-23T08:58:09 | O30: 5608029-1 | P30: 0 | Q30: 1 | R30: 29 | S30: 68
A31: 769826 | B31: us | C31: 2 | D31: NATHAN | E31: p | F31: Bronze | G31: Division Tassadar Lambda | H31: 45 | I31: 42 | J31: 860 | K31: 18 | L31: 2014-07-07 | M31: 1 hours | N31: 2014-08-23T08:58:09 | O31: 769826-2 | P31: 0 | Q31: 1 | R31: 30 | S31: 87
A32: 2032100 | B32: us | C32: 1 | D32: Jimmy | E32: p | F32: Bronze | G32: Division Bhekar Ro Mu | H32: 46 | I32: 54 | J32: 860 | K32: 7 | L32: 2014-08-06 | M32: 21 hours | N32: 2014-08-23T08:58:10 | O32: 2032100-1 | P32: 0 | Q32: 1 | R32: 31 | S32: 100
A33: 409829 | B33: us | C33: 2 | D33: Asimov | E33: t | F33: Bronze | G33: Division Hellion Tau | H33: 43 | I33: 45 | J33: 859 | K33: 7 | L33: 2014-07-20 | M33: 13 minutes | N33: 2014-08-23T08:58:10 | O33: 409829-2 | P33: 0 | Q33: 1 | R33: 32 | S33: 88
A34: 1546925 | B34: us | C34: 1 | D34: IMRELANYI | E34: t | F34: Bronze | G34: Division Hanson Tango | H34: 67 | I34: 66 | J34: 858 | K34: 35 | L34: 2014-07-08 | M34: 19 hours | N34: 2014-08-23T08:58:11 | O34: 1546925-1 | P34: 0 | Q34: 1 | R34: 33 | S34: 133
A35: 4154503 | B35: us | C35: 1 | D35: ForEx | E35: r | F35: Bronze | G35: Division Preserver Alamo | H35: 39 | I35: 36 | J35: 857 | K35: 8 | L35: 2014-08-02 | M35: 16 minutes | N35: 2014-08-23T08:58:11 | O35: 4154503-1 | P35: 0 | Q35: 1 | R35: 34 | S35: 75
A36: 5748601 | B36: us | C36: 1 | D36: tuck | E36: t | F36: Bronze | G36: Division Talematros Zeta | H36: 108 | I36: 95 | J36: 857 | K36: 4 | L36: 2014-07-08 | M36: 10 hours | N36: 2014-08-23T08:58:11 | O36: 5748601-1 | P36: 0 | Q36: 1 | R36: 35 | S36: 203
A37: 5873863 | B37: us | C37: 1 | D37: Gaktern | E37: t | F37: Bronze | G37: Division Samiku Eta | H37: 58 | I37: 63 | J37: 857 | K37: 0 | L37: 2014-07-25 | M37: 20 hours | N37: 2014-08-23T08:58:12 | O37: 5873863-1 | P37: 0 | Q37: 1 | R37: 36 | S37: 121
A38: 5548156 | B38: us | C38: 1 | D38: TitsMcGee | E38: t | F38: Bronze | G38: Division Tabrenus Omicron | H38: 54 | I38: 56 | J38: 856 | K38: 23 | L38: 2014-07-07 | M38: 23 hours | N38: 2014-08-23T08:58:12 | O38: 5548156-1 | P38: 0 | Q38: 1 | R38: 37 | S38: 110
A39: 1014012 | B39: us | C39: 1 | D39: Hieronymus | E39: t | F39: Bronze | G39: Division Fole Victor | H39: 82 | I39: 75 | J39: 852 | K39: 15 | L39: 2014-07-07 | M39: 3 hours | N39: 2014-08-23T08:58:13 | O39: 1014012-1 | P39: 0 | Q39: 1 | R39: 38 | S39: 157
A40: 5328497 | B40: us | C40: 1 | D40: Farouqio | E40: t | F40: Bronze | G40: Division Lassatar Sierra | H40: 51 | I40: 51 | J40: 852 | K40: 10 | L40: 2014-07-08 | M40: 2 hours | N40: 2014-08-23T08:58:13 | O40: 5328497-1 | P40: 0 | Q40: 1 | R40: 39 | S40: 102
A41: 301426 | B41: us | C41: 2 | D41: Rabugento | E41: r | F41: Bronze | G41: Division Hyperion November | H41: 53 | I41: 51 | J41: 851 | K41: 23 | L41: 2014-07-17 | M41: 1 days | N41: 2014-08-23T08:58:13 | O41: 301426-2 | P41: 0 | Q41: 1 | R41: 40 | S41: 104
A42: 5784155 | B42: us | C42: 1 | D42: Ceaser | E42: p | F42: Bronze | G42: Division Tabrenus Omicron | H42: 63 | I42: 68 | J42: 851 | K42: 10 | L42: 2014-07-30 | M42: 2 hours | N42: 2014-08-23T08:58:14 | O42: 5784155-1 | P42: 0 | Q42: 1 | R42: 41 | S42: 131
A43: 1461230 | B43: us | C43: 1 | D43: NoHopz | E43: z | F43: Bronze | G43: Division Lassatar Sierra | H43: 74 | I43: 72 | J43: 850 | K43: 10 | L43: 2014-07-08 | M43: 3 hours | N43: 2014-08-23T08:58:14 | O43: 1461230-1 | P43: 0 | Q43: 1 | R43: 42 | S43: 146
A44: 2105133 | B44: us | C44: 1 | D44: MrCasper | E44: p | F44: Bronze | G44: Division Ursa Alpha | H44: 52 | I44: 57 | J44: 850 | K44: 5 | L44: 2014-08-09 | M44: 16 hours | N44: 2014-08-23T08:58:15 | O44: 2105133-1 | P44: 0 | Q44: 1 | R44: 43 | S44: 109
A45: 2470973 | B45: us | C45: 1 | D45: Clark | E45: z | F45: Bronze | G45: Division Arcturus Phi | H45: 36 | I45: 23 | J45: 849 | K45: 17 | L45: 2014-07-09 | M45: 59 minutes | N45: 2014-08-23T08:58:15 | O45: 2470973-1 | P45: 0 | Q45: 1 | R45: 44 | S45: 59
A46: 5563722 | B46: us | C46: 1 | D46: appy | E46: t | F46: Bronze | G46: Division Broodling Kappa | H46: 43 | I46: 37 | J46: 849 | K46: 21 | L46: 2014-07-10 | M46: 21 hours | N46: 2014-08-23T08:58:16 | O46: 5563722-1 | P46: 0 | Q46: 1 | R46: 45 | S46: 80
A47: 5699648 | B47: us | C47: 1 | D47: morcegao | E47: t | F47: Bronze | G47: Division Firebat Upsilon | H47: 51 | I47: 37 | J47: 849 | K47: 10 | L47: 2014-07-10 | M47: 3 hours | N47: 2014-08-23T08:58:16 | O47: 5699648-1 | P47: 0 | Q47: 1 | R47: 46 | S47: 88
A48: 5611255 | B48: us | C48: 1 | D48: Mindsun | E48: p | F48: Bronze | G48: Division Lurker Lima | H48: 83 | I48: 86 | J48: 848 | K48: 0 | L48: 2014-07-08 | M48: 23 hours | N48: 2014-08-23T08:58:16 | O48: 5611255-1 | P48: 0 | Q48: 1 | R48: 47 | S48: 169
A49: 4858654 | B49: us | C49: 1 | D49: Rosea | E49: r | F49: Bronze | G49: Division Khaydarin Epsilon | H49: 256 | I49: 283 | J49: 846 | K49: 2 | L49: 2014-07-07 | M49: 40 minutes | N49: 2014-08-23T08:58:17 | O49: 4858654-1 | P49: 0 | Q49: 1 | R49: 48 | S49: 539
A50: 5203224 | B50: us | C50: 1 | D50: funsizek | E50: p | F50: Bronze | G50: Division Wraith Whiskey | H50: 173 | I50: 166 | J50: 846 | K50: 22 | L50: 2014-07-11 | M50: 23 hours | N50: 2014-08-23T08:58:17 | O50: 5203224-1 | P50: 0 | Q50: 1 | R50: 49 | S50: 339
A51: 767544 | B51: us | C51: 1 | D51: showoff | E51: r | F51: Bronze | G51: Division Pridewater Yankee | H51: 221 | I51: 226 | J51: 845 | K51: 17 | L51: 2014-08-01 | M51: 13 hours | N51: 2014-08-23T08:58:18 | O51: 767544-1 | P51: 0 | Q51: 1 | R51: 50 | S51: 447
A52: 2108804 | B52: us | C52: 1 | D52: ShadowSlave | E52: z | F52: Bronze | G52: Division Samiku Eta | H52: 77 | I52: 77 | J52: 845 | K52: 21 | L52: 2014-07-08 | M52: 20 hours | N52: 2014-08-23T08:58:18 | O52: 2108804-1 | P52: 0 | Q52: 1 | R52: 51 | S52: 154
A53: 208213 | B53: us | C53: 2 | D53: Alitogdl | E53: r | F53: Bronze | G53: Division Arcturus Phi | H53: 35 | I53: 26 | J53: 843 | K53: 28 | L53: 2014-07-08 | M53: 1 days | N53: 2014-08-23T08:58:19 | O53: 208213-2 | P53: 0 | Q53: 1 | R53: 52 | S53: 61
A54: 2551349 | B54: us | C54: 1 | D54: SteelToeBoot | E54: p | F54: Bronze | G54: Division Reaver Gamma | H54: 48 | I54: 47 | J54: 843 | K54: 35 | L54: 2014-07-13 | M54: 1 days | N54: 2014-08-23T08:58:19 | O54: 2551349-1 | P54: 0 | Q54: 1 | R54: 53 | S54: 95
A55: 5191872 | B55: us | C55: 1 | D55: Melloman | E55: t | F55: Bronze | G55: Division Braxis Uncle | H55: 55 | I55: 52 | J55: 841 | K55: 27 | L55: 2014-07-07 | M55: 23 hours | N55: 2014-08-23T08:58:20 | O55: 5191872-1 | P55: 0 | Q55: 1 | R55: 54 | S55: 107
A56: 4372172 | B56: us | C56: 1 | D56: jalo | E56: t | F56: Bronze | G56: Division Victory Pepper | H56: 60 | I56: 62 | J56: 840 | K56: 6 | L56: 2014-07-23 | M56: 5 hours | N56: 2014-08-23T08:58:20 | O56: 4372172-1 | P56: 0 | Q56: 1 | R56: 55 | S56: 122
A57: 2598882 | B57: us | C57: 1 | D57: undead | E57: t | F57: Bronze | G57: Division Tosh Omega | H57: 48 | I57: 55 | J57: 839 | K57: 8 | L57: 2014-07-15 | M57: 9 hours | N57: 2014-08-23T08:58:21 | O57: 2598882-1 | P57: 0 | Q57: 1 | R57: 56 | S57: 103
A58: 5883642 | B58: us | C58: 1 | D58: MoeTHM | E58: z | F58: Bronze | G58: Division Augustgrad Yankee | H58: 67 | I58: 67 | J58: 839 | K58: 6 | L58: 2014-08-12 | M58: 32 minutes | N58: 2014-08-23T08:58:21 | O58: 5883642-1 | P58: 0 | Q58: 1 | R58: 57 | S58: 134
A59: 308466 | B59: us | C59: 1 | D59: Whasagoo | E59: r | F59: Bronze | G59: Division Talematros Zeta | H59: 79 | I59: 84 | J59: 838 | K59: 7 | L59: 2014-07-08 | M59: 7 hours | N59: 2014-08-23T08:58:22 | O59: 308466-1 | P59: 0 | Q59: 1 | R59: 58 | S59: 163
A60: 3937020 | B60: us | C60: 1 | D60: nOObTropiK | E60: t | F60: Bronze | G60: Division Tabrenus Omicron | H60: 112 | I60: 112 | J60: 837 | K60: 9 | L60: 2014-07-07 | M60: 1 hours | N60: 2014-08-23T08:58:22 | O60: 3937020-1 | P60: 0 | Q60: 1 | R60: 59 | S60: 224
A61: 5094784 | B61: us | C61: 1 | D61: Jabskiler | E61: p | F61: Bronze | G61: Division Arcturus Phi | H61: 64 | I61: 69 | J61: 837 | K61: 8 | L61: 2014-07-09 | M61: 24 minutes | N61: 2014-08-23T08:58:22 | O61: 5094784-1 | P61: 0 | Q61: 1 | R61: 60 | S61: 133
A62: 5347098 | B62: us | C62: 1 | D62: LeoV | E62: t | F62: Bronze | G62: Division Umoja Psi | H62: 36 | I62: 39 | J62: 837 | K62: 7 | L62: 2014-08-03 | M62: 20 hours | N62: 2014-08-23T08:58:23 | O62: 5347098-1 | P62: 0 | Q62: 1 | R62: 61 | S62: 75
A63: 5702948 | B63: us | C63: 1 | D63: southernbrit | E63: z | F63: Bronze | G63: Division Jorgensen Indigo | H63: 35 | I63: 34 | J63: 836 | K63: 4 | L63: 2014-07-24 | M63: 17 hours | N63: 2014-08-23T08:58:23 | O63: 5702948-1 | P63: 0 | Q63: 1 | R63: 62 | S63: 69
A64: 5887812 | B64: us | C64: 1 | D64: Koba | E64: t | F64: Bronze | G64: Division Braxis Uncle | H64: 41 | I64: 40 | J64: 836 | K64: 36 | L64: 2014-07-30 | M64: 1 days | N64: 2014-08-23T08:58:24 | O64: 5887812-1 | P64: 0 | Q64: 1 | R64: 63 | S64: 81
A65: 2273151 | B65: us | C65: 1 | D65: MstSgtMac | E65: t | F65: Bronze | G65: Division Firebat Upsilon | H65: 45 | I65: 51 | J65: 835 | K65: 16 | L65: 2014-07-13 | M65: 20 hours | N65: 2014-08-23T08:58:24 | O65: 2273151-1 | P65: 0 | Q65: 1 | R65: 64 | S65: 96
A66: 3951773 | B66: us | C66: 1 | D66: Vergin | E66: p | F66: Bronze | G66: Division Brontes Epsilon | H66: 49 | I66: 53 | J66: 835 | K66: 8 | L66: 2014-07-27 | M66: 3 minutes | N66: 2014-08-23T08:58:24 | O66: 3951773-1 | P66: 0 | Q66: 1 | R66: 65 | S66: 102
A67: 592351 | B67: us | C67: 2 | D67: tdecahuach | E67: t | F67: Bronze | G67: Division Duran Nu | H67: 109 | I67: 107 | J67: 834 | K67: 7 | L67: 2014-07-08 | M67: 1 hours | N67: 2014-08-23T08:58:25 | O67: 592351-2 | P67: 0 | Q67: 1 | R67: 66 | S67: =H67+I67 -> 216
A68: 2626746 | B68: us | C68: 1 | D68: HanzCholo | E68: r | F68: Bronze | G68: Division Pridewater Yankee | H68: 121 | I68: 124 | J68: 834 | K68: 1 | L68: 2014-07-07 | M68: 23 hours | N68: 2014-08-23T08:58:25 | O68: 2626746-1 | P68: 0 | Q68: 1 | R68: 67 | S68: 245
A69: 3189016 | B69: us | C69: 1 | D69: Random | E69: t | F69: Bronze | G69: Division Hauler Sigma | H69: 34 | I69: 35 | J69: 834 | K69: 7 | L69: 2014-07-28 | M69: 8 hours | N69: 2014-08-23T08:58:26 | O69: 3189016-1 | P69: 0 | Q69: 1 | R69: 68 | S69: 69
A70: 2329135 | B70: us | C70: 1 | D70: Jibai | E70: t | F70: Bronze | G70: Division Mutalisk Gravity | H70: 99 | I70: 103 | J70: 833 | K70: 7 | L70: 2014-07-07 | M70: 10 hours | N70: 2014-08-23T08:58:26 | O70: 2329135-1 | P70: 0 | Q70: 1 | R70: 69 | S70: 202
A71: 3732102 | B71: us | C71: 1 | D71: takuo | E71: z | F71: Bronze | G71: Division Samiku Eta | H71: 39 | I71: 44 | J71: 833 | K71: 15 | L71: 2014-07-08 | M71: 11 hours | N71: 2014-08-23T08:58:26 | O71: 3732102-1 | P71: 0 | Q71: 1 | R71: 70 | S71: 83
A72: 5766568 | B72: us | C72: 1 | D72: Roman | E72: z | F72: Bronze | G72: Division Tassadar Lambda | H72: 66 | I72: 49 | J72: 833 | K72: 62 | L72: 2014-07-07 | M72: 1 days | N72: 2014-08-23T08:58:27 | O72: 5766568-1 | P72: 0 | Q72: 1 | R72: 71 | S72: 115
A73: 1151398 | B73: us | C73: 1 | D73: Jaco | E73: p | F73: Bronze | G73: Division Mutalisk Gravity | H73: 42 | I73: 39 | J73: 832 | K73: 12 | L73: 2014-07-07 | M73: 6 hours | N73: 2014-08-23T08:58:27 | O73: 1151398-1 | P73: 0 | Q73: 1 | R73: 72 | S73: 81
A74: 1164319 | B74: us | C74: 1 | D74: ThatOneGuy | E74: p | F74: Bronze | G74: Division Lurker Lima | H74: 48 | I74: 46 | J74: 832 | K74: 10 | L74: 2014-07-08 | M74: 3 hours | N74: 2014-08-23T08:58:28 | O74: 1164319-1 | P74: 0 | Q74: 1 | R74: 73 | S74: 94
A75: 862677 | B75: us | C75: 2 | D75: pabloeduardo | E75: t | F75: Bronze | G75: Division Koronis Xi | H75: 33 | I75: 31 | J75: 831 | K75: 10 | L75: 2014-08-17 | M75: 2 hours | N75: 2014-08-23T08:58:28 | O75: 862677-2 | P75: 0 | Q75: 1 | R75: 74 | S75: 64
A76: 4619515 | B76: us | C76: 1 | D76: Essence | E76: p | F76: Bronze | G76: Division Marine Victor | H76: 106 | I76: 106 | J76: 831 | K76: 20 | L76: 2014-07-28 | M76: 19 hours | N76: 2014-08-23T08:58:28 | O76: 4619515-1 | P76: 0 | Q76: 1 | R76: 75 | S76: 212
A77: 974358 | B77: us | C77: 1 | D77: Diqtus | E77: t | F77: Bronze | G77: Division Braxis Uncle | H77: 58 | I77: 66 | J77: 829 | K77: 0 | L77: 2014-07-07 | M77: 2 hours | N77: 2014-08-23T08:58:29 | O77: 974358-1 | P77: 0 | Q77: 1 | R77: 76 | S77: 124
A78: 2904955 | B78: us | C78: 1 | D78: SmokingZerg | E78: z | F78: Bronze | G78: Division Tabrenus Omicron | H78: 53 | I78: 43 | J78: 829 | K78: 27 | L78: 2014-07-07 | M78: 1 days | N78: 2014-08-23T08:58:29 | O78: 2904955-1 | P78: 0 | Q78: 1 | R78: 77 | S78: 96
A79: 3579634 | B79: us | C79: 1 | D79: papilo | E79: t | F79: Bronze | G79: Division Hydralisk Lambda | H79: 40 | I79: 42 | J79: 829 | K79: 25 | L79: 2014-08-08 | M79: 1 days | N79: 2014-08-23T08:58:30 | O79: 3579634-1 | P79: 0 | Q79: 1 | R79: 78 | S79: 82
A80: 4822225 | B80: us | C80: 1 | D80: Tell | E80: t | F80: Bronze | G80: Division Torrasque Juliet | H80: 145 | I80: 154 | J80: 826 | K80: 8 | L80: 2014-07-07 | M80: 3 minutes | N80: 2014-08-23T08:58:30 | O80: 4822225-1 | P80: 0 | Q80: 1 | R80: 79 | S80: 299
A81: 735479 | B81: us | C81: 2 | D81: nadla | E81: t | F81: Bronze | G81: Division Norad Theta | H81: 49 | I81: 42 | J81: 825 | K81: 98 | L81: 2014-07-08 | M81: 4 days | N81: 2014-08-23T08:58:30 | O81: 735479-2 | P81: 0 | Q81: 1 | R81: 80 | S81: 91
A82: 3799556 | B82: us | C82: 1 | D82: cniqqa | E82: t | F82: Bronze | G82: Division Broodling Kappa | H82: 31 | I82: 28 | J82: 824 | K82: 25 | L82: 2014-07-08 | M82: 22 hours | N82: 2014-08-23T08:58:31 | O82: 3799556-1 | P82: 0 | Q82: 1 | R82: 81 | S82: 59
A83: 4150527 | B83: us | C83: 1 | D83: Nopalitos | E83: z | F83: Bronze | G83: Division Lurker Lima | H83: 90 | I83: 95 | J83: 824 | K83: 22 | L83: 2014-07-08 | M83: 20 minutes | N83: 2014-08-23T08:58:31 | O83: 4150527-1 | P83: 0 | Q83: 1 | R83: 82 | S83: 185
A84: 5676460 | B84: us | C84: 1 | D84: Neradical | E84: p | F84: Bronze | G84: Division Umoja Psi | H84: 47 | I84: 57 | J84: 824 | K84: 21 | L84: 2014-07-18 | M84: 20 hours | N84: 2014-08-23T08:58:32 | O84: 5676460-1 | P84: 0 | Q84: 1 | R84: 83 | S84: 104
A85: 1334474 | B85: us | C85: 1 | D85: KHEME | E85: p | F85: Bronze | G85: Division Pridewater Yankee | H85: 42 | I85: 43 | J85: 823 | K85: 47 | L85: 2014-07-08 | M85: 1 hours | N85: 2014-08-23T08:58:32 | O85: 1334474-1 | P85: 0 | Q85: 1 | R85: 84 | S85: 85
A86: 835238 | B86: us | C86: 2 | D86: Infected | E86: t | F86: Bronze | G86: Division Preserver Alamo | H86: 35 | I86: 25 | J86: 821 | K86: 1 | L86: 2014-07-21 | M86: 4 hours | N86: 2014-08-23T08:58:32 | O86: 835238-2 | P86: 0 | Q86: 1 | R86: 85 | S86: 60
A87: 5154454 | B87: us | C87: 1 | D87: Soulfly | E87: t | F87: Bronze | G87: Division Scimitar X-Ray | H87: 121 | I87: 115 | J87: 821 | K87: 12 | L87: 2014-07-11 | M87: 6 hours | N87: 2014-08-23T08:58:33 | O87: 5154454-1 | P87: 0 | Q87: 1 | R87: 86 | S87: 236
A88: 5481756 | B88: us | C88: 1 | D88: zeepants | E88: z | F88: Bronze | G88: Division Kerrigan Mars | H88: 44 | I88: 35 | J88: 821 | K88: 34 | L88: 2014-07-09 | M88: 1 days | N88: 2014-08-23T08:58:33 | O88: 5481756-1 | P88: 0 | Q88: 1 | R88: 87 | S88: 79
A89: 1563636 | B89: us | C89: 1 | D89: chreessant | E89: t | F89: Bronze | G89: Division Broodling Kappa | H89: 57 | I89: 55 | J89: 820 | K89: 36 | L89: 2014-07-08 | M89: 1 days | N89: 2014-08-23T08:58:34 | O89: 1563636-1 | P89: 0 | Q89: 1 | R89: 88 | S89: 112
A90: 2380801 | B90: us | C90: 1 | D90: Jhamil | E90: p | F90: Bronze | G90: Division Zerus Oscar | H90: 33 | I90: 33 | J90: 820 | K90: 8 | L90: 2014-08-06 | M90: 1 hours | N90: 2014-08-23T08:58:34 | O90: 2380801-1 | P90: 0 | Q90: 1 | R90: 89 | S90: 66
A91: 5806993 | B91: us | C91: 1 | D91: Venatori | E91: z | F91: Bronze | G91: Division Arbiter Gravity | H91: 41 | I91: 23 | J91: 820 | K91: 119 | L91: 2014-07-31 | M91: 7 days | N91: 2014-08-23T08:58:35 | O91: 5806993-1 | P91: 0 | Q91: 2 | R91: 90 | S91: 64
A92: 835822 | B92: us | C92: 2 | D92: camaleonazul | E92: p | F92: Bronze | G92: Division Firebat Upsilon | H92: 32 | I92: 32 | J92: 819 | K92: 29 | L92: 2014-07-10 | M92: 1 days | N92: 2014-08-23T08:58:35 | O92: 835822-2 | P92: 0 | Q92: 1 | R92: 91 | S92: 64
A93: 1081510 | B93: us | C93: 1 | D93: Rolvag | E93: t | F93: Bronze | G93: Division Tabrenus Omicron | H93: 168 | I93: 182 | J93: 819 | K93: 11 | L93: 2014-07-07 | M93: 4 hours | N93: 2014-08-23T08:58:36 | O93: 1081510-1 | P93: 0 | Q93: 1 | R93: 92 | S93: 350
A94: 1753237 | B94: us | C94: 1 | D94: THROOPER | E94: t | F94: Bronze | G94: Division Fole Victor | H94: 84 | I94: 86 | J94: 819 | K94: 52 | L94: 2014-07-07 | M94: 1 days | N94: 2014-08-23T08:58:36 | O94: 1753237-1 | P94: 0 | Q94: 1 | R94: 93 | S94: 170
A95: 5500430 | B95: us | C95: 1 | D95: Munchi | E95: t | F95: Bronze | G95: Division Khaydarin Epsilon | H95: 82 | I95: 78 | J95: 819 | K95: 680 | L95: 2014-07-19 | M95: 1 hours | N95: 2014-08-23T08:58:36 | O95: 5500430-1 | P95: 0 | Q95: 7 | R95: 94 | S95: 160
A96: 5866519 | B96: us | C96: 1 | D96: Nastius | E96: z | F96: Bronze | G96: Division Colossus Hawk | H96: 82 | I96: 65 | J96: 818 | K96: 35 | L96: 2014-07-28 | M96: 2 hours | N96: 2014-08-23T08:58:37 | O96: 5866519-1 | P96: 0 | Q96: 1 | R96: 95 | S96: 147
A97: 1717940 | B97: us | C97: 1 | D97: Jager | E97: t | F97: Bronze | G97: Division Feld Charlie | H97: 46 | I97: 43 | J97: 817 | K97: 52 | L97: 2014-07-10 | M97: 2 days | N97: 2014-08-23T08:58:37 | O97: 1717940-1 | P97: 0 | Q97: 1 | R97: 96 | S97: 89
A98: 1746557 | B98: us | C98: 1 | D98: Fayehawk | E98: r | F98: Bronze | G98: Division Duran Nu | H98: 58 | I98: 63 | J98: 817 | K98: 6 | L98: 2014-07-08 | M98: 2 days | N98: 2014-08-23T08:58:38 | O98: 1746557-1 | P98: 0 | Q98: 1 | R98: 97 | S98: 121
A99: 3582488 | B99: us | C99: 1 | D99: Kerouac | E99: r | F99: Bronze | G99: Division Zerus Oscar | H99: 32 | I99: 36 | J99: 817 | K99: 10 | L99: 2014-08-07 | M99: 3 hours | N99: 2014-08-23T08:58:38 | O99: 3582488-1 | P99: 0 | Q99: 1 | R99: 98 | S99: 68
A100: 3625703 | B100: us | C100: 1 | D100: PLACENTAFACE | E100: t | F100: Bronze | G100: Division Pridewater Yankee | H100: 73 | I100: 81 | J100: 817 | K100: 38 | L100: 2014-07-07 | M100: 2 days | N100: 2014-08-23T08:58:39 | O100: 3625703-1 | P100: 0 | Q100: 1 | R100: 99 | S100: 154
A101: 4090240 | B101: us | C101: 1 | D101: general | E101: t | F101: Bronze | G101: Division Ramsey Xi | H101: 31 | I101: 33 | J101: 817 | K101: 54 | L101: 2014-07-07 | M101: 4 hours | N101: 2014-08-23T08:58:39 | O101: 4090240-1 | P101: 0 | Q101: 1 | R101: 100 | S101: 64
A102: 268678 | B102: us | C102: 1 | D102: Diego | E102: t | F102: Bronze | G102: Division Tassadar Lambda | H102: 46 | I102: 50 | J102: 816 | K102: 12 | L102: 2014-07-07 | M102: 1 hours | N102: 2014-08-23T08:58:40 | O102: 268678-1 | P102: 0 | Q102: 1 | R102: 101 | S102: 96
A103: 596238 | B103: us | C103: 2 | D103: Ppoloni | E103: p | F103: Bronze | G103: Division New Folsom Rho | H103: 68 | I103: 72 | J103: 816 | K103: 24 | L103: 2014-07-07 | M103: 1 days | N103: 2014-08-23T08:58:40 | O103: 596238-2 | P103: 0 | Q103: 1 | R103: 102 | S103: 140
A104: 1978089 | B104: us | C104: 1 | D104: MeanDrGonzo | E104: p | F104: Bronze | G104: Division Hyperion November | H104: 45 | I104: 41 | J104: 816 | K104: 2 | L104: 2014-07-17 | M104: 29 minutes | N104: 2014-08-23T08:58:41 | O104: 1978089-1 | P104: 0 | Q104: 1 | R104: 103 | S104: 86
A105: 5322927 | B105: us | C105: 1 | D105: Sonic | E105: t | F105: Bronze | G105: Division Hellion Tau | H105: 65 | I105: 78 | J105: 816 | K105: 11 | L105: 2014-07-18 | M105: 2 hours | N105: 2014-08-23T08:58:41 | O105: 5322927-1 | P105: 0 | Q105: 1 | R105: 104 | S105: 143
A106: 5765112 | B106: us | C106: 1 | D106: DrPorkchop | E106: p | F106: Bronze | G106: Division Torrasque Juliet | H106: 51 | I106: 34 | J106: 816 | K106: 53 | L106: 2014-07-08 | M106: 1 days | N106: 2014-08-23T08:58:42 | O106: 5765112-1 | P106: 0 | Q106: 1 | R106: 105 | S106: 85
A107: 5831526 | B107: us | C107: 1 | D107: CREATUS | E107: z | F107: Bronze | G107: Division Reaver Gamma | H107: 33 | I107: 33 | J107: 816 | K107: 5 | L107: 2014-07-25 | M107: 14 hours | N107: 2014-08-23T08:58:42 | O107: 5831526-1 | P107: 0 | Q107: 1 | R107: 106 | S107: 66
A108: 444445 | B108: us | C108: 1 | D108: Starman | E108: t | F108: Bronze | G108: Division Hanson Tango | H108: 43 | I108: 41 | J108: 815 | K108: 27 | L108: 2014-07-07 | M108: 1 days | N108: 2014-08-23T08:58:42 | O108: 444445-1 | P108: 0 | Q108: 1 | R108: 107 | S108: 84
A109: 2829738 | B109: us | C109: 1 | D109: DaComissar | E109: p | F109: Bronze | G109: Division Norad Theta | H109: 137 | I109: 142 | J109: 815 | K109: 8 | L109: 2014-07-08 | M109: 22 minutes | N109: 2014-08-23T08:58:43 | O109: 2829738-1 | P109: 0 | Q109: 1 | R109: 108 | S109: 279
A110: 3615361 | B110: us | C110: 1 | D110: BurnSoldier | E110: p | F110: Bronze | G110: Division Arcturus Phi | H110: 62 | I110: 63 | J110: 815 | K110: 43 | L110: 2014-07-09 | M110: 24 minutes | N110: 2014-08-23T08:58:43 | O110: 3615361-1 | P110: 0 | Q110: 1 | R110: 109 | S110: 125
A111: 4592134 | B111: us | C111: 1 | D111: DanielR | E111: r | F111: Bronze | G111: Division Hanson Tango | H111: 83 | I111: 86 | J111: 815 | K111: 9 | L111: 2014-07-07 | M111: 54 minutes | N111: 2014-08-23T08:58:44 | O111: 4592134-1 | P111: 0 | Q111: 1 | R111: 110 | S111: 169
A112: 459994 | B112: us | C112: 1 | D112: jerry | E112: r | F112: Bronze | G112: Division Reaper Iota | H112: 64 | I112: 69 | J112: 814 | K112: 13 | L112: 2014-07-08 | M112: 7 hours | N112: 2014-08-23T08:58:44 | O112: 459994-1 | P112: 0 | Q112: 1 | R112: 111 | S112: 133
A113: 619386 | B113: us | C113: 1 | D113: Xtngwishr | E113: t | F113: Bronze | G113: Division Ramsey Xi | H113: 40 | I113: 38 | J113: 814 | K113: 7 | L113: 2014-07-07 | M113: 2 minutes | N113: 2014-08-23T08:58:44 | O113: 619386-1 | P113: 0 | Q113: 1 | R113: 112 | S113: 78
A114: 3112235 | B114: us | C114: 1 | D114: Rekindle | E114: t | F114: Bronze | G114: Division Tabrenus Omicron | H114: 103 | I114: 106 | J114: 814 | K114: 1 | L114: 2014-07-07 | M114: 1 hours | N114: 2014-08-23T08:58:45 | O114: 3112235-1 | P114: 0 | Q114: 1 | R114: 113 | S114: 209
A115: 3872411 | B115: us | C115: 1 | D115: LeeJungHoon | E115: t | F115: Bronze | G115: Division Arcturus Phi | H115: 42 | I115: 37 | J115: 814 | K115: 24 | L115: 2014-08-16 | M115: 1 days | N115: 2014-08-23T08:58:45 | O115: 3872411-1 | P115: 0 | Q115: 1 | R115: 114 | S115: 79
A116: 5079077 | B116: us | C116: 1 | D116: rowc | E116: z | F116: Bronze | G116: Division Lassatar Sierra | H116: 143 | I116: 144 | J116: 814 | K116: 30 | L116: 2014-07-08 | M116: 13 minutes | N116: 2014-08-23T08:58:45 | O116: 5079077-1 | P116: 0 | Q116: 1 | R116: 115 | S116: 287
A117: 5677050 | B117: us | C117: 1 | D117: itzminyufoo | E117: t | F117: Bronze | G117: Division Hanson Tango | H117: 83 | I117: 95 | J117: 813 | K117: 10 | L117: 2014-07-07 | M117: 3 hours | N117: 2014-08-23T08:58:46 | O117: 5677050-1 | P117: 0 | Q117: 1 | R117: 116 | S117: 178
A118: 163006 | B118: us | C118: 2 | D118: LeBoss | E118: p | F118: Bronze | G118: Division Tabrenus Omicron | H118: 43 | I118: 57 | J118: 812 | K118: 1 | L118: 2014-07-07 | M118: 1 minutes | N118: 2014-08-23T08:58:46 | O118: 163006-2 | P118: 0 | Q118: 1 | R118: 117 | S118: 100
A119: 2426229 | B119: us | C119: 1 | D119: bukuman | E119: r | F119: Bronze | G119: Division New Folsom Rho | H119: 45 | I119: 56 | J119: 812 | K119: 8 | L119: 2014-07-25 | M119: 1 hours | N119: 2014-08-23T08:58:47 | O119: 2426229-1 | P119: 0 | Q119: 1 | R119: 118 | S119: 101
A120: 2544554 | B120: us | C120: 1 | D120: LunarFox | E120: t | F120: Bronze | G120: Division Araq Pi | H120: 95 | I120: 112 | J120: 811 | K120: 9 | L120: 2014-07-14 | M120: 2 hours | N120: 2014-08-23T08:58:47 | O120: 2544554-1 | P120: 0 | Q120: 1 | R120: 119 | S120: 207
A121: 5452160 | B121: us | C121: 1 | D121: Kwan | E121: z | F121: Bronze | G121: Division Vermillion Delta | H121: 62 | I121: 57 | J121: 811 | K121: 80 | L121: 2014-07-12 | M121: 1 days | N121: 2014-08-23T08:58:47 | O121: 5452160-1 | P121: 0 | Q121: 1 | R121: 120 | S121: 119
A122: 971300 | B122: us | C122: 1 | D122: RobOkhaN | E122: t | F122: Bronze | G122: Division Jorgensen Indigo | H122: 45 | I122: 45 | J122: 810 | K122: 2 | L122: 2014-07-10 | M122: 5 hours | N122: 2014-08-23T08:58:48 | O122: 971300-1 | P122: 0 | Q122: 1 | R122: 121 | S122: 90
A123: 4935388 | B123: us | C123: 1 | D123: buscador | E123: z | F123: Bronze | G123: Division Lassatar Sierra | H123: 138 | I123: 137 | J123: 810 | K123: 8 | L123: 2014-07-08 | M123: 40 minutes | N123: 2014-08-23T08:58:48 | O123: 4935388-1 | P123: 0 | Q123: 1 | R123: 122 | S123: 275
A124: 3390381 | B124: us | C124: 1 | D124: ThatOneGuy | E124: t | F124: Bronze | G124: Division New Folsom Rho | H124: 38 | I124: 35 | J124: 809 | K124: 11 | L124: 2014-07-07 | M124: 23 hours | N124: 2014-08-23T08:58:49 | O124: 3390381-1 | P124: 0 | Q124: 1 | R124: 123 | S124: 73
A125: 3782480 | B125: us | C125: 1 | D125: ClinchPick | E125: t | F125: Bronze | G125: Division Zekrath Omicron | H125: 41 | I125: 26 | J125: 809 | K125: 38 | L125: 2014-07-30 | M125: 1 days | N125: 2014-08-23T08:58:49 | O125: 3782480-1 | P125: 0 | Q125: 1 | R125: 124 | S125: 67
A126: 5845953 | B126: us | C126: 1 | D126: liberty | E126: t | F126: Bronze | G126: Division Hauler Sigma | H126: 71 | I126: 63 | J126: 809 | K126: 6 | L126: 2014-07-22 | M126: 1 hours | N126: 2014-08-23T08:58:49 | O126: 5845953-1 | P126: 0 | Q126: 1 | R126: 125 | S126: 134
A127: 1164759 | B127: us | C127: 1 | D127: StealthyChap | E127: t | F127: Bronze | G127: Division Pridewater Yankee | H127: 134 | I127: 143 | J127: 808 | K127: 9 | L127: 2014-07-07 | M127: 1 hours | N127: 2014-08-23T08:58:50 | O127: 1164759-1 | P127: 0 | Q127: 1 | R127: 126 | S127: 277
A128: 2164349 | B128: us | C128: 1 | D128: dalton | E128: t | F128: Bronze | G128: Division Mutalisk Gravity | H128: 88 | I128: 88 | J128: 808 | K128: 0 | L128: 2014-07-07 | M128: 2 hours | N128: 2014-08-23T08:58:50 | O128: 2164349-1 | P128: 0 | Q128: 1 | R128: 127 | S128: 176
A129: 2849096 | B129: us | C129: 1 | D129: Stonewall | E129: t | F129: Bronze | G129: Division Lurker Lima | H129: 83 | I129: 92 | J129: 808 | K129: 11 | L129: 2014-07-11 | M129: 4 hours | N129: 2014-08-23T08:58:50 | O129: 2849096-1 | P129: 0 | Q129: 1 | R129: 128 | S129: 175
A130: 2312158 | B130: us | C130: 1 | D130: Executor | E130: t | F130: Bronze | G130: Division Hellion Tau | H130: 123 | I130: 116 | J130: 807 | K130: 11 | L130: 2014-07-18 | M130: 4 hours | N130: 2014-08-23T08:58:51 | O130: 2312158-1 | P130: 0 | Q130: 1 | R130: 129 | S130: 239
A131: 5821668 | B131: us | C131: 1 | D131: kag | E131: z | F131: Bronze | G131: Division Khaydarin Epsilon | H131: 160 | I131: 164 | J131: 807 | K131: 3 | L131: 2014-07-07 | M131: 21 hours | N131: 2014-08-23T08:58:51 | O131: 5821668-1 | P131: 0 | Q131: 1 | R131: 130 | S131: =H131+I131 -> 324
A132: 1085895 | B132: us | C132: 1 | D132: KuNui | E132: t | F132: Bronze | G132: Division Torrasque Juliet | H132: 74 | I132: 84 | J132: 806 | K132: 18 | L132: 2014-07-07 | M132: 16 hours | N132: 2014-08-23T08:58:52 | O132: 1085895-1 | P132: 0 | Q132: 1 | R132: 131 | S132: 158
A133: 3760417 | B133: us | C133: 1 | D133: WOLF | E133: t | F133: Bronze | G133: Division Vermillion Delta | H133: 51 | I133: 41 | J133: 806 | K133: 39 | L133: 2014-07-27 | M133: 2 days | N133: 2014-08-23T08:58:52 | O133: 3760417-1 | P133: 0 | Q133: 1 | R133: 132 | S133: 92
A134: 4033589 | B134: us | C134: 1 | D134: Lushbunny | E134: z | F134: Bronze | G134: Division New Folsom Rho | H134: 71 | I134: 68 | J134: 806 | K134: 6 | L134: 2014-07-07 | M134: 4 hours | N134: 2014-08-23T08:58:52 | O134: 4033589-1 | P134: 0 | Q134: 1 | R134: 133 | S134: 139
A135: 5785327 | B135: us | C135: 1 | D135: HrabiaTomasz | E135: p | F135: Bronze | G135: Division Broodling Kappa | H135: 40 | I135: 37 | J135: 806 | K135: 15 | L135: 2014-08-07 | M135: 10 hours | N135: 2014-08-23T08:58:53 | O135: 5785327-1 | P135: 0 | Q135: 1 | R135: 134 | S135: 77
A136: 2062424 | B136: us | C136: 1 | D136: RidEorDie | E136: t | F136: Bronze | G136: Division Duran Nu | H136: 83 | I136: 84 | J136: 805 | K136: 45 | L136: 2014-07-08 | M136: 1 days | N136: 2014-08-23T08:58:53 | O136: 2062424-1 | P136: 0 | Q136: 1 | R136: 135 | S136: 167
A137: 3369566 | B137: us | C137: 1 | D137: rex | E137: t | F137: Bronze | G137: Division Chau Sara Alpha | H137: 99 | I137: 110 | J137: 805 | K137: 5 | L137: 2014-07-07 | M137: 7 hours | N137: 2014-08-23T08:58:54 | O137: 3369566-1 | P137: 0 | Q137: 1 | R137: 136 | S137: 209
A138: 5137054 | B138: us | C138: 1 | D138: DarkStorm | E138: t | F138: Bronze | G138: Division Feld Charlie | H138: 78 | I138: 90 | J138: 805 | K138: 7 | L138: 2014-07-10 | M138: 9 hours | N138: 2014-08-23T08:58:54 | O138: 5137054-1 | P138: 0 | Q138: 1 | R138: 137 | S138: 168
A139: 4524243 | B139: us | C139: 1 | D139: Eclipse | E139: t | F139: Bronze | G139: Division Braxis Uncle | H139: 50 | I139: 53 | J139: 804 | K139: 35 | L139: 2014-07-07 | M139: 1 days | N139: 2014-08-23T08:58:54 | O139: 4524243-1 | P139: 0 | Q139: 1 | R139: 138 | S139: 103
A140: 5423614 | B140: us | C140: 1 | D140: RickyPostage | E140: t | F140: Bronze | G140: Division Zekrath Omicron | H140: 38 | I140: 51 | J140: 804 | K140: 10 | L140: 2014-07-29 | M140: 3 hours | N140: 2014-08-23T08:58:55 | O140: 5423614-1 | P140: 0 | Q140: 1 | R140: 139 | S140: 89
A141: 2884773 | B141: us | C141: 1 | D141: gundan | E141: t | F141: Bronze | G141: Division Khaydarin Epsilon | H141: 75 | I141: 85 | J141: 803 | K141: 9 | L141: 2014-07-11 | M141: 1 hours | N141: 2014-08-23T08:58:55 | O141: 2884773-1 | P141: 0 | Q141: 1 | R141: 140 | S141: 160
A142: 4487868 | B142: us | C142: 1 | D142: Ray | E142: r | F142: Bronze | G142: Division Hanson Tango | H142: 104 | I142: 128 | J142: 803 | K142: 30 | L142: 2014-07-19 | M142: 1 days | N142: 2014-08-23T08:58:56 | O142: 4487868-1 | P142: 0 | Q142: 1 | R142: 141 | S142: 232
A143: 5255176 | B143: us | C143: 1 | D143: Hector | E143: t | F143: Bronze | G143: Division New Folsom Rho | H143: 74 | I143: 76 | J143: 803 | K143: 6 | L143: 2014-07-09 | M143: 21 hours | N143: 2014-08-23T08:58:56 | O143: 5255176-1 | P143: 0 | Q143: 1 | R143: 142 | S143: 150
A144: 2301 | B144: us | C144: 2 | D144: pfrancez | E144: p | F144: Bronze | G144: Division Samiku Eta | H144: 29 | I144: 33 | J144: 802 | K144: 36 | L144: 2014-07-08 | M144: 22 hours | N144: 2014-08-23T08:58:57 | O144: 2301-2 | P144: 0 | Q144: 1 | R144: 143 | S144: 62
A145: 60911 | B145: us | C145: 2 | D145: mudinhoIII | E145: p | F145: Bronze | G145: Division Mutalisk Gravity | H145: 101 | I145: 122 | J145: 802 | K145: 24 | L145: 2014-07-07 | M145: 1 days | N145: 2014-08-23T08:58:57 | O145: 60911-2 | P145: 0 | Q145: 1 | R145: 144 | S145: 223
A146: 1722425 | B146: us | C146: 1 | D146: GeoStar | E146: t | F146: Bronze | G146: Division Talematros Zeta | H146: 52 | I146: 52 | J146: 802 | K146: 65 | L146: 2014-07-08 | M146: 3 days | N146: 2014-08-23T08:58:57 | O146: 1722425-1 | P146: 0 | Q146: 1 | R146: 145 | S146: 104
A147: 4244812 | B147: us | C147: 1 | D147: hansolo | E147: z | F147: Bronze | G147: Division Vermillion Delta | H147: 33 | I147: 27 | J147: 802 | K147: 76 | L147: 2014-08-10 | M147: 4 days | N147: 2014-08-23T08:58:58 | O147: 4244812-1 | P147: 0 | Q147: 1 | R147: 146 | S147: 60
A148: 4379915 | B148: us | C148: 1 | D148: avm | E148: t | F148: Bronze | G148: Division Shuttle Zed | H148: 32 | I148: 25 | J148: 802 | K148: 8 | L148: 2014-07-09 | M148: 14 minutes | N148: 2014-08-23T08:58:58 | O148: 4379915-1 | P148: 0 | Q148: 1 | R148: 147 | S148: 57
A149: 5195453 | B149: us | C149: 1 | D149: DeadeyeJedi | E149: z | F149: Bronze | G149: Division Wraith Whiskey | H149: 40 | I149: 47 | J149: 802 | K149: 2 | L149: 2014-08-07 | M149: 1 days | N149: 2014-08-23T08:58:59 | O149: 5195453-1 | P149: 0 | Q149: 1 | R149: 148 | S149: 87
A150: 5492815 | B150: us | C150: 1 | D150: Stands | E150: z | F150: Bronze | G150: Division Tabrenus Omicron | H150: 101 | I150: 92 | J150: 802 | K150: 2 | L150: 2014-07-07 | M150: 20 hours | N150: 2014-08-23T08:58:59 | O150: 5492815-1 | P150: 0 | Q150: 1 | R150: 149 | S150: 193
A151: 4440664 | B151: us | C151: 1 | D151: Timore | E151: t | F151: Bronze | G151: Division Chau Sara Alpha | H151: 84 | I151: 94 | J151: 801 | K151: 19 | L151: 2014-07-07 | M151: 18 hours | N151: 2014-08-23T08:59:00 | O151: 4440664-1 | P151: 0 | Q151: 1 | R151: 150 | S151: 178
A152: 846601 | B152: us | C152: 2 | D152: Jebuz | E152: p | F152: Bronze | G152: Division Scion Oscar | H152: 36 | I152: 40 | J152: 800 | K152: 13 | L152: 2014-07-07 | M152: 23 hours | N152: 2014-08-23T08:59:01 | O152: 846601-2 | P152: 0 | Q152: 1 | R152: 151 | S152: 76
A153: 2504507 | B153: us | C153: 1 | D153: MrGigglez | E153: r | F153: Bronze | G153: Division Talematros Zeta | H153: 53 | I153: 59 | J153: 800 | K153: 51 | L153: 2014-08-03 | M153: 2 days | N153: 2014-08-23T08:59:01 | O153: 2504507-1 | P153: 0 | Q153: 1 | R153: 152 | S153: 112
A154: 4674602 | B154: us | C154: 1 | D154: IMKING | E154: t | F154: Bronze | G154: Division Torrasque Juliet | H154: 97 | I154: 109 | J154: 800 | K154: 17 | L154: 2014-07-07 | M154: 14 hours | N154: 2014-08-23T08:59:01 | O154: 4674602-1 | P154: 0 | Q154: 1 | R154: 153 | S154: 206
A155: 4936059 | B155: us | C155: 1 | D155: Bretly | E155: z | F155: Bronze | G155: Division Lassatar Sierra | H155: 56 | I155: 63 | J155: 800 | K155: 22 | L155: 2014-07-08 | M155: 22 hours | N155: 2014-08-23T08:59:02 | O155: 4936059-1 | P155: 0 | Q155: 1 | R155: 154 | S155: 119
A156: 5179093 | B156: us | C156: 1 | D156: Olympe | E156: t | F156: Bronze | G156: Division Norad Theta | H156: 70 | I156: 71 | J156: 800 | K156: 19 | L156: 2014-07-08 | M156: 2 hours | N156: 2014-08-23T08:59:02 | O156: 5179093-1 | P156: 0 | Q156: 1 | R156: 155 | S156: 141
A157: 5877735 | B157: us | C157: 1 | D157: paintballpro | E157: t | F157: Bronze | G157: Division Gateway Kilo | H157: 41 | I157: 21 | J157: 800 | K157: 71 | L157: 2014-08-01 | M157: 11 minutes | N157: 2014-08-23T08:59:03 | O157: 5877735-1 | P157: 0 | Q157: 1 | R157: 156 | S157: 62
A158: 3498426 | B158: us | C158: 1 | D158: BaronOpal | E158: p | F158: Bronze | G158: Division Arcturus Phi | H158: 35 | I158: 36 | J158: 799 | K158: 17 | L158: 2014-07-09 | M158: 12 hours | N158: 2014-08-23T08:59:03 | O158: 3498426-1 | P158: 0 | Q158: 1 | R158: 157 | S158: 71
A159: 5272932 | B159: us | C159: 1 | D159: XXREDXXBULLX | E159: t | F159: Bronze | G159: Division Norad Theta | H159: 87 | I159: 91 | J159: 799 | K159: 7 | L159: 2014-07-08 | M159: 3 minutes | N159: 2014-08-23T08:59:03 | O159: 5272932-1 | P159: 0 | Q159: 1 | R159: 158 | S159: 178
A160: 5700753 | B160: us | C160: 1 | D160: PaeJa | E160: t | F160: Bronze | G160: Division Braxis Uncle | H160: 75 | I160: 77 | J160: 799 | K160: 1 | L160: 2014-07-07 | M160: 1 hours | N160: 2014-08-23T08:59:04 | O160: 5700753-1 | P160: 0 | Q160: 1 | R160: 159 | S160: 152
A161: 3891549 | B161: us | C161: 1 | D161: GunSlinger | E161: t | F161: Bronze | G161: Division Khaydarin Epsilon | H161: 60 | I161: 70 | J161: 798 | K161: 26 | L161: 2014-07-09 | M161: 11 hours | N161: 2014-08-23T08:59:04 | O161: 3891549-1 | P161: 0 | Q161: 1 | R161: 160 | S161: 130
A162: 5786511 | B162: us | C162: 1 | D162: Min | E162: p | F162: Bronze | G162: Division Praetor Dixie | H162: 70 | I162: 60 | J162: 798 | K162: 0 | L162: 2014-07-28 | M162: 13 minutes | N162: 2014-08-23T08:59:04 | O162: 5786511-1 | P162: 0 | Q162: 1 | R162: 161 | S162: 130
A163: 477724 | B163: us | C163: 1 | D163: TWrecks | E163: z | F163: Bronze | G163: Division Tabrenus Omicron | H163: 81 | I163: 90 | J163: 796 | K163: 3 | L163: 2014-07-07 | M163: 1 hours | N163: 2014-08-23T08:59:05 | O163: 477724-1 | P163: 0 | Q163: 1 | R163: 162 | S163: 171
A164: 5486921 | B164: us | C164: 1 | D164: HUGO | E164: t | F164: Bronze | G164: Division Fole Victor | H164: 66 | I164: 74 | J164: 796 | K164: 4 | L164: 2014-07-14 | M164: 5 hours | N164: 2014-08-23T08:59:05 | O164: 5486921-1 | P164: 0 | Q164: 1 | R164: 163 | S164: 140
A165: 4197723 | B165: us | C165: 1 | D165: ChiefChimpy | E165: r | F165: Bronze | G165: Division Broodling Kappa | H165: 45 | I165: 49 | J165: 795 | K165: 10 | L165: 2014-07-08 | M165: 16 minutes | N165: 2014-08-23T08:59:05 | O165: 4197723-1 | P165: 0 | Q165: 1 | R165: 164 | S165: 94
A166: 5206674 | B166: us | C166: 1 | D166: TheSentinal | E166: t | F166: Bronze | G166: Division Forge Foxtrot | H166: 53 | I166: 68 | J166: 795 | K166: 10 | L166: 2014-07-08 | M166: 3 hours | N166: 2014-08-23T08:59:06 | O166: 5206674-1 | P166: 0 | Q166: 1 | R166: 165 | S166: 121
A167: 5356586 | B167: us | C167: 1 | D167: JawMon | E167: t | F167: Bronze | G167: Division Torrasque Juliet | H167: 36 | I167: 36 | J167: 795 | K167: 58 | L167: 2014-07-07 | M167: 1 days | N167: 2014-08-23T08:59:06 | O167: 5356586-1 | P167: 0 | Q167: 1 | R167: 166 | S167: 72
A168: 5751807 | B168: us | C168: 1 | D168: Vivein | E168: p | F168: Bronze | G168: Division Tassadar Lambda | H168: 37 | I168: 39 | J168: 795 | K168: 8 | L168: 2014-07-07 | M168: 5 hours | N168: 2014-08-23T08:59:07 | O168: 5751807-1 | P168: 0 | Q168: 1 | R168: 167 | S168: 76
A169: 5838609 | B169: us | C169: 1 | D169: NastyNate | E169: z | F169: Bronze | G169: Division Zekrath Omicron | H169: 38 | I169: 42 | J169: 795 | K169: 46 | L169: 2014-07-30 | M169: 8 hours | N169: 2014-08-23T08:59:07 | O169: 5838609-1 | P169: 0 | Q169: 1 | R169: 168 | S169: 80
A170: 604680 | B170: us | C170: 2 | D170: GlaurungBlue | E170: t | F170: Bronze | G170: Division Khaydarin Epsilon | H170: 84 | I170: 93 | J170: 794 | K170: 34 | L170: 2014-07-07 | M170: 1 days | N170: 2014-08-23T08:59:07 | O170: 604680-2 | P170: 0 | Q170: 1 | R170: 169 | S170: 177
A171: 1187602 | B171: us | C171: 1 | D171: Thack | E171: t | F171: Bronze | G171: Division Praetor Dixie | H171: 33 | I171: 42 | J171: 794 | K171: 38 | L171: 2014-07-27 | M171: 1 days | N171: 2014-08-23T08:59:08 | O171: 1187602-1 | P171: 0 | Q171: 1 | R171: 170 | S171: 75
A172: 2619059 | B172: us | C172: 1 | D172: OLI | E172: t | F172: Bronze | G172: Division Pridewater Yankee | H172: 29 | I172: 32 | J172: 794 | K172: 40 | L172: 2014-07-07 | M172: 22 hours | N172: 2014-08-23T08:59:08 | O172: 2619059-1 | P172: 0 | Q172: 1 | R172: 171 | S172: 61
A173: 5912357 | B173: us | C173: 1 | D173: MiURA | E173: p | F173: Bronze | G173: Division Hydralisk Lambda | H173: 50 | I173: 61 | J173: 794 | K173: 0 | L173: 2014-08-08 | M173: 8 hours | N173: 2014-08-23T08:59:09 | O173: 5912357-1 | P173: 0 | Q173: 1 | R173: 172 | S173: 111
A174: 5279336 | B174: us | C174: 1 | D174: llamtrauma | E174: t | F174: Bronze | G174: Division Ulrezaj Tango | H174: 40 | I174: 45 | J174: 793 | K174: 20 | L174: 2014-08-02 | M174: 19 hours | N174: 2014-08-23T08:59:09 | O174: 5279336-1 | P174: 0 | Q174: 1 | R174: 173 | S174: 85
A175: 5339333 | B175: us | C175: 1 | D175: DasMan | E175: r | F175: Bronze | G175: Division Duke Echo | H175: 477 | I175: 548 | J175: 793 | K175: 2 | L175: 2014-07-16 | M175: 6 hours | N175: 2014-08-23T08:59:10 | O175: 5339333-1 | P175: 0 | Q175: 1 | R175: 174 | S175: 1025
A176: 5861298 | B176: us | C176: 1 | D176: Alastor | E176: t | F176: Bronze | G176: Division Lassatar Sierra | H176: 43 | I176: 57 | J176: 793 | K176: 32 | L176: 2014-07-22 | M176: 20 hours | N176: 2014-08-23T08:59:10 | O176: 5861298-1 | P176: 0 | Q176: 1 | R176: 175 | S176: 100
A177: 348464 | B177: us | C177: 1 | D177: Bloodhay | E177: r | F177: Bronze | G177: Division Augustgrad Yankee | H177: 60 | I177: 60 | J177: 791 | K177: 93 | L177: 2014-08-12 | M177: 5 days | N177: 2014-08-23T08:59:11 | O177: 348464-1 | P177: 0 | Q177: 1 | R177: 176 | S177: 120
A178: 1274088 | B178: us | C178: 1 | D178: Graz | E178: t | F178: Bronze | G178: Division Broodling Kappa | H178: 35 | I178: 36 | J178: 791 | K178: 15 | L178: 2014-07-08 | M178: 22 hours | N178: 2014-08-23T08:59:11 | O178: 1274088-1 | P178: 0 | Q178: 1 | R178: 177 | S178: 71
A179: 3546249 | B179: us | C179: 1 | D179: Flicka | E179: t | F179: Bronze | G179: Division Araq Pi | H179: 92 | I179: 106 | J179: 790 | K179: 8 | L179: 2014-07-14 | M179: 20 minutes | N179: 2014-08-23T08:59:12 | O179: 3546249-1 | P179: 0 | Q179: 1 | R179: 178 | S179: 198
A180: 5923781 | B180: us | C180: 1 | D180: SuperPants | E180: t | F180: Bronze | G180: Division Augustgrad Yankee | H180: 28 | I180: 33 | J180: 788 | K180: 5 | L180: 2014-08-11 | M180: 4 minutes | N180: 2014-08-23T08:59:12 | O180: 5923781-1 | P180: 0 | Q180: 1 | R180: 179 | S180: 61
A181: 696608 | B181: us | C181: 2 | D181: Zerenic | E181: p | F181: Bronze | G181: Division Fole Victor | H181: 75 | I181: 76 | J181: 786 | K181: 51 | L181: 2014-07-08 | M181: 22 hours | N181: 2014-08-23T08:59:13 | O181: 696608-2 | P181: 0 | Q181: 1 | R181: 180 | S181: 151
A182: 2504047 | B182: us | C182: 1 | D182: Gswede | E182: t | F182: Bronze | G182: Division Tassadar Lambda | H182: 202 | I182: 223 | J182: 786 | K182: 3 | L182: 2014-07-07 | M182: 19 hours | N182: 2014-08-23T08:59:13 | O182: 2504047-1 | P182: 0 | Q182: 1 | R182: 181 | S182: 425
A183: 4689459 | B183: us | C183: 1 | D183: Sunswarm | E183: z | F183: Bronze | G183: Division Pridewater Yankee | H183: 31 | I183: 25 | J183: 786 | K183: 86 | L183: 2014-07-29 | M183: 22 hours | N183: 2014-08-23T08:59:13 | O183: 4689459-1 | P183: 0 | Q183: 1 | R183: 182 | S183: 56
A184: 5444715 | B184: us | C184: 1 | D184: Corpse | E184: t | F184: Bronze | G184: Division Duran Nu | H184: 68 | I184: 65 | J184: 786 | K184: 3 | L184: 2014-07-10 | M184: 18 hours | N184: 2014-08-23T08:59:14 | O184: 5444715-1 | P184: 0 | Q184: 1 | R184: 183 | S184: 133
A185: 5894956 | B185: us | C185: 1 | D185: Anromenez | E185: t | F185: Bronze | G185: Division Artika Lima | H185: 37 | I185: 36 | J185: 786 | K185: 41 | L185: 2014-08-14 | M185: 2 days | N185: 2014-08-23T08:59:14 | O185: 5894956-1 | P185: 0 | Q185: 1 | R185: 184 | S185: 73
A186: 4188686 | B186: us | C186: 1 | D186: nico | E186: t | F186: Bronze | G186: Division Marine Victor | H186: 47 | I186: 64 | J186: 785 | K186: 23 | L186: 2014-08-12 | M186: 23 hours | N186: 2014-08-23T08:59:15 | O186: 4188686-1 | P186: 0 | Q186: 1 | R186: 185 | S186: 111
A187: 4201862 | B187: us | C187: 1 | D187: KorgeMaad | E187: t | F187: Bronze | G187: Division Pridewater Yankee | H187: 33 | I187: 32 | J187: 785 | K187: 31 | L187: 2014-07-07 | M187: 1 hours | N187: 2014-08-23T08:59:15 | O187: 4201862-1 | P187: 0 | Q187: 1 | R187: 186 | S187: 65
A188: 5208360 | B188: us | C188: 1 | D188: ColdBlooded | E188: t | F188: Bronze | G188: Division Warp Prism Bravo | H188: 49 | I188: 52 | J188: 785 | K188: 4 | L188: 2014-07-11 | M188: 1 days | N188: 2014-08-23T08:59:16 | O188: 5208360-1 | P188: 0 | Q188: 1 | R188: 187 | S188: 101
A189: 5860453 | B189: us | C189: 1 | D189: Xuntae | E189: t | F189: Bronze | G189: Division Tassadar Lambda | H189: 60 | I189: 54 | J189: 785 | K189: 21 | L189: 2014-08-06 | M189: 18 hours | N189: 2014-08-23T08:59:16 | O189: 5860453-1 | P189: 0 | Q189: 1 | R189: 188 | S189: 114
A190: 415468 | B190: us | C190: 2 | D190: FAINKAGE | E190: t | F190: Bronze | G190: Division Colossus Hawk | H190: 74 | I190: 72 | J190: 784 | K190: 15 | L190: 2014-07-08 | M190: 11 hours | N190: 2014-08-23T08:59:17 | O190: 415468-2 | P190: 0 | Q190: 1 | R190: 189 | S190: 146
A191: 1048561 | B191: us | C191: 1 | D191: Elkslayer | E191: t | F191: Bronze | G191: Division Norad Theta | H191: 125 | I191: 129 | J191: 784 | K191: 1 | L191: 2014-07-08 | M191: 4 hours | N191: 2014-08-23T08:59:17 | O191: 1048561-1 | P191: 0 | Q191: 1 | R191: 190 | S191: 254
A192: 5288035 | B192: us | C192: 1 | D192: Sauron | E192: z | F192: Bronze | G192: Division Shuttle Zed | H192: 63 | I192: 62 | J192: 784 | K192: 61 | L192: 2014-07-12 | M192: 1 hours | N192: 2014-08-23T08:59:18 | O192: 5288035-1 | P192: 0 | Q192: 1 | R192: 191 | S192: 125
A193: 2925306 | B193: us | C193: 1 | D193: juke | E193: t | F193: Bronze | G193: Division Mutalisk Gravity | H193: 93 | I193: 86 | J193: 783 | K193: 12 | L193: 2014-07-07 | M193: 6 hours | N193: 2014-08-23T08:59:18 | O193: 2925306-1 | P193: 0 | Q193: 1 | R193: 192 | S193: 179
A194: 5574085 | B194: us | C194: 1 | D194: DeadFunnyTWO | E194: t | F194: Bronze | G194: Division Wraith Whiskey | H194: 36 | I194: 35 | J194: 783 | K194: 15 | L194: 2014-07-12 | M194: 2 days | N194: 2014-08-23T08:59:19 | O194: 5574085-1 | P194: 0 | Q194: 1 | R194: 193 | S194: 71
A195: 774621 | B195: us | C195: 2 | D195: FELIPE | E195: t | F195: Bronze | G195: Division New Folsom Rho | H195: 61 | I195: 61 | J195: 782 | K195: 4 | L195: 2014-07-07 | M195: 10 hours | N195: 2014-08-23T08:59:19 | O195: 774621-2 | P195: 0 | Q195: 1 | R195: 194 | S195: =H195+I195 -> 122
A196: 2769702 | B196: us | C196: 1 | D196: Skipper | E196: t | F196: Bronze | G196: Division New Folsom Rho | H196: 32 | I196: 37 | J196: 782 | K196: 26 | L196: 2014-07-08 | M196: 1 days | N196: 2014-08-23T08:59:19 | O196: 2769702-1 | P196: 0 | Q196: 1 | R196: 195 | S196: 69
A197: 5216728 | B197: us | C197: 1 | D197: Jasper | E197: p | F197: Bronze | G197: Division Samiku Eta | H197: 31 | I197: 26 | J197: 781 | K197: 57 | L197: 2014-07-23 | M197: 3 days | N197: 2014-08-23T08:59:20 | O197: 5216728-1 | P197: 0 | Q197: 1 | R197: 196 | S197: 57
A198: 2308821 | B198: us | C198: 1 | D198: artxxNxxana | E198: p | F198: Bronze | G198: Division Talematros Zeta | H198: 105 | I198: 110 | J198: 779 | K198: 6 | L198: 2014-07-08 | M198: 19 hours | N198: 2014-08-23T08:59:20 | O198: 2308821-1 | P198: 0 | Q198: 1 | R198: 197 | S198: 215
A199: 2986908 | B199: us | C199: 1 | D199: neon | E199: r | F199: Bronze | G199: Division Hanson Tango | H199: 52 | I199: 51 | J199: 779 | K199: 0 | L199: 2014-07-07 | M199: 7 hours | N199: 2014-08-23T08:59:21 | O199: 2986908-1 | P199: 0 | Q199: 1 | R199: 198 | S199: 103
A200: 3213890 | B200: us | C200: 1 | D200: NTensityX | E200: t | F200: Bronze | G200: Division Pridewater Yankee | H200: 44 | I200: 41 | J200: 779 | K200: 83 | L200: 2014-07-07 | M200: 1 days | N200: 2014-08-23T08:59:21 | O200: 3213890-1 | P200: 0 | Q200: 1 | R200: 199 | S200: 85
... 4300 more rows

Sheet Analysis - Team
A1: 2v2 - Most Recent Games
B2: Bronze | D2: Silver | F2: Gold | H2: Platinum | J2: Diamond | L2: Master | N2: Totals | P2: Total Team Count
A3: Category | B3: Last Week | C3: Last Month | D3: Last Week | E3: Last Month | F3: Last Week | G3: Last Month | H3: Last Week | I3: Last Month | J3: Last Week | K3: Last Month | L3: Last Week | M3: Last Month | N3: Last Week | O3: Last Month
A4: Totals | B4: 3629 | C4: 6259 | D4: 3768 | E4: 5004 | F4: 3806 | G4: 4859 | H4: 1556 | I4: 1824 | J4: 426 | K4: 387 | L4: 78 | M4: 74 | N4: 13263 | O4: 18407
A5: At least 1 game within the last month | B5: 9888 | D5: 8772 | F5: 8665 | H5: 3380 | J5: 813 | L5: 152 | N5: 31670
B6: Avg Wins | C6: Avg Losses | D6: Avg Wins | E6: Avg Losses | F6: Avg Wins | G6: Avg Losses | H6: Avg Wins | I6: Avg Losses | J6: Avg Wins | K6: Avg Losses | L6: Avg Wins | M6: Avg Losses | N6: Avg Wins | O6: Avg Losses
A7: Games Count | B7: 3.646566669 | C7: 5.289892214 | D7: 7.286738351 | E7: 7.234318996 | F7: 10.00336291 | G7: 7.941802896 | H7: 14.01825607 | I7: 9.948594763 | J7: 22.03212435 | K7: 14.56476684 | L7: 28.88268156 | M7: 14.34078212 | N7: 7.952075966 | O7: 7.269492322
A8: Avg Score | B8: 83.86726464 | D8: 152.003405 | F8: 176.0681924 | H8: 212.9305789 | J8: 291.5523316 | L8: 300.8435754 | N8: 146.2811642
A9: Total Team Count | B9: 13267 | D9: 11160 | F9: 10705 | H9: 4163 | J9: 965 | L9: 179 | N9: 40439
A13: 3v3 - Most Recent Games
B14: Bronze | D14: Silver | F14: Gold | H14: Platinum | J14: Diamond | L14: Master | N14: Totals | P14: Total Team Count
A15: Category | B15: Last Week | C15: Last Month | D15: Last Week | E15: Last Month | F15: Last Week | G15: Last Month | H15: Last Week | I15: Last Month | J15: Last Week | K15: Last Month | L15: Last Week | M15: Last Month | N15: Last Week | O15: Last Month
A16: Totals | B16: 1079 | C16: 2240 | D16: 1522 | E16: 2723 | F16: 1166 | G16: 2046 | H16: 348 | I16: 630 | J16: 87 | K16: 128 | L16: 17 | M16: 18 | N16: 4219 | O16: 7785
A17: At least 1 game within the last month | B17: 3319 | D17: 4245 | F17: 3212 | H17: 978 | J17: 215 | L17: 35 | N17: 12004
B18: Avg Wins | C18: Avg Losses | D18: Avg Wins | E18: Avg Losses | F18: Avg Wins | G18: Avg Losses | H18: Avg Wins | I18: Avg Losses | J18: Avg Wins | K18: Avg Losses | L18: Avg Wins | M18: Avg Losses | N18: Avg Wins | O18: Avg Losses
A19: Games Count | B19: 2.569405099 | C19: 3.734364785 | D19: 4.844775049 | E19: 4.480731314 | F19: 7.188440991 | G19: 5.105876639 | H19: 9.425081433 | I19: 4.855863192 | J19: 12.07380074 | K19: 5.125461255 | L19: 28 | M19: 8.348837209 | N19: 5.663507708 | O19: 4.639815517
A20: Avg Score | B20: 57.0069732 | D20: 93.46657107 | F20: 101.8873239 | H20: 103.2565147 | J20: 126.6236162 | L20: 206.3023256 | N20: 90.12275714
A21: Total Team Count | B21: 4589 | D21: 5579 | F21: 4118 | H21: 1228 | J21: 271 | L21: 43 | N21: 15828
A25: 4v4 - Most Recent Games
B26: Bronze | D26: Silver | F26: Gold | H26: Platinum | J26: Diamond | L26: Master | N26: Totals | P26: Total Team Count
A27: Category | B27: Last Week | C27: Last Month | D27: Last Week | E27: Last Month | F27: Last Week | G27: Last Month | H27: Last Week | I27: Last Month | J27: Last Week | K27: Last Month | L27: Last Week | M27: Last Month | N27: Last Week | O27: Last Month
A28: Totals | B28: 221 | C28: 561 | D28: 633 | E28: 1555 | F28: 195 | G28: 284 | H28: 111 | I28: 314 | J28: 25 | K28: 61 | L28: 1 | M28: 1 | N28: 1186 | O28: 2776
A29: At least 1 game within the last month | B29: 782 | D29: 2188 | F29: 479 | H29: 425 | J29: 86 | L29: 2 | N29: 3962
B30: Avg Wins | C30: Avg Losses | D30: Avg Wins | E30: Avg Losses | F30: Avg Wins | G30: Avg Losses | H30: Avg Wins | I30: Avg Losses | J30: Avg Wins | K30: Avg Losses | L30: Avg Wins | M30: Avg Losses | N30: Avg Wins | O30: Avg Losses
A31: Games Count | B31: 2.108576642 | C31: 2.907846715 | D31: 3.76011846 | E31: 2.984863442 | F31: 8.854700855 | G31: 5.153846154 | H31: 5.203539823 | I31: 1.25840708 | J31: 9.326923077 | K31: 2.971153846 | L31: 12 | M31: 3.5 | N31: 4.462251901 | O31: 3.09015025
A32: Avg Score | B32: 44.56751825 | D32: 59.52583087 | F32: 147.0273504 | H32: 22.34159292 | J32: 68.90384615 | L32: 132 | N32: 63.93618995
A33: Total Team Count | B33: 1096 | D33: 3039 | F33: 585 | H33: 565 | J33: 104 | L33: 2 | N33: 5391
A37: 2v2r - Most Recent Games
B38: Bronze | D38: Silver | F38: Gold | H38: Platinum | J38: Diamond | L38: Master | N38: Totals
A39: Category | B39: Last Week | C39: Last Month | D39: Last Week | E39: Last Month | F39: Last Week | G39: Last Month | H39: Last Week | I39: Last Month | J39: Last Week | K39: Last Month | L39: Last Week | M39: Last Month | N39: Last Week | O39: Last Month
A40: Totals | B40: 761 | C40: 1439 | D40: 3686 | E40: 4494 | F40: 3248 | G40: 2783 | H40: 1537 | I40: 1126 | J40: 564 | K40: 387 | L40: 246 | M40: 110 | N40: 10042 | O40: 10339
A41: At least 1 game within the last month | B41: 2200 | D41: 8180 | F41: 6031 | H41: 2663 | J41: 951 | L41: 356 | N41: 20381
B42: Avg Wins | C42: Avg Losses | D42: Avg Wins | E42: Avg Losses | F42: Avg Wins | G42: Avg Losses | H42: Avg Wins | I42: Avg Losses | J42: Avg Wins | K42: Avg Losses | L42: Avg Wins | M42: Avg Losses | N42: Avg Wins | O42: Avg Losses
A43: Games Count | B43: 0 | C43: 5.800711744 | D43: 0 | E43: 8.264728607 | F43: 0 | G43: 14.60761589 | H43: 0 | I43: 19.04692454 | J43: 0 | K43: 25.9073741 | L43: 0 | M43: 31.60620525 | N43: 0 | O43: 12.27460793
A44: Avg Score | B44: 68.0634099 | D44: 127.4733436 | F44: 274.8796909 | H44: 330.4651237 | J44: 407.7302158 | L44: 494.0453461 | N44: 205.8971944
A45: Total Player Count | B45: 3091 | D45: 10354 | F45: 7248 | H45: 3154 | J45: 1112 | L45: 419 | N45: 25378
A49: 3v3r - Most Recent Games
B50: Bronze | D50: Silver | F50: Gold | H50: Platinum | J50: Diamond | L50: Master | N50: Totals
A51: Category | B51: Last Week | C51: Last Month | D51: Last Week | E51: Last Month | F51: Last Week | G51: Last Month | H51: Last Week | I51: Last Month | J51: Last Week | K51: Last Month | L51: Last Week | M51: Last Month | N51: Last Week | O51: Last Month
A52: Totals | B52: 1039 | C52: 1633 | D52: 5213 | E52: 5411 | F52: 3592 | G52: 2709 | H52: 1148 | I52: 851 | J52: 409 | K52: 258 | L52: 186 | M52: 142 | N52: 11587 | O52: 11004
A53: At least 1 game within the last month | B53: 2672 | D53: 10624 | F53: 6301 | H53: 1999 | J53: 667 | L53: 328 | N53: 22591
B54: Avg Wins | C54: Avg Losses | D54: Avg Wins | E54: Avg Losses | F54: Avg Wins | G54: Avg Losses | H54: Avg Wins | I54: Avg Losses | J54: Avg Wins | K54: Avg Losses | L54: Avg Wins | M54: Avg Losses | N54: Avg Wins | O54: Avg Losses
A55: Games Count | B55: 0 | C55: 7.652396338 | D55: 0 | E55: 10.45933828 | F55: 0 | G55: 18.99268094 | H55: 0 | I55: 21.69079229 | J55: 0 | K55: 22.75285171 | L55: 0 | M55: 28.08196721 | N55: 0 | O55: 14.38956319
A56: Avg Score | B56: 80.03069467 | D56: 164.9764997 | F56: 306.7073733 | H56: 336.3576017 | J56: 358.504436 | L56: 492.0327869 | N56: 223.4755796
A57: Total Player Count | B57: 3714 | D57: 12936 | F57: 7378 | H57: 2335 | J57: 789 | L57: 366 | N57: 27518
A61: 4v4r - Most Recent Games
B62: Bronze | D62: Silver | F62: Gold | H62: Platinum | J62: Diamond | L62: Master | N62: Totals
A63: Category | B63: Last Week | C63: Last Month | D63: Last Week | E63: Last Month | F63: Last Week | G63: Last Month | H63: Last Week | I63: Last Month | J63: Last Week | K63: Last Month | L63: Last Week | M63: Last Month | N63: Last Week | O63: Last Month
A64: Totals | B64: 1462 | C64: 2178 | D64: 6726 | E64: 6280 | F64: 5009 | G64: 3019 | H64: 1065 | I64: 752 | J64: 455 | K64: 294 | L64: 57 | M64: 77 | N64: 14774 | O64: 12600
A65: At least 1 game within the last month | B65: 3640 | D65: 13006 | F65: 8028 | H65: 1817 | J65: 749 | L65: 134 | N65: 27374
B66: Avg Wins | C66: Avg Losses | D66: Avg Wins | E66: Avg Losses | F66: Avg Wins | G66: Avg Losses | H66: Avg Wins | I66: Avg Losses | J66: Avg Wins | K66: Avg Losses | L66: Avg Wins | M66: Avg Losses | N66: Avg Wins | O66: Avg Losses
A67: Games Count | B67: 0 | C67: 7.518405532 | D67: 0 | E67: 11.30117722 | F67: 0 | G67: 24.83716621 | H67: 0 | I67: 20.66288416 | J67: 0 | K67: 27.90011614 | L67: 0 | M67: 10.7826087 | N67: 0 | O67: 15.85068601
A68: Avg Score | B68: 78.38356722 | D68: 178.2172447 | F68: 353.960545 | H68: 298.5725768 | J68: 374.4413473 | L68: 221.4037267 | N68: 230.794348
A69: Total Player Count | B69: 4917 | D69: 15715 | F69: 9175 | H69: 2115 | J69: 861 | L69: 161 | N69: 32944
A73: Most Recent Game Played
A74: Percentages of Total | B74: Last Week | C74: Last Month
A75: 2v2 | B75: =N4/N9 -> 0.3279754692 | C75: =N5/N9 -> 0.7831548752
A76: 3v3 | B76: =N16/N21 -> 0.2665529441 | C76: =N17/N21 -> 0.7584028304
A77: 4v4 | B77: =N28/N33 -> 0.2199962901 | C77: =N29/N33 -> 0.7349285847
A78: 2v2 Random | B78: =N40/N45 -> 0.3956970604 | C78: =N41/N45 -> 0.8030971708
A79: 3v3 Random | B79: =N52/N57 -> 0.4210698452 | C79: =N53/N57 -> 0.8209535577
A80: 4v4 Random | B80: =N64/N69 -> 0.4484579893 | C80: =N65/N69 -> 0.8309252064
A84: Unique Player Counts
A85: Team Type | B85: Counts
A86: 2v2 | B86: =N9 -> 40439
A87: 3v3 | B87: =N21 -> 15828
A88: 4v4 | B88: =N33 -> 5391
A89: 2v2 Random | B89: =N45 -> 25378
A90: 3v3 Random | B90: =N57 -> 27518
A91: 4v4 Random | B91: =N69 -> 32944
A95: League Distributions - Based on Having Played At Least 1 Game Last Month | I95: League Distributions - All Teams
A96: Team Type | B96: Bronze | C96: Silver | D96: Gold | E96: Platinum | F96: Diamond | G96: Master | I96: Team Type | J96: Bronze | K96: Silver | L96: Gold | M96: Platinum | N96: Diamond | O96: Master
A97: 2v2 | B97: =B5/N5 -> 0.3122197663 | C97: =D5/N5 -> 0.2769813704 | D97: =F5/N5 -> 0.2736027787 | E97: =H5/N5 -> 0.1067256078 | F97: =J5/N5 -> 0.025670982 | G97: =L5/N5 -> 0.00479949479 | I97: 2v2 | J97: =B9/N9 -> 0.3280743836 | K97: =D9/N9 -> 0.2759712159 | L97: =F9/N9 -> 0.2647197013 | M97: =H9/N9 -> 0.1029451767 | N97: =J9/N9 -> 0.02386310245 | O97: =L9/N9 -> 0.00442642004
A98: 3v3 | B98: =B17/N17 -> 0.2764911696 | C98: =D17/N17 -> 0.3536321226 | D98: =F17/N17 -> 0.2675774742 | E98: =H17/N17 -> 0.08147284239 | F98: =J17/N17 -> 0.01791069643 | G98: =L17/N17 -> 0.002915694768 | I98: 3v3 | J98: =B21/N21 -> 0.2899292393 | K98: =D21/N21 -> 0.3524766237 | L98: =F21/N21 -> 0.2601718474 | M98: =H21/N21 -> 0.0775840283 | N98: =J21/N21 -> 0.01712155673 | O98: =L21/N21 -> 0.002716704574
A99: 4v4 | B99: =B29/N29 -> 0.1973750631 | C99: =D29/N29 -> 0.5522463402 | D99: =F29/N29 -> 0.1208985361 | E99: =H29/N29 -> 0.107269056 | F99: =J29/N29 -> 0.02170620899 | G99: =L29/N29 -> 0.0005047955578 | I99: 4v4 | J99: =B33/N33 -> 0.2033017993 | K99: =D33/N33 -> 0.5637173066 | L99: =F33/N33 -> 0.1085141903 | M99: =H33/N33 -> 0.1048043035 | N99: =J33/N33 -> 0.01929141161 | O99: =L33/N33 -> 0.0003709886848
A100: 2v2 Random | B100: =B41/N41 -> 0.107943673 | C100: =D41/N41 -> 0.4013542024 | D100: =F41/N41 -> 0.29591286 | E100: =H41/N41 -> 0.1306609097 | F100: =J41/N41 -> 0.04666110593 | G100: =L41/N41 -> 0.01746724891 | I100: 2v2 Random | J100: =B45/N45 -> 0.1217984081 | K100: =D45/N45 -> 0.4079911735 | L100: =F45/N45 -> 0.2856017023 | M100: =H45/N45 -> 0.1242808732 | N100: =J45/N45 -> 0.04381747971 | O100: =L45/N45 -> 0.01651036331
A101: 3v3 Random | B101: =B53/N53 -> 0.11827719 | C101: =D53/N53 -> 0.4702757735 | D101: =F53/N53 -> 0.2789163826 | E101: =H53/N53 -> 0.08848656545 | F101: =J53/N53 -> 0.02952503209 | G101: =L53/N53 -> 0.01451905626 | I101: 3v3 Random | J101: =B57/N57 -> 0.1349662039 | K101: =D57/N57 -> 0.4700923032 | L101: =F57/N57 -> 0.2681154154 | M101: =H57/N57 -> 0.0848535504 | N101: =J57/N57 -> 0.02867214187 | O101: =L57/N57 -> 0.0133003852
A102: 4v4 Random | B102: =B65/N65 -> 0.132972894 | C102: =D65/N65 -> 0.4751223789 | D102: =F65/N65 -> 0.2932709871 | E102: =H65/N65 -> 0.06637685395 | F102: =J65/N65 -> 0.02736173011 | G102: =L65/N65 -> 0.004895155987 | I102: 4v4 Random | J102: =B69/N69 -> 0.1492532783 | K102: =D69/N69 -> 0.4770216124 | L102: =F69/N69 -> 0.278502914 | M102: =H69/N69 -> 0.0641998543 | N102: =J69/N69 -> 0.02613525983 | O102: =L69/N69 -> 0.004887081107

Sheet IDs
A1: Player IDs | B1: Team Type | D1: Unique IDs | E1: # of team types | F1: Only in team games (if error) | G1: Unique 1v1 | H1: Only in 1v1 (if error) | I1: # of team types | J1: # of team-only players | K1: # of 1v1-only players
A2: 1000018-1 | B2: 3v3r | D2: 1000018-1 | E2: 1 | G2: 1000098-1 | I2: =IF(ISERROR(H2),0,E2) -> 0 | J2: =COUNTIF(F2:F104494,"#N/A") -> 61719 | K2: =COUNTIF(H2:H92068,"#N/A") -> 49293
A3: 1000044-1 | B3: 3v3r | D3: 1000044-1 | E3: 1 | G3: 1000123-1 | H3: 1000123-1 | I3: =IF(ISERROR(H3),0,E3) -> 1
A4: 1000069-1 | B4: 2v2 Team | D4: 1000069-1 | E4: 2 | G4: 1000199-1 | H4: 1000199-1 | I4: =IF(ISERROR(H4),0,E4) -> 2 | J4: Total 1v1 players | K4: 92067
A5: 1000069-1 | B5: 2v2 Team | D5: 1000096-1 | E5: 1 | G5: 1000243-1 | H5: 1000243-1 | I5: 1 | J5: 1v1 players that also placed with a team type | K5: =K4-K2 -> 42774
A6: 1000096-1 | B6: 4v4r | D6: 1000123-1 | E6: 1 | F6: 1000123-1 | G6: 1000251-1 | H6: 1000251-1 | I6: 1 | J6: # of 1v1 players that have completed placement matches for 3 or more team types | K6: =COUNTIF(I2:I92068,">=3") -> 9437
A7: 1000123-1 | B7: 3v3r | D7: 1000186-1 | E7: 1 | G7: 1000301-1 | H7: 1000301-1 | I7: 1
A8: 1000186-1 | B8: 4v4r | D8: 1000199-1 | E8: 1 | F8: 1000199-1 | G8: 1000395-1 | H8: 1000395-1 | I8: 1
A9: 1000199-1 | B9: 4v4r | D9: 1000243-1 | E9: 3 | F9: 1000243-1 | G9: 1000433-1 | I9: 0
A10: 1000243-1 | B10: 2v2 Team | D10: 1000251-1 | E10: 1 | F10: 1000251-1 | G10: 1000474-1 | I10: 0
A11: 1000243-1 | B11: 2v2 Team | D11: 1000301-1 | E11: 1 | F11: 1000301-1 | G11: 1000486-1 | I11: 0
A12: 1000243-1 | B12: 3v3 Team | D12: 1000303-1 | E12: 2 | G12: 1000658-1 | H12: 1000658-1 | I12: 2
A13: 1000251-1 | B13: 2v2r | D13: 1000324-1 | E13: 2 | G13: 1000695-1 | H13: 1000695-1 | I13: 2
A14: 1000301-1 | B14: 2v2 Team | D14: 1000395-1 | E14: 1 | F14: 1000395-1 | G14: 1000871-1 | I14: 0
A15: 1000303-1 | B15: 2v2 Team | D15: 1000500-1 | E15: 2 | G15: 1000906-1 | I15: 0
A16: 1000303-1 | B16: 2v2r | D16: 1000538-1 | E16: 1 | G16: 1000968-1 | I16: 0
A17: 1000324-1 | B17: 3v3r | D17: 1000658-1 | E17: 1 | F17: 1000658-1 | G17: 1000983-1 | H17: 1000983-1 | I17: 1
A18: 1000324-1 | B18: 4v4r | D18: 1000695-1 | E18: 1 | F18: 1000695-1 | G18: 1001060-1 | H18: 1001060-1 | I18: 1
A19: 1000395-1 | B19: 2v2 Team | D19: 1000781-1 | E19: 1 | G19: 1001140-1 | H19: 1001140-1 | I19: 1
A20: 1000500-1 | B20: 2v2 Team | D20: 1000784-1 | E20: 2 | G20: 1001153-1 | H20: 1001153-1 | I20: 2
A21: 1000500-1 | B21: 4v4r | D21: 1000855-1 | E21: 2 | G21: 1001174-1 | I21: 0
A22: 1000538-1 | B22: 4v4r | D22: 1000983-1 | E22: 1 | F22: 1000983-1 | G22: 1001185-1 | H22: 1001185-1 | I22: 1
A23: 1000658-1 | B23: 4v4r | D23: 1000991-1 | E23: 1 | G23: 1001348-1 | H23: 1001348-1 | I23: 1
A24: 1000695-1 | B24: 2v2 Team | D24: 1001060-1 | E24: 2 | F24: 1001060-1 | G24: 1001441-1 | I24: 0
A25: 1000781-1 | B25: 3v3r | D25: 1001066-1 | E25: 1 | G25: 1001469-1 | H25: 1001469-1 | I25: 1
A26: 1000784-1 | B26: 3v3 Team | D26: 1001075-1 | E26: 1 | G26: 1001492-1 | H26: 1001492-1 | I26: 1
A27: 1000784-1 | B27: 2v2r | D27: 1001131-1 | E27: 5 | G27: 1001510-1 | I27: 0
A28: 1000855-1 | B28: 3v3 Team | D28: 1001140-1 | E28: 5 | F28: 1001140-1 | G28: 1001513-1 | H28: 1001513-1 | I28: 5
A29: 1000855-1 | B29: 4v4 Team | D29: 1001153-1 | E29: 1 | F29: 1001153-1 | G29: 1001538-1 | H29: 1001538-1 | I29: 1
A30: 1000983-1 | B30: 4v4r | D30: 1001156-1 | E30: 1 | G30: 1001687-1 | H30: 1001687-1 | I30: 1
A31: 1000991-1 | B31: 4v4r | D31: 1001185-1 | E31: 3 | F31: 1001185-1 | G31: 1001705-1 | H31: 1001705-1 | I31: 3
A32: 1001060-1 | B32: 2v2 Team | D32: 1001304-1 | E32: 3 | G32: 1001719-1 | H32: 1001719-1 | I32: 3
A33: 1001060-1 | B33: 3v3r | D33: 1001314-1 | E33: 2 | G33: 1001721-1 | H33: 1001721-1 | I33: 2
A34: 1001066-1 | B34: 2v2 Team | D34: 1001347-1 | E34: 5 | G34: 1001736-1 | H34: 1001736-1 | I34: 5
A35: 1001075-1 | B35: 4v4r | D35: 1001348-1 | E35: 1 | F35: 1001348-1 | G35: 1001904-1 | H35: 1001904-1 | I35: 1
A36: 1001131-1 | B36: 2v2 Team | D36: 1001378-1 | E36: 1 | G36: 1001911-1 | I36: 0
A37: 1001131-1 | B37: 3v3 Team | D37: 1001469-1 | E37: 1 | F37: 1001469-1 | G37: 1001915-1 | I37: 0
A38: 1001131-1 | B38: 3v3 Team | D38: 1001492-1 | E38: 2 | F38: 1001492-1 | G38: 1001916-1 | I38: 0
A39: 1001131-1 | B39: 3v3r | D39: 1001513-1 | E39: 6 | F39: 1001513-1 | G39: 1001999-1 | H39: 1001999-1 | I39: 6
A40: 1001131-1 | B40: 4v4r | D40: 1001538-1 | E40: 3 | F40: 1001538-1 | G40: 1002022-1 | H40: 1002022-1 | I40: 3
A41: 1001140-1 | B41: 2v2 Team | D41: 1001652-1 | E41: 1 | G41: 1002058-1 | I41: 0
A42: 1001140-1 | B42: 2v2 Team | D42: 1001687-1 | E42: 3 | F42: 1001687-1 | G42: 1002139-1 | H42: 1002139-1 | I42: 3
A43: 1001140-1 | B43: 3v3 Team | D43: 1001705-1 | E43: 2 | F43: 1001705-1 | G43: 1002331-1 | H43: 1002331-1 | I43: 2
A44: 1001140-1 | B44: 3v3 Team | D44: 1001719-1 | E44: 2 | F44: 1001719-1 | G44: 1002410-1 | I44: 0
A45: 1001140-1 | B45: 4v4 Team | D45: 1001721-1 | E45: 5 | F45: 1001721-1 | G45: 1002488-1 | I45: 0
A46: 1001153-1 | B46: 2v2 Team | D46: 1001736-1 | E46: 1 | F46: 1001736-1 | G46: 1002580-1 | I46: 0
A47: 1001156-1 | B47: 4v4r | D47: 1001768-1 | E47: 4 | G47: 10026-2 | I47: 0
A48: 1001185-1 | B48: 2v2 Team | D48: 1001804-1 | E48: 2 | G48: 1002622-1 | H48: 1002622-1 | I48: 2
A49: 1001185-1 | B49: 2v2r | D49: 1001844-1 | E49: 3 | G49: 1002623-1 | I49: 0
A50: 1001185-1 | B50: 4v4r | D50: 1001904-1 | E50: 1 | F50: 1001904-1 | G50: 1002641-1 | H50: 1002641-1 | I50: 1
A51: 1001304-1 | B51: 3v3 Team | D51: 1001927-1 | E51: 2 | G51: 1002712-1 | H51: 1002712-1 | I51: 2
A52: 1001304-1 | B52: 3v3r | D52: 1001947-1 | E52: 1 | G52: 1002810-1 | H52: 1002810-1 | I52: 1
A53: 1001304-1 | B53: 4v4r | D53: 1001992-1 | E53: 2 | G53: 1002823-1 | I53: 0
A54: 1001314-1 | B54: 2v2 Team | D54: 1001999-1 | E54: 1 | F54: 1001999-1 | G54: 1002911-1 | H54: 1002911-1 | I54: 1
A55: 1001314-1 | B55: 3v3 Team | D55: 1002022-1 | E55: 1 | F55: 1002022-1 | G55: 1002964-1 | I55: 0
A56: 1001347-1 | B56: 2v2 Team | D56: 1002046-1 | E56: 1 | G56: 1002994-1 | I56: 0
A57: 1001347-1 | B57: 3v3 Team | D57: 1002133-1 | E57: 2 | G57: 10030-2 | H57: 10030-2 | I57: 2
A58: 1001347-1 | B58: 3v3 Team | D58: 1002137-1 | E58: 1 | G58: 1003034-1 | H58: 1003034-1 | I58: 1
A59: 1001347-1 | B59: 4v4 Team | D59: 1002139-1 | E59: 1 | F59: 1002139-1 | G59: 1003058-1 | H59: 1003058-1 | I59: 1
A60: 1001347-1 | B60: 4v4 Team | D60: 1002165-1 | E60: 8 | G60: 1003116-1 | I60: 0
A61: 1001348-1 | B61: 3v3r | D61: 1002196-1 | E61: 2 | G61: 1003156-1 | H61: 1003156-1 | I61: 2
A62: 1001378-1 | B62: 3v3 Team | D62: 1002298-1 | E62: 1 | G62: 1003167-1 | H62: 1003167-1 | I62: 1
A63: 1001469-1 | B63: 2v2 Team | D63: 1002331-1 | E63: 1 | F63: 1002331-1 | G63: 1003172-1 | H63: 1003172-1 | I63: 1
A64: 1001492-1 | B64: 2v2r | D64: 1002405-1 | E64: 1 | G64: 1003207-1 | H64: 1003207-1 | I64: 1
A65: 1001492-1 | B65: 3v3r | D65: 1002413-1 | E65: 1 | G65: 1003789-1 | H65: 1003789-1 | I65: 1
A66: 1001513-1 | B66: 2v2 Team | D66: 1002420-1 | E66: 1 | G66: 1003860-1 | I66: 0
A67: 1001513-1 | B67: 2v2 Team | D67: 1002480-1 | E67: 1 | G67: 1003881-1 | H67: 1003881-1 | I67: 1
A68: 1001513-1 | B68: 2v2 Team | D68: 1002622-1 | E68: 12 | F68: 1002622-1 | G68: 1003909-1 | H68: 1003909-1 | I68: =IF(ISERROR(H68),0,E68) -> 12
A69: 1001513-1 | B69: 2v2r | D69: 1002641-1 | E69: 5 | F69: 1002641-1 | G69: 1003970-1 | I69: 0
A70: 1001513-1 | B70: 3v3r | D70: 1002659-1 | E70: 1 | G70: 1004124-1 | H70: 1004124-1 | I70: 1
A71: 1001513-1 | B71: 4v4r | D71: 1002704-1 | E71: 2 | G71: 1004141-1 | I71: 0
A72: 1001538-1 | B72: 2v2 Team | D72: 1002708-1 | E72: 1 | G72: 1004171-1 | I72: 0
A73: 1001538-1 | B73: 3v3 Team | D73: 1002712-1 | E73: 1 | F73: 1002712-1 | G73: 1004199-1 | H73: 1004199-1 | I73: 1
A74: 1001538-1 | B74: 3v3 Team | D74: 1002810-1 | E74: 2 | F74: 1002810-1 | G74: 1004240-1 | I74: 0
A75: 1001652-1 | B75: 3v3 Team | D75: 1002911-1 | E75: 3 | F75: 1002911-1 | G75: 1004395-1 | H75: 1004395-1 | I75: 3
A76: 1001687-1 | B76: 2v2 Team | D76: 1002927-1 | E76: 1 | G76: 1004485-1 | H76: 1004485-1 | I76: 1
A77: 1001687-1 | B77: 2v2 Team | D77: 1003007-1 | E77: 1 | G77: 1004574-1 | I77: 0
A78: 1001687-1 | B78: 3v3 Team | D78: 10030-2 | E78: 2 | F78: 10030-2 | G78: 1004654-1 | H78: 1004654-1 | I78: 2
A79: 1001705-1 | B79: 2v2 Team | D79: 1003034-1 | E79: 5 | F79: 1003034-1 | G79: 1004764-1 | I79: 0
A80: 1001705-1 | B80: 2v2r | D80: 1003055-1 | E80: 2 | G80: 1004782-1 | H80: 1004782-1 | I80: 2
A81: 1001719-1 | B81: 2v2 Team | D81: 1003058-1 | E81: 2 | F81: 1003058-1 | G81: 1004796-1 | H81: 1004796-1 | I81: 2
A82: 1001719-1 | B82: 2v2 Team | D82: 1003151-1 | E82: 2 | G82: 1004940-1 | H82: 1004940-1 | I82: 2
A83: 1001721-1 | B83: 2v2 Team | D83: 1003156-1 | E83: 1 | F83: 1003156-1 | G83: 1004991-1 | H83: 1004991-1 | I83: 1
A84: 1001721-1 | B84: 2v2 Team | D84: 1003164-1 | E84: 1 | G84: 1005127-1 | I84: 0
A85: 1001721-1 | B85: 2v2r | D85: 1003167-1 | E85: 1 | F85: 1003167-1 | G85: 1005170-1 | H85: 1005170-1 | I85: 1
A86: 1001721-1 | B86: 3v3r | D86: 1003172-1 | E86: 1 | F86: 1003172-1 | G86: 1005-2 | H86: 1005-2 | I86: 1
A87: 1001721-1 | B87: 4v4r | D87: 1003174-1 | E87: 1 | G87: 1005235-1 | I87: 0
A88: 1001736-1 | B88: 2v2 Team | D88: 1003207-1 | E88: 1 | F88: 1003207-1 | G88: 1005267-1 | H88: 1005267-1 | I88: 1
A89: 1001768-1 | B89: 2v2 Team | D89: 1003284-1 | E89: 4 | G89: 1005420-1 | I89: 0
A90: 1001768-1 | B90: 2v2 Team | D90: 1003353-1 | E90: 3 | G90: 1005463-1 | I90: 0
A91: 1001768-1 | B91: 2v2 Team | D91: 1003478-1 | E91: 1 | G91: 1005563-1 | H91: 1005563-1 | I91: 1
A92: 1001768-1 | B92: 3v3 Team | D92: 1003554-1 | E92: 1 | G92: 1005598-1 | H92: 1005598-1 | I92: 1
A93: 1001804-1 | B93: 2v2r | D93: 1003584-1 | E93: 1 | G93: 1005687-1 | I93: 0
A94: 1001804-1 | B94: 3v3r | D94: 1003591-1 | E94: 1 | G94: 10057-2 | I94: 0
A95: 1001844-1 | B95: 2v2 Team | D95: 1003789-1 | E95: 4 | F95: 1003789-1 | G95: 1005979-1 | H95: 1005979-1 | I95: 4
A96: 1001844-1 | B96: 2v2 Team | D96: 1003865-1 | E96: 1 | G96: 1005985-1 | H96: 1005985-1 | I96: 1
A97: 1001844-1 | B97: 2v2r | D97: 1003878-1 | E97: 1 | G97: 10060-2 | H97: 10060-2 | I97: 1
A98: 1001904-1 | B98: 4v4r | D98: 1003881-1 | E98: 1 | F98: 1003881-1 | G98: 1006071-1 | H98: 1006071-1 | I98: 1
A99: 1001927-1 | B99: 3v3r | D99: 1003909-1 | E99: 2 | F99: 1003909-1 | G99: 1006153-1 | H99: 1006153-1 | I99: 2
A100: 1001927-1 | B100: 4v4r | D100: 1003959-1 | E100: 2 | G100: 1006247-1 | H100: 1006247-1 | I100: 2
A101: 1001947-1 | B101: 4v4r | D101: 1004109-1 | E101: 2 | G101: 1006264-1 | I101: 0
A102: 1001992-1 | B102: 2v2 Team | D102: 1004124-1 | E102: 2 | F102: 1004124-1 | G102: 1006444-1 | H102: 1006444-1 | I102: 2
A103: 1001992-1 | B103: 3v3 Team | D103: 1004139-1 | E103: 2 | G103: 1006461-1 | H103: 1006461-1 | I103: 2
A104: 1001999-1 | B104: 2v2 Team | D104: 1004199-1 | E104: 1 | F104: 1004199-1 | G104: 1006475-1 | H104: 1006475-1 | I104: 1
A105: 1002022-1 | B105: 2v2 Team | D105: 1004229-1 | E105: 1 | G105: 1006577-1 | I105: 0
A106: 1002046-1 | B106: 2v2r | D106: 1004340-1 | E106: 4 | G106: 1006593-1 | I106: 0
A107: 1002133-1 | B107: 2v2 Team | D107: 1004395-1 | E107: 1 | F107: 1004395-1 | G107: 1006636-1 | H107: 1006636-1 | I107: 1
A108: 1002133-1 | B108: 2v2r | D108: 1004485-1 | E108: 1 | F108: 1004485-1 | G108: 1006642-1 | H108: 1006642-1 | I108: 1
A109: 1002137-1 | B109: 2v2 Team | D109: 1004538-1 | E109: 1 | G109: 1006802-1 | I109: 0
A110: 1002139-1 | B110: 2v2r | D110: 1004550-1 | E110: 1 | G110: 1006975-1 | H110: 1006975-1 | I110: 1
A111: 1002165-1 | B111: 2v2 Team | D111: 1004654-1 | E111: 1 | F111: 1004654-1 | G111: 1006985-1 | I111: 0
A112: 1002165-1 | B112: 2v2 Team | D112: 1004769-1 | E112: 1 | G112: 1007029-1 | H112: 1007029-1 | I112: 1
A113: 1002165-1 | B113: 2v2 Team | D113: 1004776-1 | E113: 1 | G113: 1007038-1 | I113: 0
A114: 1002165-1 | B114: 3v3 Team | D114: 1004782-1 | E114: 1 | F114: 1004782-1 | G114: 1007069-1 | H114: 1007069-1 | I114: 1
A115: 1002165-1 | B115: 3v3 Team | D115: 1004796-1 | E115: 2 | F115: 1004796-1 | G115: 1007101-1 | H115: 1007101-1 | I115: 2
A116: 1002165-1 | B116: 2v2r | D116: 1004855-1 | E116: 5 | G116: 1007149-1 | I116: 0
A117: 1002165-1 | B117: 3v3r | D117: 1004940-1 | E117: 1 | F117: 1004940-1 | G117: 1007281-1 | I117: 0
A118: 1002165-1 | B118: 4v4r | D118: 1004947-1 | E118: 3 | G118: 1007312-1 | H118: 1007312-1 | I118: 3
A119: 1002196-1 | B119: 2v2 Team | D119: 1004982-1 | E119: 1 | G119: 1007393-1 | I119: 0
A120: 1002196-1 | B120: 3v3 Team | D120: 1004991-1 | E120: 2 | F120: 1004991-1 | G120: 1007401-1 | H120: 1007401-1 | I120: 2
A121: 1002298-1 | B121: 2v2 Team | D121: 1005170-1 | E121: 1 | F121: 1005170-1 | G121: 1007421-1 | H121: 1007421-1 | I121: 1
A122: 1002331-1 | B122: 2v2 Team | D122: 1005-2 | E122: 1 | F122: 1005-2 | G122: 1007445-1 | I122: 0
A123: 1002405-1 | B123: 2v2 Team | D123: 1005267-1 | E123: 1 | F123: 1005267-1 | G123: 1007453-1 | H123: 1007453-1 | I123: 1
A124: 1002413-1 | B124: 4v4r | D124: 1005354-1 | E124: 3 | G124: 1007477-1 | H124: 1007477-1 | I124: 3
A125: 1002420-1 | B125: 3v3r | D125: 1005373-1 | E125: 2 | G125: 1007506-1 | H125: 1007506-1 | I125: 2
A126: 1002480-1 | B126: 3v3 Team | D126: 1005482-1 | E126: 1 | G126: 1007808-1 | H126: 1007808-1 | I126: 1
A127: 1002622-1 | B127: 2v2 Team | D127: 1005511-1 | E127: 1 | G127: 1007868-1 | H127: 1007868-1 | I127: 1
A128: 1002622-1 | B128: 2v2 Team | D128: 1005538-1 | E128: 1 | G128: 100793-2 | H128: 100793-2 | I128: 1
A129: 1002622-1 | B129: 2v2 Team | D129: 1005563-1 | E129: 2 | F129: 1005563-1 | G129: 1007938-1 | H129: 1007938-1 | I129: 2
A130: 1002622-1 | B130: 2v2 Team | D130: 1005598-1 | E130: 1 | F130: 1005598-1 | G130: 1007939-1 | I130: 0
A131: 1002622-1 | B131: 2v2 Team | D131: 1005629-1 | E131: 1 | G131: 100797-2 | H131: 100797-2 | I131: 1
A132: 1002622-1 | B132: 3v3 Team | D132: 1005641-1 | E132: 2 | G132: 1007979-1 | I132: =IF(ISERROR(H132),0,E132) -> 0
A133: 1002622-1 | B133: 3v3 Team | D133: 1005658-1 | E133: 2 | G133: 10080-2 | H133: 10080-2 | I133: 2
A134: 1002622-1 | B134: 3v3 Team | D134: 1005672-1 | E134: 1 | G134: 1008079-1 | I134: 0
A135: 1002622-1 | B135: 4v4 Team | D135: 1005678-1 | E135: 2 | G135: 1008100-1 | I135: 0
A136: 1002622-1 | B136: 2v2r | D136: 1005767-1 | E136: 2 | G136: 1008-2 | H136: 1008-2 | I136: 2
A137: 1002622-1 | B137: 3v3r | D137: 1005781-1 | E137: 1 | G137: 1008369-1 | H137: 1008369-1 | I137: 1
A138: 1002622-1 | B138: 4v4r | D138: 1005787-1 | E138: 1 | G138: 1008454-1 | H138: 1008454-1 | I138: 1
A139: 1002641-1 | B139: 2v2 Team | D139: 1005905-1 | E139: 2 | G139: 1008523-1 | H139: 1008523-1 | I139: 2
A140: 1002641-1 | B140: 2v2 Team | D140: 1005922-1 | E140: 1 | G140: 1008550-1 | I140: 0
A141: 1002641-1 | B141: 2v2r | D141: 1005979-1 | E141: 1 | F141: 1005979-1 | G141: 1008842-1 | H141: 1008842-1 | I141: 1
A142: 1002641-1 | B142: 3v3r | D142: 1005985-1 | E142: 1 | F142: 1005985-1 | G142: 1008859-1 | H142: 1008859-1 | I142: 1
A143: 1002641-1 | B143: 4v4r | D143: 1006008-1 | E143: 3 | G143: 1008906-1 | H143: 1008906-1 | I143: 3
A144: 1002659-1 | B144: 2v2 Team | D144: 10060-2 | E144: 3 | F144: 10060-2 | G144: 1009034-1 | I144: 0
A145: 1002704-1 | B145: 2v2 Team | D145: 1006027-1 | E145: 3 | G145: 1009063-1 | I145: 0
A146: 1002704-1 | B146: 2v2 Team | D146: 1006028-1 | E146: 1 | G146: 1009231-1 | H146: 1009231-1 | I146: 1
A147: 1002708-1 | B147: 4v4r | D147: 1006036-1 | E147: 1 | G147: 1009262-1 | I147: 0
A148: 1002712-1 | B148: 4v4 Team | D148: 1006069-1 | E148: 1 | G148: 1009403-1 | H148: 1009403-1 | I148: 1
A149: 1002810-1 | B149: 2v2r | D149: 1006071-1 | E149: 3 | F149: 1006071-1 | G149: 1009461-1 | H149: 1009461-1 | I149: 3
A150: 1002810-1 | B150: 3v3r | D150: 1006095-1 | E150: 1 | G150: 1009548-1 | H150: 1009548-1 | I150: 1
A151: 1002911-1 | B151: 2v2r | D151: 1006099-1 | E151: 1 | G151: 1009554-1 | H151: 1009554-1 | I151: 1
A152: 1002911-1 | B152: 3v3r | D152: 1006153-1 | E152: 1 | F152: 1006153-1 | G152: 1009603-1 | H152: 1009603-1 | I152: 1
A153: 1002911-1 | B153: 4v4r | D153: 1006165-1 | E153: 1 | G153: 1009610-1 | H153: 1009610-1 | I153: 1
A154: 1002927-1 | B154: 2v2 Team | D154: 1006180-1 | E154: 1 | G154: 1009704-1 | H154: 1009704-1 | I154: 1
A155: 1003007-1 | B155: 4v4r | D155: 1006186-1 | E155: 1 | G155: 1009846-1 | H155: 1009846-1 | I155: 1
A156: 10030-2 | B156: 2v2 Team | D156: 1006206-1 | E156: 1 | G156: 1009971-1 | H156: 1009971-1 | I156: 1
A157: 10030-2 | B157: 2v2r | D157: 1006208-1 | E157: 1 | G157: 1010179-1 | H157: 1010179-1 | I157: 1
A158: 1003034-1 | B158: 2v2 Team | D158: 1006210-1 | E158: 2 | G158: 1010182-1 | H158: 1010182-1 | I158: 2
A159: 1003034-1 | B159: 3v3 Team | D159: 1006247-1 | E159: 3 | F159: 1006247-1 | G159: 1010254-1 | H159: 1010254-1 | I159: 3
A160: 1003034-1 | B160: 3v3 Team | D160: 1006444-1 | E160: 2 | F160: 1006444-1 | G160: 1010570-1 | H160: 1010570-1 | I160: 2
A161: 1003034-1 | B161: 3v3 Team | D161: 1006461-1 | E161: 1 | F161: 1006461-1 | G161: 10107-2 | I161: 0
A162: 1003034-1 | B162: 4v4r | D162: 1006475-1 | E162: 4 | F162: 1006475-1 | G162: 1010751-1 | I162: 0
A163: 1003055-1 | B163: 2v2r | D163: 1006636-1 | E163: 3 | F163: 1006636-1 | G163: 1010758-1 | H163: 1010758-1 | I163: 3
A164: 1003055-1 | B164: 3v3r | D164: 1006642-1 | E164: 3 | F164: 1006642-1 | G164: 1010805-1 | H164: 1010805-1 | I164: 3
A165: 1003058-1 | B165: 2v2r | D165: 1006655-1 | E165: 1 | G165: 1010852-1 | H165: 1010852-1 | I165: 1
A166: 1003058-1 | B166: 3v3r | D166: 1006657-1 | E166: 2 | G166: 1010886-1 | I166: 0
A167: 1003151-1 | B167: 2v2 Team | D167: 1006685-1 | E167: 1 | G167: 1010975-1 | I167: 0
A168: 1003151-1 | B168: 3v3r | D168: 1006793-1 | E168: 2 | G168: 1010999-1 | H168: 1010999-1 | I168: 2
A169: 1003156-1 | B169: 4v4r | D169: 1006918-1 | E169: 1 | G169: 1011077-1 | I169: 0
A170: 1003164-1 | B170: 4v4r | D170: 1006971-1 | E170: 1 | G170: 1011094-1 | I170: 0
A171: 1003167-1 | B171: 2v2 Team | D171: 1006975-1 | E171: 3 | F171: 1006975-1 | G171: 1011250-1 | H171: 1011250-1 | I171: 3
A172: 1003172-1 | B172: 2v2 Team | D172: 1007012-1 | E172: 3 | G172: 1011291-1 | H172: 1011291-1 | I172: 3
A173: 1003174-1 | B173: 2v2 Team | D173: 1007029-1 | E173: 1 | F173: 1007029-1 | G173: 1011303-1 | H173: 1011303-1 | I173: 1
A174: 1003207-1 | B174: 2v2r | D174: 1007033-1 | E174: 1 | G174: 1011520-1 | H174: 1011520-1 | I174: 1
A175: 1003284-1 | B175: 2v2 Team | D175: 1007063-1 | E175: 2 | G175: 1011559-1 | H175: 1011559-1 | I175: 2
A176: 1003284-1 | B176: 3v3 Team | D176: 1007069-1 | E176: 3 | F176: 1007069-1 | G176: 1011598-1 | I176: 0
A177: 1003284-1 | B177: 3v3r | D177: 1007091-1 | E177: 2 | G177: 1011732-1 | I177: 0
A178: 1003284-1 | B178: 4v4r | D178: 1007093-1 | E178: 1 | G178: 1011754-1 | I178: 0
A179: 1003353-1 | B179: 2v2 Team | D179: 1007101-1 | E179: 4 | F179: 1007101-1 | G179: 1011995-1 | H179: 1011995-1 | I179: 4
A180: 1003353-1 | B180: 2v2 Team | D180: 1007182-1 | E180: 1 | G180: 1012085-1 | I180: 0
A181: 1003353-1 | B181: 2v2 Team | D181: 1007312-1 | E181: 1 | F181: 1007312-1 | G181: 1012157-1 | I181: 0
A182: 1003478-1 | B182: 4v4r | D182: 1007401-1 | E182: 1 | F182: 1007401-1 | G182: 1012269-1 | I182: 0
A183: 1003554-1 | B183: 2v2r | D183: 1007404-1 | E183: 1 | G183: 1012348-1 | I183: 0
A184: 1003584-1 | B184: 4v4r | D184: 1007421-1 | E184: 2 | F184: 1007421-1 | G184: 1012353-1 | I184: 0
A185: 1003591-1 | B185: 2v2 Team | D185: 1007435-1 | E185: 4 | G185: 1012440-1 | H185: 1012440-1 | I185: 4
A186: 1003789-1 | B186: 2v2 Team | D186: 1007453-1 | E186: 1 | F186: 1007453-1 | G186: 1012502-1 | H186: 1012502-1 | I186: 1
A187: 1003789-1 | B187: 2v2r | D187: 1007465-1 | E187: 1 | G187: 1012509-1 | H187: 1012509-1 | I187: 1
A188: 1003789-1 | B188: 3v3r | D188: 1007477-1 | E188: 10 | F188: 1007477-1 | G188: 1012536-1 | I188: 0
A189: 1003789-1 | B189: 4v4r | D189: 1007496-1 | E189: 1 | G189: 1012582-1 | I189: 0
A190: 1003865-1 | B190: 2v2 Team | D190: 1007506-1 | E190: 2 | F190: 1007506-1 | G190: 1012630-1 | I190: 0
A191: 1003878-1 | B191: 4v4r | D191: 1007537-1 | E191: 1 | G191: 1012650-1 | I191: 0
A192: 1003881-1 | B192: 2v2 Team | D192: 1007578-1 | E192: 5 | G192: 1012707-1 | H192: 1012707-1 | I192: 5
A193: 1003909-1 | B193: 2v2r | D193: 1007592-1 | E193: 1 | G193: 1012721-1 | H193: 1012721-1 | I193: 1
A194: 1003909-1 | B194: 3v3r | D194: 1007610-1 | E194: 4 | G194: 1012769-1 | H194: 1012769-1 | I194: 4
A195: 1003959-1 | B195: 2v2r | D195: 1007613-1 | E195: 1 | G195: 1012791-1 | I195: 0
A196: 1003959-1 | B196: 3v3r | D196: 1007649-1 | E196: 1 | G196: 1012832-1 | I196: =IF(ISERROR(H196),0,E196) -> 0
A197: 1004109-1 | B197: 3v3 Team | D197: 1007681-1 | E197: 1 | G197: 1012860-1 | H197: 1012860-1 | I197: 1
A198: 1004109-1 | B198: 3v3 Team | D198: 1007808-1 | E198: 1 | F198: 1007808-1 | G198: 1012880-1 | H198: 1012880-1 | I198: 1
A199: 1004124-1 | B199: 2v2 Team | D199: 1007834-1 | E199: 1 | G199: 1012881-1 | H199: 1012881-1 | I199: 1
A200: 1004124-1 | B200: 2v2r | D200: 1007868-1 | E200: 3 | F200: 1007868-1 | G200: 1012927-1 | I200: 0
... 4300 more rows

Sheet 2v2 Team
A1: Player ID 1 | B1: Player 1 Region | C1: Player 1 Subregion | D1: Player 1 Name | E1: Player 1 Race | F1: Player ID 2 | G1: Player 2 Region | H1: Player 2 Subregion | I1: Player 2 Name | J1: Player 2 Race | K1: League | L1: Win | M1: Loss | N1: Score | O1: Date Joined | P1: Last Game | Q1: Timestamp | R1: TrueID | S1: Duplicate Check | T1: Ordered ID
A2: 1362008 | B2: us | C2: 1 | D2: KrazyErik | E2: p | F2: 954023 | G2: us | H2: 1 | I2: spybreak | J2: p | K2: Bronze | L2: 37 | M2: 39 | N2: 680 | O2: 2014-07-27 | P2: 1 hours | Q2: 2014-08-24T18:53:10 | R2: 1362008-1|954023-1 | S2: 0 | T2: 1
A3: 3249653 | B3: us | C3: 1 | D3: JFoo | E3: p | F3: 2185866 | G3: us | H3: 1 | I3: Drae | J3: r | K3: Bronze | L3: 34 | M3: 37 | N3: 673 | O3: 2014-08-14 | P3: 18 hours | Q3: 2014-08-24T18:53:10 | R3: 3249653-1|2185866-1 | S3: 0 | T3: 2
A4: 3467687 | B4: us | C4: 1 | D4: Wildcat | E4: r | F4: 1428741 | G4: us | H4: 1 | I4: Cragz | J4: r | K4: Bronze | L4: 34 | M4: 32 | N4: 664 | O4: 2014-07-12 | P4: 1 days | Q4: 2014-08-24T18:53:10 | R4: 3467687-1|1428741-1 | S4: 0 | T4: 3
A5: 5799335 | B5: us | C5: 1 | D5: Aaron | E5: z | F5: 1719619 | G5: us | H5: 1 | I5: VENOMIS | J5: p | K5: Bronze | L5: 32 | M5: 31 | N5: 655 | O5: 2014-07-18 | P5: 2 days | Q5: 2014-08-24T18:53:10 | R5: 5799335-1|1719619-1 | S5: 0 | T5: 4
A6: 2029268 | B6: us | C6: 1 | D6: eightman | E6: t | F6: 1078912 | G6: us | H6: 1 | I6: hiro | J6: p | K6: Bronze | L6: 40 | M6: 45 | N6: 653 | O6: 2014-07-11 | P6: 6 hours | Q6: 2014-08-24T18:53:10 | R6: 2029268-1|1078912-1 | S6: 0 | T6: 5
A7: 653042 | B7: us | C7: 2 | D7: Führer | E7: p | F7: 634835 | G7: us | H7: 2 | I7: DARKSIDERS | J7: t | K7: Bronze | L7: 34 | M7: 37 | N7: 648 | O7: 2014-07-10 | P7: 18 hours | Q7: 2014-08-24T18:53:10 | R7: 653042-2|634835-2 | S7: 0 | T7: 6
A8: 490107 | B8: us | C8: 2 | D8: Ximes | E8: t | F8: 3983114 | G8: us | H8: 1 | I8: Rodrigo | J8: p | K8: Bronze | L8: 32 | M8: 40 | N8: 646 | O8: 2014-07-13 | P8: 28 minutes | Q8: 2014-08-24T18:53:10 | R8: 490107-2|3983114-1 | S8: 0 | T8: 7
A9: 5909192 | B9: us | C9: 1 | D9: xOhDirtyx | E9: t | F9: 4675121 | G9: us | H9: 1 | I9: DBeasty | J9: z | K9: Bronze | L9: 26 | M9: 27 | N9: 645 | O9: 2014-08-09 | P9: 2 hours | Q9: 2014-08-24T18:53:10 | R9: 5909192-1|4675121-1 | S9: 0 | T9: 8
A10: 4872030 | B10: us | C10: 1 | D10: Kane | E10: t | F10: 2287999 | G10: us | H10: 1 | I10: Supernova | J10: p | K10: Bronze | L10: 34 | M10: 36 | N10: 644 | O10: 2014-07-17 | P10: 23 hours | Q10: 2014-08-24T18:53:10 | R10: 4872030-1|2287999-1 | S10: 0 | T10: 9
A11: 2796803 | B11: us | C11: 1 | D11: dArchon | E11: t | F11: 1794678 | G11: us | H11: 1 | I11: FajAshua | J11: r | K11: Bronze | L11: 80 | M11: 85 | N11: 642 | O11: 2014-07-10 | P11: 1 days | Q11: 2014-08-24T18:53:10 | R11: 2796803-1|1794678-1 | S11: 0 | T11: 10
A12: 1609463 | B12: us | C12: 1 | D12: brntbeer | E12: p | F12: 1450630 | G12: us | H12: 1 | I12: FuriouS | J12: r | K12: Bronze | L12: 48 | M12: 53 | N12: 642 | O12: 2014-07-08 | P12: 1 days | Q12: 2014-08-24T18:53:10 | R12: 1609463-1|1450630-1 | S12: 0 | T12: 11
A13: 5874759 | B13: us | C13: 1 | D13: andress | E13: p | F13: 5827730 | G13: us | H13: 1 | I13: Knigth | J13: t | K13: Bronze | L13: 49 | M13: 60 | N13: 642 | O13: 2014-08-02 | P13: 15 minutes | Q13: 2014-08-24T18:53:10 | R13: 5874759-1|5827730-1 | S13: 0 | T13: 12
A14: 2611120 | B14: us | C14: 1 | D14: shadow | E14: p | F14: 703410 | G14: us | H14: 1 | I14: MaGiK | J14: r | K14: Bronze | L14: 37 | M14: 43 | N14: 640 | O14: 2014-07-12 | P14: 3 hours | Q14: 2014-08-24T18:53:10 | R14: 2611120-1|703410-1 | S14: 0 | T14: 13
A15: 4035296 | B15: us | C15: 1 | D15: Duckie | E15: p | F15: 1952301 | G15: us | H15: 1 | I15: Ghostie | J15: p | K15: Bronze | L15: 23 | M15: 29 | N15: 638 | O15: 2014-07-23 | P15: 2 days | Q15: 2014-08-24T18:53:10 | R15: 4035296-1|1952301-1 | S15: 0 | T15: 14
A16: 2250697 | B16: us | C16: 1 | D16: Spectrum | E16: p | F16: 776877 | G16: us | H16: 1 | I16: IfsGewk | J16: r | K16: Bronze | L16: 33 | M16: 43 | N16: 638 | O16: 2014-07-16 | P16: 1 days | Q16: 2014-08-24T18:53:10 | R16: 2250697-1|776877-1 | S16: 0 | T16: 15
A17: 1363328 | B17: us | C17: 1 | D17: GrimChikeN | E17: p | F17: 782129 | G17: us | H17: 1 | I17: burtonsmom | J17: p | K17: Bronze | L17: 42 | M17: 46 | N17: 635 | O17: 2014-07-09 | P17: 4 days | Q17: 2014-08-24T18:53:10 | R17: 1363328-1|782129-1 | S17: 0 | T17: 16
A18: 5534872 | B18: us | C18: 1 | D18: eatmyDICTION | E18: t | F18: 4072560 | G18: us | H18: 1 | I18: YourMaster | J18: p | K18: Bronze | L18: 37 | M18: 38 | N18: 634 | O18: 2014-07-08 | P18: 5 days | Q18: 2014-08-24T18:53:10 | R18: 5534872-1|4072560-1 | S18: 0 | T18: 17
A19: 5055054 | B19: us | C19: 1 | D19: Ricky | E19: z | F19: 395823 | G19: us | H19: 1 | I19: Mouse | J19: z | K19: Bronze | L19: 58 | M19: 61 | N19: 633 | O19: 2014-07-09 | P19: 1 days | Q19: 2014-08-24T18:53:10 | R19: 5055054-1|395823-1 | S19: 0 | T19: 18
A20: 5864519 | B20: us | C20: 1 | D20: Butters | E20: t | F20: 653902 | G20: us | H20: 1 | I20: dread | J20: p | K20: Bronze | L20: 57 | M20: 75 | N20: 633 | O20: 2014-07-21 | P20: 54 minutes | Q20: 2014-08-24T18:53:10 | R20: 5864519-1|653902-1 | S20: 0 | T20: 19
A21: 3540834 | B21: us | C21: 1 | D21: chi | E21: p | F21: 3204831 | G21: us | H21: 1 | I21: bcli | J21: z | K21: Bronze | L21: 25 | M21: 33 | N21: 632 | O21: 2014-08-02 | P21: 8 hours | Q21: 2014-08-24T18:53:10 | R21: 3540834-1|3204831-1 | S21: 0 | T21: 20
A22: 2718580 | B22: us | C22: 1 | D22: EEmonk | E22: t | F22: 2692927 | G22: us | H22: 1 | I22: Huh | J22: z | K22: Bronze | L22: 58 | M22: 56 | N22: 631 | O22: 2014-07-15 | P22: 19 hours | Q22: 2014-08-24T18:53:10 | R22: 2718580-1|2692927-1 | S22: 0 | T22: 21
A23: 5824258 | B23: us | C23: 1 | D23: Woodz | E23: p | F23: 2243929 | G23: us | H23: 1 | I23: ItsTone | J23: t | K23: Bronze | L23: 26 | M23: 40 | N23: 631 | O23: 2014-08-04 | P23: 18 hours | Q23: 2014-08-24T18:53:10 | R23: 5824258-1|2243929-1 | S23: 0 | T23: 22
A24: 3080488 | B24: us | C24: 1 | D24: RayzR | E24: t | F24: 2967976 | G24: us | H24: 1 | I24: bicolxp | J24: t | K24: Bronze | L24: 36 | M24: 50 | N24: 628 | O24: 2014-07-11 | P24: 23 hours | Q24: 2014-08-24T18:53:10 | R24: 3080488-1|2967976-1 | S24: 0 | T24: 23
A25: 4311517 | B25: us | C25: 1 | D25: DevDex | E25: z | F25: 2577787 | G25: us | H25: 1 | I25: nialld | J25: t | K25: Bronze | L25: 26 | M25: 26 | N25: 625 | O25: 2014-07-29 | P25: 1 days | Q25: 2014-08-24T18:53:12 | R25: 4311517-1|2577787-1 | S25: 0 | T25: 24
A26: 3054750 | B26: us | C26: 1 | D26: Phunam | E26: r | F26: 537777 | G26: us | H26: 1 | I26: BigToe | J26: r | K26: Bronze | L26: 22 | M26: 30 | N26: 625 | O26: 2014-07-20 | P26: 1 hours | Q26: 2014-08-24T18:53:12 | R26: 3054750-1|537777-1 | S26: 0 | T26: 25
A27: 5149150 | B27: us | C27: 1 | D27: ReallyChanks | E27: z | F27: 3005580 | G27: us | H27: 1 | I27: TMarlin | J27: t | K27: Bronze | L27: 28 | M27: 32 | N27: 624 | O27: 2014-07-15 | P27: 2 hours | Q27: 2014-08-24T18:53:12 | R27: 5149150-1|3005580-1 | S27: 0 | T27: 26
A28: 5716064 | B28: us | C28: 1 | D28: DoubleDub | E28: r | F28: 5665097 | G28: us | H28: 1 | I28: ILLWILL | J28: r | K28: Bronze | L28: 35 | M28: 38 | N28: 623 | O28: 2014-08-09 | P28: 2 days | Q28: 2014-08-24T18:53:12 | R28: 5716064-1|5665097-1 | S28: 0 | T28: 27
A29: 635142 | B29: us | C29: 2 | D29: Chaca | E29: r | F29: 1042480 | G29: us | H29: 1 | I29: Chapita | J29: p | K29: Bronze | L29: 44 | M29: 50 | N29: 623 | O29: 2014-07-13 | P29: 1 days | Q29: 2014-08-24T18:53:12 | R29: 635142-2|1042480-1 | S29: 0 | T29: 28
A30: 679611 | B30: us | C30: 2 | D30: kommandoh | E30: r | F30: 5543552 | G30: us | H30: 1 | I30: Soophie | J30: t | K30: Bronze | L30: 28 | M30: 27 | N30: 622 | O30: 2014-07-09 | P30: 6 minutes | Q30: 2014-08-24T18:53:12 | R30: 679611-2|5543552-1 | S30: 0 | T30: 29
A31: 5657231 | B31: us | C31: 1 | D31: JackONhs | E31: z | F31: 4245216 | G31: us | H31: 1 | I31: Legion | J31: p | K31: Bronze | L31: 27 | M31: 37 | N31: 622 | O31: 2014-07-07 | P31: 6 minutes | Q31: 2014-08-24T18:53:12 | R31: 5657231-1|4245216-1 | S31: 0 | T31: 30
A32: 5095315 | B32: us | C32: 1 | D32: ochoarobert | E32: z | F32: 2579755 | G32: us | H32: 1 | I32: Ziltoid | J32: z | K32: Bronze | L32: 28 | M32: 34 | N32: 621 | O32: 2014-07-19 | P32: 1 days | Q32: 2014-08-24T18:53:12 | R32: 5095315-1|2579755-1 | S32: 0 | T32: 31
A33: 5227830 | B33: us | C33: 1 | D33: EuroForce | E33: p | F33: 370841 | G33: us | H33: 1 | I33: Artur | J33: t | K33: Bronze | L33: 38 | M33: 44 | N33: 617 | O33: 2014-07-13 | P33: 18 hours | Q33: 2014-08-24T18:53:12 | R33: 5227830-1|370841-1 | S33: 0 | T33: 32
A34: 2795287 | B34: us | C34: 1 | D34: Notoriety | E34: r | F34: 1638974 | G34: us | H34: 1 | I34: Methax | J34: r | K34: Bronze | L34: 35 | M34: 42 | N34: 617 | O34: 2014-07-08 | P34: 14 hours | Q34: 2014-08-24T18:53:12 | R34: 2795287-1|1638974-1 | S34: 0 | T34: 33
A35: 2892924 | B35: us | C35: 1 | D35: JRogersNH | E35: r | F35: 2515578 | G35: us | H35: 1 | I35: KMilesNH | J35: r | K35: Bronze | L35: 30 | M35: 26 | N35: 614 | O35: 2014-07-08 | P35: 1 days | Q35: 2014-08-24T18:53:12 | R35: 2892924-1|2515578-1 | S35: 0 | T35: 34
A36: 5143508 | B36: us | C36: 1 | D36: MOSALIK | E36: p | F36: 4545327 | G36: us | H36: 1 | I36: BlackMilky | J36: t | K36: Bronze | L36: 31 | M36: 37 | N36: 614 | O36: 2014-07-28 | P36: 19 hours | Q36: 2014-08-24T18:53:12 | R36: 5143508-1|4545327-1 | S36: 0 | T36: 35
A37: 1585472 | B37: us | C37: 1 | D37: Dbags | E37: t | F37: 1092221 | G37: us | H37: 1 | I37: Loki | J37: z | K37: Bronze | L37: 32 | M37: 41 | N37: 613 | O37: 2014-07-16 | P37: 3 days | Q37: 2014-08-24T18:53:12 | R37: 1585472-1|1092221-1 | S37: 0 | T37: 36
A38: 1361058 | B38: us | C38: 1 | D38: DoubleDyno | E38: p | F38: 536366 | G38: us | H38: 1 | I38: Lazarus | J38: t | K38: Bronze | L38: 33 | M38: 38 | N38: 612 | O38: 2014-07-27 | P38: 23 hours | Q38: 2014-08-24T18:53:12 | R38: 1361058-1|536366-1 | S38: 0 | T38: 37
A39: 5892415 | B39: us | C39: 1 | D39: Fiftyfour | E39: t | F39: 3925316 | G39: us | H39: 1 | I39: FKETHNICITY | J39: z | K39: Bronze | L39: 29 | M39: 35 | N39: 611 | O39: 2014-08-05 | P39: 13 hours | Q39: 2014-08-24T18:53:12 | R39: 5892415-1|3925316-1 | S39: 0 | T39: 38
A40: 1006475 | B40: us | C40: 1 | D40: Delicious | E40: r | F40: 899067 | G40: us | H40: 1 | I40: Stanswers | J40: r | K40: Bronze | L40: 24 | M40: 20 | N40: 609 | O40: 2014-07-09 | P40: 23 hours | Q40: 2014-08-24T18:53:12 | R40: 1006475-1|899067-1 | S40: 0 | T40: 39
A41: 1125018 | B41: us | C41: 1 | D41: buzz | E41: t | F41: 266195 | G41: us | H41: 1 | I41: ManDown | J41: r | K41: Bronze | L41: 59 | M41: 70 | N41: 609 | O41: 2014-07-07 | P41: 3 days | Q41: 2014-08-24T18:53:12 | R41: 1125018-1|266195-1 | S41: 0 | T41: 40
A42: 3163566 | B42: us | C42: 1 | D42: snake | E42: t | F42: 1511211 | G42: us | H42: 1 | I42: HeartAttack | J42: z | K42: Bronze | L42: 35 | M42: 42 | N42: 609 | O42: 2014-07-12 | P42: 22 hours | Q42: 2014-08-24T18:53:12 | R42: 3163566-1|1511211-1 | S42: 0 | T42: 41
A43: 5617916 | B43: us | C43: 1 | D43: Bapoy | E43: p | F43: 3516140 | G43: us | H43: 1 | I43: KayodMarino | J43: t | K43: Bronze | L43: 40 | M43: 49 | N43: 608 | O43: 2014-07-07 | P43: 2 days | Q43: 2014-08-24T18:53:12 | R43: 5617916-1|3516140-1 | S43: 0 | T43: 42
A44: 358813 | B44: us | C44: 2 | D44: Demolidor | E44: r | F44: 329737 | G44: us | H44: 2 | I44: Exterminador | J44: p | K44: Bronze | L44: 35 | M44: 47 | N44: 608 | O44: 2014-07-09 | P44: 6 minutes | Q44: 2014-08-24T18:53:12 | R44: 358813-2|329737-2 | S44: 0 | T44: 43
A45: 2104505 | B45: us | C45: 1 | D45: daddyzeb | E45: p | F45: 1760550 | G45: us | H45: 1 | I45: Slevin | J45: t | K45: Bronze | L45: 37 | M45: 36 | N45: 606 | O45: 2014-07-13 | P45: 6 days | Q45: 2014-08-24T18:53:12 | R45: 2104505-1|1760550-1 | S45: 0 | T45: 44
A46: 2035645 | B46: us | C46: 1 | D46: eduardo | E46: t | F46: 1635980 | G46: us | H46: 1 | I46: McLovin | J46: z | K46: Bronze | L46: 42 | M46: 54 | N46: 606 | O46: 2014-07-08 | P46: 1 days | Q46: 2014-08-24T18:53:12 | R46: 2035645-1|1635980-1 | S46: 0 | T46: 45
A47: 5831836 | B47: us | C47: 1 | D47: Keeto | E47: t | F47: 5523584 | G47: us | H47: 1 | I47: Goku | J47: t | K47: Bronze | L47: 64 | M47: 86 | N47: 606 | O47: 2014-07-16 | P47: 4 hours | Q47: 2014-08-24T18:53:12 | R47: 5831836-1|5523584-1 | S47: 0 | T47: 46
A48: 4100847 | B48: us | C48: 1 | D48: Etho | E48: t | F48: 1132777 | G48: us | H48: 1 | I48: Sarog | J48: p | K48: Bronze | L48: 20 | M48: 22 | N48: 605 | O48: 2014-07-08 | P48: 4 hours | Q48: 2014-08-24T18:53:12 | R48: 4100847-1|1132777-1 | S48: 0 | T48: 47
A49: 4780053 | B49: us | C49: 1 | D49: Jared | E49: p | F49: 750901 | G49: us | H49: 1 | I49: Shively | J49: p | K49: Bronze | L49: 47 | M49: 55 | N49: 602 | O49: 2014-07-08 | P49: 5 days | Q49: 2014-08-24T18:53:12 | R49: 4780053-1|750901-1 | S49: 0 | T49: 48
A50: 723242 | B50: us | C50: 2 | D50: combatwarrio | E50: p | F50: 4325684 | G50: us | H50: 1 | I50: JAZ | J50: t | K50: Bronze | L50: 51 | M50: 62 | N50: 602 | O50: 2014-07-08 | P50: 10 hours | Q50: 2014-08-24T18:53:12 | R50: 723242-2|4325684-1 | S50: 0 | T50: 49
A51: 4918408 | B51: us | C51: 1 | D51: RyGreefy | E51: t | F51: 3272461 | G51: us | H51: 1 | I51: MasterKush | J51: r | K51: Bronze | L51: 25 | M51: 34 | N51: 600 | O51: 2014-07-25 | P51: 1 hours | Q51: 2014-08-24T18:53:12 | R51: 4918408-1|3272461-1 | S51: 0 | T51: 50
A52: 5840062 | B52: us | C52: 1 | D52: DaNink | E52: p | F52: 5796049 | G52: us | H52: 1 | I52: Repoed | J52: z | K52: Bronze | L52: 28 | M52: 34 | N52: 599 | O52: 2014-07-24 | P52: 16 hours | Q52: 2014-08-24T18:53:12 | R52: 5840062-1|5796049-1 | S52: 0 | T52: 51
A53: 3265054 | B53: us | C53: 1 | D53: Rodimusprime | E53: z | F53: 864208 | G53: us | H53: 1 | I53: Stimpson | J53: z | K53: Bronze | L53: 24 | M53: 40 | N53: 599 | O53: 2014-08-02 | P53: 7 minutes | Q53: 2014-08-24T18:53:12 | R53: 3265054-1|864208-1 | S53: 0 | T53: 52
A54: 1266867 | B54: us | C54: 1 | D54: Killaspawn | E54: r | F54: 1217392 | G54: us | H54: 1 | I54: Havoc | J54: r | K54: Bronze | L54: 33 | M54: 34 | N54: 598 | O54: 2014-07-08 | P54: 20 hours | Q54: 2014-08-24T18:53:12 | R54: 1266867-1|1217392-1 | S54: 0 | T54: 53
A55: 3434999 | B55: us | C55: 1 | D55: ChibiMoon | E55: z | F55: 1303302 | G55: us | H55: 1 | I55: ouroboros | J55: p | K55: Bronze | L55: 35 | M55: 37 | N55: 598 | O55: 2014-07-28 | P55: 4 days | Q55: 2014-08-24T18:53:12 | R55: 3434999-1|1303302-1 | S55: 0 | T55: 54
A56: 5090593 | B56: us | C56: 1 | D56: MengusGuido | E56: r | F56: 5072035 | G56: us | H56: 1 | I56: FRAIL | J56: r | K56: Bronze | L56: 74 | M56: 91 | N56: 598 | O56: 2014-08-08 | P56: 11 hours | Q56: 2014-08-24T18:53:12 | R56: 5090593-1|5072035-1 | S56: 0 | T56: 55
A57: 5836755 | B57: us | C57: 1 | D57: Han | E57: z | F57: 3336178 | G57: us | H57: 1 | I57: Joubert | J57: z | K57: Bronze | L57: 30 | M57: 30 | N57: 597 | O57: 2014-07-20 | P57: 1 days | Q57: 2014-08-24T18:53:12 | R57: 5836755-1|3336178-1 | S57: 0 | T57: 56
A58: 1768729 | B58: us | C58: 1 | D58: Chadwic | E58: r | F58: 1506602 | G58: us | H58: 1 | I58: Koelzer | J58: t | K58: Bronze | L58: 23 | M58: 26 | N58: 597 | O58: 2014-07-07 | P58: 4 days | Q58: 2014-08-24T18:53:12 | R58: 1768729-1|1506602-1 | S58: 0 | T58: 57
A59: 5071963 | B59: us | C59: 1 | D59: Maori | E59: p | F59: 3190492 | G59: us | H59: 1 | I59: Magleroy | J59: t | K59: Bronze | L59: 36 | M59: 46 | N59: 597 | O59: 2014-07-19 | P59: 3 days | Q59: 2014-08-24T18:53:12 | R59: 5071963-1|3190492-1 | S59: 0 | T59: 58
A60: 4731642 | B60: us | C60: 1 | D60: RAZIEL | E60: z | F60: 4566517 | G60: us | H60: 1 | I60: FANATIC | J60: t | K60: Bronze | L60: 46 | M60: 50 | N60: 596 | O60: 2014-07-15 | P60: 3 hours | Q60: 2014-08-24T18:53:12 | R60: 4731642-1|4566517-1 | S60: 0 | T60: 59
A61: 4100724 | B61: us | C61: 1 | D61: Bmilasao | E61: p | F61: 1631435 | G61: us | H61: 1 | I61: Fadilla | J61: r | K61: Bronze | L61: 49 | M61: 58 | N61: 596 | O61: 2014-07-13 | P61: 3 minutes | Q61: 2014-08-24T18:53:12 | R61: 4100724-1|1631435-1 | S61: 0 | T61: 60
A62: 3990436 | B62: us | C62: 1 | D62: berriomarin | E62: z | F62: 1797706 | G62: us | H62: 1 | I62: LuchoGonima | J62: r | K62: Bronze | L62: 21 | M62: 29 | N62: 596 | O62: 2014-07-27 | P62: 1 hours | Q62: 2014-08-24T18:53:12 | R62: 3990436-1|1797706-1 | S62: 0 | T62: 61
A63: 3684129 | B63: us | C63: 1 | D63: Groo | E63: t | F63: 3683333 | G63: us | H63: 1 | I63: Sentinel | J63: t | K63: Bronze | L63: 28 | M63: 41 | N63: 596 | O63: 2014-07-12 | P63: 6 hours | Q63: 2014-08-24T18:53:12 | R63: 3684129-1|3683333-1 | S63: 0 | T63: 62
A64: 4859188 | B64: us | C64: 1 | D64: MakeYourMove | E64: t | F64: 4675570 | G64: us | H64: 1 | I64: Jack | J64: z | K64: Bronze | L64: 24 | M64: 22 | N64: 594 | O64: 2014-07-08 | P64: 5 days | Q64: 2014-08-24T18:53:12 | R64: 4859188-1|4675570-1 | S64: 0 | T64: 63
A65: 3190609 | B65: us | C65: 1 | D65: Johnson | E65: r | F65: 1858836 | G65: us | H65: 1 | I65: Mihkail | J65: r | K65: Bronze | L65: 46 | M65: 56 | N65: 594 | O65: 2014-07-10 | P65: 5 hours | Q65: 2014-08-24T18:53:12 | R65: 3190609-1|1858836-1 | S65: 0 | T65: 64
A66: 3334384 | B66: us | C66: 1 | D66: Justiciar | E66: p | F66: 3333678 | G66: us | H66: 1 | I66: Tirion | J66: z | K66: Bronze | L66: 25 | M66: 21 | N66: 593 | O66: 2014-08-03 | P66: 1 days | Q66: 2014-08-24T18:53:12 | R66: 3334384-1|3333678-1 | S66: 0 | T66: 65
A67: 2158856 | B67: us | C67: 1 | D67: rOm | E67: r | F67: 2056647 | G67: us | H67: 1 | I67: gaybOLZ | J67: r | K67: Bronze | L67: 27 | M67: 36 | N67: 593 | O67: 2014-08-02 | P67: 23 hours | Q67: 2014-08-24T18:53:12 | R67: 2158856-1|2056647-1 | S67: 0 | T67: 66
A68: 4801647 | B68: us | C68: 1 | D68: Wombo | E68: p | F68: 1691098 | G68: us | H68: 1 | I68: DMANN | J68: z | K68: Bronze | L68: 32 | M68: 35 | N68: 592 | O68: 2014-07-13 | P68: 6 days | Q68: 2014-08-24T18:53:12 | R68: 4801647-1|1691098-1 | S68: 0 | T68: 67
A69: 3445264 | B69: us | C69: 1 | D69: berserkbear | E69: z | F69: 605350 | G69: us | H69: 1 | I69: MrRabbitz | J69: r | K69: Bronze | L69: 44 | M69: 54 | N69: 590 | O69: 2014-07-08 | P69: 3 days | Q69: 2014-08-24T18:53:12 | R69: 3445264-1|605350-1 | S69: 0 | T69: 68
A70: 124959 | B70: us | C70: 2 | D70: Panchen | E70: p | F70: 5861298 | G70: us | H70: 1 | I70: Alastor | J70: t | K70: Bronze | L70: 31 | M70: 33 | N70: 589 | O70: 2014-07-19 | P70: 4 hours | Q70: 2014-08-24T18:53:12 | R70: 124959-2|5861298-1 | S70: 0 | T70: 69
A71: 1135768 | B71: us | C71: 1 | D71: Swiftus | E71: z | F71: 1064622 | G71: us | H71: 1 | I71: Trevicahn | J71: t | K71: Bronze | L71: 46 | M71: 54 | N71: 589 | O71: 2014-07-15 | P71: 1 days | Q71: 2014-08-24T18:53:12 | R71: 1135768-1|1064622-1 | S71: 0 | T71: 70
A72: 64355 | B72: us | C72: 2 | D72: jão | E72: z | F72: 58624 | G72: us | H72: 2 | I72: DavidFante | J72: p | K72: Bronze | L72: 24 | M72: 32 | N72: 589 | O72: 2014-07-09 | P72: 2 hours | Q72: 2014-08-24T18:53:12 | R72: 64355-2|58624-2 | S72: 0 | T72: 71
A73: 4826230 | B73: us | C73: 1 | D73: blackwillow | E73: t | F73: 1873288 | G73: us | H73: 1 | I73: redwillow | J73: t | K73: Bronze | L73: 21 | M73: 24 | N73: 588 | O73: 2014-07-11 | P73: 44 minutes | Q73: 2014-08-24T18:53:12 | R73: 4826230-1|1873288-1 | S73: 0 | T73: 72
A74: 5394911 | B74: us | C74: 1 | D74: cam | E74: r | F74: 4070141 | G74: us | H74: 1 | I74: Zanwur | J74: t | K74: Bronze | L74: 37 | M74: 40 | N74: 586 | O74: 2014-07-12 | P74: 1 days | Q74: 2014-08-24T18:53:12 | R74: 5394911-1|4070141-1 | S74: 0 | T74: 73
A75: 5166378 | B75: us | C75: 1 | D75: Siddly | E75: z | F75: 1606847 | G75: us | H75: 1 | I75: fred | J75: t | K75: Bronze | L75: 18 | M75: 22 | N75: 586 | O75: 2014-07-18 | P75: 1 days | Q75: 2014-08-24T18:53:12 | R75: 5166378-1|1606847-1 | S75: 0 | T75: 74
A76: 3554848 | B76: us | C76: 1 | D76: Splifsoldier | E76: p | F76: 567859 | G76: us | H76: 1 | I76: clisholder | J76: r | K76: Bronze | L76: 38 | M76: 42 | N76: 585 | O76: 2014-07-13 | P76: 5 days | Q76: 2014-08-24T18:53:12 | R76: 3554848-1|567859-1 | S76: 0 | T76: 75
A77: 3348774 | B77: us | C77: 1 | D77: Demian | E77: z | F77: 743292 | G77: us | H77: 1 | I77: TooFlyTy | J77: p | K77: Bronze | L77: 20 | M77: 23 | N77: 585 | O77: 2014-07-15 | P77: 9 hours | Q77: 2014-08-24T18:53:12 | R77: 3348774-1|743292-1 | S77: 0 | T77: 76
A78: 5879205 | B78: us | C78: 1 | D78: Hero | E78: p | F78: 5807061 | G78: us | H78: 1 | I78: profzibro | J78: p | K78: Bronze | L78: 50 | M78: 60 | N78: 585 | O78: 2014-07-29 | P78: 4 days | Q78: 2014-08-24T18:53:12 | R78: 5879205-1|5807061-1 | S78: 0 | T78: 77
A79: 393737 | B79: us | C79: 2 | D79: waljaya | E79: r | F79: 384177 | G79: us | H79: 2 | I79: DarkSithius | J79: t | K79: Bronze | L79: 19 | M79: 23 | N79: 585 | O79: 2014-07-14 | P79: 2 days | Q79: 2014-08-24T18:53:12 | R79: 393737-2|384177-2 | S79: 0 | T79: 78
A80: 5709588 | B80: us | C80: 1 | D80: Soonio | E80: t | F80: 5709097 | G80: us | H80: 1 | I80: coldjuice | J80: p | K80: Bronze | L80: 31 | M80: 40 | N80: 585 | O80: 2014-08-10 | P80: 4 days | Q80: 2014-08-24T18:53:12 | R80: 5709588-1|5709097-1 | S80: 0 | T80: 79
A81: 5164728 | B81: us | C81: 1 | D81: Blackknight | E81: z | F81: 3178180 | G81: us | H81: 1 | I81: Lol | J81: z | K81: Bronze | L81: 21 | M81: 19 | N81: 583 | O81: 2014-08-04 | P81: 3 days | Q81: 2014-08-24T18:53:12 | R81: 5164728-1|3178180-1 | S81: 0 | T81: 80
A82: 3681575 | B82: us | C82: 1 | D82: FuuukItAll | E82: z | F82: 2662407 | G82: us | H82: 1 | I82: Grimlock | J82: t | K82: Bronze | L82: 107 | M82: 138 | N82: 581 | O82: 2014-07-09 | P82: 2 days | Q82: 2014-08-24T18:53:12 | R82: 3681575-1|2662407-1 | S82: 0 | T82: 81
A83: 299583 | B83: us | C83: 2 | D83: Wewe | E83: t | F83: 285540 | G83: us | H83: 2 | I83: Chairizard | J83: t | K83: Bronze | L83: 74 | M83: 81 | N83: 578 | O83: 2014-07-08 | P83: 2 days | Q83: 2014-08-24T18:53:12 | R83: 299583-2|285540-2 | S83: 0 | T83: 82
A84: 1776029 | B84: us | C84: 1 | D84: supersoldier | E84: t | F84: 1745077 | G84: us | H84: 1 | I84: ian | J84: r | K84: Bronze | L84: 27 | M84: 34 | N84: 577 | O84: 2014-07-09 | P84: 15 hours | Q84: 2014-08-24T18:53:12 | R84: 1776029-1|1745077-1 | S84: 0 | T84: 83
A85: 4630466 | B85: us | C85: 1 | D85: Psychopat | E85: t | F85: 4562886 | G85: us | H85: 1 | I85: Orion | J85: t | K85: Bronze | L85: 36 | M85: 46 | N85: 577 | O85: 2014-07-11 | P85: 6 days | Q85: 2014-08-24T18:53:12 | R85: 4630466-1|4562886-1 | S85: 0 | T85: 84
A86: 5831190 | B86: us | C86: 1 | D86: David | E86: t | F86: 1695120 | G86: us | H86: 1 | I86: DaRHSalS | J86: p | K86: Bronze | L86: 36 | M86: 53 | N86: 577 | O86: 2014-07-08 | P86: 2 days | Q86: 2014-08-24T18:53:12 | R86: 5831190-1|1695120-1 | S86: 0 | T86: 85
A87: 872102 | B87: us | C87: 2 | D87: blackjuanin | E87: t | F87: 90928 | G87: us | H87: 2 | I87: ilyos | J87: t | K87: Bronze | L87: 23 | M87: 34 | N87: 577 | O87: 2014-08-09 | P87: 5 hours | Q87: 2014-08-24T18:53:12 | R87: 872102-2|90928-2 | S87: 0 | T87: 86
A88: 5714985 | B88: us | C88: 1 | D88: PROTOSSED | E88: p | F88: 5536647 | G88: us | H88: 1 | I88: skyfire | J88: r | K88: Bronze | L88: 26 | M88: 21 | N88: 576 | O88: 2014-07-09 | P88: 2 days | Q88: 2014-08-24T18:53:12 | R88: 5714985-1|5536647-1 | S88: 0 | T88: 87
A89: 5423614 | B89: us | C89: 1 | D89: RickyPostage | E89: t | F89: 4067322 | G89: us | H89: 1 | I89: Crema | J89: t | K89: Bronze | L89: 25 | M89: 27 | N89: 576 | O89: 2014-08-04 | P89: 2 days | Q89: 2014-08-24T18:53:12 | R89: 5423614-1|4067322-1 | S89: 0 | T89: 88
A90: 2111063 | B90: us | C90: 1 | D90: Jkrunk | E90: z | F90: 782143 | G90: us | H90: 1 | I90: dixienormous | J90: t | K90: Bronze | L90: 23 | M90: 25 | N90: 576 | O90: 2014-07-10 | P90: 1 days | Q90: 2014-08-24T18:53:12 | R90: 2111063-1|782143-1 | S90: 0 | T90: 89
A91: 1057542 | B91: us | C91: 1 | D91: YouGotProbed | E91: p | F91: 853913 | G91: us | H91: 1 | I91: Apoqalypse | J91: p | K91: Bronze | L91: 39 | M91: 41 | N91: 575 | O91: 2014-07-23 | P91: 9 days | Q91: 2014-08-24T18:53:12 | R91: 1057542-1|853913-1 | S91: 0 | T91: 90
A92: 1731508 | B92: us | C92: 1 | D92: Sarge | E92: t | F92: 736242 | G92: us | H92: 1 | I92: TylerDurden | J92: r | K92: Bronze | L92: 29 | M92: 33 | N92: 574 | O92: 2014-07-10 | P92: 2 days | Q92: 2014-08-24T18:53:12 | R92: 1731508-1|736242-1 | S92: 0 | T92: 91
A93: 3711281 | B93: us | C93: 1 | D93: profeus | E93: z | F93: 3638545 | G93: us | H93: 1 | I93: Scitzo | J93: p | K93: Bronze | L93: 20 | M93: 28 | N93: 574 | O93: 2014-07-23 | P93: 1 hours | Q93: 2014-08-24T18:53:12 | R93: 3711281-1|3638545-1 | S93: 0 | T93: 92
A94: 566075 | B94: us | C94: 1 | D94: mqnn | E94: r | F94: 450740 | G94: us | H94: 1 | I94: JiyeOn | J94: p | K94: Bronze | L94: 18 | M94: 21 | N94: 573 | O94: 2014-07-22 | P94: 9 days | Q94: 2014-08-24T18:53:12 | R94: 566075-1|450740-1 | S94: 0 | T94: 93
A95: 5713370 | B95: us | C95: 1 | D95: Valiant | E95: t | F95: 4201763 | G95: us | H95: 1 | I95: Krargos | J95: p | K95: Bronze | L95: 18 | M95: 23 | N95: 572 | O95: 2014-07-13 | P95: 55 minutes | Q95: 2014-08-24T18:53:12 | R95: 5713370-1|4201763-1 | S95: 0 | T95: 94
A96: 5725586 | B96: us | C96: 1 | D96: Alexander | E96: p | F96: 5622862 | G96: us | H96: 1 | I96: Ony | J96: t | K96: Bronze | L96: 21 | M96: 29 | N96: 572 | O96: 2014-08-05 | P96: 16 hours | Q96: 2014-08-24T18:53:12 | R96: 5725586-1|5622862-1 | S96: 0 | T96: 95
A97: 4440303 | B97: us | C97: 1 | D97: Ashmax | E97: p | F97: 4439041 | G97: us | H97: 1 | I97: buyukibne | J97: p | K97: Bronze | L97: 36 | M97: 52 | N97: 572 | O97: 2014-07-07 | P97: 7 hours | Q97: 2014-08-24T18:53:12 | R97: 4440303-1|4439041-1 | S97: 0 | T97: 96
A98: 2360504 | B98: us | C98: 1 | D98: HWallbanger | E98: t | F98: 1469458 | G98: us | H98: 1 | I98: Daz | J98: t | K98: Bronze | L98: 22 | M98: 26 | N98: 571 | O98: 2014-07-07 | P98: 1 days | Q98: 2014-08-24T18:53:12 | R98: 2360504-1|1469458-1 | S98: 0 | T98: 97
A99: 5008025 | B99: us | C99: 1 | D99: Wing | E99: t | F99: 4988598 | G99: us | H99: 1 | I99: Cholve | J99: p | K99: Bronze | L99: 24 | M99: 26 | N99: 570 | O99: 2014-07-11 | P99: 1 days | Q99: 2014-08-24T18:53:12 | R99: 5008025-1|4988598-1 | S99: 0 | T99: 98
A100: 5903843 | B100: us | C100: 1 | D100: bigdaddypar | E100: p | F100: 2809829 | G100: us | H100: 1 | I100: Aceofspades | J100: z | K100: Bronze | L100: 21 | M100: 24 | N100: 570 | O100: 2014-08-08 | P100: 2 days | Q100: 2014-08-24T18:53:12 | R100: 5903843-1|2809829-1 | S100: 0 | T100: 99
A101: 5656357 | B101: us | C101: 1 | D101: jharellcakes | E101: z | F101: 5651426 | G101: us | H101: 1 | I101: Jasen | J101: t | K101: Bronze | L101: 33 | M101: 42 | N101: 570 | O101: 2014-07-25 | P101: 8 days | Q101: 2014-08-24T18:53:12 | R101: 5656357-1|5651426-1 | S101: 0 | T101: 100
A102: 3712179 | B102: us | C102: 1 | D102: Usambara | E102: z | F102: 3702895 | G102: us | H102: 1 | I102: Cutiepatooty | J102: t | K102: Bronze | L102: 22 | M102: 28 | N102: 570 | O102: 2014-08-01 | P102: 1 days | Q102: 2014-08-24T18:53:12 | R102: 3712179-1|3702895-1 | S102: 0 | T102: 101
A103: 3557702 | B103: us | C103: 1 | D103: SpaceChicken | E103: z | F103: 3427714 | G103: us | H103: 1 | I103: hondapride | J103: t | K103: Bronze | L103: 19 | M103: 26 | N103: 570 | O103: 2014-08-16 | P103: 19 hours | Q103: 2014-08-24T18:53:12 | R103: 3557702-1|3427714-1 | S103: 0 | T103: 102
A104: 5746168 | B104: us | C104: 1 | D104: Landon | E104: p | F104: 1960050 | G104: us | H104: 1 | I104: Zero | J104: t | K104: Bronze | L104: 72 | M104: 86 | N104: 569 | O104: 2014-07-08 | P104: 3 days | Q104: 2014-08-24T18:53:12 | R104: 5746168-1|1960050-1 | S104: 0 | T104: 103
A105: 2171508 | B105: us | C105: 1 | D105: HighOne | E105: z | F105: 595872 | G105: us | H105: 1 | I105: BluE | J105: t | K105: Bronze | L105: 24 | M105: 26 | N105: 568 | O105: 2014-08-07 | P105: 12 days | Q105: 2014-08-24T18:53:12 | R105: 2171508-1|595872-1 | S105: 0 | T105: 104
A106: 1686579 | B106: us | C106: 1 | D106: Calgacus | E106: t | F106: 351690 | G106: us | H106: 1 | I106: Achilleus | J106: p | K106: Bronze | L106: 29 | M106: 33 | N106: 568 | O106: 2014-07-08 | P106: 21 hours | Q106: 2014-08-24T18:53:12 | R106: 1686579-1|351690-1 | S106: 0 | T106: 105
A107: 2164608 | B107: us | C107: 1 | D107: dsHavoc | E107: z | F107: 536284 | G107: us | H107: 1 | I107: RCK | J107: z | K107: Bronze | L107: 19 | M107: 26 | N107: 568 | O107: 2014-07-23 | P107: 1 days | Q107: 2014-08-24T18:53:12 | R107: 2164608-1|536284-1 | S107: 0 | T107: 106
A108: 1845880 | B108: us | C108: 1 | D108: JanitroX | E108: t | F108: 1296814 | G108: us | H108: 1 | I108: MOKOSO | J108: t | K108: Bronze | L108: 21 | M108: 28 | N108: 567 | O108: 2014-07-09 | P108: 1 days | Q108: 2014-08-24T18:53:12 | R108: 1845880-1|1296814-1 | S108: 0 | T108: 107
A109: 4026475 | B109: us | C109: 1 | D109: Paraxor | E109: t | F109: 2492143 | G109: us | H109: 1 | I109: Viriden | J109: t | K109: Bronze | L109: 21 | M109: 23 | N109: 566 | O109: 2014-08-12 | P109: 1 days | Q109: 2014-08-24T18:53:12 | R109: 4026475-1|2492143-1 | S109: 0 | T109: 108
A110: 3172557 | B110: us | C110: 1 | D110: MrDripsta | E110: r | F110: 3145902 | G110: us | H110: 1 | I110: MrTripsta | J110: r | K110: Bronze | L110: 48 | M110: 59 | N110: 566 | O110: 2014-07-14 | P110: 21 hours | Q110: 2014-08-24T18:53:12 | R110: 3172557-1|3145902-1 | S110: 0 | T110: 109
A111: 94430 | B111: us | C111: 2 | D111: llllllllllll | E111: z | F111: 3806142 | G111: us | H111: 1 | I111: BlazerDeath | J111: p | K111: Bronze | L111: 51 | M111: 64 | N111: 566 | O111: 2014-07-30 | P111: 4 days | Q111: 2014-08-24T18:53:12 | R111: 94430-2|3806142-1 | S111: 0 | T111: 110
A112: 5652379 | B112: us | C112: 1 | D112: Paratunalux | E112: z | F112: 2879114 | G112: us | H112: 1 | I112: pantsparty | J112: z | K112: Bronze | L112: 33 | M112: 36 | N112: 565 | O112: 2014-07-15 | P112: 3 days | Q112: 2014-08-24T18:53:12 | R112: 5652379-1|2879114-1 | S112: 0 | T112: 111
A113: 5830544 | B113: us | C113: 1 | D113: Tuhao | E113: p | F113: 3586815 | G113: us | H113: 1 | I113: Youhan | J113: t | K113: Bronze | L113: 32 | M113: 48 | N113: 565 | O113: 2014-07-22 | P113: 16 hours | Q113: 2014-08-24T18:53:12 | R113: 5830544-1|3586815-1 | S113: 0 | T113: 112
A114: 4108671 | B114: us | C114: 1 | D114: BigCat | E114: z | F114: 2414491 | G114: us | H114: 1 | I114: Ondatdope | J114: p | K114: Bronze | L114: 49 | M114: 53 | N114: 564 | O114: 2014-07-28 | P114: 2 days | Q114: 2014-08-24T18:53:12 | R114: 4108671-1|2414491-1 | S114: 0 | T114: 113
A115: 2491470 | B115: us | C115: 1 | D115: Rustbucket | E115: t | F115: 1826058 | G115: us | H115: 1 | I115: hjkcga | J115: z | K115: Bronze | L115: 27 | M115: 24 | N115: 562 | O115: 2014-07-08 | P115: 8 days | Q115: 2014-08-24T18:53:12 | R115: 2491470-1|1826058-1 | S115: 0 | T115: 114
A116: 4723935 | B116: us | C116: 1 | D116: Biologymang | E116: t | F116: 1081024 | G116: us | H116: 1 | I116: Jeff | J116: r | K116: Bronze | L116: 20 | M116: 20 | N116: 562 | O116: 2014-07-12 | P116: 22 hours | Q116: 2014-08-24T18:53:12 | R116: 4723935-1|1081024-1 | S116: 0 | T116: 115
A117: 1482635 | B117: us | C117: 1 | D117: Fatbob | E117: r | F117: 1388014 | G117: us | H117: 1 | I117: Gandolf | J117: r | K117: Bronze | L117: 26 | M117: 40 | N117: 562 | O117: 2014-07-14 | P117: 3 hours | Q117: 2014-08-24T18:53:12 | R117: 1482635-1|1388014-1 | S117: 0 | T117: 116
A118: 341554 | B118: us | C118: 1 | D118: FightEmOff | E118: t | F118: 340209 | G118: us | H118: 1 | I118: TheDominion | J118: p | K118: Bronze | L118: 20 | M118: 20 | N118: 561 | O118: 2014-07-22 | P118: 5 days | Q118: 2014-08-24T18:53:12 | R118: 341554-1|340209-1 | S118: 0 | T118: 117
A119: 4340020 | B119: us | C119: 1 | D119: ChangoPNDR | E119: t | F119: 4078282 | G119: us | H119: 1 | I119: Turynator | J119: p | K119: Bronze | L119: 43 | M119: 52 | N119: 561 | O119: 2014-07-08 | P119: 11 days | Q119: 2014-08-24T18:53:12 | R119: 4340020-1|4078282-1 | S119: 0 | T119: 118
A120: 2254598 | B120: us | C120: 1 | D120: toxicsouth | E120: z | F120: 2239348 | G120: us | H120: 1 | I120: Kit | J120: z | K120: Bronze | L120: 48 | M120: 62 | N120: 561 | O120: 2014-07-07 | P120: 6 days | Q120: 2014-08-24T18:53:12 | R120: 2254598-1|2239348-1 | S120: 0 | T120: 119
A121: 1706676 | B121: us | C121: 1 | D121: CBD | E121: p | F121: 1698544 | G121: us | H121: 1 | I121: Matt | J121: r | K121: Bronze | L121: 29 | M121: 29 | N121: 560 | O121: 2014-07-12 | P121: 4 hours | Q121: 2014-08-24T18:53:12 | R121: 1706676-1|1698544-1 | S121: 0 | T121: 120
A122: 3914561 | B122: us | C122: 1 | D122: Crazyhorse | E122: t | F122: 1038795 | G122: us | H122: 1 | I122: discojax | J122: p | K122: Bronze | L122: 22 | M122: 31 | N122: 560 | O122: 2014-07-27 | P122: 4 days | Q122: 2014-08-24T18:53:12 | R122: 3914561-1|1038795-1 | S122: 0 | T122: 121
A123: 5826313 | B123: us | C123: 1 | D123: xGsMonDay | E123: r | F123: 1239237 | G123: us | H123: 1 | I123: xGsStrider | J123: r | K123: Bronze | L123: 111 | M123: 139 | N123: 559 | O123: 2014-07-07 | P123: 1 days | Q123: 2014-08-24T18:53:12 | R123: 5826313-1|1239237-1 | S123: 0 | T123: 122
A124: 3484169 | B124: us | C124: 1 | D124: pagz | E124: t | F124: 3285999 | G124: us | H124: 1 | I124: Nadeska | J124: p | K124: Bronze | L124: 21 | M124: 27 | N124: 559 | O124: 2014-07-19 | P124: 7 hours | Q124: 2014-08-24T18:53:12 | R124: 3484169-1|3285999-1 | S124: 0 | T124: 123
A125: 5805694 | B125: us | C125: 1 | D125: Poltergeist | E125: z | F125: 5091366 | G125: us | H125: 1 | I125: MGL | J125: p | K125: Bronze | L125: 33 | M125: 48 | N125: 559 | O125: 2014-07-12 | P125: 2 days | Q125: 2014-08-24T18:53:13 | R125: 5805694-1|5091366-1 | S125: 0 | T125: 124
A126: 5785309 | B126: us | C126: 1 | D126: LilBash | E126: p | F126: 1792752 | G126: us | H126: 1 | I126: BASH | J126: r | K126: Bronze | L126: 50 | M126: 63 | N126: 558 | O126: 2014-07-08 | P126: 21 hours | Q126: 2014-08-24T18:53:13 | R126: 5785309-1|1792752-1 | S126: 0 | T126: 125
A127: 3406828 | B127: us | C127: 1 | D127: MasoodMS | E127: t | F127: 2238545 | G127: us | H127: 1 | I127: Leo | J127: z | K127: Bronze | L127: 20 | M127: 24 | N127: 557 | O127: 2014-08-05 | P127: 10 days | Q127: 2014-08-24T18:53:13 | R127: 3406828-1|2238545-1 | S127: 0 | T127: 126
A128: 2007541 | B128: us | C128: 1 | D128: Aeros | E128: r | F128: 1085718 | G128: us | H128: 1 | I128: Maximus | J128: r | K128: Bronze | L128: 99 | M128: 117 | N128: 556 | O128: 2014-07-07 | P128: 5 days | Q128: 2014-08-24T18:53:13 | R128: 2007541-1|1085718-1 | S128: 0 | T128: 127
A129: 1501857 | B129: us | C129: 1 | D129: SgtKorey | E129: p | F129: 925159 | G129: us | H129: 1 | I129: FTExKENMANx | J129: t | K129: Bronze | L129: 34 | M129: 34 | N129: 555 | O129: 2014-07-07 | P129: 5 days | Q129: 2014-08-24T18:53:13 | R129: 1501857-1|925159-1 | S129: 0 | T129: 128
A130: 5109647 | B130: us | C130: 1 | D130: bashmak | E130: r | F130: 5036512 | G130: us | H130: 1 | I130: limon | J130: p | K130: Bronze | L130: 20 | M130: 15 | N130: 554 | O130: 2014-07-08 | P130: 3 days | Q130: 2014-08-24T18:53:13 | R130: 5109647-1|5036512-1 | S130: 0 | T130: 129
A131: 2244969 | B131: us | C131: 1 | D131: openvivi | E131: r | F131: 1901906 | G131: us | H131: 1 | I131: Divinebovine | J131: r | K131: Bronze | L131: 18 | M131: 21 | N131: 554 | O131: 2014-08-07 | P131: 19 hours | Q131: 2014-08-24T18:53:13 | R131: 2244969-1|1901906-1 | S131: 0 | T131: 130
A132: 4324324 | B132: us | C132: 1 | D132: Maru | E132: r | F132: 4287496 | G132: us | H132: 1 | I132: GeneralOG | J132: r | K132: Bronze | L132: 65 | M132: 81 | N132: 554 | O132: 2014-08-10 | P132: 2 days | Q132: 2014-08-24T18:53:13 | R132: 4324324-1|4287496-1 | S132: 0 | T132: 131
A133: 5627789 | B133: us | C133: 1 | D133: JanekPL | E133: t | F133: 5626363 | G133: us | H133: 1 | I133: Fizaxium | J133: p | K133: Bronze | L133: 18 | M133: 18 | N133: 552 | O133: 2014-08-21 | P133: 1 days | Q133: 2014-08-24T18:53:13 | R133: 5627789-1|5626363-1 | S133: 0 | T133: 132
A134: 1932277 | B134: us | C134: 1 | D134: Cnote | E134: t | F134: 614572 | G134: us | H134: 1 | I134: Sinogue | J134: p | K134: Bronze | L134: 41 | M134: 48 | N134: 552 | O134: 2014-07-08 | P134: 1 days | Q134: 2014-08-24T18:53:13 | R134: 1932277-1|614572-1 | S134: 0 | T134: 133
A135: 5533658 | B135: us | C135: 1 | D135: TigerKing | E135: t | F135: 3012075 | G135: us | H135: 1 | I135: Sparda | J135: z | K135: Bronze | L135: 18 | M135: 26 | N135: 552 | O135: 2014-07-14 | P135: 1 days | Q135: 2014-08-24T18:53:13 | R135: 5533658-1|3012075-1 | S135: 0 | T135: 134
A136: 4946138 | B136: us | C136: 1 | D136: CAPONE | E136: p | F136: 4459713 | G136: us | H136: 1 | I136: Odin | J136: t | K136: Bronze | L136: 21 | M136: 24 | N136: 551 | O136: 2014-07-08 | P136: 5 days | Q136: 2014-08-24T18:53:13 | R136: 4946138-1|4459713-1 | S136: 0 | T136: 135
A137: 784741 | B137: us | C137: 2 | D137: YopiJunkie | E137: z | F137: 201527 | G137: us | H137: 2 | I137: RikRedHunter | J137: z | K137: Bronze | L137: 43 | M137: 61 | N137: 551 | O137: 2014-07-11 | P137: 1 days | Q137: 2014-08-24T18:53:13 | R137: 784741-2|201527-2 | S137: 0 | T137: 136
A138: 3678009 | B138: us | C138: 1 | D138: SVTCobra | E138: r | F138: 2565256 | G138: us | H138: 1 | I138: blognof | J138: r | K138: Bronze | L138: 31 | M138: 37 | N138: 550 | O138: 2014-07-11 | P138: 1 days | Q138: 2014-08-24T18:53:13 | R138: 3678009-1|2565256-1 | S138: 0 | T138: 137
A139: 5829049 | B139: us | C139: 1 | D139: Defenske | E139: t | F139: 574733 | G139: us | H139: 1 | I139: Mako | J139: z | K139: Bronze | L139: 32 | M139: 43 | N139: 550 | O139: 2014-07-12 | P139: 1 days | Q139: 2014-08-24T18:53:13 | R139: 5829049-1|574733-1 | S139: 0 | T139: 138
A140: 4881790 | B140: us | C140: 1 | D140: BeastEaston | E140: t | F140: 818888 | G140: us | H140: 1 | I140: TheSkunch | J140: p | K140: Bronze | L140: 35 | M140: 51 | N140: 550 | O140: 2014-08-06 | P140: 3 days | Q140: 2014-08-24T18:53:13 | R140: 4881790-1|818888-1 | S140: 0 | T140: 139
A141: 2001563 | B141: us | C141: 1 | D141: RushOJ | E141: r | F141: 1529796 | G141: us | H141: 1 | I141: Easten | J141: r | K141: Bronze | L141: 38 | M141: 46 | N141: 549 | O141: 2014-07-14 | P141: 4 days | Q141: 2014-08-24T18:53:13 | R141: 2001563-1|1529796-1 | S141: 0 | T141: 140
A142: 5781572 | B142: us | C142: 1 | D142: sogignac | E142: z | F142: 809692 | G142: us | H142: 1 | I142: Larry | J142: t | K142: Bronze | L142: 32 | M142: 25 | N142: 548 | O142: 2014-07-08 | P142: 7 days | Q142: 2014-08-24T18:53:13 | R142: 5781572-1|809692-1 | S142: 0 | T142: 141
A143: 5894163 | B143: us | C143: 1 | D143: Artcs | E143: t | F143: 5893787 | G143: us | H143: 1 | I143: perhark | J143: z | K143: Bronze | L143: 25 | M143: 28 | N143: 548 | O143: 2014-08-06 | P143: 8 days | Q143: 2014-08-24T18:53:13 | R143: 5894163-1|5893787-1 | S143: 0 | T143: 142
A144: 5172023 | B144: us | C144: 1 | D144: spider | E144: r | F144: 4134218 | G144: us | H144: 1 | I144: Starzergian | J144: r | K144: Bronze | L144: 18 | M144: 22 | N144: 548 | O144: 2014-07-13 | P144: 7 days | Q144: 2014-08-24T18:53:13 | R144: 5172023-1|4134218-1 | S144: 0 | T144: 143
A145: 3519012 | B145: us | C145: 1 | D145: AmeriCanPak | E145: p | F145: 1227186 | G145: us | H145: 1 | I145: PaK | J145: p | K145: Bronze | L145: 33 | M145: 32 | N145: 547 | O145: 2014-07-08 | P145: 5 days | Q145: 2014-08-24T18:53:13 | R145: 3519012-1|1227186-1 | S145: 0 | T145: 144
A146: 5822388 | B146: us | C146: 1 | D146: diaohouzia | E146: p | F146: 3358345 | G146: us | H146: 1 | I146: xXSIICXx | J146: r | K146: Bronze | L146: 27 | M146: 36 | N146: 547 | O146: 2014-07-08 | P146: 8 days | Q146: 2014-08-24T18:53:13 | R146: 5822388-1|3358345-1 | S146: 0 | T146: 145
A147: 4477691 | B147: us | C147: 1 | D147: Azaezal | E147: t | F147: 351295 | G147: us | H147: 1 | I147: Dakkyn | J147: t | K147: Bronze | L147: 21 | M147: 18 | N147: 546 | O147: 2014-08-02 | P147: 19 hours | Q147: 2014-08-24T18:53:13 | R147: 4477691-1|351295-1 | S147: 0 | T147: 146
A148: 4375482 | B148: us | C148: 1 | D148: Ichbien | E148: t | F148: 3379171 | G148: us | H148: 1 | I148: omega | J148: p | K148: Bronze | L148: 55 | M148: 67 | N148: 546 | O148: 2014-07-08 | P148: 4 days | Q148: 2014-08-24T18:53:13 | R148: 4375482-1|3379171-1 | S148: 0 | T148: 147
A149: 4457865 | B149: us | C149: 1 | D149: TestBooster | E149: t | F149: 1466248 | G149: us | H149: 1 | I149: RyanSpinnaz | J149: p | K149: Bronze | L149: 22 | M149: 32 | N149: 545 | O149: 2014-07-09 | P149: 21 hours | Q149: 2014-08-24T18:53:13 | R149: 4457865-1|1466248-1 | S149: 0 | T149: 148
A150: 875836 | B150: us | C150: 2 | D150: Firewill | E150: z | F150: 4116566 | G150: us | H150: 1 | I150: AgusNavari | J150: t | K150: Bronze | L150: 28 | M150: 51 | N150: 545 | O150: 2014-08-10 | P150: 6 hours | Q150: 2014-08-24T18:53:13 | R150: 875836-2|4116566-1 | S150: 0 | T150: 149
A151: 4729670 | B151: us | C151: 1 | D151: MrUnreliable | E151: p | F151: 2414517 | G151: us | H151: 1 | I151: Ace | J151: z | K151: Bronze | L151: 19 | M151: 21 | N151: 544 | O151: 2014-07-08 | P151: 2 hours | Q151: 2014-08-24T18:53:13 | R151: 4729670-1|2414517-1 | S151: 0 | T151: 150
A152: 2877170 | B152: us | C152: 1 | D152: GHOSTRIDER | E152: p | F152: 794536 | G152: us | H152: 1 | I152: Nick | J152: t | K152: Bronze | L152: 39 | M152: 50 | N152: 544 | O152: 2014-07-07 | P152: 3 days | Q152: 2014-08-24T18:53:13 | R152: 2877170-1|794536-1 | S152: 0 | T152: 151
A153: 4748990 | B153: us | C153: 1 | D153: Elektrik | E153: r | F153: 2991526 | G153: us | H153: 1 | I153: Wafflemafia | J153: r | K153: Bronze | L153: 23 | M153: 32 | N153: 543 | O153: 2014-08-07 | P153: 3 days | Q153: 2014-08-24T18:53:13 | R153: 4748990-1|2991526-1 | S153: 0 | T153: 152
A154: 29328 | B154: us | C154: 2 | D154: ADVANCE | E154: t | F154: 25543 | G154: us | H154: 2 | I154: Lunatyco | J154: t | K154: Bronze | L154: 68 | M154: 97 | N154: 543 | O154: 2014-07-07 | P154: 8 hours | Q154: 2014-08-24T18:53:13 | R154: 29328-2|25543-2 | S154: 0 | T154: 153
A155: 1146042 | B155: us | C155: 1 | D155: Hotdog | E155: t | F155: 1145562 | G155: us | H155: 1 | I155: JRules | J155: p | K155: Bronze | L155: 18 | M155: 15 | N155: 542 | O155: 2014-07-15 | P155: 2 days | Q155: 2014-08-24T18:53:13 | R155: 1146042-1|1145562-1 | S155: 0 | T155: 154
A156: 2764891 | B156: us | C156: 1 | D156: AgEko | E156: t | F156: 860677 | G156: us | H156: 1 | I156: Skippy | J156: z | K156: Bronze | L156: 20 | M156: 23 | N156: 542 | O156: 2014-08-13 | P156: 6 days | Q156: 2014-08-24T18:53:13 | R156: 2764891-1|860677-1 | S156: 0 | T156: 155
A157: 5805744 | B157: us | C157: 1 | D157: NASHVEGAS | E157: p | F157: 367027 | G157: us | H157: 1 | I157: BOSS | J157: p | K157: Bronze | L157: 31 | M157: 37 | N157: 542 | O157: 2014-07-08 | P157: 2 days | Q157: 2014-08-24T18:53:13 | R157: 5805744-1|367027-1 | S157: 0 | T157: 156
A158: 2737816 | B158: us | C158: 1 | D158: BOAZ | E158: t | F158: 964152 | G158: us | H158: 1 | I158: RedDeath | J158: p | K158: Bronze | L158: 25 | M158: 31 | N158: 542 | O158: 2014-07-07 | P158: 6 days | Q158: 2014-08-24T18:53:13 | R158: 2737816-1|964152-1 | S158: 0 | T158: 157
A159: 4533804 | B159: us | C159: 1 | D159: nuffstar | E159: p | F159: 4500986 | G159: us | H159: 1 | I159: Bamahut | J159: p | K159: Bronze | L159: 42 | M159: 58 | N159: 542 | O159: 2014-07-11 | P159: 11 hours | Q159: 2014-08-24T18:53:13 | R159: 4533804-1|4500986-1 | S159: 0 | T159: 158
A160: 3255520 | B160: us | C160: 1 | D160: Lonely | E160: r | F160: 794209 | G160: us | H160: 1 | I160: elchino | J160: z | K160: Bronze | L160: 23 | M160: 23 | N160: 541 | O160: 2014-07-22 | P160: 9 days | Q160: 2014-08-24T18:53:13 | R160: 3255520-1|794209-1 | S160: 0 | T160: 159
A161: 3204648 | B161: us | C161: 1 | D161: bluedolphin | E161: z | F161: 1642084 | G161: us | H161: 1 | I161: mastercutor | J161: z | K161: Bronze | L161: 22 | M161: 30 | N161: 540 | O161: 2014-07-09 | P161: 23 hours | Q161: 2014-08-24T18:53:13 | R161: 3204648-1|1642084-1 | S161: 0 | T161: 160
A162: 4243193 | B162: us | C162: 1 | D162: Jae | E162: r | F162: 4162859 | G162: us | H162: 1 | I162: TFT | J162: r | K162: Bronze | L162: 38 | M162: 58 | N162: 540 | O162: 2014-07-09 | P162: 9 hours | Q162: 2014-08-24T18:53:13 | R162: 4243193-1|4162859-1 | S162: 0 | T162: 161
A163: 5784403 | B163: us | C163: 1 | D163: ahhhhhhmeta | E163: z | F163: 4831523 | G163: us | H163: 1 | I163: Zerks | J163: p | K163: Bronze | L163: 20 | M163: 25 | N163: 539 | O163: 2014-07-12 | P163: 19 hours | Q163: 2014-08-24T18:53:13 | R163: 5784403-1|4831523-1 | S163: 0 | T163: 162
A164: 5304131 | B164: us | C164: 1 | D164: Arilus | E164: t | F164: 5302306 | G164: us | H164: 1 | I164: Altruis | J164: z | K164: Bronze | L164: 28 | M164: 35 | N164: 539 | O164: 2014-07-12 | P164: 1 days | Q164: 2014-08-24T18:53:13 | R164: 5304131-1|5302306-1 | S164: 0 | T164: 163
A165: 5112306 | B165: us | C165: 1 | D165: MightyWeldor | E165: r | F165: 1433589 | G165: us | H165: 1 | I165: LeftoverCrac | J165: r | K165: Bronze | L165: 42 | M165: 55 | N165: 539 | O165: 2014-07-09 | P165: 3 hours | Q165: 2014-08-24T18:53:13 | R165: 5112306-1|1433589-1 | S165: 0 | T165: 164
A166: 5090428 | B166: us | C166: 1 | D166: zachdub | E166: t | F166: 972946 | G166: us | H166: 1 | I166: Sorrow | J166: t | K166: Bronze | L166: 22 | M166: 37 | N166: 539 | O166: 2014-07-09 | P166: 1 days | Q166: 2014-08-24T18:53:13 | R166: 5090428-1|972946-1 | S166: 0 | T166: 165
A167: 3235250 | B167: us | C167: 1 | D167: AVA | E167: z | F167: 3234710 | G167: us | H167: 1 | I167: Razgon | J167: t | K167: Bronze | L167: 27 | M167: 34 | N167: 538 | O167: 2014-07-08 | P167: 16 hours | Q167: 2014-08-24T18:53:13 | R167: 3235250-1|3234710-1 | S167: 0 | T167: 166
A168: 5733069 | B168: us | C168: 1 | D168: ghostrider | E168: z | F168: 5137639 | G168: us | H168: 1 | I168: Troxis | J168: z | K168: Bronze | L168: 22 | M168: 29 | N168: 538 | O168: 2014-07-28 | P168: 20 hours | Q168: 2014-08-24T18:53:13 | R168: 5733069-1|5137639-1 | S168: 0 | T168: 167
A169: 3916416 | B169: us | C169: 1 | D169: VIH | E169: z | F169: 1994896 | G169: us | H169: 1 | I169: Akito | J169: r | K169: Bronze | L169: 21 | M169: 20 | N169: 537 | O169: 2014-07-08 | P169: 19 hours | Q169: 2014-08-24T18:53:13 | R169: 3916416-1|1994896-1 | S169: 0 | T169: 168
A170: 5923329 | B170: us | C170: 1 | D170: MrDanglez | E170: p | F170: 4129202 | G170: us | H170: 1 | I170: TheDemolater | J170: z | K170: Bronze | L170: 19 | M170: 26 | N170: 537 | O170: 2014-08-12 | P170: 3 days | Q170: 2014-08-24T18:53:13 | R170: 5923329-1|4129202-1 | S170: 0 | T170: 169
A171: 783443 | B171: us | C171: 2 | D171: reuqofadaM | E171: t | F171: 119442 | G171: us | H171: 2 | I171: lesamnorbac | J171: z | K171: Bronze | L171: 68 | M171: 96 | N171: 537 | O171: 2014-07-08 | P171: 1 days | Q171: 2014-08-24T18:53:13 | R171: 783443-2|119442-2 | S171: 0 | T171: 170
A172: 2909215 | B172: us | C172: 1 | D172: bretto | E172: t | F172: 2902570 | G172: us | H172: 1 | I172: Smashhhhh | J172: t | K172: Bronze | L172: 30 | M172: 41 | N172: 536 | O172: 2014-07-24 | P172: 3 days | Q172: 2014-08-24T18:53:13 | R172: 2909215-1|2902570-1 | S172: 0 | T172: 171
A173: 4230454 | B173: us | C173: 1 | D173: Ben | E173: t | F173: 3207640 | G173: us | H173: 1 | I173: Songwind | J173: t | K173: Bronze | L173: 27 | M173: 40 | N173: 536 | O173: 2014-07-10 | P173: 3 days | Q173: 2014-08-24T18:53:13 | R173: 4230454-1|3207640-1 | S173: 0 | T173: 172
A174: 4052728 | B174: us | C174: 1 | D174: Skink | E174: t | F174: 2251001 | G174: us | H174: 1 | I174: DirtyElf | J174: t | K174: Bronze | L174: 19 | M174: 21 | N174: 535 | O174: 2014-08-09 | P174: 7 days | Q174: 2014-08-24T18:53:13 | R174: 4052728-1|2251001-1 | S174: 0 | T174: 173
A175: 5880158 | B175: us | C175: 1 | D175: SteelScrotum | E175: p | F175: 1001705 | G175: us | H175: 1 | I175: ArcSeminole | J175: z | K175: Bronze | L175: 28 | M175: 37 | N175: 535 | O175: 2014-08-01 | P175: 4 days | Q175: 2014-08-24T18:53:13 | R175: 5880158-1|1001705-1 | S175: 0 | T175: 174
A176: 927826 | B176: us | C176: 1 | D176: James | E176: z | F176: 527523 | G176: us | H176: 1 | I176: Jackson | J176: p | K176: Bronze | L176: 31 | M176: 41 | N176: 535 | O176: 2014-07-18 | P176: 4 days | Q176: 2014-08-24T18:53:13 | R176: 927826-1|527523-1 | S176: 0 | T176: 175
A177: 5652155 | B177: us | C177: 1 | D177: ShephardDog | E177: p | F177: 3460241 | G177: us | H177: 1 | I177: Theruchet | J177: z | K177: Bronze | L177: 22 | M177: 24 | N177: 534 | O177: 2014-07-19 | P177: 20 hours | Q177: 2014-08-24T18:53:13 | R177: 5652155-1|3460241-1 | S177: 0 | T177: 176
A178: 331964 | B178: us | C178: 2 | D178: Siriuantaris | E178: t | F178: 30129 | G178: us | H178: 2 | I178: starzzard | J178: t | K178: Bronze | L178: 41 | M178: 47 | N178: 534 | O178: 2014-07-12 | P178: 18 hours | Q178: 2014-08-24T18:53:13 | R178: 331964-2|30129-2 | S178: 0 | T178: 177
A179: 408240 | B179: us | C179: 2 | D179: TiTiRatoloko | E179: z | F179: 5848716 | G179: us | H179: 1 | I179: Nidorina | J179: p | K179: Bronze | L179: 37 | M179: 52 | N179: 534 | O179: 2014-07-18 | P179: 16 hours | Q179: 2014-08-24T18:53:13 | R179: 408240-2|5848716-1 | S179: 0 | T179: 178
A180: 3123463 | B180: us | C180: 1 | D180: Woody | E180: z | F180: 2134184 | G180: us | H180: 1 | I180: Trooper | J180: t | K180: Bronze | L180: 30 | M180: 31 | N180: 532 | O180: 2014-07-09 | P180: 1 days | Q180: 2014-08-24T18:53:13 | R180: 3123463-1|2134184-1 | S180: 0 | T180: 179
A181: 4933876 | B181: us | C181: 1 | D181: LazyBwoi | E181: p | F181: 4926750 | G181: us | H181: 1 | I181: tapeur | J181: t | K181: Bronze | L181: 29 | M181: 34 | N181: 531 | O181: 2014-07-14 | P181: 7 days | Q181: 2014-08-24T18:53:13 | R181: 4933876-1|4926750-1 | S181: 0 | T181: 180
A182: 1925759 | B182: us | C182: 1 | D182: PerilEyez | E182: t | F182: 413626 | G182: us | H182: 1 | I182: Silentknight | J182: p | K182: Bronze | L182: 20 | M182: 27 | N182: 531 | O182: 2014-08-20 | P182: 18 hours | Q182: 2014-08-24T18:53:13 | R182: 1925759-1|413626-1 | S182: 0 | T182: 181
A183: 5710770 | B183: us | C183: 1 | D183: frost | E183: p | F183: 5491337 | G183: us | H183: 1 | I183: twobricks | J183: t | K183: Bronze | L183: 31 | M183: 35 | N183: 530 | O183: 2014-07-10 | P183: 10 days | Q183: 2014-08-24T18:53:13 | R183: 5710770-1|5491337-1 | S183: 0 | T183: 182
A184: 3542567 | B184: us | C184: 1 | D184: Max | E184: p | F184: 3528397 | G184: us | H184: 1 | I184: Atomic | J184: p | K184: Bronze | L184: 32 | M184: 40 | N184: 530 | O184: 2014-07-07 | P184: 3 days | Q184: 2014-08-24T18:53:13 | R184: 3542567-1|3528397-1 | S184: 0 | T184: 183
A185: 1373099 | B185: us | C185: 1 | D185: Drock | E185: z | F185: 1077100 | G185: us | H185: 1 | I185: Scottastic | J185: z | K185: Bronze | L185: 20 | M185: 28 | N185: 530 | O185: 2014-07-19 | P185: 1 days | Q185: 2014-08-24T18:53:13 | R185: 1373099-1|1077100-1 | S185: 0 | T185: 184
A186: 4996599 | B186: us | C186: 1 | D186: Thetaty | E186: z | F186: 2223588 | G186: us | H186: 1 | I186: AllStar | J186: p | K186: Bronze | L186: 44 | M186: 57 | N186: 528 | O186: 2014-07-12 | P186: 6 days | Q186: 2014-08-24T18:53:13 | R186: 4996599-1|2223588-1 | S186: 0 | T186: 185
A187: 2965793 | B187: us | C187: 1 | D187: Akabron | E187: t | F187: 1178000 | G187: us | H187: 1 | I187: Joganaca | J187: t | K187: Bronze | L187: 30 | M187: 44 | N187: 528 | O187: 2014-07-08 | P187: 2 days | Q187: 2014-08-24T18:53:13 | R187: 2965793-1|1178000-1 | S187: 0 | T187: 186
A188: 3391915 | B188: us | C188: 1 | D188: Dexter | E188: r | F188: 2945353 | G188: us | H188: 1 | I188: fastbstang | J188: p | K188: Bronze | L188: 32 | M188: 47 | N188: 528 | O188: 2014-07-07 | P188: 1 days | Q188: 2014-08-24T18:53:13 | R188: 3391915-1|2945353-1 | S188: 0 | T188: 187
A189: 3703493 | B189: us | C189: 1 | D189: zebrastripe | E189: t | F189: 923630 | G189: us | H189: 1 | I189: Clockwork | J189: t | K189: Bronze | L189: 17 | M189: 21 | N189: 526 | O189: 2014-07-10 | P189: 4 days | Q189: 2014-08-24T18:53:13 | R189: 3703493-1|923630-1 | S189: 0 | T189: 188
A190: 5867043 | B190: us | C190: 1 | D190: Rynestone | E190: p | F190: 1004796 | G190: us | H190: 1 | I190: Roosky | J190: p | K190: Bronze | L190: 26 | M190: 35 | N190: 526 | O190: 2014-07-21 | P190: 3 days | Q190: 2014-08-24T18:53:13 | R190: 5867043-1|1004796-1 | S190: 0 | T190: 189
A191: 2794310 | B191: us | C191: 1 | D191: rhino | E191: p | F191: 1416978 | G191: us | H191: 1 | I191: colonal | J191: p | K191: Bronze | L191: 22 | M191: 18 | N191: 525 | O191: 2014-07-08 | P191: 4 days | Q191: 2014-08-24T18:53:13 | R191: 2794310-1|1416978-1 | S191: 0 | T191: 190
A192: 1711054 | B192: us | C192: 1 | D192: TitanicRisin | E192: r | F192: 1580508 | G192: us | H192: 1 | I192: Ender | J192: p | K192: Bronze | L192: 38 | M192: 53 | N192: 525 | O192: 2014-07-08 | P192: 3 days | Q192: 2014-08-24T18:53:13 | R192: 1711054-1|1580508-1 | S192: 0 | T192: 191
A193: 5802569 | B193: us | C193: 1 | D193: BluSpyder | E193: p | F193: 3303081 | G193: us | H193: 1 | I193: falcone | J193: t | K193: Bronze | L193: 77 | M193: 118 | N193: 525 | O193: 2014-07-16 | P193: 2 days | Q193: 2014-08-24T18:53:13 | R193: 5802569-1|3303081-1 | S193: 0 | T193: 192
A194: 5318366 | B194: us | C194: 1 | D194: Mart | E194: p | F194: 2024241 | G194: us | H194: 1 | I194: ElGros | J194: r | K194: Bronze | L194: 38 | M194: 45 | N194: 524 | O194: 2014-07-08 | P194: 2 minutes | Q194: 2014-08-24T18:53:13 | R194: 5318366-1|2024241-1 | S194: 0 | T194: 193
A195: 3025938 | B195: us | C195: 1 | D195: skywalker | E195: t | F195: 702907 | G195: us | H195: 1 | I195: Eliott | J195: t | K195: Bronze | L195: 31 | M195: 32 | N195: 523 | O195: 2014-07-08 | P195: 8 days | Q195: 2014-08-24T18:53:13 | R195: 3025938-1|702907-1 | S195: 0 | T195: 194
A196: 2231202 | B196: us | C196: 1 | D196: ACrouch | E196: p | F196: 2229385 | G196: us | H196: 1 | I196: Seven | J196: t | K196: Bronze | L196: 69 | M196: 87 | N196: 523 | O196: 2014-07-08 | P196: 6 days | Q196: 2014-08-24T18:53:13 | R196: 2231202-1|2229385-1 | S196: 0 | T196: 195
A197: 5743362 | B197: us | C197: 1 | D197: aftermath | E197: z | F197: 5241142 | G197: us | H197: 1 | I197: VolKano | J197: t | K197: Bronze | L197: 42 | M197: 59 | N197: 523 | O197: 2014-08-08 | P197: 18 hours | Q197: 2014-08-24T18:53:13 | R197: 5743362-1|5241142-1 | S197: 0 | T197: 196
A198: 5737744 | B198: us | C198: 1 | D198: Nyris | E198: t | F198: 520328 | G198: us | H198: 1 | I198: Xis | J198: r | K198: Bronze | L198: 28 | M198: 42 | N198: 523 | O198: 2014-07-09 | P198: 3 days | Q198: 2014-08-24T18:53:13 | R198: 5737744-1|520328-1 | S198: 0 | T198: 197
A199: 1947017 | B199: us | C199: 1 | D199: Caliss | E199: z | F199: 1736980 | G199: us | H199: 1 | I199: RuStY | J199: t | K199: Bronze | L199: 23 | M199: 29 | N199: 522 | O199: 2014-07-08 | P199: 2 days | Q199: 2014-08-24T18:53:13 | R199: 1947017-1|1736980-1 | S199: 0 | T199: 198
A200: 5768153 | B200: us | C200: 1 | D200: Serl | E200: t | F200: 5753742 | G200: us | H200: 1 | I200: Arttano | J200: z | K200: Bronze | L200: 25 | M200: 34 | N200: 522 | O200: 2014-07-31 | P200: 5 days | Q200: 2014-08-24T18:53:13 | R200: 5768153-1|5753742-1 | S200: 0 | T200: 199
... 4300 more rows

Sheet 3v3 Team
A1: Player ID 1 | B1: Player 1 Region | C1: Player 1 Subregion | D1: Player 1 Name | E1: Player 1 Race | F1: Player ID 2 | G1: Player 2 Region | H1: Player 2 Subregion | I1: Player 2 Name | J1: Player 2 Race | K1: Player ID 3 | L1: Player 3 Region | M1: Player 3 Subregion | N1: Player 3 Name | O1: Player 3 Race | P1: League | Q1: Win | R1: Loss | S1: Score | T1: Date Joined | U1: Last Game | V1: Timestamp | W1: TrueID | X1: Duplicate Check | Y1: Ordered ID
A2: 2009545 | B2: us | C2: 1 | D2: killerDog | E2: z | F2: 1721888 | G2: us | H2: 1 | I2: gralrata | J2: p | K2: 1486310 | L2: us | M2: 1 | N2: merlyn | O2: r | P2: Bronze | Q2: 21 | R2: 21 | S2: 409 | T2: 2014-07-20 | U2: 1 hours | V2: 2014-08-24T18:59:41 | W2: 2009545-1|1721888-1|1486310-1 | X2: 0 | Y2: 1
A3: 692514 | B3: us | C3: 2 | D3: VuduEprajacu | E3: p | F3: 388682 | G3: us | H3: 2 | I3: Claudinhodf | J3: z | K3: 5264101 | L3: us | M3: 1 | N3: Veioloco | O3: z | P3: Bronze | Q3: 12 | R3: 5 | S3: 388 | T3: 2014-07-11 | U3: 3 days | V3: 2014-08-24T18:59:41 | W3: 692514-2|388682-2|5264101-1 | X3: 0 | Y3: 2
A4: 4095074 | B4: us | C4: 1 | D4: BigHead | E4: p | F4: 2481486 | G4: us | H4: 1 | I4: BigBoy | J4: p | K4: 2161265 | L4: us | M4: 1 | N4: Studly | O4: t | P4: Bronze | Q4: 19 | R4: 24 | S4: 369 | T4: 2014-07-07 | U4: 1 days | V4: 2014-08-24T18:59:41 | W4: 4095074-1|2481486-1|2161265-1 | X4: 0 | Y4: 3
A5: 5707814 | B5: us | C5: 1 | D5: conner | E5: p | F5: 3920878 | G5: us | H5: 1 | I5: HellFireOSK | J5: r | K5: 1310535 | L5: us | M5: 1 | N5: KillerKline | O5: r | P5: Bronze | Q5: 15 | R5: 16 | S5: 367 | T5: 2014-07-07 | U5: 1 days | V5: 2014-08-24T18:59:41 | W5: 5707814-1|3920878-1|1310535-1 | X5: 0 | Y5: 4
A6: 3387853 | B6: us | C6: 1 | D6: Phoenix | E6: t | F6: 3330183 | G6: us | H6: 1 | I6: Sovereign | J6: z | K6: 694477 | L6: us | M6: 1 | N6: Zerah | O6: p | P6: Bronze | Q6: 14 | R6: 23 | S6: 356 | T6: 2014-07-19 | U6: 2 days | V6: 2014-08-24T18:59:41 | W6: 3387853-1|3330183-1|694477-1 | X6: 0 | Y6: 5
A7: 5783980 | B7: us | C7: 1 | D7: Ghost | E7: p | F7: 5039453 | G7: us | H7: 1 | I7: Bloodlust | J7: z | K7: 4934069 | L7: us | M7: 1 | N7: EniTO | O7: p | P7: Bronze | Q7: 10 | R7: 16 | S7: 354 | T7: 2014-08-01 | U7: 1 days | V7: 2014-08-24T18:59:41 | W7: 5783980-1|5039453-1|4934069-1 | X7: 0 | Y7: 6
A8: 146238 | B8: us | C8: 2 | D8: Jarjour | E8: t | F8: 74759 | G8: us | H8: 2 | I8: VzlaUltimOs | J8: t | K8: 58419 | L8: us | M8: 2 | N8: Husky | O8: r | P8: Bronze | Q8: 16 | R8: 15 | S8: 347 | T8: 2014-07-08 | U8: 1 days | V8: 2014-08-24T18:59:41 | W8: 146238-2|74759-2|58419-2 | X8: 0 | Y8: 7
A9: 1843625 | B9: us | C9: 1 | D9: urbandt | E9: r | F9: 1590171 | G9: us | H9: 1 | I9: Serpico | J9: t | K9: 270439 | L9: us | M9: 1 | N9: Exuberant | O9: r | P9: Bronze | Q9: 11 | R9: 9 | S9: 346 | T9: 2014-07-28 | U9: 11 days | V9: 2014-08-24T18:59:41 | W9: 1843625-1|1590171-1|270439-1 | X9: 0 | Y9: 8
A10: 5035245 | B10: us | C10: 1 | D10: Partywave | E10: r | F10: 4547770 | G10: us | H10: 1 | I10: spookygerm | J10: r | K10: 3355246 | L10: us | M10: 1 | N10: TopHatMan | O10: r | P10: Bronze | Q10: 20 | R10: 23 | S10: 343 | T10: 2014-07-08 | U10: 12 days | V10: 2014-08-24T18:59:41 | W10: 5035245-1|4547770-1|3355246-1 | X10: 0 | Y10: 9
A11: 3387996 | B11: us | C11: 1 | D11: Killerbazou | E11: r | F11: 3049479 | G11: us | H11: 1 | I11: Avenged | J11: t | K11: 2903271 | L11: us | M11: 1 | N11: darkFREDI | O11: t | P11: Bronze | Q11: 11 | R11: 7 | S11: 341 | T11: 2014-07-19 | U11: 15 days | V11: 2014-08-24T18:59:41 | W11: 3387996-1|3049479-1|2903271-1 | X11: 0 | Y11: 10
A12: 3289837 | B12: us | C12: 1 | D12: cutiepie | E12: p | F12: 1651227 | G12: us | H12: 1 | I12: DAKIN | J12: t | K12: 431342 | L12: us | M12: 1 | N12: Frolly | O12: z | P12: Bronze | Q12: 14 | R12: 26 | S12: 340 | T12: 2014-08-10 | U12: 2 hours | V12: 2014-08-24T18:59:41 | W12: 3289837-1|1651227-1|431342-1 | X12: 0 | Y12: 11
A13: 601477 | B13: us | C13: 2 | D13: Roach | E13: t | F13: 592911 | G13: us | H13: 2 | I13: GaRgOx | J13: p | K13: 5525835 | L13: us | M13: 1 | N13: Hopper | O13: p | P13: Bronze | Q13: 13 | R13: 11 | S13: 338 | T13: 2014-07-22 | U13: 19 days | V13: 2014-08-24T18:59:41 | W13: 601477-2|592911-2|5525835-1 | X13: 0 | Y13: 12
A14: 4098598 | B14: us | C14: 1 | D14: LNGTenebrae | E14: z | F14: 3432698 | G14: us | H14: 1 | I14: TsundeREI | J14: z | K14: 2745614 | L14: us | M14: 1 | N14: Tejirof | O14: z | P14: Bronze | Q14: 11 | R14: 11 | S14: 336 | T14: 2014-08-11 | U14: 4 days | V14: 2014-08-24T18:59:41 | W14: 4098598-1|3432698-1|2745614-1 | X14: 0 | Y14: 13
A15: 1155920 | B15: us | C15: 1 | D15: Commander | E15: r | F15: 732251 | G15: us | H15: 1 | I15: TheWalrusCat | J15: p | K15: 625266 | L15: us | M15: 1 | N15: Andrew | O15: t | P15: Bronze | Q15: 10 | R15: 15 | S15: 336 | T15: 2014-07-15 | U15: 1 days | V15: 2014-08-24T18:59:41 | W15: 1155920-1|732251-1|625266-1 | X15: 0 | Y15: 14
A16: 5829493 | B16: us | C16: 1 | D16: Generaleigh | E16: p | F16: 3266843 | G16: us | H16: 1 | I16: Kinetik | J16: z | K16: 2793950 | L16: us | M16: 1 | N16: Orioswak | O16: p | P16: Bronze | Q16: 10 | R16: 10 | S16: 334 | T16: 2014-07-20 | U16: 1 days | V16: 2014-08-24T18:59:41 | W16: 5829493-1|3266843-1|2793950-1 | X16: 0 | Y16: 15
A17: 116976 | B17: us | C17: 2 | D17: ThorEGo | E17: t | F17: 115376 | G17: us | H17: 2 | I17: Liqueprime | J17: z | K17: 112789 | L17: us | M17: 2 | N17: DarkLeont | O17: p | P17: Bronze | Q17: 16 | R17: 19 | S17: 332 | T17: 2014-07-08 | U17: 1 days | V17: 2014-08-24T18:59:41 | W17: 116976-2|115376-2|112789-2 | X17: 0 | Y17: 16
A18: 4622586 | B18: us | C18: 1 | D18: derek | E18: p | F18: 2211705 | G18: us | H18: 1 | I18: Chapso | J18: z | K18: 420014 | L18: us | M18: 1 | N18: Halogen | O18: p | P18: Bronze | Q18: 13 | R18: 12 | S18: 331 | T18: 2014-07-09 | U18: 2 days | V18: 2014-08-24T18:59:41 | W18: 4622586-1|2211705-1|420014-1 | X18: 0 | Y18: 17
A19: 5607223 | B19: us | C19: 1 | D19: SeanTheSheep | E19: t | F19: 5197499 | G19: us | H19: 1 | I19: Pestilenz | J19: t | K19: 3370733 | L19: us | M19: 1 | N19: Zatoichi | O19: z | P19: Bronze | Q19: 10 | R19: 19 | S19: 329 | T19: 2014-08-02 | U19: 1 days | V19: 2014-08-24T18:59:41 | W19: 5607223-1|5197499-1|3370733-1 | X19: 0 | Y19: 18
A20: 2867418 | B20: us | C20: 1 | D20: mufasaisking | E20: t | F20: 1834909 | G20: us | H20: 1 | I20: Stranger | J20: p | K20: 1610051 | L20: us | M20: 1 | N20: Baybars | O20: p | P20: Bronze | Q20: 13 | R20: 16 | S20: 328 | T20: 2014-08-03 | U20: 2 days | V20: 2014-08-24T18:59:41 | W20: 2867418-1|1834909-1|1610051-1 | X20: 0 | Y20: 19
A21: 866725 | B21: us | C21: 2 | D21: Cerberus | E21: p | F21: 5838896 | G21: us | H21: 1 | I21: Ivanmelian | J21: t | K21: 5811281 | L21: us | M21: 1 | N21: Woolos | O21: t | P21: Bronze | Q21: 16 | R21: 21 | S21: 328 | T21: 2014-08-01 | U21: 54 minutes | V21: 2014-08-24T18:59:41 | W21: 866725-2|5838896-1|5811281-1 | X21: 0 | Y21: 20
A22: 1606413 | B22: us | C22: 1 | D22: Pathos | E22: z | F22: 363685 | G22: us | H22: 1 | I22: Ephex | J22: z | K22: 304671 | L22: us | M22: 1 | N22: Aziel | O22: p | P22: Bronze | Q22: 16 | R22: 24 | S22: 326 | T22: 2014-07-12 | U22: 16 hours | V22: 2014-08-24T18:59:41 | W22: 1606413-1|363685-1|304671-1 | X22: 0 | Y22: 21
A23: 5341255 | B23: us | C23: 1 | D23: GsusZilla | E23: p | F23: 2811886 | G23: us | H23: 1 | I23: Fire | J23: p | K23: 335809 | L23: us | M23: 1 | N23: Azcriban | O23: r | P23: Bronze | Q23: 43 | R23: 54 | S23: 325 | T23: 2014-07-31 | U23: 4 days | V23: 2014-08-24T18:59:41 | W23: 5341255-1|2811886-1|335809-1 | X23: 0 | Y23: 22
A24: 4909140 | B24: us | C24: 1 | D24: LEO | E24: t | F24: 1410280 | G24: us | H24: 1 | I24: JTH | J24: t | K24: 361211 | L24: us | M24: 1 | N24: Gar | O24: r | P24: Bronze | Q24: 16 | R24: 27 | S24: 325 | T24: 2014-07-22 | U24: 6 days | V24: 2014-08-24T18:59:41 | W24: 4909140-1|1410280-1|361211-1 | X24: 0 | Y24: 23
A25: 4930554 | B25: us | C25: 1 | D25: macleoder | E25: p | F25: 4918408 | G25: us | H25: 1 | I25: RyGreefy | J25: r | K25: 3272461 | L25: us | M25: 1 | N25: MasterKush | O25: r | P25: Bronze | Q25: 13 | R25: 18 | S25: 323 | T25: 2014-08-01 | U25: 3 days | V25: 2014-08-24T18:59:41 | W25: 4930554-1|4918408-1|3272461-1 | X25: 0 | Y25: 24
A26: 834179 | B26: us | C26: 2 | D26: Krathos | E26: z | F26: 759835 | G26: us | H26: 2 | I26: GEAHINGsjm | J26: z | K26: 758979 | L26: us | M26: 2 | N26: Pvnizher | O26: p | P26: Bronze | Q26: 12 | R26: 8 | S26: 322 | T26: 2014-07-21 | U26: 22 days | V26: 2014-08-24T18:59:41 | W26: 834179-2|759835-2|758979-2 | X26: 0 | Y26: 25
A27: 4954630 | B27: us | C27: 1 | D27: kita | E27: p | F27: 4655789 | G27: us | H27: 1 | I27: sake | J27: r | K27: 4612486 | L27: us | M27: 1 | N27: RYU | O27: p | P27: Bronze | Q27: 47 | R27: 61 | S27: 321 | T27: 2014-07-12 | U27: 8 hours | V27: 2014-08-24T18:59:41 | W27: 4954630-1|4655789-1|4612486-1 | X27: 0 | Y27: 26
A28: 5634899 | B28: us | C28: 1 | D28: Miyo | E28: t | F28: 713298 | G28: us | H28: 1 | I28: PrimeFFA | J28: t | K28: 505636 | L28: us | M28: 1 | N28: SwaggaChu | O28: r | P28: Bronze | Q28: 10 | R28: 8 | S28: 319 | T28: 2014-07-27 | U28: 9 days | V28: 2014-08-24T18:59:41 | W28: 5634899-1|713298-1|505636-1 | X28: 0 | Y28: 27
A29: 3866210 | B29: us | C29: 1 | D29: Auditore | E29: r | F29: 3795640 | G29: us | H29: 1 | I29: LeKing | J29: r | K29: 1079379 | L29: us | M29: 1 | N29: Folks | O29: r | P29: Bronze | Q29: 10 | R29: 6 | S29: 318 | T29: 2014-08-04 | U29: 13 days | V29: 2014-08-24T18:59:41 | W29: 3866210-1|3795640-1|1079379-1 | X29: 0 | Y29: 28
A30: 3982540 | B30: us | C30: 1 | D30: Stromboki | E30: t | F30: 3201880 | G30: us | H30: 1 | I30: TheToolman | J30: t | K30: 964583 | L30: us | M30: 1 | N30: Biohazard | O30: p | P30: Bronze | Q30: 20 | R30: 41 | S30: 317 | T30: 2014-07-14 | U30: 20 hours | V30: 2014-08-24T18:59:41 | W30: 3982540-1|3201880-1|964583-1 | X30: 0 | Y30: 29
A31: 2079700 | B31: us | C31: 1 | D31: Haozi | E31: z | F31: 1921931 | G31: us | H31: 1 | I31: Orsus | J31: r | K31: 1693020 | L31: us | M31: 1 | N31: Carmack | O31: p | P31: Bronze | Q31: 10 | R31: 5 | S31: 316 | T31: 2014-08-09 | U31: 8 days | V31: 2014-08-24T18:59:41 | W31: 2079700-1|1921931-1|1693020-1 | X31: 0 | Y31: 30
A32: 5930227 | B32: us | C32: 1 | D32: Ghost | E32: p | F32: 2667894 | G32: us | H32: 1 | I32: Xecuter | J32: z | K32: 2469575 | L32: us | M32: 1 | N32: MalakPortman | O32: t | P32: Bronze | Q32: 11 | R32: 19 | S32: 316 | T32: 2014-08-16 | U32: 3 days | V32: 2014-08-24T18:59:41 | W32: 5930227-1|2667894-1|2469575-1 | X32: 0 | Y32: 31
A33: 5470458 | B33: us | C33: 1 | D33: SDBB | E33: t | F33: 5403539 | G33: us | H33: 1 | I33: Watcher | J33: z | K33: 5393626 | L33: us | M33: 1 | N33: Zar | O33: p | P33: Bronze | Q33: 17 | R33: 23 | S33: 314 | T33: 2014-07-08 | U33: 5 days | V33: 2014-08-24T18:59:41 | W33: 5470458-1|5403539-1|5393626-1 | X33: 0 | Y33: 32
A34: 146894 | B34: us | C34: 2 | D34: Führer | E34: t | F34: 3162 | G34: us | H34: 2 | I34: dbarreda | J34: r | K34: 4024440 | L34: us | M34: 1 | N34: IvanAGS | O34: t | P34: Bronze | Q34: 9 | R34: 2 | S34: 313 | T34: 2014-07-09 | U34: 5 days | V34: 2014-08-24T18:59:41 | W34: 146894-2|3162-2|4024440-1 | X34: 0 | Y34: 33
A35: 4057524 | B35: us | C35: 1 | D35: Skylur | E35: t | F35: 4031020 | G35: us | H35: 1 | I35: Mario | J35: p | K35: 4027705 | L35: us | M35: 1 | N35: Jethro | O35: t | P35: Bronze | Q35: 39 | R35: 57 | S35: 307 | T35: 2014-07-08 | U35: 1 days | V35: 2014-08-24T18:59:41 | W35: 4057524-1|4031020-1|4027705-1 | X35: 0 | Y35: 34
A36: 5690837 | B36: us | C36: 1 | D36: Curantos | E36: t | F36: 4465858 | G36: us | H36: 1 | I36: TheKing | J36: p | K36: 2212514 | L36: us | M36: 1 | N36: Robought | O36: t | P36: Bronze | Q36: 11 | R36: 20 | S36: 307 | T36: 2014-07-16 | U36: 22 hours | V36: 2014-08-24T18:59:41 | W36: 5690837-1|4465858-1|2212514-1 | X36: 0 | Y36: 35
A37: 1828859 | B37: us | C37: 1 | D37: RedEyeJedi | E37: p | F37: 1761927 | G37: us | H37: 1 | I37: Esclavo | J37: t | K37: 1659104 | L37: us | M37: 1 | N37: ShadowBirium | O37: t | P37: Bronze | Q37: 20 | R37: 20 | S37: 303 | T37: 2014-07-10 | U37: 19 days | V37: 2014-08-24T18:59:41 | W37: 1828859-1|1761927-1|1659104-1 | X37: 0 | Y37: 36
A38: 1102175 | B38: us | C38: 1 | D38: EvilDumpling | E38: z | F38: 1021459 | G38: us | H38: 1 | I38: Shecky | J38: t | K38: 513084 | L38: us | M38: 1 | N38: GoreMaster | O38: p | P38: Bronze | Q38: 10 | R38: 16 | S38: 303 | T38: 2014-07-09 | U38: 21 hours | V38: 2014-08-24T18:59:41 | W38: 1102175-1|1021459-1|513084-1 | X38: 0 | Y38: 37
A39: 2114931 | B39: us | C39: 1 | D39: chadchemist | E39: r | F39: 1379234 | G39: us | H39: 1 | I39: Momo | J39: r | K39: 1007063 | L39: us | M39: 1 | N39: Xanos | O39: z | P39: Bronze | Q39: 13 | R39: 13 | S39: 301 | T39: 2014-07-18 | U39: 9 days | V39: 2014-08-24T18:59:41 | W39: 2114931-1|1379234-1|1007063-1 | X39: 0 | Y39: 38
A40: 3822064 | B40: us | C40: 1 | D40: Tomaz | E40: r | F40: 3709786 | G40: us | H40: 1 | I40: Warlord | J40: p | K40: 3506715 | L40: us | M40: 1 | N40: HalfBloOD | O40: r | P40: Bronze | Q40: 9 | R40: 2 | S40: 300 | T40: 2014-07-08 | U40: 2 days | V40: 2014-08-24T18:59:41 | W40: 3822064-1|3709786-1|3506715-1 | X40: 0 | Y40: 39
A41: 4477691 | B41: us | C41: 1 | D41: Azaezal | E41: t | F41: 965706 | G41: us | H41: 1 | I41: Bormimor | J41: r | K41: 351295 | L41: us | M41: 1 | N41: Dakkyn | O41: t | P41: Bronze | Q41: 11 | R41: 13 | S41: 300 | T41: 2014-08-12 | U41: 16 hours | V41: 2014-08-24T18:59:41 | W41: 4477691-1|965706-1|351295-1 | X41: 0 | Y41: 40
A42: 3207081 | B42: us | C42: 1 | D42: QcLaVieille | E42: r | F42: 1900729 | G42: us | H42: 1 | I42: CIDLAG | J42: r | K42: 644523 | L42: us | M42: 1 | N42: ArachII | O42: r | P42: Bronze | Q42: 11 | R42: 9 | S42: 299 | T42: 2014-07-12 | U42: 10 days | V42: 2014-08-24T18:59:41 | W42: 3207081-1|1900729-1|644523-1 | X42: 0 | Y42: 41
A43: 5628360 | B43: us | C43: 1 | D43: bitThor | E43: z | F43: 5329810 | G43: us | H43: 1 | I43: anAnarchist | J43: t | K43: 1030679 | L43: us | M43: 1 | N43: Starnaught | O43: z | P43: Bronze | Q43: 11 | R43: 13 | S43: 296 | T43: 2014-07-22 | U43: 10 days | V43: 2014-08-24T18:59:41 | W43: 5628360-1|5329810-1|1030679-1 | X43: 0 | Y43: 42
A44: 3043414 | B44: us | C44: 1 | D44: SackTap | E44: t | F44: 532151 | G44: us | H44: 1 | I44: CooLWoLF | J44: t | K44: 267456 | L44: us | M44: 1 | N44: ZeroDay | O44: z | P44: Bronze | Q44: 9 | R44: 12 | S44: 296 | T44: 2014-07-16 | U44: 19 hours | V44: 2014-08-24T18:59:41 | W44: 3043414-1|532151-1|267456-1 | X44: 0 | Y44: 43
A45: 3931297 | B45: us | C45: 1 | D45: Natius | E45: p | F45: 3931186 | G45: us | H45: 1 | I45: CaptClassy | J45: z | K45: 693628 | L45: us | M45: 1 | N45: Gladiatore | O45: z | P45: Bronze | Q45: 15 | R45: 21 | S45: 295 | T45: 2014-07-17 | U45: 13 days | V45: 2014-08-24T18:59:41 | W45: 3931297-1|3931186-1|693628-1 | X45: 0 | Y45: 44
A46: 3814358 | B46: us | C46: 1 | D46: ZCHIZZLE | E46: t | F46: 3770774 | G46: us | H46: 1 | I46: Maestro | J46: z | K46: 3751188 | L46: us | M46: 1 | N46: RAM | O46: z | P46: Bronze | Q46: 9 | R46: 7 | S46: 294 | T46: 2014-07-11 | U46: 4 days | V46: 2014-08-24T18:59:41 | W46: 3814358-1|3770774-1|3751188-1 | X46: 0 | Y46: 45
A47: 5893122 | B47: us | C47: 1 | D47: CptPicard | E47: t | F47: 450660 | G47: us | H47: 1 | I47: DNB | J47: z | K47: 277076 | L47: us | M47: 1 | N47: dNbEaGLeS | O47: z | P47: Bronze | Q47: 18 | R47: 25 | S47: 292 | T47: 2014-08-06 | U47: 6 days | V47: 2014-08-24T18:59:41 | W47: 5893122-1|450660-1|277076-1 | X47: 0 | Y47: 46
A48: 5706764 | B48: us | C48: 1 | D48: Stickanina | E48: t | F48: 5260165 | G48: us | H48: 1 | I48: FOEHAMMER | J48: t | K48: 2963149 | L48: us | M48: 1 | N48: Frogg | O48: r | P48: Bronze | Q48: 9 | R48: 16 | S48: 290 | T48: 2014-07-30 | U48: 10 days | V48: 2014-08-24T18:59:41 | W48: 5706764-1|5260165-1|2963149-1 | X48: 0 | Y48: 47
A49: 3531848 | B49: us | C49: 1 | D49: XRKCrazyLazy | E49: t | F49: 2822436 | G49: us | H49: 1 | I49: AZNTSUNAMI | J49: r | K49: 1962915 | L49: us | M49: 1 | N49: EvilOmen | O49: p | P49: Bronze | Q49: 25 | R49: 45 | S49: 290 | T49: 2014-07-08 | U49: 1 days | V49: 2014-08-24T18:59:41 | W49: 3531848-1|2822436-1|1962915-1 | X49: 0 | Y49: 48
A50: 5831836 | B50: us | C50: 1 | D50: Keeto | E50: t | F50: 5523584 | G50: us | H50: 1 | I50: Goku | J50: t | K50: 717793 | L50: us | M50: 1 | N50: Bushido | O50: p | P50: Bronze | Q50: 29 | R50: 48 | S50: 289 | T50: 2014-07-14 | U50: 3 hours | V50: 2014-08-24T18:59:41 | W50: 5831836-1|5523584-1|717793-1 | X50: 0 | Y50: 49
A51: 5207213 | B51: us | C51: 1 | D51: RockHard | E51: p | F51: 4700153 | G51: us | H51: 1 | I51: Wizard | J51: z | K51: 3653737 | L51: us | M51: 1 | N51: dman | O51: z | P51: Bronze | Q51: 18 | R51: 31 | S51: 289 | T51: 2014-07-09 | U51: 8 days | V51: 2014-08-24T18:59:41 | W51: 5207213-1|4700153-1|3653737-1 | X51: 0 | Y51: 50
A52: 4457865 | B52: us | C52: 1 | D52: TestBooster | E52: t | F52: 1466248 | G52: us | H52: 1 | I52: RyanSpinnaz | J52: p | K52: 1098254 | L52: us | M52: 1 | N52: KGthePhenom | O52: r | P52: Bronze | Q52: 9 | R52: 15 | S52: 286 | T52: 2014-07-16 | U52: 2 days | V52: 2014-08-24T18:59:41 | W52: 4457865-1|1466248-1|1098254-1 | X52: 0 | Y52: 51
A53: 3413620 | B53: us | C53: 1 | D53: kawika | E53: t | F53: 1728324 | G53: us | H53: 1 | I53: Charlie | J53: r | K53: 619986 | L53: us | M53: 1 | N53: Tobyzzz | O53: p | P53: Bronze | Q53: 41 | R53: 69 | S53: 286 | T53: 2014-07-12 | U53: 1 days | V53: 2014-08-24T18:59:41 | W53: 3413620-1|1728324-1|619986-1 | X53: 0 | Y53: 52
A54: 171787 | B54: us | C54: 2 | D54: KniBal | E54: r | F54: 166189 | G54: us | H54: 2 | I54: Mincho | J54: r | K54: 112975 | L54: us | M54: 2 | N54: ZfoX | O54: r | P54: Bronze | Q54: 9 | R54: 10 | S54: 285 | T54: 2014-07-15 | U54: 2 days | V54: 2014-08-24T18:59:41 | W54: 171787-2|166189-2|112975-2 | X54: 0 | Y54: 53
A55: 5840808 | B55: us | C55: 1 | D55: Bolun | E55: p | F55: 5838864 | G55: us | H55: 1 | I55: Felix | J55: p | K55: 5486409 | L55: us | M55: 1 | N55: kan | O55: z | P55: Bronze | Q55: 21 | R55: 42 | S55: 282 | T55: 2014-07-23 | U55: 1 days | V55: 2014-08-24T18:59:41 | W55: 5840808-1|5838864-1|5486409-1 | X55: 0 | Y55: 54
A56: 5850367 | B56: us | C56: 1 | D56: MasterWolf | E56: p | F56: 2395744 | G56: us | H56: 1 | I56: Ironside | J56: r | K56: 2263392 | L56: us | M56: 1 | N56: Champion | O56: t | P56: Bronze | Q56: 9 | R56: 10 | S56: 281 | T56: 2014-07-17 | U56: 22 days | V56: 2014-08-24T18:59:41 | W56: 5850367-1|2395744-1|2263392-1 | X56: 0 | Y56: 55
A57: 321074 | B57: us | C57: 2 | D57: RobMol | E57: p | F57: 7484 | G57: us | H57: 2 | I57: PauloCus | J57: t | K57: 4049666 | L57: us | M57: 1 | N57: Francisella | O57: t | P57: Bronze | Q57: 14 | R57: 17 | S57: 281 | T57: 2014-07-08 | U57: 2 days | V57: 2014-08-24T18:59:41 | W57: 321074-2|7484-2|4049666-1 | X57: 0 | Y57: 56
A58: 5799301 | B58: us | C58: 1 | D58: jarya | E58: r | F58: 5790740 | G58: us | H58: 1 | I58: imonkey | J58: t | K58: 2691225 | L58: us | M58: 1 | N58: ILoveJarya | O58: z | P58: Bronze | Q58: 9 | R58: 11 | S58: 280 | T58: 2014-08-07 | U58: 4 days | V58: 2014-08-24T18:59:41 | W58: 5799301-1|5790740-1|2691225-1 | X58: 0 | Y58: 57
A59: 2423137 | B59: us | C59: 1 | D59: poonALLday | E59: r | F59: 696077 | G59: us | H59: 1 | I59: poonALLmonth | J59: t | K59: 365688 | L59: us | M59: 1 | N59: Squanto | O59: p | P59: Bronze | Q59: 12 | R59: 20 | S59: 280 | T59: 2014-08-16 | U59: 6 days | V59: 2014-08-24T18:59:41 | W59: 2423137-1|696077-1|365688-1 | X59: 0 | Y59: 58
A60: 798005 | B60: us | C60: 2 | D60: Kosovo | E60: t | F60: 725113 | G60: us | H60: 2 | I60: Stark | J60: z | K60: 640553 | L60: us | M60: 2 | N60: SnowParadox | O60: p | P60: Bronze | Q60: 11 | R60: 14 | S60: 278 | T60: 2014-08-17 | U60: 1 days | V60: 2014-08-24T18:59:41 | W60: 798005-2|725113-2|640553-2 | X60: 0 | Y60: 59
A61: 4089383 | B61: us | C61: 1 | D61: LilSushiBoy | E61: p | F61: 3820758 | G61: us | H61: 1 | I61: Sillawok | J61: t | K61: 2246032 | L61: us | M61: 1 | N61: BlueVU | O61: p | P61: Bronze | Q61: 7 | R61: 9 | S61: 278 | T61: 2014-07-30 | U61: 18 days | V61: 2014-08-24T18:59:41 | W61: 4089383-1|3820758-1|2246032-1 | X61: 0 | Y61: 60
A62: 5802446 | B62: us | C62: 1 | D62: InevitableH | E62: t | F62: 5802144 | G62: us | H62: 1 | I62: Comet | J62: t | K62: 1102666 | L62: us | M62: 1 | N62: Santa | O62: t | P62: Bronze | Q62: 11 | R62: 11 | S62: 276 | T62: 2014-07-09 | U62: 17 days | V62: 2014-08-24T18:59:41 | W62: 5802446-1|5802144-1|1102666-1 | X62: 0 | Y62: 61
A63: 3716421 | B63: us | C63: 1 | D63: DrizzlJunior | E63: p | F63: 2936279 | G63: us | H63: 1 | I63: TheAvenger | J63: r | K63: 781528 | L63: us | M63: 1 | N63: KongChar | O63: z | P63: Bronze | Q63: 9 | R63: 8 | S63: 274 | T63: 2014-07-16 | U63: 19 hours | V63: 2014-08-24T18:59:42 | W63: 3716421-1|2936279-1|781528-1 | X63: 0 | Y63: 62
A64: 5837535 | B64: us | C64: 1 | D64: Smitty | E64: t | F64: 4524276 | G64: us | H64: 1 | I64: BigCountry | J64: z | K64: 1698544 | L64: us | M64: 1 | N64: Matt | O64: z | P64: Bronze | Q64: 11 | R64: 17 | S64: 273 | T64: 2014-07-09 | U64: 12 days | V64: 2014-08-24T18:59:42 | W64: 5837535-1|4524276-1|1698544-1 | X64: 0 | Y64: 63
A65: 533824 | B65: us | C65: 2 | D65: victorVT | E65: r | F65: 533273 | G65: us | H65: 2 | I65: Dantesthor | J65: t | K65: 5748572 | L65: us | M65: 1 | N65: KiLLuA | O65: t | P65: Bronze | Q65: 8 | R65: 9 | S65: 272 | T65: 2014-07-31 | U65: 5 days | V65: 2014-08-24T18:59:42 | W65: 533824-2|533273-2|5748572-1 | X65: 0 | Y65: 64
A66: 3020753 | B66: us | C66: 1 | D66: asuston | E66: t | F66: 2043594 | G66: us | H66: 1 | I66: Hugebull | J66: t | K66: 1753291 | L66: us | M66: 1 | N66: Altair | O66: t | P66: Bronze | Q66: 9 | R66: 14 | S66: 272 | T66: 2014-08-04 | U66: 10 days | V66: 2014-08-24T18:59:42 | W66: 3020753-1|2043594-1|1753291-1 | X66: 0 | Y66: 65
A67: 332436 | B67: us | C67: 2 | D67: Crow | E67: p | F67: 124770 | G67: us | H67: 2 | I67: Walldeer | J67: p | K67: 66884 | L67: us | M67: 2 | N67: throatcutter | O67: t | P67: Bronze | Q67: 15 | R67: 28 | S67: 269 | T67: 2014-07-09 | U67: 1 days | V67: 2014-08-24T18:59:42 | W67: 332436-2|124770-2|66884-2 | X67: 0 | Y67: 66
A68: 3915686 | B68: us | C68: 1 | D68: carist | E68: r | F68: 3120292 | G68: us | H68: 1 | I68: Ryou | J68: r | K68: 2707235 | L68: us | M68: 1 | N68: Kirisima | O68: r | P68: Bronze | Q68: 7 | R68: 4 | S68: 268 | T68: 2014-07-12 | U68: 15 days | V68: 2014-08-24T18:59:42 | W68: 3915686-1|3120292-1|2707235-1 | X68: 0 | Y68: 67
A69: 3887222 | B69: us | C69: 1 | D69: Ultrarisk | E69: z | F69: 3871051 | G69: us | H69: 1 | I69: DoctaRockzo | J69: t | K69: 2235739 | L69: us | M69: 1 | N69: Roflstomper | O69: r | P69: Bronze | Q69: 8 | R69: 9 | S69: 268 | T69: 2014-07-27 | U69: 7 days | V69: 2014-08-24T18:59:42 | W69: 3887222-1|3871051-1|2235739-1 | X69: 0 | Y69: 68
A70: 4933876 | B70: us | C70: 1 | D70: LazyBwoi | E70: p | F70: 4926750 | G70: us | H70: 1 | I70: tapeur | J70: t | K70: 919032 | L70: us | M70: 1 | N70: PsYcHoPaT | O70: p | P70: Bronze | Q70: 11 | R70: 16 | S70: 268 | T70: 2014-07-29 | U70: 9 days | V70: 2014-08-24T18:59:42 | W70: 4933876-1|4926750-1|919032-1 | X70: 0 | Y70: 69
A71: 4796383 | B71: us | C71: 1 | D71: Twerk | E71: t | F71: 4780184 | G71: us | H71: 1 | I71: Wankershim | J71: p | K71: 2014641 | L71: us | M71: 1 | N71: Tychus | O71: z | P71: Bronze | Q71: 16 | R71: 25 | S71: 268 | T71: 2014-07-10 | U71: 1 days | V71: 2014-08-24T18:59:42 | W71: 4796383-1|4780184-1|2014641-1 | X71: 0 | Y71: 70
A72: 1024799 | B72: us | C72: 1 | D72: EvoJDM | E72: r | F72: 656601 | G72: us | H72: 1 | I72: CronoXZero | J72: r | K72: 365995 | L72: us | M72: 1 | N72: Logan | O72: p | P72: Bronze | Q72: 11 | R72: 9 | S72: 267 | T72: 2014-07-20 | U72: 1 days | V72: 2014-08-24T18:59:42 | W72: 1024799-1|656601-1|365995-1 | X72: 0 | Y72: 71
A73: 4908051 | B73: us | C73: 1 | D73: Bismuth | E73: t | F73: 2859991 | G73: us | H73: 1 | I73: Mayhem | J73: t | K73: 2477517 | L73: us | M73: 1 | N73: JBalla | O73: z | P73: Bronze | Q73: 11 | R73: 9 | S73: 267 | T73: 2014-08-02 | U73: 17 days | V73: 2014-08-24T18:59:42 | W73: 4908051-1|2859991-1|2477517-1 | X73: 0 | Y73: 72
A74: 4615743 | B74: us | C74: 1 | D74: MnkyAssassin | E74: z | F74: 4189385 | G74: us | H74: 1 | I74: Penguin | J74: z | K74: 3284574 | L74: us | M74: 1 | N74: Razak | O74: t | P74: Bronze | Q74: 10 | R74: 9 | S74: 267 | T74: 2014-07-20 | U74: 6 days | V74: 2014-08-24T18:59:42 | W74: 4615743-1|4189385-1|3284574-1 | X74: 0 | Y74: 73
A75: 1394866 | B75: us | C75: 1 | D75: PEACEMAKER | E75: t | F75: 1343429 | G75: us | H75: 1 | I75: dallasblack | J75: r | K75: 624373 | L75: us | M75: 1 | N75: Everliving | O75: r | P75: Bronze | Q75: 8 | R75: 5 | S75: 266 | T75: 2014-07-14 | U75: 4 days | V75: 2014-08-24T18:59:42 | W75: 1394866-1|1343429-1|624373-1 | X75: 0 | Y75: 74
A76: 262045 | B76: us | C76: 2 | D76: Ruben | E76: r | F76: 166189 | G76: us | H76: 2 | I76: Mincho | J76: r | K76: 112975 | L76: us | M76: 2 | N76: ZfoX | O76: r | P76: Bronze | Q76: 8 | R76: 7 | S76: 266 | T76: 2014-07-18 | U76: 11 days | V76: 2014-08-24T18:59:42 | W76: 262045-2|166189-2|112975-2 | X76: 0 | Y76: 75
A77: 5601610 | B77: us | C77: 1 | D77: bibi | E77: t | F77: 5078390 | G77: us | H77: 1 | I77: momooooooooo | J77: r | K77: 4696729 | L77: us | M77: 1 | N77: TracyX | O77: p | P77: Bronze | Q77: 8 | R77: 10 | S77: 266 | T77: 2014-08-09 | U77: 9 days | V77: 2014-08-24T18:59:42 | W77: 5601610-1|5078390-1|4696729-1 | X77: 0 | Y77: 76
A78: 5459258 | B78: us | C78: 1 | D78: cataclyzmic | E78: p | F78: 346904 | G78: us | H78: 1 | I78: Cody | J78: z | K78: 342166 | L78: us | M78: 1 | N78: Shaftyy | O78: p | P78: Bronze | Q78: 19 | R78: 27 | S78: 266 | T78: 2014-07-08 | U78: 6 days | V78: 2014-08-24T18:59:42 | W78: 5459258-1|346904-1|342166-1 | X78: 0 | Y78: 77
A79: 1844363 | B79: us | C79: 1 | D79: iceten | E79: p | F79: 361167 | G79: us | H79: 1 | I79: Deleted | J79: r | K79: 346742 | L79: us | M79: 1 | N79: WonTon | O79: z | P79: Bronze | Q79: 9 | R79: 13 | S79: 266 | T79: 2014-08-16 | U79: 1 days | V79: 2014-08-24T18:59:42 | W79: 1844363-1|361167-1|346742-1 | X79: 0 | Y79: 78
A80: 165786 | B80: us | C80: 2 | D80: FENIX | E80: p | F80: 54350 | G80: us | H80: 2 | I80: DarkWing | J80: t | K80: 3067 | L80: us | M80: 2 | N80: Alekzion | O80: t | P80: Bronze | Q80: 39 | R80: 69 | S80: 265 | T80: 2014-07-08 | U80: 2 days | V80: 2014-08-24T18:59:42 | W80: 165786-2|54350-2|3067-2 | X80: 0 | Y80: 79
A81: 4511101 | B81: us | C81: 1 | D81: HAHAUMADBRO | E81: p | F81: 2659040 | G81: us | H81: 1 | I81: McBain | J81: t | K81: 2397097 | L81: us | M81: 1 | N81: TheGoldSaint | O81: r | P81: Bronze | Q81: 7 | R81: 1 | S81: 262 | T81: 2014-07-19 | U81: 8 days | V81: 2014-08-24T18:59:42 | W81: 4511101-1|2659040-1|2397097-1 | X81: 0 | Y81: 80
A82: 3002813 | B82: us | C82: 1 | D82: Polopolo | E82: t | F82: 2962376 | G82: us | H82: 1 | I82: Leech | J82: p | K82: 2928624 | L82: us | M82: 1 | N82: SNTrusty | O82: r | P82: Bronze | Q82: 7 | R82: 3 | S82: 262 | T82: 2014-07-16 | U82: 18 days | V82: 2014-08-24T18:59:42 | W82: 3002813-1|2962376-1|2928624-1 | X82: 0 | Y82: 81
A83: 4872562 | B83: us | C83: 1 | D83: lifeforce | E83: r | F83: 3648953 | G83: us | H83: 1 | I83: TheSlap | J83: p | K83: 573550 | L83: us | M83: 1 | N83: JJeezy | O83: r | P83: Bronze | Q83: 8 | R83: 10 | S83: 262 | T83: 2014-07-20 | U83: 13 days | V83: 2014-08-24T18:59:42 | W83: 4872562-1|3648953-1|573550-1 | X83: 0 | Y83: 82
A84: 331063 | B84: us | C84: 2 | D84: Pinho | E84: t | F84: 324020 | G84: us | H84: 2 | I84: Rocha | J84: z | K84: 322379 | L84: us | M84: 2 | N84: Kamikaze | O84: t | P84: Bronze | Q84: 7 | R84: 2 | S84: 260 | T84: 2014-07-29 | U84: 16 days | V84: 2014-08-24T18:59:42 | W84: 331063-2|324020-2|322379-2 | X84: 0 | Y84: 83
A85: 798005 | B85: us | C85: 2 | D85: Kosovo | E85: t | F85: 725113 | G85: us | H85: 2 | I85: Stark | J85: z | K85: 515870 | L85: us | M85: 2 | N85: shadowdragon | O85: z | P85: Bronze | Q85: 10 | R85: 15 | S85: 260 | T85: 2014-08-14 | U85: 5 days | V85: 2014-08-24T18:59:42 | W85: 798005-2|725113-2|515870-2 | X85: 0 | Y85: 84
A86: 5799647 | B86: us | C86: 1 | D86: McBadger | E86: p | F86: 5774619 | G86: us | H86: 1 | I86: Wustywoad | J86: t | K86: 4680042 | L86: us | M86: 1 | N86: Frodotbagins | O86: z | P86: Bronze | Q86: 11 | R86: 23 | S86: 260 | T86: 2014-07-11 | U86: 4 days | V86: 2014-08-24T18:59:42 | W86: 5799647-1|5774619-1|4680042-1 | X86: 0 | Y86: 85
A87: 1337722 | B87: us | C87: 1 | D87: Polski | E87: z | F87: 1332904 | G87: us | H87: 1 | I87: theplen | J87: p | K87: 735800 | L87: us | M87: 1 | N87: TofuWarrior | O87: p | P87: Bronze | Q87: 8 | R87: 8 | S87: 258 | T87: 2014-08-03 | U87: 14 days | V87: 2014-08-24T18:59:42 | W87: 1337722-1|1332904-1|735800-1 | X87: 0 | Y87: 86
A88: 3657538 | B88: us | C88: 1 | D88: SirLuke | E88: p | F88: 333632 | G88: us | H88: 1 | I88: LettuceAtack | J88: p | K88: 332409 | L88: us | M88: 1 | N88: LetUsRetreat | O88: z | P88: Bronze | Q88: 9 | R88: 13 | S88: 258 | T88: 2014-07-13 | U88: 1 days | V88: 2014-08-24T18:59:42 | W88: 3657538-1|333632-1|332409-1 | X88: 0 | Y88: 87
A89: 5844762 | B89: us | C89: 1 | D89: QueenB | E89: t | F89: 5656899 | G89: us | H89: 1 | I89: GoldenBullet | J89: t | K89: 2781011 | L89: us | M89: 1 | N89: undeaddevil | O89: t | P89: Bronze | Q89: 9 | R89: 15 | S89: 258 | T89: 2014-08-09 | U89: 1 days | V89: 2014-08-24T18:59:42 | W89: 5844762-1|5656899-1|2781011-1 | X89: 0 | Y89: 88
A90: 689914 | B90: us | C90: 2 | D90: Tripaseca | E90: z | F90: 41473 | G90: us | H90: 2 | I90: Talita | J90: z | K90: 3971093 | L90: us | M90: 1 | N90: Sinistro | O90: p | P90: Bronze | Q90: 8 | R90: 2 | S90: 257 | T90: 2014-07-23 | U90: 24 days | V90: 2014-08-24T18:59:42 | W90: 689914-2|41473-2|3971093-1 | X90: 0 | Y90: 89
A91: 5187976 | B91: us | C91: 1 | D91: Vispen | E91: p | F91: 4235024 | G91: us | H91: 1 | I91: BKstl | J91: r | K91: 2958180 | L91: us | M91: 1 | N91: TheRedNeck | O91: p | P91: Bronze | Q91: 8 | R91: 8 | S91: 257 | T91: 2014-07-30 | U91: 24 days | V91: 2014-08-24T18:59:42 | W91: 5187976-1|4235024-1|2958180-1 | X91: 0 | Y91: 90
A92: 1711696 | B92: us | C92: 1 | D92: FTEGhost | E92: z | F92: 1501857 | G92: us | H92: 1 | I92: SgtKorey | J92: p | K92: 925159 | L92: us | M92: 1 | N92: FTExKENMANx | O92: t | P92: Bronze | Q92: 8 | R92: 2 | S92: 256 | T92: 2014-08-08 | U92: 7 days | V92: 2014-08-24T18:59:42 | W92: 1711696-1|1501857-1|925159-1 | X92: 0 | Y92: 91
A93: 5322916 | B93: us | C93: 1 | D93: kRiSPy | E93: r | F93: 4115770 | G93: us | H93: 1 | I93: gReeNaSh | J93: r | K93: 3751792 | L93: us | M93: 1 | N93: Thunderbread | O93: t | P93: Bronze | Q93: 7 | R93: 4 | S93: 256 | T93: 2014-07-09 | U93: 16 days | V93: 2014-08-24T18:59:42 | W93: 5322916-1|4115770-1|3751792-1 | X93: 0 | Y93: 92
A94: 898886 | B94: us | C94: 1 | D94: Undrscore | E94: r | F94: 759769 | G94: us | H94: 1 | I94: TheFlyinRock | J94: z | K94: 759551 | L94: us | M94: 1 | N94: DomoKun | O94: p | P94: Bronze | Q94: 7 | R94: 8 | S94: 254 | T94: 2014-08-19 | U94: 4 days | V94: 2014-08-24T18:59:42 | W94: 898886-1|759769-1|759551-1 | X94: 0 | Y94: 93
A95: 3578495 | B95: us | C95: 1 | D95: Nemodaneb | E95: t | F95: 1193082 | G95: us | H95: 1 | I95: Bugen | J95: p | K95: 1132130 | L95: us | M95: 1 | N95: BjornLocke | O95: t | P95: Bronze | Q95: 10 | R95: 5 | S95: 252 | T95: 2014-07-09 | U95: 21 hours | V95: 2014-08-24T18:59:42 | W95: 3578495-1|1193082-1|1132130-1 | X95: 0 | Y95: 94
A96: 116070 | B96: us | C96: 2 | D96: Ciclon | E96: p | F96: 91636 | G96: us | H96: 2 | I96: BRIGIDO | J96: p | K96: 1563731 | L96: us | M96: 1 | N96: Sajuuk | O96: z | P96: Bronze | Q96: 12 | R96: 11 | S96: 252 | T96: 2014-07-29 | U96: 24 days | V96: 2014-08-24T18:59:42 | W96: 116070-2|91636-2|1563731-1 | X96: 0 | Y96: 95
A97: 5592091 | B97: us | C97: 1 | D97: SweatyNutz | E97: p | F97: 3368489 | G97: us | H97: 1 | I97: Butterfly | J97: p | K97: 2738863 | L97: us | M97: 1 | N97: bengsci | O97: t | P97: Bronze | Q97: 7 | R97: 14 | S97: 252 | T97: 2014-07-22 | U97: 1 days | V97: 2014-08-24T18:59:42 | W97: 5592091-1|3368489-1|2738863-1 | X97: 0 | Y97: 96
A98: 537883 | B98: us | C98: 2 | D98: mity | E98: p | F98: 322418 | G98: us | H98: 2 | I98: mapache | J98: t | K98: 10833 | L98: us | M98: 2 | N98: artwo | O98: r | P98: Bronze | Q98: 8 | R98: 7 | S98: 250 | T98: 2014-07-08 | U98: 3 days | V98: 2014-08-24T18:59:42 | W98: 537883-2|322418-2|10833-2 | X98: 0 | Y98: 97
A99: 5879266 | B99: us | C99: 1 | D99: Apocalypse | E99: p | F99: 5577018 | G99: us | H99: 1 | I99: Armdrone | J99: z | K99: 4509970 | L99: us | M99: 1 | N99: armoar | O99: t | P99: Bronze | Q99: 8 | R99: 7 | S99: 250 | T99: 2014-07-27 | U99: 1 days | V99: 2014-08-24T18:59:42 | W99: 5879266-1|5577018-1|4509970-1 | X99: 0 | Y99: 98
A100: 463606 | B100: us | C100: 2 | D100: Lalombriz | E100: p | F100: 28627 | G100: us | H100: 2 | I100: ratrox | J100: t | K100: 9545 | L100: us | M100: 2 | N100: juakala | O100: z | P100: Bronze | Q100: 22 | R100: 33 | S100: 250 | T100: 2014-07-08 | U100: 13 days | V100: 2014-08-24T18:59:42 | W100: 463606-2|28627-2|9545-2 | X100: 0 | Y100: 99
A101: 4222098 | B101: us | C101: 1 | D101: Bjorn | E101: r | F101: 3798570 | G101: us | H101: 1 | I101: Exalveus | J101: p | K101: 3722347 | L101: us | M101: 1 | N101: WhilkyBean | O101: r | P101: Bronze | Q101: 7 | R101: 3 | S101: 248 | T101: 2014-07-30 | U101: 24 days | V101: 2014-08-24T18:59:42 | W101: 4222098-1|3798570-1|3722347-1 | X101: 0 | Y101: 100
A102: 5730133 | B102: us | C102: 1 | D102: Sodalane | E102: p | F102: 5713104 | G102: us | H102: 1 | I102: AjSlick | J102: t | K102: 5614676 | L102: us | M102: 1 | N102: Zach | O102: r | P102: Bronze | Q102: 9 | R102: 5 | S102: 248 | T102: 2014-07-14 | U102: 10 days | V102: 2014-08-24T18:59:42 | W102: 5730133-1|5713104-1|5614676-1 | X102: 0 | Y102: 101
A103: 4553758 | B103: us | C103: 1 | D103: TenderForce | E103: t | F103: 3437811 | G103: us | H103: 1 | I103: ShadowBroker | J103: p | K103: 2328698 | L103: us | M103: 1 | N103: MiniNephilim | O103: z | P103: Bronze | Q103: 7 | R103: 5 | S103: 248 | T103: 2014-08-07 | U103: 14 days | V103: 2014-08-24T18:59:42 | W103: 4553758-1|3437811-1|2328698-1 | X103: 0 | Y103: 102
A104: 4556217 | B104: us | C104: 1 | D104: EvilKing | E104: p | F104: 4028303 | G104: us | H104: 1 | I104: BloodHunger | J104: z | K104: 3768381 | L104: us | M104: 1 | N104: Bolt | O104: t | P104: Bronze | Q104: 9 | R104: 2 | S104: 247 | T104: 2014-07-20 | U104: 31 days | V104: 2014-08-24T18:59:42 | W104: 4556217-1|4028303-1|3768381-1 | X104: 0 | Y104: 103
A105: 1857764 | B105: us | C105: 1 | D105: Noble | E105: p | F105: 1734008 | G105: us | H105: 1 | I105: SHANAYNAYQUA | J105: r | K105: 1231689 | L105: us | M105: 1 | N105: Ballerina | O105: z | P105: Bronze | Q105: 8 | R105: 8 | S105: 247 | T105: 2014-08-05 | U105: 11 days | V105: 2014-08-24T18:59:42 | W105: 1857764-1|1734008-1|1231689-1 | X105: 0 | Y105: 104
A106: 679611 | B106: us | C106: 2 | D106: kommandoh | E106: z | F106: 638151 | G106: us | H106: 2 | I106: archon | J106: p | K106: 5543552 | L106: us | M106: 1 | N106: Soophie | O106: t | P106: Bronze | Q106: 19 | R106: 23 | S106: 247 | T106: 2014-07-17 | U106: 2 days | V106: 2014-08-24T18:59:42 | W106: 679611-2|638151-2|5543552-1 | X106: 0 | Y106: 105
A107: 4141177 | B107: us | C107: 1 | D107: Addicuss | E107: t | F107: 3168377 | G107: us | H107: 1 | I107: dabun | J107: z | K107: 2894269 | L107: us | M107: 1 | N107: DangerousBob | O107: t | P107: Bronze | Q107: 7 | R107: 16 | S107: 247 | T107: 2014-07-29 | U107: 2 days | V107: 2014-08-24T18:59:42 | W107: 4141177-1|3168377-1|2894269-1 | X107: 0 | Y107: 106
A108: 3529412 | B108: us | C108: 1 | D108: KainSere | E108: t | F108: 2430970 | G108: us | H108: 1 | I108: name | J108: z | K108: 462486 | L108: us | M108: 1 | N108: ToSiNo | O108: p | P108: Bronze | Q108: 7 | R108: 3 | S108: 246 | T108: 2014-08-05 | U108: 19 days | V108: 2014-08-24T18:59:42 | W108: 3529412-1|2430970-1|462486-1 | X108: 0 | Y108: 107
A109: 1372566 | B109: us | C109: 1 | D109: DiesIrae | E109: r | F109: 760382 | G109: us | H109: 1 | I109: dms | J109: r | K109: 345636 | L109: us | M109: 1 | N109: MoeShow | O109: p | P109: Bronze | Q109: 9 | R109: 5 | S109: 246 | T109: 2014-08-01 | U109: 3 days | V109: 2014-08-24T18:59:42 | W109: 1372566-1|760382-1|345636-1 | X109: 0 | Y109: 108
A110: 96313 | B110: us | C110: 2 | D110: plasma | E110: t | F110: 70882 | G110: us | H110: 2 | I110: kEpEx | J110: p | K110: 5019712 | L110: us | M110: 1 | N110: Diianiz | O110: t | P110: Bronze | Q110: 7 | R110: 4 | S110: 246 | T110: 2014-08-05 | U110: 17 days | V110: 2014-08-24T18:59:42 | W110: 96313-2|70882-2|5019712-1 | X110: 0 | Y110: 109
A111: 5233393 | B111: us | C111: 1 | D111: garrasdepuma | E111: t | F111: 5220111 | G111: us | H111: 1 | I111: hungryhippo | J111: r | K111: 5065601 | L111: us | M111: 1 | N111: padrote | O111: t | P111: Bronze | Q111: 7 | R111: 6 | S111: 246 | T111: 2014-07-25 | U111: 16 days | V111: 2014-08-24T18:59:42 | W111: 5233393-1|5220111-1|5065601-1 | X111: 0 | Y111: 110
A112: 2326649 | B112: us | C112: 1 | D112: FrozenJuiceS | E112: t | F112: 303673 | G112: us | H112: 1 | I112: wAr | J112: z | K112: 286947 | L112: us | M112: 1 | N112: DayDay | O112: t | P112: Bronze | Q112: 7 | R112: 10 | S112: 246 | T112: 2014-07-10 | U112: 3 days | V112: 2014-08-24T18:59:42 | W112: 2326649-1|303673-1|286947-1 | X112: 0 | Y112: 111
A113: 698561 | B113: us | C113: 2 | D113: CORAGEM | E113: t | F113: 256032 | G113: us | H113: 2 | I113: GUKBCA | J113: r | K113: 4717917 | L113: us | M113: 1 | N113: HyoKa | O113: r | P113: Bronze | Q113: 7 | R113: 5 | S113: 244 | T113: 2014-08-24 | U113: 21 hours | V113: 2014-08-24T18:59:42 | W113: 698561-2|256032-2|4717917-1 | X113: 0 | Y113: 112
A114: 1819893 | B114: us | C114: 1 | D114: thebrycicle | E114: p | F114: 373453 | G114: us | H114: 1 | I114: pokerherface | J114: r | K114: 367669 | L114: us | M114: 1 | N114: GSWarrior | O114: p | P114: Bronze | Q114: 7 | R114: 10 | S114: 244 | T114: 2014-08-21 | U114: 23 hours | V114: 2014-08-24T18:59:42 | W114: 1819893-1|373453-1|367669-1 | X114: 0 | Y114: 113
A115: 1238855 | B115: us | C115: 1 | D115: JMFH | E115: r | F115: 373453 | G115: us | H115: 1 | I115: pokerherface | J115: r | K115: 367669 | L115: us | M115: 1 | N115: GSWarrior | O115: t | P115: Bronze | Q115: 8 | R115: 8 | S115: 243 | T115: 2014-07-27 | U115: 14 days | V115: 2014-08-24T18:59:42 | W115: 1238855-1|373453-1|367669-1 | X115: 0 | Y115: 114
A116: 5477546 | B116: us | C116: 1 | D116: IPA | E116: p | F116: 2490739 | G116: us | H116: 1 | I116: Whalegon | J116: t | K116: 739043 | L116: us | M116: 1 | N116: Baldinio | O116: p | P116: Bronze | Q116: 16 | R116: 22 | S116: 243 | T116: 2014-07-19 | U116: 22 days | V116: 2014-08-24T18:59:42 | W116: 5477546-1|2490739-1|739043-1 | X116: 0 | Y116: 115
A117: 853565 | B117: us | C117: 2 | D117: BrandonLee | E117: t | F117: 834104 | G117: us | H117: 2 | I117: melk | J117: t | K117: 66886 | L117: us | M117: 2 | N117: FrEdAuM | O117: t | P117: Bronze | Q117: 7 | R117: 11 | S117: 243 | T117: 2014-07-11 | U117: 12 days | V117: 2014-08-24T18:59:42 | W117: 853565-2|834104-2|66886-2 | X117: 0 | Y117: 116
A118: 4368653 | B118: us | C118: 1 | D118: PitchedTent | E118: t | F118: 3108413 | G118: us | H118: 1 | I118: EGSuppyRC | J118: z | K118: 402509 | L118: us | M118: 1 | N118: BnBEleven | O118: t | P118: Bronze | Q118: 11 | R118: 9 | S118: 241 | T118: 2014-07-22 | U118: 33 days | V118: 2014-08-24T18:59:42 | W118: 4368653-1|3108413-1|402509-1 | X118: 0 | Y118: 117
A119: 3629983 | B119: us | C119: 1 | D119: GeneralChaos | E119: r | F119: 3318204 | G119: us | H119: 1 | I119: Jabier | J119: r | K119: 1702452 | L119: us | M119: 1 | N119: Osi | O119: z | P119: Bronze | Q119: 7 | R119: 5 | S119: 240 | T119: 2014-07-24 | U119: 3 days | V119: 2014-08-24T18:59:42 | W119: 3629983-1|3318204-1|1702452-1 | X119: 0 | Y119: 118
A120: 5386090 | B120: us | C120: 1 | D120: MileyDyrus | E120: p | F120: 5358884 | G120: us | H120: 1 | I120: Zionerix | J120: p | K120: 4967774 | L120: us | M120: 1 | N120: hiimdanny | O120: r | P120: Bronze | Q120: 12 | R120: 10 | S120: 240 | T120: 2014-07-23 | U120: 17 days | V120: 2014-08-24T18:59:42 | W120: 5386090-1|5358884-1|4967774-1 | X120: 0 | Y120: 119
A121: 3370053 | B121: us | C121: 1 | D121: BADDAD | E121: t | F121: 2615413 | G121: us | H121: 1 | I121: RabidBunny | J121: r | K121: 2602208 | L121: us | M121: 1 | N121: ThunderBird | O121: p | P121: Bronze | Q121: 7 | R121: 11 | S121: 240 | T121: 2014-08-09 | U121: 23 hours | V121: 2014-08-24T18:59:42 | W121: 3370053-1|2615413-1|2602208-1 | X121: 0 | Y121: 120
A122: 345778 | B122: us | C122: 1 | D122: spykez | E122: z | F122: 342788 | G122: us | H122: 1 | I122: dlo | J122: z | K122: 332529 | L122: us | M122: 1 | N122: chicken | O122: p | P122: Bronze | Q122: 6 | R122: 3 | S122: 238 | T122: 2014-08-05 | U122: 19 days | V122: 2014-08-24T18:59:42 | W122: 345778-1|342788-1|332529-1 | X122: 0 | Y122: 121
A123: 1193267 | B123: us | C123: 1 | D123: Teaboy | E123: z | F123: 878065 | G123: us | H123: 1 | I123: Goob | J123: p | K123: 665105 | L123: us | M123: 1 | N123: SoapMan | O123: p | P123: Bronze | Q123: 11 | R123: 11 | S123: 238 | T123: 2014-07-13 | U123: 15 days | V123: 2014-08-24T18:59:42 | W123: 1193267-1|878065-1|665105-1 | X123: 0 | Y123: 122
A124: 429460 | B124: us | C124: 2 | D124: WALLABON | E124: t | F124: 60582 | G124: us | H124: 2 | I124: Fersho | J124: r | K124: 3379112 | L124: us | M124: 1 | N124: daniel | O124: r | P124: Bronze | Q124: 10 | R124: 13 | S124: 238 | T124: 2014-07-23 | U124: 10 days | V124: 2014-08-24T18:59:42 | W124: 429460-2|60582-2|3379112-1 | X124: 0 | Y124: 123
A125: 5880558 | B125: us | C125: 1 | D125: Noppy | E125: z | F125: 5855485 | G125: us | H125: 1 | I125: Saifox | J125: t | K125: 2322631 | L125: us | M125: 1 | N125: ZaTh | O125: p | P125: Bronze | Q125: 12 | R125: 19 | S125: 238 | T125: 2014-08-08 | U125: 12 days | V125: 2014-08-24T18:59:42 | W125: 5880558-1|5855485-1|2322631-1 | X125: 0 | Y125: 124
A126: 1776029 | B126: us | C126: 1 | D126: supersoldier | E126: t | F126: 1745077 | G126: us | H126: 1 | I126: ian | J126: r | K126: 1119238 | L126: us | M126: 1 | N126: Marc | O126: p | P126: Bronze | Q126: 13 | R126: 24 | S126: 238 | T126: 2014-07-12 | U126: 2 days | V126: 2014-08-24T18:59:42 | W126: 1776029-1|1745077-1|1119238-1 | X126: 0 | Y126: 125
A127: 592689 | B127: us | C127: 2 | D127: Claudio | E127: z | F127: 395043 | G127: us | H127: 2 | I127: Jcbeamin | J127: t | K127: 4934023 | L127: us | M127: 1 | N127: bazooka | O127: p | P127: Bronze | Q127: 7 | R127: 15 | S127: 238 | T127: 2014-07-22 | U127: 1 days | V127: 2014-08-24T18:59:42 | W127: 592689-2|395043-2|4934023-1 | X127: 0 | Y127: 126
A128: 5057999 | B128: us | C128: 1 | D128: Sekt | E128: t | F128: 4068707 | G128: us | H128: 1 | I128: Hector | J128: r | K128: 2000666 | L128: us | M128: 1 | N128: Tydrous | O128: r | P128: Bronze | Q128: 8 | R128: 3 | S128: 237 | T128: 2014-07-27 | U128: 3 days | V128: 2014-08-24T18:59:42 | W128: 5057999-1|4068707-1|2000666-1 | X128: 0 | Y128: 127
A129: 5846541 | B129: us | C129: 1 | D129: SrCockSock | E129: t | F129: 5401716 | G129: us | H129: 1 | I129: StickyNote | J129: z | K129: 4755626 | L129: us | M129: 1 | N129: InTheButt | O129: p | P129: Bronze | Q129: 8 | R129: 12 | S129: 237 | T129: 2014-07-14 | U129: 3 days | V129: 2014-08-24T18:59:42 | W129: 5846541-1|5401716-1|4755626-1 | X129: 0 | Y129: 128
A130: 5836767 | B130: us | C130: 1 | D130: RossBoss | E130: z | F130: 4949889 | G130: us | H130: 1 | I130: Klose | J130: t | K130: 622892 | L130: us | M130: 1 | N130: Protoss | O130: p | P130: Bronze | Q130: 10 | R130: 14 | S130: 236 | T130: 2014-08-11 | U130: 4 days | V130: 2014-08-24T18:59:42 | W130: 5836767-1|4949889-1|622892-1 | X130: 0 | Y130: 129
A131: 4408366 | B131: us | C131: 1 | D131: Homeboy | E131: z | F131: 3160352 | G131: us | H131: 1 | I131: MrSynne | J131: p | K131: 648177 | L131: us | M131: 1 | N131: TheDbag | O131: r | P131: Bronze | Q131: 19 | R131: 21 | S131: 235 | T131: 2014-07-07 | U131: 21 days | V131: 2014-08-24T18:59:42 | W131: 4408366-1|3160352-1|648177-1 | X131: 0 | Y131: 130
A132: 3804933 | B132: us | C132: 1 | D132: MacWiller | E132: z | F132: 3799781 | G132: us | H132: 1 | I132: Pranks | J132: p | K132: 3757748 | L132: us | M132: 1 | N132: Anthony | O132: p | P132: Bronze | Q132: 12 | R132: 17 | S132: 235 | T132: 2014-07-25 | U132: 5 days | V132: 2014-08-24T18:59:42 | W132: 3804933-1|3799781-1|3757748-1 | X132: 0 | Y132: 131
A133: 2741175 | B133: us | C133: 1 | D133: Backsyde | E133: p | F133: 1281466 | G133: us | H133: 1 | I133: SuperTerran | J133: t | K133: 753106 | L133: us | M133: 1 | N133: FrostyFenix | O133: z | P133: Bronze | Q133: 7 | R133: 3 | S133: 234 | T133: 2014-07-17 | U133: 8 days | V133: 2014-08-24T18:59:42 | W133: 2741175-1|1281466-1|753106-1 | X133: 0 | Y133: 132
A134: 5881849 | B134: us | C134: 1 | D134: otaf | E134: t | F134: 2009017 | G134: us | H134: 1 | I134: DragonBouzu | J134: p | K134: 957260 | L134: us | M134: 1 | N134: kotaro | O134: z | P134: Bronze | Q134: 9 | R134: 10 | S134: 234 | T134: 2014-07-26 | U134: 29 days | V134: 2014-08-24T18:59:42 | W134: 5881849-1|2009017-1|957260-1 | X134: 0 | Y134: 133
A135: 5809039 | B135: us | C135: 1 | D135: DMac | E135: p | F135: 4787513 | G135: us | H135: 1 | I135: Locke | J135: p | K135: 3058074 | L135: us | M135: 1 | N135: Minotauro | O135: t | P135: Bronze | Q135: 8 | R135: 9 | S135: 232 | T135: 2014-07-08 | U135: 17 days | V135: 2014-08-24T18:59:42 | W135: 5809039-1|4787513-1|3058074-1 | X135: 0 | Y135: 134
A136: 1724096 | B136: us | C136: 1 | D136: PastramiKing | E136: p | F136: 530085 | G136: us | H136: 1 | I136: Cuauhtemoc | J136: p | K136: 520914 | L136: us | M136: 1 | N136: RonnieDobbs | O136: r | P136: Bronze | Q136: 8 | R136: 9 | S136: 232 | T136: 2014-07-21 | U136: 18 days | V136: 2014-08-24T18:59:42 | W136: 1724096-1|530085-1|520914-1 | X136: 0 | Y136: 135
A137: 5594866 | B137: us | C137: 1 | D137: Baewen | E137: p | F137: 4633677 | G137: us | H137: 1 | I137: Elaray | J137: r | K137: 2178539 | L137: us | M137: 1 | N137: XLNCbiculeh | O137: r | P137: Bronze | Q137: 6 | R137: 7 | S137: 232 | T137: 2014-08-05 | U137: 9 days | V137: 2014-08-24T18:59:42 | W137: 5594866-1|4633677-1|2178539-1 | X137: 0 | Y137: 136
A138: 1216714 | B138: us | C138: 1 | D138: Dangeruss | E138: r | F138: 936475 | G138: us | H138: 1 | I138: FuknRambo | J138: p | K138: 686398 | L138: us | M138: 1 | N138: randeazie | O138: r | P138: Bronze | Q138: 7 | R138: 10 | S138: 232 | T138: 2014-07-26 | U138: 2 hours | V138: 2014-08-24T18:59:42 | W138: 1216714-1|936475-1|686398-1 | X138: 0 | Y138: 137
A139: 5713956 | B139: us | C139: 1 | D139: NotAKorean | E139: t | F139: 5616701 | G139: us | H139: 1 | I139: McVoldemort | J139: t | K139: 3032378 | L139: us | M139: 1 | N139: BrassMonkey | O139: r | P139: Bronze | Q139: 12 | R139: 18 | S139: 232 | T139: 2014-07-24 | U139: 23 hours | V139: 2014-08-24T18:59:42 | W139: 5713956-1|5616701-1|3032378-1 | X139: 0 | Y139: 138
A140: 707312 | B140: us | C140: 2 | D140: Gabriel | E140: t | F140: 65525 | G140: us | H140: 2 | I140: Pabloker | J140: p | K140: 5872327 | L140: us | M140: 1 | N140: Socialwinds | O140: p | P140: Bronze | Q140: 9 | R140: 21 | S140: 232 | T140: 2014-08-08 | U140: 2 days | V140: 2014-08-24T18:59:42 | W140: 707312-2|65525-2|5872327-1 | X140: 0 | Y140: 139
A141: 3359256 | B141: us | C141: 1 | D141: LikeAToss | E141: t | F141: 2866252 | G141: us | H141: 1 | I141: CallMeSix | J141: r | K141: 2236000 | L141: us | M141: 1 | N141: Yates | O141: t | P141: Bronze | Q141: 7 | R141: 18 | S141: 232 | T141: 2014-07-28 | U141: 2 days | V141: 2014-08-24T18:59:42 | W141: 3359256-1|2866252-1|2236000-1 | X141: 0 | Y141: 140
A142: 2429850 | B142: us | C142: 1 | D142: DUNKINDONUTS | E142: p | F142: 1245022 | G142: us | H142: 1 | I142: ELTRACY | J142: p | K142: 882537 | L142: us | M142: 1 | N142: WetBrain | O142: p | P142: Bronze | Q142: 10 | R142: 9 | S142: 231 | T142: 2014-07-08 | U142: 21 days | V142: 2014-08-24T18:59:42 | W142: 2429850-1|1245022-1|882537-1 | X142: 0 | Y142: 141
A143: 5823559 | B143: us | C143: 1 | D143: boneslasher | E143: t | F143: 5812603 | G143: us | H143: 1 | I143: Dan | J143: p | K143: 3035607 | L143: us | M143: 1 | N143: Valust | O143: t | P143: Bronze | Q143: 26 | R143: 24 | S143: 231 | T143: 2014-07-11 | U143: 27 days | V143: 2014-08-24T18:59:42 | W143: 5823559-1|5812603-1|3035607-1 | X143: 0 | Y143: 142
A144: 2550806 | B144: us | C144: 1 | D144: Mysterion | E144: z | F144: 1755427 | G144: us | H144: 1 | I144: ManBearPig | J144: p | K144: 1196651 | L144: us | M144: 1 | N144: DirkDiggler | O144: p | P144: Bronze | Q144: 7 | R144: 11 | S144: 230 | T144: 2014-07-26 | U144: 14 days | V144: 2014-08-24T18:59:42 | W144: 2550806-1|1755427-1|1196651-1 | X144: 0 | Y144: 143
A145: 3759434 | B145: us | C145: 1 | D145: Noodles | E145: p | F145: 3492613 | G145: us | H145: 1 | I145: BEAR | J145: p | K145: 340864 | L145: us | M145: 1 | N145: TreVice | O145: z | P145: Bronze | Q145: 8 | R145: 21 | S145: 229 | T145: 2014-07-18 | U145: 1 days | V145: 2014-08-24T18:59:42 | W145: 3759434-1|3492613-1|340864-1 | X145: 0 | Y145: 144
A146: 2539467 | B146: us | C146: 1 | D146: Cultarian | E146: t | F146: 2388220 | G146: us | H146: 1 | I146: Khorshid | J146: z | K146: 2351463 | L146: us | M146: 1 | N146: Lotus | O146: p | P146: Bronze | Q146: 8 | R146: 5 | S146: 228 | T146: 2014-07-10 | U146: 12 days | V146: 2014-08-24T18:59:42 | W146: 2539467-1|2388220-1|2351463-1 | X146: 0 | Y146: 145
A147: 5156555 | B147: us | C147: 1 | D147: MrMarcus | E147: z | F147: 3996752 | G147: us | H147: 1 | I147: Caboose | J147: r | K147: 1717030 | L147: us | M147: 1 | N147: RottenAle | O147: p | P147: Bronze | Q147: 9 | R147: 8 | S147: 228 | T147: 2014-07-08 | U147: 4 days | V147: 2014-08-24T18:59:42 | W147: 5156555-1|3996752-1|1717030-1 | X147: 0 | Y147: 146
A148: 2526997 | B148: us | C148: 1 | D148: TigerCat | E148: p | F148: 1522082 | G148: us | H148: 1 | I148: Weskimo | J148: r | K148: 689548 | L148: us | M148: 1 | N148: omegatrox | O148: p | P148: Bronze | Q148: 6 | R148: 6 | S148: 228 | T148: 2014-07-23 | U148: 4 days | V148: 2014-08-24T18:59:42 | W148: 2526997-1|1522082-1|689548-1 | X148: 0 | Y148: 147
A149: 2006752 | B149: us | C149: 1 | D149: eagleliberty | E149: t | F149: 1659193 | G149: us | H149: 1 | I149: Pandemonium | J149: p | K149: 1581732 | L149: us | M149: 1 | N149: AHJJL | O149: z | P149: Bronze | Q149: 8 | R149: 11 | S149: 228 | T149: 2014-07-08 | U149: 4 days | V149: 2014-08-24T18:59:42 | W149: 2006752-1|1659193-1|1581732-1 | X149: 0 | Y149: 148
A150: 299583 | B150: us | C150: 2 | D150: Wewe | E150: t | F150: 285540 | G150: us | H150: 2 | I150: Chairizard | J150: t | K150: 262292 | L150: us | M150: 2 | N150: RpOchënta | O150: p | P150: Bronze | Q150: 10 | R150: 34 | S150: 227 | T150: 2014-07-16 | U150: 1 days | V150: 2014-08-24T18:59:42 | W150: 299583-2|285540-2|262292-2 | X150: 0 | Y150: 149
A151: 4819317 | B151: us | C151: 1 | D151: jprummer | E151: t | F151: 4249704 | G151: us | H151: 1 | I151: Hnefatafl | J151: r | K151: 2875522 | L151: us | M151: 1 | N151: primeagen | O151: p | P151: Bronze | Q151: 7 | R151: 7 | S151: 226 | T151: 2014-07-12 | U151: 13 minutes | V151: 2014-08-24T18:59:42 | W151: 4819317-1|4249704-1|2875522-1 | X151: 0 | Y151: 150
